Workbook

Sheet 1.Marée
L1: Coche | M1: Type DCP | N1: Type bouées | O1: Action DCP | P1: Liste ZEE
B2: Navire | E2: : | F2: VIA EUROS | L2: x | M2: N | N2: D+ | O2: MISE A L'EAU DCP ECO | P2: Eaux internationales
B3: Pavillon | E3: : | F3: Français | L3: X | M3: A | N3: M3I | O3: CHANGEMENT DE BALISE | P3: Angola | S3: en cas de déchargement partiel
B4: Numéro d'immatriculation | E4: : | F4: CC 791294 | N4: M4I | O4: VISITE AVEC PECHE | P4: Bénin | S4: merci de noter ci-dessous le ROB (Reste à bord)
B5: Port d'immatriculation | E5: : | F5: Concarneau | O5: VISITE SANS PECHE | P5: Cameroun | S5: Albacore +10
B6: Signal d'appel international | E6: : | F6: 228168000 | O6: RETRAIT | P6: Cap Vert | S6: Albacore -10
B7: Numéro OMI | E7: : | F7: 9017862 | O7: PERTE / FIN TRANSMISSION BALISE | P7: Chagos | S7: Listao
B8: Numéro CFR | E8: : | F8: FRA 000791294 | P8: Comores | S8: Patudo +10
P9: Congo Brazzaville | S9: Patudo -10
B10: Patron : | D10: PROVOST PASCAL | P10: Côte d'Ivoire | S10: Germon
B11: Marée : | D11: XX | P11: Gabon
P12: Gambie
B13: Départ - | D13: Port | E13: : | F13: LAS PALMAS | P13: Ghana
D14: Date | E14: : | F14: 2020-05-20 | P14: Glorieuses
D15: Heure | E15: : | F15: 18:08:00 | P15: Guinée Bissau
D16: Loch | E16: : | F16: 0 | P16: Guinée Conakry
P17: Guinée Equatoriale
B18: Arrivée - | D18: Port | E18: : | F18: ABIDJAN | P18: Ile Maurice
D19: Date | E19: : | F19: 2020-07-07 | P19: Iles Eparses
D20: Heure | E20: : | F20: 15:00:00 | P20: Indonésie
D21: Loch | E21: : | F21: 10353 | P21: Kenya
P22: La Réunion
D23: Jours de mer pendant la marée. | H23: =F21-F16 -> 10353 | J23: milles parcourus | P23: Libéria
P24: Madagascar
B25: Nombre de coups de filets dans la marée | H25: Portants | I25: : | J25: =SUM('2.Logbook'!I30:I532) -> 23 | P25: Maldives
H26: Nuls | I26: : | J26: =SUM('2.Logbook'!J30:J532) -> 3 | P26: Maurice
H27: Total | I27: : | J27: =J25+J26 -> 26 | P27: Mauritanie
P28: Mayotte
B29: Albacore | C29: : | D29: =SUM('2.Logbook'!M30:M532)+SUM('2.Logbook'!O30:O532) -> 293 | G29: Autres | H29: =SUM('2.Logbook'!Z30:Z532) -> 8.5 | P29: Mozambique
B30: Listao | C30: : | D30: =SUM('2.Logbook'!Q30:Q532) -> 328 | G30: Rejets | H30: =SUM('2.Logbook'!AC30:AC532) -> 0 | P30: Namibie
B31: Patudo | C31: : | D31: =SUM('2.Logbook'!S30:S532)+SUM('2.Logbook'!U30:U532) -> 23 | P31: Nigéria
B32: Germon | C32: : | D32: =SUM('2.Logbook'!W30:W532) -> 0 | P32: Oman
P33: Sao Tome e Principe
B34: Total | C34: : | D34: =SUM(D29:D32) -> 644 | P34: Sénégal
P35: Seychelles
P42: Zaïre

Sheet 2.Logbook
A1: DEPART / SALIDA / DEPARTURE | L1: ARRIVEE / LLEGAGA / ARRIVAL | W1: PATRON / PATRON / MASTER | AD1: NAVIRE / BARCO / VESSEL | AU1: FEUILLE / HOJA / SHEET
W3: =Patron -> PROVOST PASCAL | AD3: Vessel | AK3: =Navire -> VIA EUROS
AD4: Flag | AK4: =Pavillon -> Français
AD5: Immatriculation number | AK5: =Immatriculation -> CC 791294
A6: PORT / PUERTO / PORT | G6: =Port_départ -> LAS PALMAS | L6: PORT / PUERTO / PORT | S6: =Port_retour -> ABIDJAN | AD6: Immatriculation port | AK6: =Port_immatriculation -> Concarneau
A7: DATE / FECHA / DATE | G7: =Date_départ -> 2020-05-20 | L7: DATE / FECHA / DATE | S7: =Date_retour -> 2020-07-07 | W7: MAREE | Z7: =Marée -> XX | AD7: International call sign | AK7: =Appel_international -> 228168000
A8: HEURE / HORA / HOUR | G8: =Heure_départ -> 18:08:00 | L8: HEURE / HORA / HOUR | S8: =Heure_retour -> 15:00:00 | AD8: OMI number | AK8: =OMI -> 9017862
A9: LOCH / CORREDA / LOCH | G9: =Loch_départ -> 0 | L9: LOCH / CORREDA / LOCH | S9: =Loch_retour -> 10353 | AD9: CFR number | AK9: =CFR -> FRA 000791294
L10: Une calée, un objet flottant ou une bouée par ligne
A12: DATE | B12: HEURE | C12: LATITUDE chaque calée ou à midi | D12: LONGITUDE chaque calée ou à midi | E12: ZEE | F12: T°C mer | G12: VENT | I12: CALEE | L12: CAPTURE ESTIMEE (en tonnes) | AD12: ASSOCIATION | AK12: OBJET FLOTTANT | AP12: BOUEE INSTRUMENTEE | AU12: COMMENTAIRES
G14: VIENTO | I14: LANCE | L14: ESTIMATION DE LA CAPTURA (en toneladas) | AD14: ASSOCIACION | AK14: OBJETO | AP14: BOYA | AU14: COMMENTARIOS
G16: WIND | I16: FISHING SET | L16: ESTIMATED CATCH (metric tons) | AD16: ASSOCIATION | AK16: FLOATING OBJECT | AP16: INSTRUMENTED BUOY | AU16: COMMENTS
A18: FECHA | B18: HORA | C18: LATITUDE cada lance o mediada | D18: LONGITUD cada lance o mediada | E18: ZEE | F18: T°C mar | G18: Direction / Dirreccion / Direction Degrés / Grados / Degrees | H18: Vitesse / Velocidad / Speed Nœuds / Nudos / Knots | I18: Portante / Positivo / Successful | J18: Nulle / Nullo / Nil | K18: Type de calée / Lance typo / Fishing set type | L18: 1 | P18: 2 | R18: 3 | V18: 4 | X18: 5 | AA18: 6 | AD18: Banc Libre / Banco Libre / Free School | AE18: Objet flottant / Objeto / FOB | AF18: Balise / Balisa / Beacon | AG18: Baliseur / Barco de appoyo Support vessel | AH18: Requin baleine / Tiburon ballena Whale shark | AI18: Baleine / Ballena / Whale | AJ18: Oiseaux / Aves / Birds | AK18: ACTIVITE SUR L'OBJET | AL18: TYPE D'OBJET | AM18: TYPE DE DCP DERIVANT | AN18: RISQUE DE MAILLAGE | AP18: ACTIVITE SUR LA BOUEE | AQ18: BOUEE DÉJÀ PRESENTE | AS18: BOUEE DEPLOYEE | AU18: Problèmes divers Détails sur les prises accessoires Taille du banc Autres associations Autres remarques
L20: ALBACORE | P20: LISTAO | R20: PATUDO | V20: GERMON | X20: AUTRES ESPECES | AA20: REJETS | AQ20: BOYA ANTIGUA | AS20: BOYA NUEVA
L22: RABIL | P22: LISTADO | R22: PATUDO | V22: ALBACORA | X22: OTRAS ESPECIES | AA22: DESCARTES | AK22: ACTIVIDAD SOBRE EL OBJETO | AL22: TIPO DE OBJETO | AM22: TIPO DE DCP | AN22: ENTANGLING RISK | AP22: ACTIVIDAD SOBRE LA BOYA | AQ22: BUOY ALREADY ON THE FOB | AS22: DEPLOYED BUOY
A24: DATE | B24: TIME | C24: LATITUDE each set or at midday | D24: LONGITUD each set or at midday | E24: EEZ | F24: T°C sea | L24: YELLOWFIN | P24: SKIPJACK | R24: BIGEYE | V24: ALBACORE | X24: OTHER SPECIES | AA24: DISCARDS | AN24: En surface Parte surperficial Surface | AO24: Sous la surface Parte sumergida Underwater | AQ24: TYPE | AR24: NUMERO | AS24: TYPE | AT24: NUMERO
L26: YFT +10 | N26: YFT-10 | P26: SKJ | R26: BET +10 | T26: BET - 10 | V26: ALB | X26: OTH | AA26: DSC | AK26: FOB ACTIVITY | AL26: FOB TYPE | AM26: DFAD TYPE | AP26: BUOY ACTIVITY | AQ26: TIPO | AR26: NUMERO | AS26: TIPO | AT26: NUMERO
L27: Taille | M27: Capture | N27: Taille | O27: Capture | P27: Taille | Q27: Capture | R27: Taille | S27: Capture | T27: Taille | U27: Capture | V27: Taille | W27: Capture | X27: Espèce | Y27: Taille | Z27: Capture | AA27: Espèce | AB27: Taille | AC27: Capture
L28: Tailla | M28: Captura | N28: Tailla | O28: Captura | P28: Tailla | Q28: Captura | R28: Tailla | S28: Captura | T28: Tailla | U28: Captura | V28: Tailla | W28: Captura | X28: Especie | Y28: Tailla | Z28: Captura | AA28: Especie | AB28: Tailla | AC28: Captura | AQ28: TYPE | AR28: ID | AS28: TYPE | AT28: ID
L29: Size | M29: Catch | N29: Size | O29: Catch | P29: Size | Q29: Catch | R29: Size | S29: Catch | T29: Size | U29: Catch | V29: Size | W29: Catch | X29: Species | Y29: Size | Z29: Catch | AA29: Species | AB29: Size | AC29: Catch
A30: 2020-05-20 | B30: 18:08:00 | AU30: Sortie de Las Palmas
A31: 2020-01-21 | B31: 12:00:00 | C31: 23°59N | D31: 17°44W | AU31: Transit
A32: 2020-05-22 | B32: 12;30 | C32: 18°10 N | D32: 18°42 W | E32: Mauritanie | F32: 19.6 | G32: 0 | H32: 25 | I32: 0 | J32: 1 | K32: Banc Libre | AD32: 1 | AU32: matte SK
A33: 2020-05-23 | B33: 11:00:00 | C33: 13°36 N | D33: 18°13 W | E33: Sénégal | F33: 25 | G33: 0 | H33: 10 | AU33: RAS
A34: 2020-05-23 | B34: 13:21:00 | C34: 13°17N | D34: 17°48W | E34: Gambie | F34: 25 | G34: 0 | H34: 10 | AK34: Visite sans pêche | AL34: DCP dérivant | AM34: DCP espagnol émergé métal | AN34: < 6, 5 cm | AO34: Non observable | AP34: Transfert | AQ34: M3i | AR34: 95142 | AS34: M3i+ | AT34: 554126
A35: 2020-05-23 | B35: 16:20:00 | C35: 12°34N | D35: 17:43W | E35: Sénégal | F35: 25 | G35: 0 | H35: 10 | AU35: RAS
A36: 2020-05-23 | B36: 20:00:00 | C36: 11°43N | D36: 17°58W | E36: Co-Gestion Senegal Guinee bissau | F36: 25 | G36: 0 | H36: 10 | AU36: RAS
A37: 2020-05-24 | B37: 10:00:00 | C37: 10°50 N | D37: 18°50W | E37: Co-Gestion Senegal Guinee bissau | F37: 26 | G37: 0 | H37: 5 | AU37: RAS
A38: 2020-05-24 | B38: 18;00 | C38: 8°57N | D38: 18°51W | E38: Guinée Bissau | F38: 29 | G38: 0 | H38: 5 | AK38: Visite sans pêche | AL38: DCP dérivant | AM38: DCP espagnol émergé métal | AN38: < 6, 5 cm | AO38: Non observable | AP38: Visite | AQ38: M3i+ | AR38: 568710
A39: 2020-05-25 | B39: 12:00:00 | C39: 9 °16 N | D39: 16° 01 W | E39: Guinée Conakry | F39: 29 | G39: 45 | H39: 5 | AU39: RAS
A40: 2020-05-26 | B40: 04:30:00 | C40: 8°14N | D40: 14°55W | E40: SIERRA LEON | F40: 29 | G40: 45 | H40: 10 | AU40: ROUTE DAKAR evasan
A41: 2020-05-27 | B41: 11:40:00 | AU41: rentrée à DAKAR
A42: 2020-05-27 | B42: 14:30:00 | AU42: sortie DAKAR
A43: 2020-05-27 | B43: 19:12:00 | C43: 13°44N | D43: 17°53W | E43: Sénégal | F43: 26 | G43: 270 | H43: 10 | AU43: RAS
A44: 2020-05-27 | B44: 21:00:00 | C44: 13°18N | D44: 17°54W | E44: Gambie | F44: 26 | G44: 270 | H44: 10 | AU44: RAS
A45: 2020-05-28 | B45: 00:05:00 | C45: 12°34N | D45: 17°46W | E45: Sénégal | F45: 26 | G45: 270 | H45: 10 | AU45: RAS
A46: 2020-05-28 | B46: 02:45:00 | C46: 11°59N | D46: 17°48W | E46: Co-Gestion Senegal Guinee bissau | F46: 26 | G46: 270 | H46: 5 | AU46: RAS
A47: 2020-05-28 | B47: 12:30:00 | C47: 9°56N | D47: 16°50W | E47: Guinée Bissau | F47: 26 | G47: 300 | H47: 8 | I47: 1 | J47: 0 | K47: Banc Objet | N47: 1,8 - 3,4 kg | O47: 2 | P47: 1,8 - 3,4 kg | Q47: 19 | AD47: 0 | AE47: 1 | AF47: 0 | AG47: 0 | AH47: 0 | AI47: 0 | AJ47: 0 | AK47: Visite avec pêche | AL47: DCP dérivant | AM47: DCP espagnol émergé métal | AN47: Non observable | AO47: < 6, 5 cm | AQ47: Pas de bouée | AS47: Pas de bouée
A48: 2020-05-29 | B48: 12:00:00 | C48: 8°29N | D48: 15°29W | E48: Guinée Conakry | F48: 29 | G48: 0 | H48: 10 | AU48: RAS
A49: 2020-05-29 | B49: 19:11:00 | C49: 7°29N | D49: 14°15W | E49: SIERRA LEON | F49: 29 | G49: 0 | H49: 5 | AK49: Visite sans pêche | AL49: DCP dérivant | AM49: DCP espagnol émergé métal | AN49: < 6, 5 cm | AO49: Non observable | AP49: Transfert | AQ49: Pas de bouée | AS49: M3i+ | AT49: 568708
A50: 2020-05-30 | B50: 06:30:00 | C50: 7°28N | D50: 14°14W | E50: SIERRA LEON | F50: 29 | G50: 217 | H50: 10 | AK50: Fin d'utilisation | AL50: DCP dérivant | AM50: DCP espagnol émergé métal | AN50: < 6, 5 cm | AO50: Non observable | AP50: Fin d'utilisation | AQ50: M3i+ | AR50: 568708 | AS50: Pas de bouée
A51: 2020-05-31 | B51: 11:25:00 | C51: 3°48 N | D51: 10°44 W | E51: Libéria | F51: 29 | G51: 259 | H51: 10 | AK51: Visite sans pêche | AL51: DCP dérivant | AM51: DCP espagnol émergé métal | AN51: < 6, 5 cm | AO51: Non observable | AP51: Transfert | AQ51: Pas de bouée | AS51: M3i+ | AT51: 554375
A52: 2020-06-01 | B52: 16:00:00 | C52: 1°40N | D52: 7°46W | E52: Libéria | F52: 29 | G52: 139 | H52: 10 | AK52: Visite sans pêche | AL52: DCP dérivant | AM52: DCP espagnol émergé métal | AN52: Pas de mailles | AO52: Non observable | AP52: Visite | AQ52: M3i+ | AR52: 585248
A53: 2020-06-02 | B53: 00:20:00 | C53: 1°25 N | D53: 6°08 W | E53: Côte d'Ivoire | F53: 29 | G53: 150 | H53: 10 | AU53: RAS
A54: 2020-06-02 | B54: 11:25:00 | C54: 1°10 N | D54: 4°05 W | E54: Eaux internationales | F54: 29 | G54: 190 | H54: 10 | I54: 1 | J54: 0 | K54: Banc Objet | L54: 20 - 40 kg | M54: 2 | P54: 1,8 - 3,4 kg | Q54: 25 | T54: 3,4 - 10 kg | U54: 2 | AL54: DCP dérivant | AM54: DCP français émergé bambou | AN54: Pas de mailles | AP54: Transfert | AQ54: Pas de bouée | AS54: M3i+ | AT54: 568708
A55: 2020-06-03 | B55: 16:53:00 | C55: 1°24 N | D55: 2°30 W | E55: Eaux internationales | F55: 29 | G55: 180 | H55: 15 | I55: 1 | J55: 0 | K55: Banc Libre | L55: > 60 kg | M55: 45 | AD55: 1 | AU55: MATTE YF
A56: 2020-06-04 | B56: 09:39:00 | C56: 1°21 N | D56: 2°33 W | E56: Eaux internationales | F56: 29 | G56: 180 | H56: 15 | I56: 1 | J56: 0 | K56: Banc Libre | L56: > 60 kg | M56: 26 | AD56: 1 | AU56: MATTE YF
A57: 2020-06-05 | B57: 07:25:00 | C57: 1°14 N | D57: 2°02 W | E57: Eaux internationales | F57: 29 | G57: 180 | H57: 5 | J57: 1 | K57: Banc Libre | AD57: 1 | AU57: MATTE YF
A58: 2020-06-06 | B58: 12:00:00 | C58: 1°07 N | D58: 0°37 W | E58: Eaux internationales | F58: 29 | G58: 180 | H58: 20 | AU58: RAS
A59: 2020-06-07 | B59: 08:20:00 | C59: 0°23N | D59: 2°11 E | E59: Eaux internationales | F59: 28 | G59: 170 | H59: 6 | AL59: DCP dérivant | AM59: DCP coréen | AN59: Pas de mailles | AP59: Transfert | AQ59: ISD+ | AR59: 1216 | AS59: M3i+ | AT59: 585771
A60: 2020-06-08 | B60: 07:30:00 | C60: 1°04 N | D60: 3°34 E | E60: Sao Tome e Principe | F60: 28 | G60: 196 | H60: 15 | AL60: DCP dérivant | AM60: DCP espagnol émergé métal | AN60: < 6, 5 cm | AP60: Transfert | AQ60: SLX+ | AR60: 308224 | AS60: M3i+ | AT60: 585489
A61: 2020-06-09 | B61: 12:00:00 | C61: 0°52N | D61: 1°38W | E61: Eaux internationales | F61: 28 | G61: 167 | H61: 15 | AU61: RAS
A62: 2020-06-10 | B62: 12:00:00 | C62: 1°26N | D62: 5°07W | E62: Eaux internationales | F62: 29 | G62: 148 | H62: 20 | AU62: RAS
A63: 2020-06-11 | B63: 03:30:00 | C63: 4°42 N | D63: 3°52 W | E63: Côte d'Ivoire | F63: 28 | G63: 255 | H63: 15 | AU63: RAS
A64: 2020-06-11 | B64: 07:48:00 | AU64: rentrée ABIDJAN
A65: 2020-06-11 | B65: 14:43:00 | AU65: sortie ABIDJAN
A66: 2020-06-12 | B66: 12;00 | C66: 1°34N | D66: 0°34W | E66: Eaux internationales | AU66: RAS
A67: 1°3/06/2020 | B67: 07:20:00 | C67: 1°06 N | D67: 3°16 E | E67: Eaux internationales | F67: 28 | G67: 150 | H67: 25 | I67: 1 | K67: Banc Objet | P67: 1,8 - 3,4 kg | Q67: 26 | T67: 3,4 - 10 kg | U67: 4 | AK67: Visite avec pêche | AL67: DCP dérivant | AM67: DCP coréen | AN67: Pas de mailles | AP67: Transfert | AQ67: ISD+ | AR67: 5487 | AS67: M3i+ | AT67: 585731
A68: 2020-06-14 | B68: 10:35:00 | C68: 0°52 N | D68: 4°35 E | E68: Sao Tome e Principe | F68: 28 | G68: 170 | H68: 20 | I68: 1 | K68: Banc Objet | P68: < 1,8 kg | Q68: 50 | X68: banane | Y68: 5 | Z68: 1 | AK68: Visite avec pêche | AL68: DCP dérivant | AM68: DCP espagnol émergé métal | AN68: < 6, 5 cm | AP68: Transfert | AQ68: Pas de bouée | AS68: M3i+ | AT68: 585835
X69: ravil | Y69: 1 | Z69: 1
A70: 2020-06-14 | B70: 17;30 | C70: 0°42N | D70: 4°32E | E70: Sao Tome e Principe | F70: 27 | G70: 170 | H70: 10 | AK70: Mise à l'eau | AL70: DCP dérivant | AM70: DCP français émergé bambou | AN70: < 6, 5 cm | AO70: < 6, 5 cm | AP70: Mise à l'eau | AS70: M3i+ | AT70: 585835
A71: 2020-06-15 | B71: 05:30:00 | C71: 0°23N | D71: 4°36E | E71: Sao Tome e Principe | F71: 26 | G71: 185 | H71: 5 | AK71: Mise à l'eau | AL71: DCP dérivant | AM71: DCP français émergé bambou | AN71: < 6, 5 cm | AO71: < 6, 5 cm | AP71: Mise à l'eau | AS71: M3i+ | AT71: 585738
A72: 2020-06-15 | B72: 16.32 | C72: 0°44 S | D72: 6°10 E | E72: Sao Tome e Principe | F72: 26 | G72: 180 | H72: 5 | AK72: Mise à l'eau | AL72: DCP dérivant | AM72: DCP français émergé bambou | AN72: < 6, 5 cm | AO72: < 6, 5 cm | AP72: Mise à l'eau | AS72: M3i+ | AT72: 585701
A73: 2020-06-16 | B73: 09:00:00 | C73: 4°33 S | D73: 6°58 E | E73: Eaux internationales | F73: 24 | G73: 198 | H73: 5 | AK73: Mise à l'eau | AL73: DCP dérivant | AM73: DCP français émergé bambou | AN73: < 6, 5 cm | AO73: < 6, 5 cm | AP73: Mise à l'eau | AS73: M3i+ | AT73: 585741
A74: 2020-06-17 | B74: 05:30:00 | C74: 5°51 S | D74: 6°56 E | E74: Eaux internationales | F74: 24 | G74: 195 | H74: 5 | AK74: Visite sans pêche | AL74: DCP dérivant | AM74: DCP français émergé bambou | AN74: Pas de mailles | AO74: Non observable | AP74: Visite | AS74: M3i+ | AT74: 568013
A75: 2020-06-18 | B75: 12:00:00 | C75: 5°18 S | D75: 1°45 E | E75: Eaux internationales | F75: 25 | G75: 172 | H75: 15 | AU75: RAS
A76: 2020-06-19 | B76: 12:00:00 | C76: 5°24 S | D76: 0°32 W | E76: Eaux internationales | F76: 26 | G76: 165 | H76: 10 | AU76: RAS
A77: 2020-06-20 | B77: 17:00:00 | C77: 2°05 S | D77: 1°24 E | E77: Eaux internationales | F77: 24 | G77: 188 | H77: 5 | AK77: Visite sans pêche | AL77: DCP dérivant | AM77: DCP espagnol émergé métal | AN77: < 6, 5 cm | AO77: Non observable | AP77: Transfert | AQ77: M3i+ | AR77: 593875 | AS77: M3i+ | AT77: 585551
A78: 2020-06-21 | B78: 10:00:00 | C78: 00°54N | D78: 3°53 E | E78: Sao Tome e Principe | F78: 27 | G78: 193 | H78: 15 | AK78: Visite sans pêche | AL78: DCP dérivant | AM78: DCP espagnol émergé métal | AN78: < 6, 5 cm | AO78: Non observable | AP78: Transfert | AQ78: M3i+ | AR78: 540335 | AS78: M3i+ | AT78: 585677
A79: 2020-06-22 | B79: 06:40:00 | C79: 0°49 N | D79: 003°36 E | E79: Sao Tome e Principe | F79: 27 | G79: 185 | H79: 10 | I79: 1 | K79: Banc Objet | N79: 3,4 - 10 kg | O79: 1 | P79: 1,8 - 3,4 kg | Q79: 50 | T79: 3,4 - 10 kg | U79: 5 | X79: Marlin | Y79: 100 | Z79: 0.5 | AE79: 1 | AK79: Visite avec pêche | AL79: DCP dérivant | AM79: DCP français émergé métal | AN79: < 6, 5 cm | AQ79: M3i+ | AR79: 585677
A80: 2020-06-22 | B80: 06:40:00 | C80: 0°49 N | D80: 003°36 E | E80: Sao Tome e Principe | P80: < 1,8 kg | Q80: 14 | X80: ravil | Y80: 1 | Z80: 1
A81: 2020-06-22 | B81: 12:30:00 | C81: 1°11 N | D81: 3°24 E | E81: Sao Tome e Principe | F81: 27 | G81: 185 | H81: 5 | AK81: Visite sans pêche | AL81: DCP dérivant | AM81: DCP espagnol émergé plastique | AN81: Pas de mailles | AO81: Non observable | AP81: Transfert | AQ81: Pas de bouée | AS81: M3i+ | AT81: 585773
A82: 2020-06-22 | B82: 14:12:00 | C82: 1°17 N | D82: 3°37 E | E82: Sao Tome e Principe | F82: 27 | G82: 185 | H82: 5 | AK82: Visite sans pêche | AL82: DCP dérivant | AM82: DCP coréen | AN82: Pas de mailles | AO82: Non observable | AP82: Transfert | AQ82: ISD+ | AR82: 2406 | AS82: M3i+ | AT82: 585704
A83: 2020-06-23 | B83: 07:35:00 | C83: 1°04 N | D83: 3°45 E | E83: Sao Tome e Principe | F83: 27 | G83: 185 | H83: 10 | I83: 1 | K83: Banc Objet | N83: 1,8 - 3,4 kg | O83: 1 | P83: 1,8 - 3,4 kg | Q83: 12 | X83: banane | Y83: 3 | Z83: 1 | AE83: 1 | AK83: Visite avec pêche | AL83: DCP dérivant | AM83: DCP coréen | AN83: Pas de mailles | AO83: Non observable | AP83: Transfert | AQ83: ISD+ | AR83: 2312 | AS83: M3i+ | AT83: 585501
A84: 2020-06-23 | B84: 07:35:00 | C84: 1°04 N | D84: 3°45 E | E84: Sao Tome e Principe | P84: < 1,8 kg | Q84: 5
A85: 2020-06-24 | B85: 07:30:00 | C85: 1°05 N | D85: 4°16 E | E85: Sao Tome e Principe | F85: 27 | G85: 185 | H85: 5 | AK85: Visite sans pêche | AL85: DCP dérivant | AM85: DCP espagnol émergé plastique | AN85: Pas de mailles | AO85: Non observable | AP85: Transfert | AQ85: M3i+ | AR85: 540556 | AS85: M3i+ | AT85: 585732
A86: 2020-06-25 | B86: 07:22:00 | C86: 1°04 N | D86: 4°39 E | E86: Sao Tome e Principe | F86: 27 | G86: 190 | H86: 10 | I86: 1 | K86: Banc Libre | L86: 40 - 60 kg | M86: 15 | AD86: 1 | AU86: Matte YF
A87: 2020-06-25 | B87: 10;14 | C87: 1°08 N | D87: 4°36 E | E87: Sao Tome e Principe | F87: 27 | G87: 190 | H87: 10 | I87: 1 | P87: 1,8 - 3,4 kg | Q87: 20 | T87: 1,8 - 3,4 kg | U87: 3 | X87: banane | Y87: 3 | Z87: 1 | AE87: 1 | AK87: Visite avec pêche | AL87: DCP dérivant | AM87: DCP coréen | AN87: Pas de mailles | AO87: < 6, 5 cm | AP87: Transfert | AQ87: Pas de bouée | AS87: M3i+ | AT87: 585571
A88: 2020-06-25 | B88: 10;14 | C88: 1°08 N | D88: 4°36 E | E88: Sao Tome e Principe | P88: < 1,8 kg | Q88: 10 | T88: 3,4 - 10 kg | U88: 7 | X88: ravil | Y88: 1 | Z88: 1
A89: 2020-06-26 | B89: 07:50:00 | C89: 1°07 N | D89: 4°25 E | E89: Sao Tome e Principe | F89: 27 | G89: 180 | H89: 20 | I89: 1 | K89: Banc Libre | L89: > 60 kg | M89: 15 | AD89: 1 | AU89: MATTE YF
A90: 2020-06-26 | B90: 11;40 | C90: 1°10 N | D90: 4°16 E | E90: Sao Tome e Principe | F90: 27 | G90: 180 | H90: 20 | I90: 1 | K90: Banc Libre | L90: 40 - 60 kg | M90: 30 | AD90: 1 | AI90: 1 | AJ90: 1 | AU90: MATTE YF
A91: 2020-06-27 | B91: 08:25:00 | C91: 1°18 N | D91: 4°20 E | E91: Sao Tome e Principe | F91: 27 | G91: 180 | H91: 15 | I91: 1 | K91: Banc Libre | L91: > 60 kg | M91: 17 | AD91: 1 | AJ91: 1 | AU91: MATTE YF
A92: 2020-06-27 | B92: 12:00:00 | C92: 1°24 N | D92: 4°17 E | E92: Sao Tome e Principe | F92: 27 | G92: 180 | H92: 15 | I92: 1 | K92: Banc Libre | L92: > 60 kg | M92: 3 | AD92: 1 | AJ92: 1
A93: 2020-06-27 | B93: 14:50:00 | C93: 1°12 N | D93: 6°17 E | E93: Sao Tome e Principe | F93: 27 | G93: 180 | H93: 10 | J93: 0 | K93: Banc Libre | AD93: 1 | AJ93: 1
A94: 2020-06-27 | B94: 17:13:00 | C94: 1°22 N | D94: 4°17 E | E94: Sao Tome e Principe | F94: 27 | G94: 180 | H94: 10 | J94: 0 | K94: Banc Libre | AD94: 1
A95: 2020-06-28 | B95: 07:45:00 | C95: 1°04 N | D95: 05°03 E | E95: Sao Tome e Principe | F95: 27 | G95: 230 | H95: 5 | AK95: Visite sans pêche | AL95: DCP dérivant | AM95: DCP espagnol émergé métal | AN95: < 6, 5 cm | AO95: Non observable | AP95: Transfert | AQ95: M3i+ | AR95: 593387 | AS95: M3i+ | AT95: 585571
A96: 2020-06-28 | B96: 08:40:00 | C96: 0°54 N | D96: 5°05 E | E96: Sao Tome e Principe | F96: 27 | G96: 200 | H96: 5 | AK96: Mise à l'eau | AL96: DCP dérivant | AM96: DCP français émergé bambou | AN96: < 6, 5 cm | AO96: < 6, 5 cm | AP96: Mise à l'eau | AS96: M3i+ | AT96: 585736
A97: 2020-06-29 | B97: 9;40 | C97: 1°23 N | D97: 3°44 E | E97: Sao Tome e Principe | F97: 27 | G97: 190 | H97: 10 | I97: 1 | K97: Banc Libre | L97: > 60 kg | M97: 19 | AD97: 1 | AU97: MATTE YF
A98: 2020-06-29 | B98: 13:15:00 | C98: 1°27 N | D98: 3°46 E | E98: Sao Tome e Principe | F98: 27 | G98: 190 | H98: 10 | I98: 1 | K98: Banc Libre | L98: > 60 kg | M98: 5 | AD98: 1 | AU98: MATTE YF
A99: 2020-06-30 | B99: 07:40:00 | C99: 1°02 N | D99: 3°46 E | E99: Sao Tome e Principe | F99: 27 | G99: 185 | H99: 5 | I99: 1 | K99: Banc Libre | L99: > 60 kg | M99: 2 | AD99: 1 | AU99: MATTE YF
A100: 2020-06-30 | B100: 10;30 | C100: 1°04 N | D100: 3°47 E | E100: Sao Tome e Principe | F100: 27 | G100: 185 | H100: 5 | I100: 1 | K100: Banc Libre | L100: > 60 kg | M100: 68 | AD100: 1 | AU100: MATTE YF
A101: 2020-07-01 | B101: 13:25:00 | C101: 0°56 N | D101: 4°37 E | E101: Sao Tome e Principe | F101: 27 | G101: 185 | H101: 10 | I101: 1 | K101: Banc Objet | N101: 1,8 - 3,4 kg | O101: 5 | P101: 1,8 - 3,4 kg | Q101: 20 | AE101: 1 | AK101: Visite avec pêche | AL101: DCP dérivant | AM101: DCP espagnol émergé métal | AO101: > 6,5 cm | AP101: Visite | AQ101: M3i+ | AR101: 585571
A102: 2020-07-01 | B102: 13:25:00 | C102: 0°56 N | D102: 4°37 E | E102: Sao Tome e Principe | F102: 27 | P102: < 1,8 kg | Q102: 10
A103: 2020-07-02 | B103: 07:40:00 | C103: 0°55 N | D103: 05°00 E | E103: Sao Tome e Principe | F103: 26 | G103: 185 | H103: 15 | I103: 1 | K103: Banc Objet | P103: 1,8 - 3,4 kg | Q103: 5 | AE103: 1 | AK103: Visite avec pêche | AL103: DCP dérivant | AM103: DCP français émergé bambou | AN103: < 6, 5 cm | AO103: < 6, 5 cm | AQ103: M3i+ | AR103: 585736
A104: 2020-07-02 | B104: 13:30:00 | C104: 1°10 N | D104: 4°54 E | E104: Sao Tome e Principe | F104: 26 | G104: 186 | H104: 15 | AK104: Visite sans pêche | AL104: DCP dérivant | AM104: DCP espagnol émergé métal | AN104: < 6, 5 cm | AO104: Non observable | AQ104: ISD+ | AR104: 321183 | AS104: M3i+ | AT104: 585766
A105: 2020-07-03 | B105: 06:30:00 | C105: 1°06 N | D105: 04°52 E | E105: Sao Tome e Principe | F105: 27 | G105: 190 | H105: 20 | I105: 1 | N105: 1,8 - 3,4 kg | O105: 3 | P105: 1,8 - 3,4 kg | Q105: 35 | AE105: 1 | AK105: Visite avec pêche | AL105: DCP dérivant | AM105: DCP espagnol émergé métal | AN105: < 6, 5 cm | AQ105: M3i+ | AR105: 585766
A106: 2020-07-03 | B106: 06:30:00 | C106: 1°06 N | D106: 04°52 E | E106: Sao Tome e Principe | P106: < 1,8 kg | Q106: 10
A107: 2020-07-03 | B107: 13:20:00 | C107: 0°40 N | D107: 4°21 E | E107: Sao Tome e Principe | F107: 27 | G107: 190 | H107: 20 | I107: 1 | L107: 10 - 20 kg | M107: 1 | P107: 1,8 - 3,4 kg | Q107: 15 | X107: RAVIL | Y107: 1 | Z107: 2 | AE107: 1 | AK107: Visite avec pêche | AL107: DCP dérivant | AM107: DCP espagnol émergé métal | AN107: < 6, 5 cm | AQ107: M3i+ | AR107: 557571
A108: 2020-07-03 | B108: 13:20:00 | C108: 0°40 N | D108: 4°21 E | E108: Sao Tome e Principe | P108: < 1,8 kg | Q108: 2
A109: 2020-07-04 | B109: 07:45:00 | C109: 0°59 N | D109: 4°45 E | E109: Sao Tome e Principe | F109: 27 | G109: 190 | H109: 20 | J109: 1 | K109: Banc Libre
A110: 2020-07-05 | B110: 16.35 | C110: 1°11 N | D110: 4° 22 E | E110: Sao Tome e Principe | F110: 27 | G110: 165 | H110: 10 | AK110: Visite sans pêche | AL110: DCP dérivant | AM110: DCP coréen | AN110: < 6, 5 cm | AO110: Non observable | AP110: Transfert | AQ110: ISD+ | AR110: 2031 | AS110: M3i+ | AT110: 585683
A111: 2020-07-06 | B111: 07:30:00 | C111: 1°44 N | D111: 0°52 E | E111: Eaux internationales | F111: 27 | G111: 185 | H111: 5 | AK111: Visite sans pêche | AL111: DCP dérivant | AM111: DCP espagnol émergé métal | AN111: Pas de mailles | AO111: Non observable | AP111: Transfert | AQ111: ISD+ | AR111: 1935 | AS111: M3i+ | AT111: 585557
A112: 2020-07-06 | B112: 14:20:00 | C112: 1°48 N | D112: 0°26 W | E112: Eaux internationales | F112: 27 | G112: 185 | H112: 5 | I112: 1 | L112: > 60 kg | M112: 33 | R112: > 60 kg | S112: 2
A113: 2020-07-07 | B113: 12:00:00 | C113: 4°09 N | D113: 3°34 W | E113: Côte d'Ivoire | F113: 24 | G113: 185 | H113: 8 | AU113: RAS
A114: 2020-07-07 | B114: 15:00:00 | AU114: RENTREE ABIDJAN

Sheet 3.Tonnage bord
B2: Information pêche
B3: =Navire -> VIA EUROS | D3: Tonnage le : | E3: =TODAY() -> 2020-07-17
B4: Albacore +10 | C4: : | D4: =SUM('2.Logbook'!$M$30:$M$532)+'1.Marée'!$T$5 -> 281
B5: Albacore -10 | D5: =SUM('2.Logbook'!$O$30:$O$532)+'1.Marée'!$T$6 -> 12
B6: Listao | C6: : | D6: =SUM('2.Logbook'!$Q$30:$Q$532)+'1.Marée'!$T$7 -> 328
B7: Patudo -10 | C7: : | D7: =SUM('2.Logbook'!$S$30:$S$532)+'1.Marée'!$T$8 -> 2
B8: Patudo +10 | D8: =SUM('2.Logbook'!$U$30:$U$532)+'1.Marée'!$T$9 -> 21
B9: Germon | C9: : | D9: =SUM('2.Logbook'!$W$30:$W$532)+'1.Marée'!$T$10 -> 0
B11: Total | C11: : | D11: =SUM(D4:D9) -> 644
B13: 1- ouvrir un nouveau mail dans votre messagerie
B14: 2- coller dans le corps du texte
B15: 3- envoyer votre email à armement

Sheet 4.Statistiques
B2: =Navire -> VIA EUROS
B3: Statistiques Captures
B4: N° Marée | C4: =Marée -> XX
B5: Du : | C5: =Date_départ -> 2020-05-20
B6: Au : | C6: =Date_retour -> 2020-07-07
C8: Sur banc libre (en t)
B9: YF+10 | C9: =SUMIFS('2.Logbook'!$M$30:$M$532,'2.Logbook'!$K$30:$K$532,"Banc Libre") -> 245 | D9: =IF($C$36=0,"",C9/$C$36) -> 20.41666667
B10: YF-10 | C10: =SUMIFS('2.Logbook'!$O$30:$O$532,'2.Logbook'!$K$30:$K$532,"Banc Libre") -> 0 | D10: =IF(C37=0,"",C10/C37) -> 0
B11: SKJ | C11: =SUMIFS('2.Logbook'!$Q$30:$Q$532,'2.Logbook'!$K$30:$K$532,"Banc Libre") -> 0 | D11: =IF(C38=0,"",C11/C38) -> 0
B12: BE+10 | C12: =SUMIFS('2.Logbook'!$S$30:$S$532,'2.Logbook'!$K$30:$K$532,"Banc Libre") -> 0 | D12: =IF(C39=0,"",C12/C39) -> 0
B13: BE-10 | C13: =SUMIFS('2.Logbook'!$U$30:$U$532,'2.Logbook'!$K$30:$K$532,"Banc Libre") -> 0 | D13: =IF(C40=0,"",C13/C40) -> 0
B14: Germon | C14: =SUMIFS('2.Logbook'!$W$30:$W$532,'2.Logbook'!$K$30:$K$532,"Banc Libre") -> 0 | D14: =IF(C41=0,"",C14/C41) -> 
C17: Sur DCP (en t)
B18: YF+10 | C18: =SUMIFS('2.Logbook'!$M$30:$M$532,'2.Logbook'!$K$30:$K$532,"Banc Objet",'2.Logbook'!$AL$30:$AL$532,{"DCP dérivant";"DCP ancré"} ) -> 2 | D18: =IF($C$36=0,"",C18/$C$36) -> 0.1666666667
B19: YF-10 | C19: =SUMIFS('2.Logbook'!$O$30:$O$532,'2.Logbook'!$K$30:$K$532,"Banc Objet",'2.Logbook'!$AL$30:$AL$532,{"DCP dérivant";"DCP ancré"} ) -> 9 | D19: =IF($C$37=0,"",C19/$C$37) -> 0.03202846975
B20: SKJ | C20: =SUMIFS('2.Logbook'!$Q$30:Q$532,'2.Logbook'!$K$30:$K$532,"Banc Objet",'2.Logbook'!$AL$30:$AL$532,{"DCP dérivant";"DCP ancré"} ) -> 207 | D20: =IF($C$38=0,"",C20/$C$38) -> 0.631097561
B21: BE+10 | C21: =SUMIFS('2.Logbook'!$S$30:$S$532,'2.Logbook'!$K$30:$K$532,"Banc Objet",'2.Logbook'!$AL$30:$AL$532,{"DCP dérivant";"DCP ancré"} ) -> 0 | D21: =IF($C$39=0,"",C21/$C$39) -> 0
B22: BE-10 | C22: =SUMIFS('2.Logbook'!$U$30:$U$532,'2.Logbook'!$K$30:$K$532,"Banc Objet",'2.Logbook'!$AL$30:$AL$532,{"DCP dérivant";"DCP ancré"} ) -> 11 | D22: =IF($C$40=0,"",C22/$C$40) -> 0.5238095238
B23: Germon | C23: =SUMIFS('2.Logbook'!$W$30:$W$532,'2.Logbook'!$K$30:$K$532,"Banc Objet",'2.Logbook'!$AL$30:$AL$532,{"DCP dérivant";"DCP ancré"} ) -> 0 | D23: =IF($C$41=0,"",C23/$C$41) -> 
C26: Sur épave (en t)
B27: YF+10 | C27: =SUMIFS('2.Logbook'!$M$30:$M$532,'2.Logbook'!$K$30:$K$532,"Banc Objet",'2.Logbook'!$AL$30:$AL$532, "<>" & {"DCP dérivant";"DCP ancré"} ) -> 0 | D27: =IF($C$36=0,"",C27/$C$36) -> 0
B28: YF-10 | C28: =SUMIFS('2.Logbook'!$O$30:$O$532,'2.Logbook'!$K$30:$K$532,"Banc Objet",'2.Logbook'!$AL$30:$AL$532,"<>" &{"DCP dérivant";"DCP ancré"} ) -> 0 | D28: =IF($C$37=0,"",C28/$C$37) -> 0
B29: SKJ | C29: =SUMIFS('2.Logbook'!$Q$30:Q$532,'2.Logbook'!$K$30:$K$532,"Banc Objet",'2.Logbook'!$AL$30:$AL$532,"<>" &{"DCP dérivant";"DCP ancré"} ) -> 0 | D29: =IF($C$38=0,"",C29/$C$38) -> 0
B30: BE+10 | C30: =SUMIFS('2.Logbook'!$S$30:$S$532,'2.Logbook'!$K$30:$K$532,"Banc Objet",'2.Logbook'!$AL$30:$AL$532,"<>" &{"DCP dérivant";"DCP ancré"} ) -> 0 | D30: =IF($C$39=0,"",C30/$C$39) -> 0
B31: BE-10 | C31: =SUMIFS('2.Logbook'!$U$30:$U$532,'2.Logbook'!$K$30:$K$532,"Banc Objet",'2.Logbook'!$AL$30:$AL$532,"<>" &{"DCP dérivant";"DCP ancré"} ) -> 0 | D31: =IF($C$40=0,"",C31/$C$40) -> 0
B32: Germon | C32: =SUMIFS('2.Logbook'!$W$30:$W$532,'2.Logbook'!$K$30:$K$532,"Banc Objet",'2.Logbook'!$AL$30:$AL$532,"<>" &{"DCP dérivant";"DCP ancré"} ) -> 0 | D32: =IF($C$41=0,"",C32/$C$41) -> 
C35: Totaux (en T)
B36: YF+10 | C36: =SUM('2.Logbook'!$O$30:$O$532) -> 12
B37: YF-10 | C37: =SUM('2.Logbook'!$M$30:$M$532) -> 281
B38: SKJ | C38: =SUM('2.Logbook'!$Q$30:$Q$532) -> 328
B39: BE+10 | C39: =SUM('2.Logbook'!$S$30:$S$532) -> 2
B40: BE-10 | C40: =SUM('2.Logbook'!$U$30:$U$532) -> 21
B41: Germon | C41: =SUM('2.Logbook'!$W$30:$W$532) -> 0
B42: Total | C42: =SUM(C36:C41) -> 644

Sheet 5.Définitions
A1: TAILLE DES CAPTURES
A2: ALBACORE, PATUDO, GERMON | B2: Description
A3: < 1,8 kg | B3: Poisson de moins de 1,8 kg
A4: 1,8 - 3,4 kg | B4: Poisson de 1,8 à 3,4 kg
A5: 3,4 - 10 kg | B5: Poisson de 3,4 à 10 kg
A6: 10 - 20 kg | B6: Poisson de 10 à 20 kg
A7: 20 - 40 kg | B7: Poisson de 20 à 40 kg
A8: 40 - 60 kg | B8: Poisson de 40 à 60 kg
A9: > 60 kg | B9: Poisson de plus de 60 kg
A11: LISTAO | B11: Description
A12: < 1,8 kg | B12: Poisson de moins de 1,8 kg
A13: 1,8 - 3,4 kg | B13: Poisson de 1,8 à 3,4 kg
A14: > 3,4 kg | B14: Poisson de plus de 3,4 kg
A16: OBJETS FLOTTANTS
A17: Types d'activités sur les objets flottants | B17: Description
A18: Mise à l'eau | B18: Déploiement d'un nouveau DCP
A19: Visite sans pêche | B19: Visite d'un DCP ou d'une épave déjà en mer et qui n'est pas suivie d'une calée
A20: Visite avec pêche | B20: Visite d'un DCP ou d'une épave déjà en mer suivie d'une calée
A21: Renforcement | B21: Déploiement d'un DCP sur un autre DCP ou sur une épave pour améliorer sa flottabilité
A22: Retrait | B22: Récupération en mer d'un DCP ou d'une épave
A23: Perte | B23: Action involontaire. Se produit par exemple si un autre bateau récupère l'objet, si la bouée arrête d'émettre ou si l'objet coule.
A24: Fin d'utilisation | B24: Action volontaire. Se produit si le bateau, son baliseur ou l'armement désactive la bouée. L'abandon d'un DCP en mer sans balise est interdit.
A26: Types d'objets flottants | B26: Description / Exemple
A27: DCP ancré | B27: Objet construit et ancré par des pêcheurs pour attirer du poisson
A28: DCP dérivant | B28: Objet dérivant construit et déployé par des pêcheurs pour attirer du poisson
A29: Epave artificielle liée à la pêche | B29: Par exemple, un morceau de filet, une aussière, une épave de bateau, un baliseur
A30: Epave artificielle liée à d'autres activités humaines | B30: Par exemple, un bidon, un touret de câble, une bouée océanique
A31: Epave naturelle d'origine animale | B31: Par exemple, une charogne de baleine ou de requin baleine
A32: Epave naturelle d'origine végétale | B32: Par exemple, un tas de paille, un amas d'algues ou des branches d'arbre
A34: Types de DCP | B34: Description
A35: DCP français émergé bambou | B35: Radeau type français, avec un cadre 100% bambou émergé
A36: DCP français émergé métal | B36: Radeau type français, avec un cadre 100% métal émergé
A37: DCP français émergé bambou-métal | B37: Radeau type français, avec un cadre mixte bambou métal
A38: DCP français furtif | B38: Radeau type français, sous la surface
A39: DCP français cage | B39: Radeau-cage type français, sous la surface
A40: DCP espagnol émergé bambou | B40: Radeau type espagnol, avec un cadre 100% bambou émergé
A41: DCP espagnol émergé métal | B41: Radeau type espagnol, avec un cadre 100% métal émergé
A42: DCP espagnol émergé bambou-métal | B42: Radeau type espagnol, avec un cadre mixte bambou métal
A43: DCP espagnol émergé plastique | B43: Radeau type espagnol, avec un cadre 100% plastique émergé
A44: DCP espagnol furtif | B44: Radeau type espagnol, avec un cadre mixte bambou métal
A45: DCP espagnol cage | B45: Radeau type espagnol, sous la surface
A46: DCP coréen | B46: Radeau type coréen
A47: Autre DCP dérivant | B47: A décrire dans les commentaires
A48: Autre objet | B48: A décrire dans les commentaires
A50: Risque de maillage | B50: Description
A51: Pas de mailles | B51: Présence de mailles en surface (risque pour les tortues) ou sous la surface (risque pour les requins). L'utilisation de DCP avec mailles est interdite par la CTOI.
A52: < 6, 5 cm | B52: Présence de mailles de 6,5 cm ou moins. Faible risque de maillage.
A53: > 6,5 cm | B53: Présence de mailles de plus de 6,5 cm. Fort risque de maillage.
A54: Mailles de taille inconnue | B54: La taille des mailles n'a pas pu être estimée
A55: Non observable | B55: La présence de mailles n'a pas pu être observée
A59: BOUEES
A60: Types d'activités sur les bouées | B60: Description
A61: Mise à l'eau | B61: Déploiement d'un DCP neuf avec une bouée / déploiement d'une bouée sur un objet dérivant sans bouée
A62: Visite | B62: Visite d'un DCP ou d'une épave équipée d'une bouée / visite d'une bouée dérivant seule
A63: Transfert | B63: Changement de bouée
A64: Retrait | B64: Récupération en mer d'une bouée. L'abandon d'un DCP en mer sans balise est interdit.
A65: Perte | B65: Action involontaire. Se produit par exemple si un autre bateau récupère l'objet et éteint la bouée, si la bouée arrête d'émettre ou si la bouée coule.
A66: Fin d'utilisation | B66: Action volontaire. Se produit si le bateau, son baliseur ou l'armement désactive la bouée. L'abandon d'un DCP en mer sans balise est interdit.
A68: Types de bouées | B68: Description
A69: M3i | B69: Marine Instrument M3i
A70: M3i+ | B70: Marine Instrument M3i+
A71: M4i | B71: Marine Instrument M4i
A72: Marine Instruments modèle inconnu | B72: Bouée Marine Instruments dont le modèle n'a pas été observé ou n'est pas présent dans la liste précédente
A73: Ortbit | B73: Thalos Ortbit
A74: Thalos modèle inconnu | B74: Bouée Thalos dont le modèle n'a pas été observé ou n'est pas présent dans la liste précédente
A75: SLX+ | B75: Satlink SLX+
A76: ISD+ | B76: Satlink ISD+
A77: Autre Satlink | B77: Autre modèle Satlink (non utilisé par la flotte française)
A78: Satlink modèle inconnu | B78: Bouée Satlink dont le modèle n'a pas été observé
A79: Marque et modèle inconnus | B79: Bouée pour laquelle ni la marque, ni le modèle n'ont pu être observés
A80: Pas de bouée | B80: Objet dérivant sans bouée

Sheet 6.Export Captures IRD
A3: DATE | B3: HEURE | C3: LATITUDE chaque calée ou à midi | F3: LONGITUDE chaque calée ou à midi | I3: ZEE | J3: T°C mer | K3: VENT | M3: CALEE | P3: CAPTURE ESTIMEE (en tonnes)
K5: VIENTO | M5: LANCE | P5: ESTIMATION DE LA CAPTURA (en toneladas)
K7: WIND | M7: FISHING SET | P7: ESTIMATED CATCH (metric tons)
A9: FECHA | B9: HORA | C9: LATITUD cada lance o mediada | F9: LONGITUD cada lance o mediada | I9: ZEE | J9: T°C mar | K9: Direction / Dirreccion /Direction Degrés / Grados / Degrees | L9: Vitesse / Velocidad / Speed Nœuds / Nudos / Knots | M9: Portante / Positivo / Successful | N9: Nulle / Nullo / Nil | O9: Type de calée / Lance typo / Fishing set type | P9: 1 | T9: 2 | V9: 3 | Z9: 4 | AB9: 5 | AE9: 6
P11: ALBACORE | T11: LISTAO | V11: PATUDO | Z11: GERMON | AB11: AUTRES ESPECES | AE11: REJETS
P13: RABIL | T13: LISTADO | V13: PATUDO | Z13: ALBACORA | AB13: OTRAS ESPECIES | AE13: DESCARTES
A15: DATE | B15: TIME | C15: LATITUDE each set or at midday | F15: LONGITUDE each set or at midday | I15: EEZ | J15: T°C sea | P15: YELLOWFIN | T15: SKIPJACK | V15: BIGEYE | Z15: ALBACORE | AB15: OTHER SPECIES | AE15: DISCARDS
P17: YFT +10 | R17: YFT-10 | T17: SKJ | V17: BET +10 | X17: BET - 10 | Z17: ALB | AB17: OTH | AE17: DSC
P18: Taille | Q18: Capture | R18: Taille | S18: Capture | T18: Taille | U18: Capture | V18: Taille | W18: Capture | X18: Taille | Y18: Capture | Z18: Taille | AA18: Capture | AB18: Espèce | AC18: Taille | AD18: Capture | AE18: Espèce | AF18: Taille | AG18: Capture
P19: Tailla | Q19: Captura | R19: Tailla | S19: Captura | T19: Tailla | U19: Captura | V19: Tailla | W19: Captura | X19: Tailla | Y19: Captura | Z19: Tailla | AA19: Captura | AB19: Especie | AC19: Tailla | AD19: Captura | AE19: Especie | AF19: Tailla | AG19: Captura
P20: Size | Q20: Catch | R20: Size | S20: Catch | T20: Size | U20: Catch | V20: Size | W20: Catch | X20: Size | Y20: Catch | Z20: Size | AA20: Catch | AB20: Species | AC20: Size | AD20: Catch | AE20: Species | AF20: Size | AG20: Catch
A23: =IF('2.Logbook'!A33="","",'2.Logbook'!A33) -> 2020-05-23 | B23: =IF('2.Logbook'!B33="","",'2.Logbook'!B33) -> 11:00:00 | C23: =IF('2.Logbook'!C33="","",'2.Logbook'!C33) -> 13°36 N | D23: =IF('2.Logbook'!D33="","",'2.Logbook'!D33) -> 18°13 W | E23: =IF('2.Logbook'!E33="","",'2.Logbook'!E33) -> Sénégal | F23: =IF('2.Logbook'!F33="","",'2.Logbook'!F33) -> 25 | G23: =IF('2.Logbook'!G33="","",'2.Logbook'!G33) -> 00:00:00 | H23: =IF('2.Logbook'!H33="","",'2.Logbook'!H33) -> 10 | I23: =IF('2.Logbook'!I33="","",'2.Logbook'!I33) ->  | J23: =IF('2.Logbook'!J33="","",'2.Logbook'!J33) ->  | K23: =IF('2.Logbook'!K33="","",'2.Logbook'!K33) ->  | L23: =IF('2.Logbook'!L33="","",'2.Logbook'!L33) ->  | M23: =IF('2.Logbook'!M33="","",'2.Logbook'!M33) ->  | N23: =IF('2.Logbook'!N33="","",'2.Logbook'!N33) ->  | O23: =IF('2.Logbook'!O33="","",'2.Logbook'!O33) ->  | P23: =IF('2.Logbook'!P33="","",'2.Logbook'!P33) ->  | Q23: =IF('2.Logbook'!Q33="","",'2.Logbook'!Q33) ->  | R23: =IF('2.Logbook'!R33="","",'2.Logbook'!R33) ->  | S23: =IF('2.Logbook'!S33="","",'2.Logbook'!S33) ->  | T23: =IF('2.Logbook'!T33="","",'2.Logbook'!T33) ->  | U23: =IF('2.Logbook'!U33="","",'2.Logbook'!U33) ->  | V23: =IF('2.Logbook'!V33="","",'2.Logbook'!V33) ->  | W23: =IF('2.Logbook'!W33="","",'2.Logbook'!W33) ->  | X23: =IF('2.Logbook'!X33="","",'2.Logbook'!X33) ->  | Y23: =IF('2.Logbook'!Y33="","",'2.Logbook'!Y33) ->  | Z23: =IF('2.Logbook'!Z33="","",'2.Logbook'!Z33) ->  | AA23: =IF('2.Logbook'!AA33="","",'2.Logbook'!AA33) ->  | AB23: =IF('2.Logbook'!AB33="","",'2.Logbook'!AB33) ->  | AC23: =IF('2.Logbook'!AC33="","",'2.Logbook'!AC33) ->  | AD23: =IF('2.Logbook'!AD33="","",'2.Logbook'!AD33) ->  | AE23: =IF('2.Logbook'!AE33="","",'2.Logbook'!AE33) ->  | AF23: =IF('2.Logbook'!AF33="","",'2.Logbook'!AF33) ->  | AG23: =IF('2.Logbook'!AG33="","",'2.Logbook'!AG33) -> 
A24: =IF('2.Logbook'!A34="","",'2.Logbook'!A34) -> 2020-05-23 | B24: =IF('2.Logbook'!B34="","",'2.Logbook'!B34) -> 13:21:00 | C24: =IF('2.Logbook'!C34="","",'2.Logbook'!C34) -> 13°17N | D24: =IF('2.Logbook'!D34="","",'2.Logbook'!D34) -> 17°48W | E24: =IF('2.Logbook'!E34="","",'2.Logbook'!E34) -> Gambie | F24: =IF('2.Logbook'!F34="","",'2.Logbook'!F34) -> 25 | G24: =IF('2.Logbook'!G34="","",'2.Logbook'!G34) -> 00:00:00 | H24: =IF('2.Logbook'!H34="","",'2.Logbook'!H34) -> 10 | I24: =IF('2.Logbook'!I34="","",'2.Logbook'!I34) ->  | J24: =IF('2.Logbook'!J34="","",'2.Logbook'!J34) ->  | K24: =IF('2.Logbook'!K34="","",'2.Logbook'!K34) ->  | L24: =IF('2.Logbook'!L34="","",'2.Logbook'!L34) ->  | M24: =IF('2.Logbook'!M34="","",'2.Logbook'!M34) ->  | N24: =IF('2.Logbook'!N34="","",'2.Logbook'!N34) ->  | O24: =IF('2.Logbook'!O34="","",'2.Logbook'!O34) ->  | P24: =IF('2.Logbook'!P34="","",'2.Logbook'!P34) ->  | Q24: =IF('2.Logbook'!Q34="","",'2.Logbook'!Q34) ->  | R24: =IF('2.Logbook'!R34="","",'2.Logbook'!R34) ->  | S24: =IF('2.Logbook'!S34="","",'2.Logbook'!S34) ->  | T24: =IF('2.Logbook'!T34="","",'2.Logbook'!T34) ->  | U24: =IF('2.Logbook'!U34="","",'2.Logbook'!U34) ->  | V24: =IF('2.Logbook'!V34="","",'2.Logbook'!V34) ->  | W24: =IF('2.Logbook'!W34="","",'2.Logbook'!W34) ->  | X24: =IF('2.Logbook'!X34="","",'2.Logbook'!X34) ->  | Y24: =IF('2.Logbook'!Y34="","",'2.Logbook'!Y34) ->  | Z24: =IF('2.Logbook'!Z34="","",'2.Logbook'!Z34) ->  | AA24: =IF('2.Logbook'!AA34="","",'2.Logbook'!AA34) ->  | AB24: =IF('2.Logbook'!AB34="","",'2.Logbook'!AB34) ->  | AC24: =IF('2.Logbook'!AC34="","",'2.Logbook'!AC34) ->  | AD24: =IF('2.Logbook'!AD34="","",'2.Logbook'!AD34) ->  | AE24: =IF('2.Logbook'!AE34="","",'2.Logbook'!AE34) ->  | AF24: =IF('2.Logbook'!AF34="","",'2.Logbook'!AF34) ->  | AG24: =IF('2.Logbook'!AG34="","",'2.Logbook'!AG34) -> 
A25: =IF('2.Logbook'!A35="","",'2.Logbook'!A35) -> 2020-05-23 | B25: =IF('2.Logbook'!B35="","",'2.Logbook'!B35) -> 16:20:00 | C25: =IF('2.Logbook'!C35="","",'2.Logbook'!C35) -> 12°34N | D25: =IF('2.Logbook'!D35="","",'2.Logbook'!D35) -> 17:43W | E25: =IF('2.Logbook'!E35="","",'2.Logbook'!E35) -> Sénégal | F25: =IF('2.Logbook'!F35="","",'2.Logbook'!F35) -> 25 | G25: =IF('2.Logbook'!G35="","",'2.Logbook'!G35) -> 00:00:00 | H25: =IF('2.Logbook'!H35="","",'2.Logbook'!H35) -> 10 | I25: =IF('2.Logbook'!I35="","",'2.Logbook'!I35) ->  | J25: =IF('2.Logbook'!J35="","",'2.Logbook'!J35) ->  | K25: =IF('2.Logbook'!K35="","",'2.Logbook'!K35) ->  | L25: =IF('2.Logbook'!L35="","",'2.Logbook'!L35) ->  | M25: =IF('2.Logbook'!M35="","",'2.Logbook'!M35) ->  | N25: =IF('2.Logbook'!N35="","",'2.Logbook'!N35) ->  | O25: =IF('2.Logbook'!O35="","",'2.Logbook'!O35) ->  | P25: =IF('2.Logbook'!P35="","",'2.Logbook'!P35) ->  | Q25: =IF('2.Logbook'!Q35="","",'2.Logbook'!Q35) ->  | R25: =IF('2.Logbook'!R35="","",'2.Logbook'!R35) ->  | S25: =IF('2.Logbook'!S35="","",'2.Logbook'!S35) ->  | T25: =IF('2.Logbook'!T35="","",'2.Logbook'!T35) ->  | U25: =IF('2.Logbook'!U35="","",'2.Logbook'!U35) ->  | V25: =IF('2.Logbook'!V35="","",'2.Logbook'!V35) ->  | W25: =IF('2.Logbook'!W35="","",'2.Logbook'!W35) ->  | X25: =IF('2.Logbook'!X35="","",'2.Logbook'!X35) ->  | Y25: =IF('2.Logbook'!Y35="","",'2.Logbook'!Y35) ->  | Z25: =IF('2.Logbook'!Z35="","",'2.Logbook'!Z35) ->  | AA25: =IF('2.Logbook'!AA35="","",'2.Logbook'!AA35) ->  | AB25: =IF('2.Logbook'!AB35="","",'2.Logbook'!AB35) ->  | AC25: =IF('2.Logbook'!AC35="","",'2.Logbook'!AC35) ->  | AD25: =IF('2.Logbook'!AD35="","",'2.Logbook'!AD35) ->  | AE25: =IF('2.Logbook'!AE35="","",'2.Logbook'!AE35) ->  | AF25: =IF('2.Logbook'!AF35="","",'2.Logbook'!AF35) ->  | AG25: =IF('2.Logbook'!AG35="","",'2.Logbook'!AG35) -> 
A26: =IF('2.Logbook'!A36="","",'2.Logbook'!A36) -> 2020-05-23 | B26: =IF('2.Logbook'!B36="","",'2.Logbook'!B36) -> 20:00:00 | C26: =IF('2.Logbook'!C36="","",'2.Logbook'!C36) -> 11°43N | D26: =IF('2.Logbook'!D36="","",'2.Logbook'!D36) -> 17°58W | E26: =IF('2.Logbook'!E36="","",'2.Logbook'!E36) -> Co-Gestion Senegal Guinee bissau | F26: =IF('2.Logbook'!F36="","",'2.Logbook'!F36) -> 25 | G26: =IF('2.Logbook'!G36="","",'2.Logbook'!G36) -> 00:00:00 | H26: =IF('2.Logbook'!H36="","",'2.Logbook'!H36) -> 10 | I26: =IF('2.Logbook'!I36="","",'2.Logbook'!I36) ->  | J26: =IF('2.Logbook'!J36="","",'2.Logbook'!J36) ->  | K26: =IF('2.Logbook'!K36="","",'2.Logbook'!K36) ->  | L26: =IF('2.Logbook'!L36="","",'2.Logbook'!L36) ->  | M26: =IF('2.Logbook'!M36="","",'2.Logbook'!M36) ->  | N26: =IF('2.Logbook'!N36="","",'2.Logbook'!N36) ->  | O26: =IF('2.Logbook'!O36="","",'2.Logbook'!O36) ->  | P26: =IF('2.Logbook'!P36="","",'2.Logbook'!P36) ->  | Q26: =IF('2.Logbook'!Q36="","",'2.Logbook'!Q36) ->  | R26: =IF('2.Logbook'!R36="","",'2.Logbook'!R36) ->  | S26: =IF('2.Logbook'!S36="","",'2.Logbook'!S36) ->  | T26: =IF('2.Logbook'!T36="","",'2.Logbook'!T36) ->  | U26: =IF('2.Logbook'!U36="","",'2.Logbook'!U36) ->  | V26: =IF('2.Logbook'!V36="","",'2.Logbook'!V36) ->  | W26: =IF('2.Logbook'!W36="","",'2.Logbook'!W36) ->  | X26: =IF('2.Logbook'!X36="","",'2.Logbook'!X36) ->  | Y26: =IF('2.Logbook'!Y36="","",'2.Logbook'!Y36) ->  | Z26: =IF('2.Logbook'!Z36="","",'2.Logbook'!Z36) ->  | AA26: =IF('2.Logbook'!AA36="","",'2.Logbook'!AA36) ->  | AB26: =IF('2.Logbook'!AB36="","",'2.Logbook'!AB36) ->  | AC26: =IF('2.Logbook'!AC36="","",'2.Logbook'!AC36) ->  | AD26: =IF('2.Logbook'!AD36="","",'2.Logbook'!AD36) ->  | AE26: =IF('2.Logbook'!AE36="","",'2.Logbook'!AE36) ->  | AF26: =IF('2.Logbook'!AF36="","",'2.Logbook'!AF36) ->  | AG26: =IF('2.Logbook'!AG36="","",'2.Logbook'!AG36) -> 
A27: =IF('2.Logbook'!A37="","",'2.Logbook'!A37) -> 2020-05-24 | B27: =IF('2.Logbook'!B37="","",'2.Logbook'!B37) -> 10:00:00 | C27: =IF('2.Logbook'!C37="","",'2.Logbook'!C37) -> 10°50 N | D27: =IF('2.Logbook'!D37="","",'2.Logbook'!D37) -> 18°50W | E27: =IF('2.Logbook'!E37="","",'2.Logbook'!E37) -> Co-Gestion Senegal Guinee bissau | F27: =IF('2.Logbook'!F37="","",'2.Logbook'!F37) -> 26 | G27: =IF('2.Logbook'!G37="","",'2.Logbook'!G37) -> 00:00:00 | H27: =IF('2.Logbook'!H37="","",'2.Logbook'!H37) -> 5 | I27: =IF('2.Logbook'!I37="","",'2.Logbook'!I37) ->  | J27: =IF('2.Logbook'!J37="","",'2.Logbook'!J37) ->  | K27: =IF('2.Logbook'!K37="","",'2.Logbook'!K37) ->  | L27: =IF('2.Logbook'!L37="","",'2.Logbook'!L37) ->  | M27: =IF('2.Logbook'!M37="","",'2.Logbook'!M37) ->  | N27: =IF('2.Logbook'!N37="","",'2.Logbook'!N37) ->  | O27: =IF('2.Logbook'!O37="","",'2.Logbook'!O37) ->  | P27: =IF('2.Logbook'!P37="","",'2.Logbook'!P37) ->  | Q27: =IF('2.Logbook'!Q37="","",'2.Logbook'!Q37) ->  | R27: =IF('2.Logbook'!R37="","",'2.Logbook'!R37) ->  | S27: =IF('2.Logbook'!S37="","",'2.Logbook'!S37) ->  | T27: =IF('2.Logbook'!T37="","",'2.Logbook'!T37) ->  | U27: =IF('2.Logbook'!U37="","",'2.Logbook'!U37) ->  | V27: =IF('2.Logbook'!V37="","",'2.Logbook'!V37) ->  | W27: =IF('2.Logbook'!W37="","",'2.Logbook'!W37) ->  | X27: =IF('2.Logbook'!X37="","",'2.Logbook'!X37) ->  | Y27: =IF('2.Logbook'!Y37="","",'2.Logbook'!Y37) ->  | Z27: =IF('2.Logbook'!Z37="","",'2.Logbook'!Z37) ->  | AA27: =IF('2.Logbook'!AA37="","",'2.Logbook'!AA37) ->  | AB27: =IF('2.Logbook'!AB37="","",'2.Logbook'!AB37) ->  | AC27: =IF('2.Logbook'!AC37="","",'2.Logbook'!AC37) ->  | AD27: =IF('2.Logbook'!AD37="","",'2.Logbook'!AD37) ->  | AE27: =IF('2.Logbook'!AE37="","",'2.Logbook'!AE37) ->  | AF27: =IF('2.Logbook'!AF37="","",'2.Logbook'!AF37) ->  | AG27: =IF('2.Logbook'!AG37="","",'2.Logbook'!AG37) -> 
A28: =IF('2.Logbook'!A38="","",'2.Logbook'!A38) -> 2020-05-24 | B28: =IF('2.Logbook'!B38="","",'2.Logbook'!B38) -> 18;00 | C28: =IF('2.Logbook'!C38="","",'2.Logbook'!C38) -> 8°57N | D28: =IF('2.Logbook'!D38="","",'2.Logbook'!D38) -> 18°51W | E28: =IF('2.Logbook'!E38="","",'2.Logbook'!E38) -> Guinée Bissau | F28: =IF('2.Logbook'!F38="","",'2.Logbook'!F38) -> 29 | G28: =IF('2.Logbook'!G38="","",'2.Logbook'!G38) -> 00:00:00 | H28: =IF('2.Logbook'!H38="","",'2.Logbook'!H38) -> 5 | I28: =IF('2.Logbook'!I38="","",'2.Logbook'!I38) ->  | J28: =IF('2.Logbook'!J38="","",'2.Logbook'!J38) ->  | K28: =IF('2.Logbook'!K38="","",'2.Logbook'!K38) ->  | L28: =IF('2.Logbook'!L38="","",'2.Logbook'!L38) ->  | M28: =IF('2.Logbook'!M38="","",'2.Logbook'!M38) ->  | N28: =IF('2.Logbook'!N38="","",'2.Logbook'!N38) ->  | O28: =IF('2.Logbook'!O38="","",'2.Logbook'!O38) ->  | P28: =IF('2.Logbook'!P38="","",'2.Logbook'!P38) ->  | Q28: =IF('2.Logbook'!Q38="","",'2.Logbook'!Q38) ->  | R28: =IF('2.Logbook'!R38="","",'2.Logbook'!R38) ->  | S28: =IF('2.Logbook'!S38="","",'2.Logbook'!S38) ->  | T28: =IF('2.Logbook'!T38="","",'2.Logbook'!T38) ->  | U28: =IF('2.Logbook'!U38="","",'2.Logbook'!U38) ->  | V28: =IF('2.Logbook'!V38="","",'2.Logbook'!V38) ->  | W28: =IF('2.Logbook'!W38="","",'2.Logbook'!W38) ->  | X28: =IF('2.Logbook'!X38="","",'2.Logbook'!X38) ->  | Y28: =IF('2.Logbook'!Y38="","",'2.Logbook'!Y38) ->  | Z28: =IF('2.Logbook'!Z38="","",'2.Logbook'!Z38) ->  | AA28: =IF('2.Logbook'!AA38="","",'2.Logbook'!AA38) ->  | AB28: =IF('2.Logbook'!AB38="","",'2.Logbook'!AB38) ->  | AC28: =IF('2.Logbook'!AC38="","",'2.Logbook'!AC38) ->  | AD28: =IF('2.Logbook'!AD38="","",'2.Logbook'!AD38) ->  | AE28: =IF('2.Logbook'!AE38="","",'2.Logbook'!AE38) ->  | AF28: =IF('2.Logbook'!AF38="","",'2.Logbook'!AF38) ->  | AG28: =IF('2.Logbook'!AG38="","",'2.Logbook'!AG38) -> 
A29: =IF('2.Logbook'!A39="","",'2.Logbook'!A39) -> 2020-05-25 | B29: =IF('2.Logbook'!B39="","",'2.Logbook'!B39) -> 12:00:00 | C29: =IF('2.Logbook'!C39="","",'2.Logbook'!C39) -> 9 °16 N | D29: =IF('2.Logbook'!D39="","",'2.Logbook'!D39) -> 16° 01 W | E29: =IF('2.Logbook'!E39="","",'2.Logbook'!E39) -> Guinée Conakry | F29: =IF('2.Logbook'!F39="","",'2.Logbook'!F39) -> 29 | G29: =IF('2.Logbook'!G39="","",'2.Logbook'!G39) -> 1900-02-14 | H29: =IF('2.Logbook'!H39="","",'2.Logbook'!H39) -> 5 | I29: =IF('2.Logbook'!I39="","",'2.Logbook'!I39) ->  | J29: =IF('2.Logbook'!J39="","",'2.Logbook'!J39) ->  | K29: =IF('2.Logbook'!K39="","",'2.Logbook'!K39) ->  | L29: =IF('2.Logbook'!L39="","",'2.Logbook'!L39) ->  | M29: =IF('2.Logbook'!M39="","",'2.Logbook'!M39) ->  | N29: =IF('2.Logbook'!N39="","",'2.Logbook'!N39) ->  | O29: =IF('2.Logbook'!O39="","",'2.Logbook'!O39) ->  | P29: =IF('2.Logbook'!P39="","",'2.Logbook'!P39) ->  | Q29: =IF('2.Logbook'!Q39="","",'2.Logbook'!Q39) ->  | R29: =IF('2.Logbook'!R39="","",'2.Logbook'!R39) ->  | S29: =IF('2.Logbook'!S39="","",'2.Logbook'!S39) ->  | T29: =IF('2.Logbook'!T39="","",'2.Logbook'!T39) ->  | U29: =IF('2.Logbook'!U39="","",'2.Logbook'!U39) ->  | V29: =IF('2.Logbook'!V39="","",'2.Logbook'!V39) ->  | W29: =IF('2.Logbook'!W39="","",'2.Logbook'!W39) ->  | X29: =IF('2.Logbook'!X39="","",'2.Logbook'!X39) ->  | Y29: =IF('2.Logbook'!Y39="","",'2.Logbook'!Y39) ->  | Z29: =IF('2.Logbook'!Z39="","",'2.Logbook'!Z39) ->  | AA29: =IF('2.Logbook'!AA39="","",'2.Logbook'!AA39) ->  | AB29: =IF('2.Logbook'!AB39="","",'2.Logbook'!AB39) ->  | AC29: =IF('2.Logbook'!AC39="","",'2.Logbook'!AC39) ->  | AD29: =IF('2.Logbook'!AD39="","",'2.Logbook'!AD39) ->  | AE29: =IF('2.Logbook'!AE39="","",'2.Logbook'!AE39) ->  | AF29: =IF('2.Logbook'!AF39="","",'2.Logbook'!AF39) ->  | AG29: =IF('2.Logbook'!AG39="","",'2.Logbook'!AG39) -> 
A30: =IF('2.Logbook'!A40="","",'2.Logbook'!A40) -> 2020-05-26 | B30: =IF('2.Logbook'!B40="","",'2.Logbook'!B40) -> 04:30:00 | C30: =IF('2.Logbook'!C40="","",'2.Logbook'!C40) -> 8°14N | D30: =IF('2.Logbook'!D40="","",'2.Logbook'!D40) -> 14°55W | E30: =IF('2.Logbook'!E40="","",'2.Logbook'!E40) -> SIERRA LEON | F30: =IF('2.Logbook'!F40="","",'2.Logbook'!F40) -> 29 | G30: =IF('2.Logbook'!G40="","",'2.Logbook'!G40) -> 1900-02-14 | H30: =IF('2.Logbook'!H40="","",'2.Logbook'!H40) -> 10 | I30: =IF('2.Logbook'!I40="","",'2.Logbook'!I40) ->  | J30: =IF('2.Logbook'!J40="","",'2.Logbook'!J40) ->  | K30: =IF('2.Logbook'!K40="","",'2.Logbook'!K40) ->  | L30: =IF('2.Logbook'!L40="","",'2.Logbook'!L40) ->  | M30: =IF('2.Logbook'!M40="","",'2.Logbook'!M40) ->  | N30: =IF('2.Logbook'!N40="","",'2.Logbook'!N40) ->  | O30: =IF('2.Logbook'!O40="","",'2.Logbook'!O40) ->  | P30: =IF('2.Logbook'!P40="","",'2.Logbook'!P40) ->  | Q30: =IF('2.Logbook'!Q40="","",'2.Logbook'!Q40) ->  | R30: =IF('2.Logbook'!R40="","",'2.Logbook'!R40) ->  | S30: =IF('2.Logbook'!S40="","",'2.Logbook'!S40) ->  | T30: =IF('2.Logbook'!T40="","",'2.Logbook'!T40) ->  | U30: =IF('2.Logbook'!U40="","",'2.Logbook'!U40) ->  | V30: =IF('2.Logbook'!V40="","",'2.Logbook'!V40) ->  | W30: =IF('2.Logbook'!W40="","",'2.Logbook'!W40) ->  | X30: =IF('2.Logbook'!X40="","",'2.Logbook'!X40) ->  | Y30: =IF('2.Logbook'!Y40="","",'2.Logbook'!Y40) ->  | Z30: =IF('2.Logbook'!Z40="","",'2.Logbook'!Z40) ->  | AA30: =IF('2.Logbook'!AA40="","",'2.Logbook'!AA40) ->  | AB30: =IF('2.Logbook'!AB40="","",'2.Logbook'!AB40) ->  | AC30: =IF('2.Logbook'!AC40="","",'2.Logbook'!AC40) ->  | AD30: =IF('2.Logbook'!AD40="","",'2.Logbook'!AD40) ->  | AE30: =IF('2.Logbook'!AE40="","",'2.Logbook'!AE40) ->  | AF30: =IF('2.Logbook'!AF40="","",'2.Logbook'!AF40) ->  | AG30: =IF('2.Logbook'!AG40="","",'2.Logbook'!AG40) -> 
A31: =IF('2.Logbook'!A41="","",'2.Logbook'!A41) -> 2020-05-27 | B31: =IF('2.Logbook'!B41="","",'2.Logbook'!B41) -> 11:40:00 | C31: =IF('2.Logbook'!C41="","",'2.Logbook'!C41) ->  | D31: =IF('2.Logbook'!D41="","",'2.Logbook'!D41) ->  | E31: =IF('2.Logbook'!E41="","",'2.Logbook'!E41) ->  | F31: =IF('2.Logbook'!F41="","",'2.Logbook'!F41) ->  | G31: =IF('2.Logbook'!G41="","",'2.Logbook'!G41) ->  | H31: =IF('2.Logbook'!H41="","",'2.Logbook'!H41) ->  | I31: =IF('2.Logbook'!I41="","",'2.Logbook'!I41) ->  | J31: =IF('2.Logbook'!J41="","",'2.Logbook'!J41) ->  | K31: =IF('2.Logbook'!K41="","",'2.Logbook'!K41) ->  | L31: =IF('2.Logbook'!L41="","",'2.Logbook'!L41) ->  | M31: =IF('2.Logbook'!M41="","",'2.Logbook'!M41) ->  | N31: =IF('2.Logbook'!N41="","",'2.Logbook'!N41) ->  | O31: =IF('2.Logbook'!O41="","",'2.Logbook'!O41) ->  | P31: =IF('2.Logbook'!P41="","",'2.Logbook'!P41) ->  | Q31: =IF('2.Logbook'!Q41="","",'2.Logbook'!Q41) ->  | R31: =IF('2.Logbook'!R41="","",'2.Logbook'!R41) ->  | S31: =IF('2.Logbook'!S41="","",'2.Logbook'!S41) ->  | T31: =IF('2.Logbook'!T41="","",'2.Logbook'!T41) ->  | U31: =IF('2.Logbook'!U41="","",'2.Logbook'!U41) ->  | V31: =IF('2.Logbook'!V41="","",'2.Logbook'!V41) ->  | W31: =IF('2.Logbook'!W41="","",'2.Logbook'!W41) ->  | X31: =IF('2.Logbook'!X41="","",'2.Logbook'!X41) ->  | Y31: =IF('2.Logbook'!Y41="","",'2.Logbook'!Y41) ->  | Z31: =IF('2.Logbook'!Z41="","",'2.Logbook'!Z41) ->  | AA31: =IF('2.Logbook'!AA41="","",'2.Logbook'!AA41) ->  | AB31: =IF('2.Logbook'!AB41="","",'2.Logbook'!AB41) ->  | AC31: =IF('2.Logbook'!AC41="","",'2.Logbook'!AC41) ->  | AD31: =IF('2.Logbook'!AD41="","",'2.Logbook'!AD41) ->  | AE31: =IF('2.Logbook'!AE41="","",'2.Logbook'!AE41) ->  | AF31: =IF('2.Logbook'!AF41="","",'2.Logbook'!AF41) ->  | AG31: =IF('2.Logbook'!AG41="","",'2.Logbook'!AG41) -> 
A32: =IF('2.Logbook'!A42="","",'2.Logbook'!A42) -> 2020-05-27 | B32: =IF('2.Logbook'!B42="","",'2.Logbook'!B42) -> 14:30:00 | C32: =IF('2.Logbook'!C42="","",'2.Logbook'!C42) ->  | D32: =IF('2.Logbook'!D42="","",'2.Logbook'!D42) ->  | E32: =IF('2.Logbook'!E42="","",'2.Logbook'!E42) ->  | F32: =IF('2.Logbook'!F42="","",'2.Logbook'!F42) ->  | G32: =IF('2.Logbook'!G42="","",'2.Logbook'!G42) ->  | H32: =IF('2.Logbook'!H42="","",'2.Logbook'!H42) ->  | I32: =IF('2.Logbook'!I42="","",'2.Logbook'!I42) ->  | J32: =IF('2.Logbook'!J42="","",'2.Logbook'!J42) ->  | K32: =IF('2.Logbook'!K42="","",'2.Logbook'!K42) ->  | L32: =IF('2.Logbook'!L42="","",'2.Logbook'!L42) ->  | M32: =IF('2.Logbook'!M42="","",'2.Logbook'!M42) ->  | N32: =IF('2.Logbook'!N42="","",'2.Logbook'!N42) ->  | O32: =IF('2.Logbook'!O42="","",'2.Logbook'!O42) ->  | P32: =IF('2.Logbook'!P42="","",'2.Logbook'!P42) ->  | Q32: =IF('2.Logbook'!Q42="","",'2.Logbook'!Q42) ->  | R32: =IF('2.Logbook'!R42="","",'2.Logbook'!R42) ->  | S32: =IF('2.Logbook'!S42="","",'2.Logbook'!S42) ->  | T32: =IF('2.Logbook'!T42="","",'2.Logbook'!T42) ->  | U32: =IF('2.Logbook'!U42="","",'2.Logbook'!U42) ->  | V32: =IF('2.Logbook'!V42="","",'2.Logbook'!V42) ->  | W32: =IF('2.Logbook'!W42="","",'2.Logbook'!W42) ->  | X32: =IF('2.Logbook'!X42="","",'2.Logbook'!X42) ->  | Y32: =IF('2.Logbook'!Y42="","",'2.Logbook'!Y42) ->  | Z32: =IF('2.Logbook'!Z42="","",'2.Logbook'!Z42) ->  | AA32: =IF('2.Logbook'!AA42="","",'2.Logbook'!AA42) ->  | AB32: =IF('2.Logbook'!AB42="","",'2.Logbook'!AB42) ->  | AC32: =IF('2.Logbook'!AC42="","",'2.Logbook'!AC42) ->  | AD32: =IF('2.Logbook'!AD42="","",'2.Logbook'!AD42) ->  | AE32: =IF('2.Logbook'!AE42="","",'2.Logbook'!AE42) ->  | AF32: =IF('2.Logbook'!AF42="","",'2.Logbook'!AF42) ->  | AG32: =IF('2.Logbook'!AG42="","",'2.Logbook'!AG42) -> 
A33: =IF('2.Logbook'!A43="","",'2.Logbook'!A43) -> 2020-05-27 | B33: =IF('2.Logbook'!B43="","",'2.Logbook'!B43) -> 19:12:00 | C33: =IF('2.Logbook'!C43="","",'2.Logbook'!C43) -> 13°44N | D33: =IF('2.Logbook'!D43="","",'2.Logbook'!D43) -> 17°53W | E33: =IF('2.Logbook'!E43="","",'2.Logbook'!E43) -> Sénégal | F33: =IF('2.Logbook'!F43="","",'2.Logbook'!F43) -> 26 | G33: =IF('2.Logbook'!G43="","",'2.Logbook'!G43) -> 1900-09-26 | H33: =IF('2.Logbook'!H43="","",'2.Logbook'!H43) -> 10 | I33: =IF('2.Logbook'!I43="","",'2.Logbook'!I43) ->  | J33: =IF('2.Logbook'!J43="","",'2.Logbook'!J43) ->  | K33: =IF('2.Logbook'!K43="","",'2.Logbook'!K43) ->  | L33: =IF('2.Logbook'!L43="","",'2.Logbook'!L43) ->  | M33: =IF('2.Logbook'!M43="","",'2.Logbook'!M43) ->  | N33: =IF('2.Logbook'!N43="","",'2.Logbook'!N43) ->  | O33: =IF('2.Logbook'!O43="","",'2.Logbook'!O43) ->  | P33: =IF('2.Logbook'!P43="","",'2.Logbook'!P43) ->  | Q33: =IF('2.Logbook'!Q43="","",'2.Logbook'!Q43) ->  | R33: =IF('2.Logbook'!R43="","",'2.Logbook'!R43) ->  | S33: =IF('2.Logbook'!S43="","",'2.Logbook'!S43) ->  | T33: =IF('2.Logbook'!T43="","",'2.Logbook'!T43) ->  | U33: =IF('2.Logbook'!U43="","",'2.Logbook'!U43) ->  | V33: =IF('2.Logbook'!V43="","",'2.Logbook'!V43) ->  | W33: =IF('2.Logbook'!W43="","",'2.Logbook'!W43) ->  | X33: =IF('2.Logbook'!X43="","",'2.Logbook'!X43) ->  | Y33: =IF('2.Logbook'!Y43="","",'2.Logbook'!Y43) ->  | Z33: =IF('2.Logbook'!Z43="","",'2.Logbook'!Z43) ->  | AA33: =IF('2.Logbook'!AA43="","",'2.Logbook'!AA43) ->  | AB33: =IF('2.Logbook'!AB43="","",'2.Logbook'!AB43) ->  | AC33: =IF('2.Logbook'!AC43="","",'2.Logbook'!AC43) ->  | AD33: =IF('2.Logbook'!AD43="","",'2.Logbook'!AD43) ->  | AE33: =IF('2.Logbook'!AE43="","",'2.Logbook'!AE43) ->  | AF33: =IF('2.Logbook'!AF43="","",'2.Logbook'!AF43) ->  | AG33: =IF('2.Logbook'!AG43="","",'2.Logbook'!AG43) -> 
A34: =IF('2.Logbook'!A44="","",'2.Logbook'!A44) -> 2020-05-27 | B34: =IF('2.Logbook'!B44="","",'2.Logbook'!B44) -> 21:00:00 | C34: =IF('2.Logbook'!C44="","",'2.Logbook'!C44) -> 13°18N | D34: =IF('2.Logbook'!D44="","",'2.Logbook'!D44) -> 17°54W | E34: =IF('2.Logbook'!E44="","",'2.Logbook'!E44) -> Gambie | F34: =IF('2.Logbook'!F44="","",'2.Logbook'!F44) -> 26 | G34: =IF('2.Logbook'!G44="","",'2.Logbook'!G44) -> 1900-09-26 | H34: =IF('2.Logbook'!H44="","",'2.Logbook'!H44) -> 10 | I34: =IF('2.Logbook'!I44="","",'2.Logbook'!I44) ->  | J34: =IF('2.Logbook'!J44="","",'2.Logbook'!J44) ->  | K34: =IF('2.Logbook'!K44="","",'2.Logbook'!K44) ->  | L34: =IF('2.Logbook'!L44="","",'2.Logbook'!L44) ->  | M34: =IF('2.Logbook'!M44="","",'2.Logbook'!M44) ->  | N34: =IF('2.Logbook'!N44="","",'2.Logbook'!N44) ->  | O34: =IF('2.Logbook'!O44="","",'2.Logbook'!O44) ->  | P34: =IF('2.Logbook'!P44="","",'2.Logbook'!P44) ->  | Q34: =IF('2.Logbook'!Q44="","",'2.Logbook'!Q44) ->  | R34: =IF('2.Logbook'!R44="","",'2.Logbook'!R44) ->  | S34: =IF('2.Logbook'!S44="","",'2.Logbook'!S44) ->  | T34: =IF('2.Logbook'!T44="","",'2.Logbook'!T44) ->  | U34: =IF('2.Logbook'!U44="","",'2.Logbook'!U44) ->  | V34: =IF('2.Logbook'!V44="","",'2.Logbook'!V44) ->  | W34: =IF('2.Logbook'!W44="","",'2.Logbook'!W44) ->  | X34: =IF('2.Logbook'!X44="","",'2.Logbook'!X44) ->  | Y34: =IF('2.Logbook'!Y44="","",'2.Logbook'!Y44) ->  | Z34: =IF('2.Logbook'!Z44="","",'2.Logbook'!Z44) ->  | AA34: =IF('2.Logbook'!AA44="","",'2.Logbook'!AA44) ->  | AB34: =IF('2.Logbook'!AB44="","",'2.Logbook'!AB44) ->  | AC34: =IF('2.Logbook'!AC44="","",'2.Logbook'!AC44) ->  | AD34: =IF('2.Logbook'!AD44="","",'2.Logbook'!AD44) ->  | AE34: =IF('2.Logbook'!AE44="","",'2.Logbook'!AE44) ->  | AF34: =IF('2.Logbook'!AF44="","",'2.Logbook'!AF44) ->  | AG34: =IF('2.Logbook'!AG44="","",'2.Logbook'!AG44) -> 
A35: =IF('2.Logbook'!A45="","",'2.Logbook'!A45) -> 2020-05-28 | B35: =IF('2.Logbook'!B45="","",'2.Logbook'!B45) -> 00:05:00 | C35: =IF('2.Logbook'!C45="","",'2.Logbook'!C45) -> 12°34N | D35: =IF('2.Logbook'!D45="","",'2.Logbook'!D45) -> 17°46W | E35: =IF('2.Logbook'!E45="","",'2.Logbook'!E45) -> Sénégal | F35: =IF('2.Logbook'!F45="","",'2.Logbook'!F45) -> 26 | G35: =IF('2.Logbook'!G45="","",'2.Logbook'!G45) -> 1900-09-26 | H35: =IF('2.Logbook'!H45="","",'2.Logbook'!H45) -> 10 | I35: =IF('2.Logbook'!I45="","",'2.Logbook'!I45) ->  | J35: =IF('2.Logbook'!J45="","",'2.Logbook'!J45) ->  | K35: =IF('2.Logbook'!K45="","",'2.Logbook'!K45) ->  | L35: =IF('2.Logbook'!L45="","",'2.Logbook'!L45) ->  | M35: =IF('2.Logbook'!M45="","",'2.Logbook'!M45) ->  | N35: =IF('2.Logbook'!N45="","",'2.Logbook'!N45) ->  | O35: =IF('2.Logbook'!O45="","",'2.Logbook'!O45) ->  | P35: =IF('2.Logbook'!P45="","",'2.Logbook'!P45) ->  | Q35: =IF('2.Logbook'!Q45="","",'2.Logbook'!Q45) ->  | R35: =IF('2.Logbook'!R45="","",'2.Logbook'!R45) ->  | S35: =IF('2.Logbook'!S45="","",'2.Logbook'!S45) ->  | T35: =IF('2.Logbook'!T45="","",'2.Logbook'!T45) ->  | U35: =IF('2.Logbook'!U45="","",'2.Logbook'!U45) ->  | V35: =IF('2.Logbook'!V45="","",'2.Logbook'!V45) ->  | W35: =IF('2.Logbook'!W45="","",'2.Logbook'!W45) ->  | X35: =IF('2.Logbook'!X45="","",'2.Logbook'!X45) ->  | Y35: =IF('2.Logbook'!Y45="","",'2.Logbook'!Y45) ->  | Z35: =IF('2.Logbook'!Z45="","",'2.Logbook'!Z45) ->  | AA35: =IF('2.Logbook'!AA45="","",'2.Logbook'!AA45) ->  | AB35: =IF('2.Logbook'!AB45="","",'2.Logbook'!AB45) ->  | AC35: =IF('2.Logbook'!AC45="","",'2.Logbook'!AC45) ->  | AD35: =IF('2.Logbook'!AD45="","",'2.Logbook'!AD45) ->  | AE35: =IF('2.Logbook'!AE45="","",'2.Logbook'!AE45) ->  | AF35: =IF('2.Logbook'!AF45="","",'2.Logbook'!AF45) ->  | AG35: =IF('2.Logbook'!AG45="","",'2.Logbook'!AG45) -> 
A36: =IF('2.Logbook'!A46="","",'2.Logbook'!A46) -> 2020-05-28 | B36: =IF('2.Logbook'!B46="","",'2.Logbook'!B46) -> 02:45:00 | C36: =IF('2.Logbook'!C46="","",'2.Logbook'!C46) -> 11°59N | D36: =IF('2.Logbook'!D46="","",'2.Logbook'!D46) -> 17°48W | E36: =IF('2.Logbook'!E46="","",'2.Logbook'!E46) -> Co-Gestion Senegal Guinee bissau | F36: =IF('2.Logbook'!F46="","",'2.Logbook'!F46) -> 26 | G36: =IF('2.Logbook'!G46="","",'2.Logbook'!G46) -> 1900-09-26 | H36: =IF('2.Logbook'!H46="","",'2.Logbook'!H46) -> 5 | I36: =IF('2.Logbook'!I46="","",'2.Logbook'!I46) ->  | J36: =IF('2.Logbook'!J46="","",'2.Logbook'!J46) ->  | K36: =IF('2.Logbook'!K46="","",'2.Logbook'!K46) ->  | L36: =IF('2.Logbook'!L46="","",'2.Logbook'!L46) ->  | M36: =IF('2.Logbook'!M46="","",'2.Logbook'!M46) ->  | N36: =IF('2.Logbook'!N46="","",'2.Logbook'!N46) ->  | O36: =IF('2.Logbook'!O46="","",'2.Logbook'!O46) ->  | P36: =IF('2.Logbook'!P46="","",'2.Logbook'!P46) ->  | Q36: =IF('2.Logbook'!Q46="","",'2.Logbook'!Q46) ->  | R36: =IF('2.Logbook'!R46="","",'2.Logbook'!R46) ->  | S36: =IF('2.Logbook'!S46="","",'2.Logbook'!S46) ->  | T36: =IF('2.Logbook'!T46="","",'2.Logbook'!T46) ->  | U36: =IF('2.Logbook'!U46="","",'2.Logbook'!U46) ->  | V36: =IF('2.Logbook'!V46="","",'2.Logbook'!V46) ->  | W36: =IF('2.Logbook'!W46="","",'2.Logbook'!W46) ->  | X36: =IF('2.Logbook'!X46="","",'2.Logbook'!X46) ->  | Y36: =IF('2.Logbook'!Y46="","",'2.Logbook'!Y46) ->  | Z36: =IF('2.Logbook'!Z46="","",'2.Logbook'!Z46) ->  | AA36: =IF('2.Logbook'!AA46="","",'2.Logbook'!AA46) ->  | AB36: =IF('2.Logbook'!AB46="","",'2.Logbook'!AB46) ->  | AC36: =IF('2.Logbook'!AC46="","",'2.Logbook'!AC46) ->  | AD36: =IF('2.Logbook'!AD46="","",'2.Logbook'!AD46) ->  | AE36: =IF('2.Logbook'!AE46="","",'2.Logbook'!AE46) ->  | AF36: =IF('2.Logbook'!AF46="","",'2.Logbook'!AF46) ->  | AG36: =IF('2.Logbook'!AG46="","",'2.Logbook'!AG46) -> 
A37: =IF('2.Logbook'!A47="","",'2.Logbook'!A47) -> 2020-05-28 | B37: =IF('2.Logbook'!B47="","",'2.Logbook'!B47) -> 12:30:00 | C37: =IF('2.Logbook'!C47="","",'2.Logbook'!C47) -> 9°56N | D37: =IF('2.Logbook'!D47="","",'2.Logbook'!D47) -> 16°50W | E37: =IF('2.Logbook'!E47="","",'2.Logbook'!E47) -> Guinée Bissau | F37: =IF('2.Logbook'!F47="","",'2.Logbook'!F47) -> 26 | G37: =IF('2.Logbook'!G47="","",'2.Logbook'!G47) -> 1900-10-26 | H37: =IF('2.Logbook'!H47="","",'2.Logbook'!H47) -> 8 | I37: =IF('2.Logbook'!I47="","",'2.Logbook'!I47) -> 1900-01-01 | J37: =IF('2.Logbook'!J47="","",'2.Logbook'!J47) -> 00:00:00 | K37: =IF('2.Logbook'!K47="","",'2.Logbook'!K47) -> Banc Objet | L37: =IF('2.Logbook'!L47="","",'2.Logbook'!L47) ->  | M37: =IF('2.Logbook'!M47="","",'2.Logbook'!M47) ->  | N37: =IF('2.Logbook'!N47="","",'2.Logbook'!N47) -> 1,8 - 3,4 kg | O37: =IF('2.Logbook'!O47="","",'2.Logbook'!O47) -> 1900-01-02 | P37: =IF('2.Logbook'!P47="","",'2.Logbook'!P47) -> 1,8 - 3,4 kg | Q37: =IF('2.Logbook'!Q47="","",'2.Logbook'!Q47) -> 1900-01-19 | R37: =IF('2.Logbook'!R47="","",'2.Logbook'!R47) ->  | S37: =IF('2.Logbook'!S47="","",'2.Logbook'!S47) ->  | T37: =IF('2.Logbook'!T47="","",'2.Logbook'!T47) ->  | U37: =IF('2.Logbook'!U47="","",'2.Logbook'!U47) ->  | V37: =IF('2.Logbook'!V47="","",'2.Logbook'!V47) ->  | W37: =IF('2.Logbook'!W47="","",'2.Logbook'!W47) ->  | X37: =IF('2.Logbook'!X47="","",'2.Logbook'!X47) ->  | Y37: =IF('2.Logbook'!Y47="","",'2.Logbook'!Y47) ->  | Z37: =IF('2.Logbook'!Z47="","",'2.Logbook'!Z47) ->  | AA37: =IF('2.Logbook'!AA47="","",'2.Logbook'!AA47) ->  | AB37: =IF('2.Logbook'!AB47="","",'2.Logbook'!AB47) ->  | AC37: =IF('2.Logbook'!AC47="","",'2.Logbook'!AC47) ->  | AD37: =IF('2.Logbook'!AD47="","",'2.Logbook'!AD47) -> 00:00:00 | AE37: =IF('2.Logbook'!AE47="","",'2.Logbook'!AE47) -> 1900-01-01 | AF37: =IF('2.Logbook'!AF47="","",'2.Logbook'!AF47) -> 00:00:00 | AG37: =IF('2.Logbook'!AG47="","",'2.Logbook'!AG47) -> 00:00:00
A38: =IF('2.Logbook'!A48="","",'2.Logbook'!A48) -> 2020-05-29 | B38: =IF('2.Logbook'!B48="","",'2.Logbook'!B48) -> 12:00:00 | C38: =IF('2.Logbook'!C48="","",'2.Logbook'!C48) -> 8°29N | D38: =IF('2.Logbook'!D48="","",'2.Logbook'!D48) -> 15°29W | E38: =IF('2.Logbook'!E48="","",'2.Logbook'!E48) -> Guinée Conakry | F38: =IF('2.Logbook'!F48="","",'2.Logbook'!F48) -> 29 | G38: =IF('2.Logbook'!G48="","",'2.Logbook'!G48) -> 00:00:00 | H38: =IF('2.Logbook'!H48="","",'2.Logbook'!H48) -> 10 | I38: =IF('2.Logbook'!I48="","",'2.Logbook'!I48) ->  | J38: =IF('2.Logbook'!J48="","",'2.Logbook'!J48) ->  | K38: =IF('2.Logbook'!K48="","",'2.Logbook'!K48) ->  | L38: =IF('2.Logbook'!L48="","",'2.Logbook'!L48) ->  | M38: =IF('2.Logbook'!M48="","",'2.Logbook'!M48) ->  | N38: =IF('2.Logbook'!N48="","",'2.Logbook'!N48) ->  | O38: =IF('2.Logbook'!O48="","",'2.Logbook'!O48) ->  | P38: =IF('2.Logbook'!P48="","",'2.Logbook'!P48) ->  | Q38: =IF('2.Logbook'!Q48="","",'2.Logbook'!Q48) ->  | R38: =IF('2.Logbook'!R48="","",'2.Logbook'!R48) ->  | S38: =IF('2.Logbook'!S48="","",'2.Logbook'!S48) ->  | T38: =IF('2.Logbook'!T48="","",'2.Logbook'!T48) ->  | U38: =IF('2.Logbook'!U48="","",'2.Logbook'!U48) ->  | V38: =IF('2.Logbook'!V48="","",'2.Logbook'!V48) ->  | W38: =IF('2.Logbook'!W48="","",'2.Logbook'!W48) ->  | X38: =IF('2.Logbook'!X48="","",'2.Logbook'!X48) ->  | Y38: =IF('2.Logbook'!Y48="","",'2.Logbook'!Y48) ->  | Z38: =IF('2.Logbook'!Z48="","",'2.Logbook'!Z48) ->  | AA38: =IF('2.Logbook'!AA48="","",'2.Logbook'!AA48) ->  | AB38: =IF('2.Logbook'!AB48="","",'2.Logbook'!AB48) ->  | AC38: =IF('2.Logbook'!AC48="","",'2.Logbook'!AC48) ->  | AD38: =IF('2.Logbook'!AD48="","",'2.Logbook'!AD48) ->  | AE38: =IF('2.Logbook'!AE48="","",'2.Logbook'!AE48) ->  | AF38: =IF('2.Logbook'!AF48="","",'2.Logbook'!AF48) ->  | AG38: =IF('2.Logbook'!AG48="","",'2.Logbook'!AG48) -> 
A39: =IF('2.Logbook'!A49="","",'2.Logbook'!A49) -> 2020-05-29 | B39: =IF('2.Logbook'!B49="","",'2.Logbook'!B49) -> 19:11:00 | C39: =IF('2.Logbook'!C49="","",'2.Logbook'!C49) -> 7°29N | D39: =IF('2.Logbook'!D49="","",'2.Logbook'!D49) -> 14°15W | E39: =IF('2.Logbook'!E49="","",'2.Logbook'!E49) -> SIERRA LEON | F39: =IF('2.Logbook'!F49="","",'2.Logbook'!F49) -> 29 | G39: =IF('2.Logbook'!G49="","",'2.Logbook'!G49) -> 00:00:00 | H39: =IF('2.Logbook'!H49="","",'2.Logbook'!H49) -> 5 | I39: =IF('2.Logbook'!I49="","",'2.Logbook'!I49) ->  | J39: =IF('2.Logbook'!J49="","",'2.Logbook'!J49) ->  | K39: =IF('2.Logbook'!K49="","",'2.Logbook'!K49) ->  | L39: =IF('2.Logbook'!L49="","",'2.Logbook'!L49) ->  | M39: =IF('2.Logbook'!M49="","",'2.Logbook'!M49) ->  | N39: =IF('2.Logbook'!N49="","",'2.Logbook'!N49) ->  | O39: =IF('2.Logbook'!O49="","",'2.Logbook'!O49) ->  | P39: =IF('2.Logbook'!P49="","",'2.Logbook'!P49) ->  | Q39: =IF('2.Logbook'!Q49="","",'2.Logbook'!Q49) ->  | R39: =IF('2.Logbook'!R49="","",'2.Logbook'!R49) ->  | S39: =IF('2.Logbook'!S49="","",'2.Logbook'!S49) ->  | T39: =IF('2.Logbook'!T49="","",'2.Logbook'!T49) ->  | U39: =IF('2.Logbook'!U49="","",'2.Logbook'!U49) ->  | V39: =IF('2.Logbook'!V49="","",'2.Logbook'!V49) ->  | W39: =IF('2.Logbook'!W49="","",'2.Logbook'!W49) ->  | X39: =IF('2.Logbook'!X49="","",'2.Logbook'!X49) ->  | Y39: =IF('2.Logbook'!Y49="","",'2.Logbook'!Y49) ->  | Z39: =IF('2.Logbook'!Z49="","",'2.Logbook'!Z49) ->  | AA39: =IF('2.Logbook'!AA49="","",'2.Logbook'!AA49) ->  | AB39: =IF('2.Logbook'!AB49="","",'2.Logbook'!AB49) ->  | AC39: =IF('2.Logbook'!AC49="","",'2.Logbook'!AC49) ->  | AD39: =IF('2.Logbook'!AD49="","",'2.Logbook'!AD49) ->  | AE39: =IF('2.Logbook'!AE49="","",'2.Logbook'!AE49) ->  | AF39: =IF('2.Logbook'!AF49="","",'2.Logbook'!AF49) ->  | AG39: =IF('2.Logbook'!AG49="","",'2.Logbook'!AG49) -> 
A40: =IF('2.Logbook'!A50="","",'2.Logbook'!A50) -> 2020-05-30 | B40: =IF('2.Logbook'!B50="","",'2.Logbook'!B50) -> 06:30:00 | C40: =IF('2.Logbook'!C50="","",'2.Logbook'!C50) -> 7°28N | D40: =IF('2.Logbook'!D50="","",'2.Logbook'!D50) -> 14°14W | E40: =IF('2.Logbook'!E50="","",'2.Logbook'!E50) -> SIERRA LEON | F40: =IF('2.Logbook'!F50="","",'2.Logbook'!F50) -> 29 | G40: =IF('2.Logbook'!G50="","",'2.Logbook'!G50) -> 1900-08-04 | H40: =IF('2.Logbook'!H50="","",'2.Logbook'!H50) -> 10 | I40: =IF('2.Logbook'!I50="","",'2.Logbook'!I50) ->  | J40: =IF('2.Logbook'!J50="","",'2.Logbook'!J50) ->  | K40: =IF('2.Logbook'!K50="","",'2.Logbook'!K50) ->  | L40: =IF('2.Logbook'!L50="","",'2.Logbook'!L50) ->  | M40: =IF('2.Logbook'!M50="","",'2.Logbook'!M50) ->  | N40: =IF('2.Logbook'!N50="","",'2.Logbook'!N50) ->  | O40: =IF('2.Logbook'!O50="","",'2.Logbook'!O50) ->  | P40: =IF('2.Logbook'!P50="","",'2.Logbook'!P50) ->  | Q40: =IF('2.Logbook'!Q50="","",'2.Logbook'!Q50) ->  | R40: =IF('2.Logbook'!R50="","",'2.Logbook'!R50) ->  | S40: =IF('2.Logbook'!S50="","",'2.Logbook'!S50) ->  | T40: =IF('2.Logbook'!T50="","",'2.Logbook'!T50) ->  | U40: =IF('2.Logbook'!U50="","",'2.Logbook'!U50) ->  | V40: =IF('2.Logbook'!V50="","",'2.Logbook'!V50) ->  | W40: =IF('2.Logbook'!W50="","",'2.Logbook'!W50) ->  | X40: =IF('2.Logbook'!X50="","",'2.Logbook'!X50) ->  | Y40: =IF('2.Logbook'!Y50="","",'2.Logbook'!Y50) ->  | Z40: =IF('2.Logbook'!Z50="","",'2.Logbook'!Z50) ->  | AA40: =IF('2.Logbook'!AA50="","",'2.Logbook'!AA50) ->  | AB40: =IF('2.Logbook'!AB50="","",'2.Logbook'!AB50) ->  | AC40: =IF('2.Logbook'!AC50="","",'2.Logbook'!AC50) ->  | AD40: =IF('2.Logbook'!AD50="","",'2.Logbook'!AD50) ->  | AE40: =IF('2.Logbook'!AE50="","",'2.Logbook'!AE50) ->  | AF40: =IF('2.Logbook'!AF50="","",'2.Logbook'!AF50) ->  | AG40: =IF('2.Logbook'!AG50="","",'2.Logbook'!AG50) -> 
A41: =IF('2.Logbook'!A51="","",'2.Logbook'!A51) -> 2020-05-31 | B41: =IF('2.Logbook'!B51="","",'2.Logbook'!B51) -> 11:25:00 | C41: =IF('2.Logbook'!C51="","",'2.Logbook'!C51) -> 3°48 N | D41: =IF('2.Logbook'!D51="","",'2.Logbook'!D51) -> 10°44 W | E41: =IF('2.Logbook'!E51="","",'2.Logbook'!E51) -> Libéria | F41: =IF('2.Logbook'!F51="","",'2.Logbook'!F51) -> 29 | G41: =IF('2.Logbook'!G51="","",'2.Logbook'!G51) -> 1900-09-15 | H41: =IF('2.Logbook'!H51="","",'2.Logbook'!H51) -> 10 | I41: =IF('2.Logbook'!I51="","",'2.Logbook'!I51) ->  | J41: =IF('2.Logbook'!J51="","",'2.Logbook'!J51) ->  | K41: =IF('2.Logbook'!K51="","",'2.Logbook'!K51) ->  | L41: =IF('2.Logbook'!L51="","",'2.Logbook'!L51) ->  | M41: =IF('2.Logbook'!M51="","",'2.Logbook'!M51) ->  | N41: =IF('2.Logbook'!N51="","",'2.Logbook'!N51) ->  | O41: =IF('2.Logbook'!O51="","",'2.Logbook'!O51) ->  | P41: =IF('2.Logbook'!P51="","",'2.Logbook'!P51) ->  | Q41: =IF('2.Logbook'!Q51="","",'2.Logbook'!Q51) ->  | R41: =IF('2.Logbook'!R51="","",'2.Logbook'!R51) ->  | S41: =IF('2.Logbook'!S51="","",'2.Logbook'!S51) ->  | T41: =IF('2.Logbook'!T51="","",'2.Logbook'!T51) ->  | U41: =IF('2.Logbook'!U51="","",'2.Logbook'!U51) ->  | V41: =IF('2.Logbook'!V51="","",'2.Logbook'!V51) ->  | W41: =IF('2.Logbook'!W51="","",'2.Logbook'!W51) ->  | X41: =IF('2.Logbook'!X51="","",'2.Logbook'!X51) ->  | Y41: =IF('2.Logbook'!Y51="","",'2.Logbook'!Y51) ->  | Z41: =IF('2.Logbook'!Z51="","",'2.Logbook'!Z51) ->  | AA41: =IF('2.Logbook'!AA51="","",'2.Logbook'!AA51) ->  | AB41: =IF('2.Logbook'!AB51="","",'2.Logbook'!AB51) ->  | AC41: =IF('2.Logbook'!AC51="","",'2.Logbook'!AC51) ->  | AD41: =IF('2.Logbook'!AD51="","",'2.Logbook'!AD51) ->  | AE41: =IF('2.Logbook'!AE51="","",'2.Logbook'!AE51) ->  | AF41: =IF('2.Logbook'!AF51="","",'2.Logbook'!AF51) ->  | AG41: =IF('2.Logbook'!AG51="","",'2.Logbook'!AG51) -> 
A42: =IF('2.Logbook'!A52="","",'2.Logbook'!A52) -> 2020-06-01 | B42: =IF('2.Logbook'!B52="","",'2.Logbook'!B52) -> 16:00:00 | C42: =IF('2.Logbook'!C52="","",'2.Logbook'!C52) -> 1°40N | D42: =IF('2.Logbook'!D52="","",'2.Logbook'!D52) -> 7°46W | E42: =IF('2.Logbook'!E52="","",'2.Logbook'!E52) -> Libéria | F42: =IF('2.Logbook'!F52="","",'2.Logbook'!F52) -> 29 | G42: =IF('2.Logbook'!G52="","",'2.Logbook'!G52) -> 1900-05-18 | H42: =IF('2.Logbook'!H52="","",'2.Logbook'!H52) -> 10 | I42: =IF('2.Logbook'!I52="","",'2.Logbook'!I52) ->  | J42: =IF('2.Logbook'!J52="","",'2.Logbook'!J52) ->  | K42: =IF('2.Logbook'!K52="","",'2.Logbook'!K52) ->  | L42: =IF('2.Logbook'!L52="","",'2.Logbook'!L52) ->  | M42: =IF('2.Logbook'!M52="","",'2.Logbook'!M52) ->  | N42: =IF('2.Logbook'!N52="","",'2.Logbook'!N52) ->  | O42: =IF('2.Logbook'!O52="","",'2.Logbook'!O52) ->  | P42: =IF('2.Logbook'!P52="","",'2.Logbook'!P52) ->  | Q42: =IF('2.Logbook'!Q52="","",'2.Logbook'!Q52) ->  | R42: =IF('2.Logbook'!R52="","",'2.Logbook'!R52) ->  | S42: =IF('2.Logbook'!S52="","",'2.Logbook'!S52) ->  | T42: =IF('2.Logbook'!T52="","",'2.Logbook'!T52) ->  | U42: =IF('2.Logbook'!U52="","",'2.Logbook'!U52) ->  | V42: =IF('2.Logbook'!V52="","",'2.Logbook'!V52) ->  | W42: =IF('2.Logbook'!W52="","",'2.Logbook'!W52) ->  | X42: =IF('2.Logbook'!X52="","",'2.Logbook'!X52) ->  | Y42: =IF('2.Logbook'!Y52="","",'2.Logbook'!Y52) ->  | Z42: =IF('2.Logbook'!Z52="","",'2.Logbook'!Z52) ->  | AA42: =IF('2.Logbook'!AA52="","",'2.Logbook'!AA52) ->  | AB42: =IF('2.Logbook'!AB52="","",'2.Logbook'!AB52) ->  | AC42: =IF('2.Logbook'!AC52="","",'2.Logbook'!AC52) ->  | AD42: =IF('2.Logbook'!AD52="","",'2.Logbook'!AD52) ->  | AE42: =IF('2.Logbook'!AE52="","",'2.Logbook'!AE52) ->  | AF42: =IF('2.Logbook'!AF52="","",'2.Logbook'!AF52) ->  | AG42: =IF('2.Logbook'!AG52="","",'2.Logbook'!AG52) -> 
A43: =IF('2.Logbook'!A53="","",'2.Logbook'!A53) -> 2020-06-02 | B43: =IF('2.Logbook'!B53="","",'2.Logbook'!B53) -> 00:20:00 | C43: =IF('2.Logbook'!C53="","",'2.Logbook'!C53) -> 1°25 N | D43: =IF('2.Logbook'!D53="","",'2.Logbook'!D53) -> 6°08 W | E43: =IF('2.Logbook'!E53="","",'2.Logbook'!E53) -> Côte d'Ivoire | F43: =IF('2.Logbook'!F53="","",'2.Logbook'!F53) -> 29 | G43: =IF('2.Logbook'!G53="","",'2.Logbook'!G53) -> 1900-05-29 | H43: =IF('2.Logbook'!H53="","",'2.Logbook'!H53) -> 10 | I43: =IF('2.Logbook'!I53="","",'2.Logbook'!I53) ->  | J43: =IF('2.Logbook'!J53="","",'2.Logbook'!J53) ->  | K43: =IF('2.Logbook'!K53="","",'2.Logbook'!K53) ->  | L43: =IF('2.Logbook'!L53="","",'2.Logbook'!L53) ->  | M43: =IF('2.Logbook'!M53="","",'2.Logbook'!M53) ->  | N43: =IF('2.Logbook'!N53="","",'2.Logbook'!N53) ->  | O43: =IF('2.Logbook'!O53="","",'2.Logbook'!O53) ->  | P43: =IF('2.Logbook'!P53="","",'2.Logbook'!P53) ->  | Q43: =IF('2.Logbook'!Q53="","",'2.Logbook'!Q53) ->  | R43: =IF('2.Logbook'!R53="","",'2.Logbook'!R53) ->  | S43: =IF('2.Logbook'!S53="","",'2.Logbook'!S53) ->  | T43: =IF('2.Logbook'!T53="","",'2.Logbook'!T53) ->  | U43: =IF('2.Logbook'!U53="","",'2.Logbook'!U53) ->  | V43: =IF('2.Logbook'!V53="","",'2.Logbook'!V53) ->  | W43: =IF('2.Logbook'!W53="","",'2.Logbook'!W53) ->  | X43: =IF('2.Logbook'!X53="","",'2.Logbook'!X53) ->  | Y43: =IF('2.Logbook'!Y53="","",'2.Logbook'!Y53) ->  | Z43: =IF('2.Logbook'!Z53="","",'2.Logbook'!Z53) ->  | AA43: =IF('2.Logbook'!AA53="","",'2.Logbook'!AA53) ->  | AB43: =IF('2.Logbook'!AB53="","",'2.Logbook'!AB53) ->  | AC43: =IF('2.Logbook'!AC53="","",'2.Logbook'!AC53) ->  | AD43: =IF('2.Logbook'!AD53="","",'2.Logbook'!AD53) ->  | AE43: =IF('2.Logbook'!AE53="","",'2.Logbook'!AE53) ->  | AF43: =IF('2.Logbook'!AF53="","",'2.Logbook'!AF53) ->  | AG43: =IF('2.Logbook'!AG53="","",'2.Logbook'!AG53) -> 
A44: =IF('2.Logbook'!A54="","",'2.Logbook'!A54) -> 2020-06-02 | B44: =IF('2.Logbook'!B54="","",'2.Logbook'!B54) -> 11:25:00 | C44: =IF('2.Logbook'!C54="","",'2.Logbook'!C54) -> 1°10 N | D44: =IF('2.Logbook'!D54="","",'2.Logbook'!D54) -> 4°05 W | E44: =IF('2.Logbook'!E54="","",'2.Logbook'!E54) -> Eaux internationales | F44: =IF('2.Logbook'!F54="","",'2.Logbook'!F54) -> 29 | G44: =IF('2.Logbook'!G54="","",'2.Logbook'!G54) -> 1900-07-08 | H44: =IF('2.Logbook'!H54="","",'2.Logbook'!H54) -> 10 | I44: =IF('2.Logbook'!I54="","",'2.Logbook'!I54) -> 1900-01-01 | J44: =IF('2.Logbook'!J54="","",'2.Logbook'!J54) -> 00:00:00 | K44: =IF('2.Logbook'!K54="","",'2.Logbook'!K54) -> Banc Objet | L44: =IF('2.Logbook'!L54="","",'2.Logbook'!L54) -> 20 - 40 kg | M44: =IF('2.Logbook'!M54="","",'2.Logbook'!M54) -> 1900-01-02 | N44: =IF('2.Logbook'!N54="","",'2.Logbook'!N54) ->  | O44: =IF('2.Logbook'!O54="","",'2.Logbook'!O54) ->  | P44: =IF('2.Logbook'!P54="","",'2.Logbook'!P54) -> 1,8 - 3,4 kg | Q44: =IF('2.Logbook'!Q54="","",'2.Logbook'!Q54) -> 1900-01-25 | R44: =IF('2.Logbook'!R54="","",'2.Logbook'!R54) ->  | S44: =IF('2.Logbook'!S54="","",'2.Logbook'!S54) ->  | T44: =IF('2.Logbook'!T54="","",'2.Logbook'!T54) -> 3,4 - 10 kg | U44: =IF('2.Logbook'!U54="","",'2.Logbook'!U54) -> 1900-01-02 | V44: =IF('2.Logbook'!V54="","",'2.Logbook'!V54) ->  | W44: =IF('2.Logbook'!W54="","",'2.Logbook'!W54) ->  | X44: =IF('2.Logbook'!X54="","",'2.Logbook'!X54) ->  | Y44: =IF('2.Logbook'!Y54="","",'2.Logbook'!Y54) ->  | Z44: =IF('2.Logbook'!Z54="","",'2.Logbook'!Z54) ->  | AA44: =IF('2.Logbook'!AA54="","",'2.Logbook'!AA54) ->  | AB44: =IF('2.Logbook'!AB54="","",'2.Logbook'!AB54) ->  | AC44: =IF('2.Logbook'!AC54="","",'2.Logbook'!AC54) ->  | AD44: =IF('2.Logbook'!AD54="","",'2.Logbook'!AD54) ->  | AE44: =IF('2.Logbook'!AE54="","",'2.Logbook'!AE54) ->  | AF44: =IF('2.Logbook'!AF54="","",'2.Logbook'!AF54) ->  | AG44: =IF('2.Logbook'!AG54="","",'2.Logbook'!AG54) -> 
A45: =IF('2.Logbook'!A55="","",'2.Logbook'!A55) -> 2020-06-03 | B45: =IF('2.Logbook'!B55="","",'2.Logbook'!B55) -> 16:53:00 | C45: =IF('2.Logbook'!C55="","",'2.Logbook'!C55) -> 1°24 N | D45: =IF('2.Logbook'!D55="","",'2.Logbook'!D55) -> 2°30 W | E45: =IF('2.Logbook'!E55="","",'2.Logbook'!E55) -> Eaux internationales | F45: =IF('2.Logbook'!F55="","",'2.Logbook'!F55) -> 29 | G45: =IF('2.Logbook'!G55="","",'2.Logbook'!G55) -> 1900-06-28 | H45: =IF('2.Logbook'!H55="","",'2.Logbook'!H55) -> 15 | I45: =IF('2.Logbook'!I55="","",'2.Logbook'!I55) -> 1900-01-01 | J45: =IF('2.Logbook'!J55="","",'2.Logbook'!J55) -> 00:00:00 | K45: =IF('2.Logbook'!K55="","",'2.Logbook'!K55) -> Banc Libre | L45: =IF('2.Logbook'!L55="","",'2.Logbook'!L55) -> > 60 kg | M45: =IF('2.Logbook'!M55="","",'2.Logbook'!M55) -> 1900-02-14 | N45: =IF('2.Logbook'!N55="","",'2.Logbook'!N55) ->  | O45: =IF('2.Logbook'!O55="","",'2.Logbook'!O55) ->  | P45: =IF('2.Logbook'!P55="","",'2.Logbook'!P55) ->  | Q45: =IF('2.Logbook'!Q55="","",'2.Logbook'!Q55) ->  | R45: =IF('2.Logbook'!R55="","",'2.Logbook'!R55) ->  | S45: =IF('2.Logbook'!S55="","",'2.Logbook'!S55) ->  | T45: =IF('2.Logbook'!T55="","",'2.Logbook'!T55) ->  | U45: =IF('2.Logbook'!U55="","",'2.Logbook'!U55) ->  | V45: =IF('2.Logbook'!V55="","",'2.Logbook'!V55) ->  | W45: =IF('2.Logbook'!W55="","",'2.Logbook'!W55) ->  | X45: =IF('2.Logbook'!X55="","",'2.Logbook'!X55) ->  | Y45: =IF('2.Logbook'!Y55="","",'2.Logbook'!Y55) ->  | Z45: =IF('2.Logbook'!Z55="","",'2.Logbook'!Z55) ->  | AA45: =IF('2.Logbook'!AA55="","",'2.Logbook'!AA55) ->  | AB45: =IF('2.Logbook'!AB55="","",'2.Logbook'!AB55) ->  | AC45: =IF('2.Logbook'!AC55="","",'2.Logbook'!AC55) ->  | AD45: =IF('2.Logbook'!AD55="","",'2.Logbook'!AD55) -> 1 | AE45: =IF('2.Logbook'!AE55="","",'2.Logbook'!AE55) ->  | AF45: =IF('2.Logbook'!AF55="","",'2.Logbook'!AF55) ->  | AG45: =IF('2.Logbook'!AG55="","",'2.Logbook'!AG55) -> 
A46: =IF('2.Logbook'!A56="","",'2.Logbook'!A56) -> 2020-06-04 | B46: =IF('2.Logbook'!B56="","",'2.Logbook'!B56) -> 09:39:00 | C46: =IF('2.Logbook'!C56="","",'2.Logbook'!C56) -> 1°21 N | D46: =IF('2.Logbook'!D56="","",'2.Logbook'!D56) -> 2°33 W | E46: =IF('2.Logbook'!E56="","",'2.Logbook'!E56) -> Eaux internationales | F46: =IF('2.Logbook'!F56="","",'2.Logbook'!F56) -> 29 | G46: =IF('2.Logbook'!G56="","",'2.Logbook'!G56) -> 1900-06-28 | H46: =IF('2.Logbook'!H56="","",'2.Logbook'!H56) -> 15 | I46: =IF('2.Logbook'!I56="","",'2.Logbook'!I56) -> 1900-01-01 | J46: =IF('2.Logbook'!J56="","",'2.Logbook'!J56) -> 00:00:00 | K46: =IF('2.Logbook'!K56="","",'2.Logbook'!K56) -> Banc Libre | L46: =IF('2.Logbook'!L56="","",'2.Logbook'!L56) -> > 60 kg | M46: =IF('2.Logbook'!M56="","",'2.Logbook'!M56) -> 1900-01-26 | N46: =IF('2.Logbook'!N56="","",'2.Logbook'!N56) ->  | O46: =IF('2.Logbook'!O56="","",'2.Logbook'!O56) ->  | P46: =IF('2.Logbook'!P56="","",'2.Logbook'!P56) ->  | Q46: =IF('2.Logbook'!Q56="","",'2.Logbook'!Q56) ->  | R46: =IF('2.Logbook'!R56="","",'2.Logbook'!R56) ->  | S46: =IF('2.Logbook'!S56="","",'2.Logbook'!S56) ->  | T46: =IF('2.Logbook'!T56="","",'2.Logbook'!T56) ->  | U46: =IF('2.Logbook'!U56="","",'2.Logbook'!U56) ->  | V46: =IF('2.Logbook'!V56="","",'2.Logbook'!V56) ->  | W46: =IF('2.Logbook'!W56="","",'2.Logbook'!W56) ->  | X46: =IF('2.Logbook'!X56="","",'2.Logbook'!X56) ->  | Y46: =IF('2.Logbook'!Y56="","",'2.Logbook'!Y56) ->  | Z46: =IF('2.Logbook'!Z56="","",'2.Logbook'!Z56) ->  | AA46: =IF('2.Logbook'!AA56="","",'2.Logbook'!AA56) ->  | AB46: =IF('2.Logbook'!AB56="","",'2.Logbook'!AB56) ->  | AC46: =IF('2.Logbook'!AC56="","",'2.Logbook'!AC56) ->  | AD46: =IF('2.Logbook'!AD56="","",'2.Logbook'!AD56) -> 1 | AE46: =IF('2.Logbook'!AE56="","",'2.Logbook'!AE56) ->  | AF46: =IF('2.Logbook'!AF56="","",'2.Logbook'!AF56) ->  | AG46: =IF('2.Logbook'!AG56="","",'2.Logbook'!AG56) -> 
A47: =IF('2.Logbook'!A57="","",'2.Logbook'!A57) -> 2020-06-05 | B47: =IF('2.Logbook'!B57="","",'2.Logbook'!B57) -> 07:25:00 | C47: =IF('2.Logbook'!C57="","",'2.Logbook'!C57) -> 1°14 N | D47: =IF('2.Logbook'!D57="","",'2.Logbook'!D57) -> 2°02 W | E47: =IF('2.Logbook'!E57="","",'2.Logbook'!E57) -> Eaux internationales | F47: =IF('2.Logbook'!F57="","",'2.Logbook'!F57) -> 29 | G47: =IF('2.Logbook'!G57="","",'2.Logbook'!G57) -> 1900-06-28 | H47: =IF('2.Logbook'!H57="","",'2.Logbook'!H57) -> 5 | I47: =IF('2.Logbook'!I57="","",'2.Logbook'!I57) ->  | J47: =IF('2.Logbook'!J57="","",'2.Logbook'!J57) -> 1 | K47: =IF('2.Logbook'!K57="","",'2.Logbook'!K57) -> Banc Libre | L47: =IF('2.Logbook'!L57="","",'2.Logbook'!L57) ->  | M47: =IF('2.Logbook'!M57="","",'2.Logbook'!M57) ->  | N47: =IF('2.Logbook'!N57="","",'2.Logbook'!N57) ->  | O47: =IF('2.Logbook'!O57="","",'2.Logbook'!O57) ->  | P47: =IF('2.Logbook'!P57="","",'2.Logbook'!P57) ->  | Q47: =IF('2.Logbook'!Q57="","",'2.Logbook'!Q57) ->  | R47: =IF('2.Logbook'!R57="","",'2.Logbook'!R57) ->  | S47: =IF('2.Logbook'!S57="","",'2.Logbook'!S57) ->  | T47: =IF('2.Logbook'!T57="","",'2.Logbook'!T57) ->  | U47: =IF('2.Logbook'!U57="","",'2.Logbook'!U57) ->  | V47: =IF('2.Logbook'!V57="","",'2.Logbook'!V57) ->  | W47: =IF('2.Logbook'!W57="","",'2.Logbook'!W57) ->  | X47: =IF('2.Logbook'!X57="","",'2.Logbook'!X57) ->  | Y47: =IF('2.Logbook'!Y57="","",'2.Logbook'!Y57) ->  | Z47: =IF('2.Logbook'!Z57="","",'2.Logbook'!Z57) ->  | AA47: =IF('2.Logbook'!AA57="","",'2.Logbook'!AA57) ->  | AB47: =IF('2.Logbook'!AB57="","",'2.Logbook'!AB57) ->  | AC47: =IF('2.Logbook'!AC57="","",'2.Logbook'!AC57) ->  | AD47: =IF('2.Logbook'!AD57="","",'2.Logbook'!AD57) -> 1 | AE47: =IF('2.Logbook'!AE57="","",'2.Logbook'!AE57) ->  | AF47: =IF('2.Logbook'!AF57="","",'2.Logbook'!AF57) ->  | AG47: =IF('2.Logbook'!AG57="","",'2.Logbook'!AG57) -> 
A48: =IF('2.Logbook'!A58="","",'2.Logbook'!A58) -> 2020-06-06 | B48: =IF('2.Logbook'!B58="","",'2.Logbook'!B58) -> 12:00:00 | C48: =IF('2.Logbook'!C58="","",'2.Logbook'!C58) -> 1°07 N | D48: =IF('2.Logbook'!D58="","",'2.Logbook'!D58) -> 0°37 W | E48: =IF('2.Logbook'!E58="","",'2.Logbook'!E58) -> Eaux internationales | F48: =IF('2.Logbook'!F58="","",'2.Logbook'!F58) -> 29 | G48: =IF('2.Logbook'!G58="","",'2.Logbook'!G58) -> 1900-06-28 | H48: =IF('2.Logbook'!H58="","",'2.Logbook'!H58) -> 20 | I48: =IF('2.Logbook'!I58="","",'2.Logbook'!I58) ->  | J48: =IF('2.Logbook'!J58="","",'2.Logbook'!J58) ->  | K48: =IF('2.Logbook'!K58="","",'2.Logbook'!K58) ->  | L48: =IF('2.Logbook'!L58="","",'2.Logbook'!L58) ->  | M48: =IF('2.Logbook'!M58="","",'2.Logbook'!M58) ->  | N48: =IF('2.Logbook'!N58="","",'2.Logbook'!N58) ->  | O48: =IF('2.Logbook'!O58="","",'2.Logbook'!O58) ->  | P48: =IF('2.Logbook'!P58="","",'2.Logbook'!P58) ->  | Q48: =IF('2.Logbook'!Q58="","",'2.Logbook'!Q58) ->  | R48: =IF('2.Logbook'!R58="","",'2.Logbook'!R58) ->  | S48: =IF('2.Logbook'!S58="","",'2.Logbook'!S58) ->  | T48: =IF('2.Logbook'!T58="","",'2.Logbook'!T58) ->  | U48: =IF('2.Logbook'!U58="","",'2.Logbook'!U58) ->  | V48: =IF('2.Logbook'!V58="","",'2.Logbook'!V58) ->  | W48: =IF('2.Logbook'!W58="","",'2.Logbook'!W58) ->  | X48: =IF('2.Logbook'!X58="","",'2.Logbook'!X58) ->  | Y48: =IF('2.Logbook'!Y58="","",'2.Logbook'!Y58) ->  | Z48: =IF('2.Logbook'!Z58="","",'2.Logbook'!Z58) ->  | AA48: =IF('2.Logbook'!AA58="","",'2.Logbook'!AA58) ->  | AB48: =IF('2.Logbook'!AB58="","",'2.Logbook'!AB58) ->  | AC48: =IF('2.Logbook'!AC58="","",'2.Logbook'!AC58) ->  | AD48: =IF('2.Logbook'!AD58="","",'2.Logbook'!AD58) ->  | AE48: =IF('2.Logbook'!AE58="","",'2.Logbook'!AE58) ->  | AF48: =IF('2.Logbook'!AF58="","",'2.Logbook'!AF58) ->  | AG48: =IF('2.Logbook'!AG58="","",'2.Logbook'!AG58) -> 
A49: =IF('2.Logbook'!A59="","",'2.Logbook'!A59) -> 2020-06-07 | B49: =IF('2.Logbook'!B59="","",'2.Logbook'!B59) -> 08:20:00 | C49: =IF('2.Logbook'!C59="","",'2.Logbook'!C59) -> 0°23N | D49: =IF('2.Logbook'!D59="","",'2.Logbook'!D59) -> 2°11 E | E49: =IF('2.Logbook'!E59="","",'2.Logbook'!E59) -> Eaux internationales | F49: =IF('2.Logbook'!F59="","",'2.Logbook'!F59) -> 28 | G49: =IF('2.Logbook'!G59="","",'2.Logbook'!G59) -> 1900-06-18 | H49: =IF('2.Logbook'!H59="","",'2.Logbook'!H59) -> 6 | I49: =IF('2.Logbook'!I59="","",'2.Logbook'!I59) ->  | J49: =IF('2.Logbook'!J59="","",'2.Logbook'!J59) ->  | K49: =IF('2.Logbook'!K59="","",'2.Logbook'!K59) ->  | L49: =IF('2.Logbook'!L59="","",'2.Logbook'!L59) ->  | M49: =IF('2.Logbook'!M59="","",'2.Logbook'!M59) ->  | N49: =IF('2.Logbook'!N59="","",'2.Logbook'!N59) ->  | O49: =IF('2.Logbook'!O59="","",'2.Logbook'!O59) ->  | P49: =IF('2.Logbook'!P59="","",'2.Logbook'!P59) ->  | Q49: =IF('2.Logbook'!Q59="","",'2.Logbook'!Q59) ->  | R49: =IF('2.Logbook'!R59="","",'2.Logbook'!R59) ->  | S49: =IF('2.Logbook'!S59="","",'2.Logbook'!S59) ->  | T49: =IF('2.Logbook'!T59="","",'2.Logbook'!T59) ->  | U49: =IF('2.Logbook'!U59="","",'2.Logbook'!U59) ->  | V49: =IF('2.Logbook'!V59="","",'2.Logbook'!V59) ->  | W49: =IF('2.Logbook'!W59="","",'2.Logbook'!W59) ->  | X49: =IF('2.Logbook'!X59="","",'2.Logbook'!X59) ->  | Y49: =IF('2.Logbook'!Y59="","",'2.Logbook'!Y59) ->  | Z49: =IF('2.Logbook'!Z59="","",'2.Logbook'!Z59) ->  | AA49: =IF('2.Logbook'!AA59="","",'2.Logbook'!AA59) ->  | AB49: =IF('2.Logbook'!AB59="","",'2.Logbook'!AB59) ->  | AC49: =IF('2.Logbook'!AC59="","",'2.Logbook'!AC59) ->  | AD49: =IF('2.Logbook'!AD59="","",'2.Logbook'!AD59) ->  | AE49: =IF('2.Logbook'!AE59="","",'2.Logbook'!AE59) ->  | AF49: =IF('2.Logbook'!AF59="","",'2.Logbook'!AF59) ->  | AG49: =IF('2.Logbook'!AG59="","",'2.Logbook'!AG59) -> 
A50: =IF('2.Logbook'!A60="","",'2.Logbook'!A60) -> 2020-06-08 | B50: =IF('2.Logbook'!B60="","",'2.Logbook'!B60) -> 07:30:00 | C50: =IF('2.Logbook'!C60="","",'2.Logbook'!C60) -> 1°04 N | D50: =IF('2.Logbook'!D60="","",'2.Logbook'!D60) -> 3°34 E | E50: =IF('2.Logbook'!E60="","",'2.Logbook'!E60) -> Sao Tome e Principe | F50: =IF('2.Logbook'!F60="","",'2.Logbook'!F60) -> 28 | G50: =IF('2.Logbook'!G60="","",'2.Logbook'!G60) -> 1900-07-14 | H50: =IF('2.Logbook'!H60="","",'2.Logbook'!H60) -> 15 | I50: =IF('2.Logbook'!I60="","",'2.Logbook'!I60) ->  | J50: =IF('2.Logbook'!J60="","",'2.Logbook'!J60) ->  | K50: =IF('2.Logbook'!K60="","",'2.Logbook'!K60) ->  | L50: =IF('2.Logbook'!L60="","",'2.Logbook'!L60) ->  | M50: =IF('2.Logbook'!M60="","",'2.Logbook'!M60) ->  | N50: =IF('2.Logbook'!N60="","",'2.Logbook'!N60) ->  | O50: =IF('2.Logbook'!O60="","",'2.Logbook'!O60) ->  | P50: =IF('2.Logbook'!P60="","",'2.Logbook'!P60) ->  | Q50: =IF('2.Logbook'!Q60="","",'2.Logbook'!Q60) ->  | R50: =IF('2.Logbook'!R60="","",'2.Logbook'!R60) ->  | S50: =IF('2.Logbook'!S60="","",'2.Logbook'!S60) ->  | T50: =IF('2.Logbook'!T60="","",'2.Logbook'!T60) ->  | U50: =IF('2.Logbook'!U60="","",'2.Logbook'!U60) ->  | V50: =IF('2.Logbook'!V60="","",'2.Logbook'!V60) ->  | W50: =IF('2.Logbook'!W60="","",'2.Logbook'!W60) ->  | X50: =IF('2.Logbook'!X60="","",'2.Logbook'!X60) ->  | Y50: =IF('2.Logbook'!Y60="","",'2.Logbook'!Y60) ->  | Z50: =IF('2.Logbook'!Z60="","",'2.Logbook'!Z60) ->  | AA50: =IF('2.Logbook'!AA60="","",'2.Logbook'!AA60) ->  | AB50: =IF('2.Logbook'!AB60="","",'2.Logbook'!AB60) ->  | AC50: =IF('2.Logbook'!AC60="","",'2.Logbook'!AC60) ->  | AD50: =IF('2.Logbook'!AD60="","",'2.Logbook'!AD60) ->  | AE50: =IF('2.Logbook'!AE60="","",'2.Logbook'!AE60) ->  | AF50: =IF('2.Logbook'!AF60="","",'2.Logbook'!AF60) ->  | AG50: =IF('2.Logbook'!AG60="","",'2.Logbook'!AG60) -> 
A51: =IF('2.Logbook'!A61="","",'2.Logbook'!A61) -> 2020-06-09 | B51: =IF('2.Logbook'!B61="","",'2.Logbook'!B61) -> 12:00:00 | C51: =IF('2.Logbook'!C61="","",'2.Logbook'!C61) -> 0°52N | D51: =IF('2.Logbook'!D61="","",'2.Logbook'!D61) -> 1°38W | E51: =IF('2.Logbook'!E61="","",'2.Logbook'!E61) -> Eaux internationales | F51: =IF('2.Logbook'!F61="","",'2.Logbook'!F61) -> 28 | G51: =IF('2.Logbook'!G61="","",'2.Logbook'!G61) -> 1900-06-15 | H51: =IF('2.Logbook'!H61="","",'2.Logbook'!H61) -> 15 | I51: =IF('2.Logbook'!I61="","",'2.Logbook'!I61) ->  | J51: =IF('2.Logbook'!J61="","",'2.Logbook'!J61) ->  | K51: =IF('2.Logbook'!K61="","",'2.Logbook'!K61) ->  | L51: =IF('2.Logbook'!L61="","",'2.Logbook'!L61) ->  | M51: =IF('2.Logbook'!M61="","",'2.Logbook'!M61) ->  | N51: =IF('2.Logbook'!N61="","",'2.Logbook'!N61) ->  | O51: =IF('2.Logbook'!O61="","",'2.Logbook'!O61) ->  | P51: =IF('2.Logbook'!P61="","",'2.Logbook'!P61) ->  | Q51: =IF('2.Logbook'!Q61="","",'2.Logbook'!Q61) ->  | R51: =IF('2.Logbook'!R61="","",'2.Logbook'!R61) ->  | S51: =IF('2.Logbook'!S61="","",'2.Logbook'!S61) ->  | T51: =IF('2.Logbook'!T61="","",'2.Logbook'!T61) ->  | U51: =IF('2.Logbook'!U61="","",'2.Logbook'!U61) ->  | V51: =IF('2.Logbook'!V61="","",'2.Logbook'!V61) ->  | W51: =IF('2.Logbook'!W61="","",'2.Logbook'!W61) ->  | X51: =IF('2.Logbook'!X61="","",'2.Logbook'!X61) ->  | Y51: =IF('2.Logbook'!Y61="","",'2.Logbook'!Y61) ->  | Z51: =IF('2.Logbook'!Z61="","",'2.Logbook'!Z61) ->  | AA51: =IF('2.Logbook'!AA61="","",'2.Logbook'!AA61) ->  | AB51: =IF('2.Logbook'!AB61="","",'2.Logbook'!AB61) ->  | AC51: =IF('2.Logbook'!AC61="","",'2.Logbook'!AC61) ->  | AD51: =IF('2.Logbook'!AD61="","",'2.Logbook'!AD61) ->  | AE51: =IF('2.Logbook'!AE61="","",'2.Logbook'!AE61) ->  | AF51: =IF('2.Logbook'!AF61="","",'2.Logbook'!AF61) ->  | AG51: =IF('2.Logbook'!AG61="","",'2.Logbook'!AG61) -> 
A52: =IF('2.Logbook'!A62="","",'2.Logbook'!A62) -> 2020-06-10 | B52: =IF('2.Logbook'!B62="","",'2.Logbook'!B62) -> 12:00:00 | C52: =IF('2.Logbook'!C62="","",'2.Logbook'!C62) -> 1°26N | D52: =IF('2.Logbook'!D62="","",'2.Logbook'!D62) -> 5°07W | E52: =IF('2.Logbook'!E62="","",'2.Logbook'!E62) -> Eaux internationales | F52: =IF('2.Logbook'!F62="","",'2.Logbook'!F62) -> 29 | G52: =IF('2.Logbook'!G62="","",'2.Logbook'!G62) -> 1900-05-27 | H52: =IF('2.Logbook'!H62="","",'2.Logbook'!H62) -> 20 | I52: =IF('2.Logbook'!I62="","",'2.Logbook'!I62) ->  | J52: =IF('2.Logbook'!J62="","",'2.Logbook'!J62) ->  | K52: =IF('2.Logbook'!K62="","",'2.Logbook'!K62) ->  | L52: =IF('2.Logbook'!L62="","",'2.Logbook'!L62) ->  | M52: =IF('2.Logbook'!M62="","",'2.Logbook'!M62) ->  | N52: =IF('2.Logbook'!N62="","",'2.Logbook'!N62) ->  | O52: =IF('2.Logbook'!O62="","",'2.Logbook'!O62) ->  | P52: =IF('2.Logbook'!P62="","",'2.Logbook'!P62) ->  | Q52: =IF('2.Logbook'!Q62="","",'2.Logbook'!Q62) ->  | R52: =IF('2.Logbook'!R62="","",'2.Logbook'!R62) ->  | S52: =IF('2.Logbook'!S62="","",'2.Logbook'!S62) ->  | T52: =IF('2.Logbook'!T62="","",'2.Logbook'!T62) ->  | U52: =IF('2.Logbook'!U62="","",'2.Logbook'!U62) ->  | V52: =IF('2.Logbook'!V62="","",'2.Logbook'!V62) ->  | W52: =IF('2.Logbook'!W62="","",'2.Logbook'!W62) ->  | X52: =IF('2.Logbook'!X62="","",'2.Logbook'!X62) ->  | Y52: =IF('2.Logbook'!Y62="","",'2.Logbook'!Y62) ->  | Z52: =IF('2.Logbook'!Z62="","",'2.Logbook'!Z62) ->  | AA52: =IF('2.Logbook'!AA62="","",'2.Logbook'!AA62) ->  | AB52: =IF('2.Logbook'!AB62="","",'2.Logbook'!AB62) ->  | AC52: =IF('2.Logbook'!AC62="","",'2.Logbook'!AC62) ->  | AD52: =IF('2.Logbook'!AD62="","",'2.Logbook'!AD62) ->  | AE52: =IF('2.Logbook'!AE62="","",'2.Logbook'!AE62) ->  | AF52: =IF('2.Logbook'!AF62="","",'2.Logbook'!AF62) ->  | AG52: =IF('2.Logbook'!AG62="","",'2.Logbook'!AG62) -> 
A53: =IF('2.Logbook'!A63="","",'2.Logbook'!A63) -> 2020-06-11 | B53: =IF('2.Logbook'!B63="","",'2.Logbook'!B63) -> 03:30:00 | C53: =IF('2.Logbook'!C63="","",'2.Logbook'!C63) -> 4°42 N | D53: =IF('2.Logbook'!D63="","",'2.Logbook'!D63) -> 3°52 W | E53: =IF('2.Logbook'!E63="","",'2.Logbook'!E63) -> Côte d'Ivoire | F53: =IF('2.Logbook'!F63="","",'2.Logbook'!F63) -> 28 | G53: =IF('2.Logbook'!G63="","",'2.Logbook'!G63) -> 1900-09-11 | H53: =IF('2.Logbook'!H63="","",'2.Logbook'!H63) -> 15 | I53: =IF('2.Logbook'!I63="","",'2.Logbook'!I63) ->  | J53: =IF('2.Logbook'!J63="","",'2.Logbook'!J63) ->  | K53: =IF('2.Logbook'!K63="","",'2.Logbook'!K63) ->  | L53: =IF('2.Logbook'!L63="","",'2.Logbook'!L63) ->  | M53: =IF('2.Logbook'!M63="","",'2.Logbook'!M63) ->  | N53: =IF('2.Logbook'!N63="","",'2.Logbook'!N63) ->  | O53: =IF('2.Logbook'!O63="","",'2.Logbook'!O63) ->  | P53: =IF('2.Logbook'!P63="","",'2.Logbook'!P63) ->  | Q53: =IF('2.Logbook'!Q63="","",'2.Logbook'!Q63) ->  | R53: =IF('2.Logbook'!R63="","",'2.Logbook'!R63) ->  | S53: =IF('2.Logbook'!S63="","",'2.Logbook'!S63) ->  | T53: =IF('2.Logbook'!T63="","",'2.Logbook'!T63) ->  | U53: =IF('2.Logbook'!U63="","",'2.Logbook'!U63) ->  | V53: =IF('2.Logbook'!V63="","",'2.Logbook'!V63) ->  | W53: =IF('2.Logbook'!W63="","",'2.Logbook'!W63) ->  | X53: =IF('2.Logbook'!X63="","",'2.Logbook'!X63) ->  | Y53: =IF('2.Logbook'!Y63="","",'2.Logbook'!Y63) ->  | Z53: =IF('2.Logbook'!Z63="","",'2.Logbook'!Z63) ->  | AA53: =IF('2.Logbook'!AA63="","",'2.Logbook'!AA63) ->  | AB53: =IF('2.Logbook'!AB63="","",'2.Logbook'!AB63) ->  | AC53: =IF('2.Logbook'!AC63="","",'2.Logbook'!AC63) ->  | AD53: =IF('2.Logbook'!AD63="","",'2.Logbook'!AD63) ->  | AE53: =IF('2.Logbook'!AE63="","",'2.Logbook'!AE63) ->  | AF53: =IF('2.Logbook'!AF63="","",'2.Logbook'!AF63) ->  | AG53: =IF('2.Logbook'!AG63="","",'2.Logbook'!AG63) -> 
A54: =IF('2.Logbook'!A64="","",'2.Logbook'!A64) -> 2020-06-11 | B54: =IF('2.Logbook'!B64="","",'2.Logbook'!B64) -> 07:48:00 | C54: =IF('2.Logbook'!C64="","",'2.Logbook'!C64) ->  | D54: =IF('2.Logbook'!D64="","",'2.Logbook'!D64) ->  | E54: =IF('2.Logbook'!E64="","",'2.Logbook'!E64) ->  | F54: =IF('2.Logbook'!F64="","",'2.Logbook'!F64) ->  | G54: =IF('2.Logbook'!G64="","",'2.Logbook'!G64) ->  | H54: =IF('2.Logbook'!H64="","",'2.Logbook'!H64) ->  | I54: =IF('2.Logbook'!I64="","",'2.Logbook'!I64) ->  | J54: =IF('2.Logbook'!J64="","",'2.Logbook'!J64) ->  | K54: =IF('2.Logbook'!K64="","",'2.Logbook'!K64) ->  | L54: =IF('2.Logbook'!L64="","",'2.Logbook'!L64) ->  | M54: =IF('2.Logbook'!M64="","",'2.Logbook'!M64) ->  | N54: =IF('2.Logbook'!N64="","",'2.Logbook'!N64) ->  | O54: =IF('2.Logbook'!O64="","",'2.Logbook'!O64) ->  | P54: =IF('2.Logbook'!P64="","",'2.Logbook'!P64) ->  | Q54: =IF('2.Logbook'!Q64="","",'2.Logbook'!Q64) ->  | R54: =IF('2.Logbook'!R64="","",'2.Logbook'!R64) ->  | S54: =IF('2.Logbook'!S64="","",'2.Logbook'!S64) ->  | T54: =IF('2.Logbook'!T64="","",'2.Logbook'!T64) ->  | U54: =IF('2.Logbook'!U64="","",'2.Logbook'!U64) ->  | V54: =IF('2.Logbook'!V64="","",'2.Logbook'!V64) ->  | W54: =IF('2.Logbook'!W64="","",'2.Logbook'!W64) ->  | X54: =IF('2.Logbook'!X64="","",'2.Logbook'!X64) ->  | Y54: =IF('2.Logbook'!Y64="","",'2.Logbook'!Y64) ->  | Z54: =IF('2.Logbook'!Z64="","",'2.Logbook'!Z64) ->  | AA54: =IF('2.Logbook'!AA64="","",'2.Logbook'!AA64) ->  | AB54: =IF('2.Logbook'!AB64="","",'2.Logbook'!AB64) ->  | AC54: =IF('2.Logbook'!AC64="","",'2.Logbook'!AC64) ->  | AD54: =IF('2.Logbook'!AD64="","",'2.Logbook'!AD64) ->  | AE54: =IF('2.Logbook'!AE64="","",'2.Logbook'!AE64) ->  | AF54: =IF('2.Logbook'!AF64="","",'2.Logbook'!AF64) ->  | AG54: =IF('2.Logbook'!AG64="","",'2.Logbook'!AG64) -> 
A55: =IF('2.Logbook'!A65="","",'2.Logbook'!A65) -> 2020-06-11 | B55: =IF('2.Logbook'!B65="","",'2.Logbook'!B65) -> 14:43:00 | C55: =IF('2.Logbook'!C65="","",'2.Logbook'!C65) ->  | D55: =IF('2.Logbook'!D65="","",'2.Logbook'!D65) ->  | E55: =IF('2.Logbook'!E65="","",'2.Logbook'!E65) ->  | F55: =IF('2.Logbook'!F65="","",'2.Logbook'!F65) ->  | G55: =IF('2.Logbook'!G65="","",'2.Logbook'!G65) ->  | H55: =IF('2.Logbook'!H65="","",'2.Logbook'!H65) ->  | I55: =IF('2.Logbook'!I65="","",'2.Logbook'!I65) ->  | J55: =IF('2.Logbook'!J65="","",'2.Logbook'!J65) ->  | K55: =IF('2.Logbook'!K65="","",'2.Logbook'!K65) ->  | L55: =IF('2.Logbook'!L65="","",'2.Logbook'!L65) ->  | M55: =IF('2.Logbook'!M65="","",'2.Logbook'!M65) ->  | N55: =IF('2.Logbook'!N65="","",'2.Logbook'!N65) ->  | O55: =IF('2.Logbook'!O65="","",'2.Logbook'!O65) ->  | P55: =IF('2.Logbook'!P65="","",'2.Logbook'!P65) ->  | Q55: =IF('2.Logbook'!Q65="","",'2.Logbook'!Q65) ->  | R55: =IF('2.Logbook'!R65="","",'2.Logbook'!R65) ->  | S55: =IF('2.Logbook'!S65="","",'2.Logbook'!S65) ->  | T55: =IF('2.Logbook'!T65="","",'2.Logbook'!T65) ->  | U55: =IF('2.Logbook'!U65="","",'2.Logbook'!U65) ->  | V55: =IF('2.Logbook'!V65="","",'2.Logbook'!V65) ->  | W55: =IF('2.Logbook'!W65="","",'2.Logbook'!W65) ->  | X55: =IF('2.Logbook'!X65="","",'2.Logbook'!X65) ->  | Y55: =IF('2.Logbook'!Y65="","",'2.Logbook'!Y65) ->  | Z55: =IF('2.Logbook'!Z65="","",'2.Logbook'!Z65) ->  | AA55: =IF('2.Logbook'!AA65="","",'2.Logbook'!AA65) ->  | AB55: =IF('2.Logbook'!AB65="","",'2.Logbook'!AB65) ->  | AC55: =IF('2.Logbook'!AC65="","",'2.Logbook'!AC65) ->  | AD55: =IF('2.Logbook'!AD65="","",'2.Logbook'!AD65) ->  | AE55: =IF('2.Logbook'!AE65="","",'2.Logbook'!AE65) ->  | AF55: =IF('2.Logbook'!AF65="","",'2.Logbook'!AF65) ->  | AG55: =IF('2.Logbook'!AG65="","",'2.Logbook'!AG65) -> 
A56: =IF('2.Logbook'!A66="","",'2.Logbook'!A66) -> 2020-06-12 | B56: =IF('2.Logbook'!B66="","",'2.Logbook'!B66) -> 12;00 | C56: =IF('2.Logbook'!C66="","",'2.Logbook'!C66) -> 1°34N | D56: =IF('2.Logbook'!D66="","",'2.Logbook'!D66) -> 0°34W | E56: =IF('2.Logbook'!E66="","",'2.Logbook'!E66) -> Eaux internationales | F56: =IF('2.Logbook'!F66="","",'2.Logbook'!F66) ->  | G56: =IF('2.Logbook'!G66="","",'2.Logbook'!G66) ->  | H56: =IF('2.Logbook'!H66="","",'2.Logbook'!H66) ->  | I56: =IF('2.Logbook'!I66="","",'2.Logbook'!I66) ->  | J56: =IF('2.Logbook'!J66="","",'2.Logbook'!J66) ->  | K56: =IF('2.Logbook'!K66="","",'2.Logbook'!K66) ->  | L56: =IF('2.Logbook'!L66="","",'2.Logbook'!L66) ->  | M56: =IF('2.Logbook'!M66="","",'2.Logbook'!M66) ->  | N56: =IF('2.Logbook'!N66="","",'2.Logbook'!N66) ->  | O56: =IF('2.Logbook'!O66="","",'2.Logbook'!O66) ->  | P56: =IF('2.Logbook'!P66="","",'2.Logbook'!P66) ->  | Q56: =IF('2.Logbook'!Q66="","",'2.Logbook'!Q66) ->  | R56: =IF('2.Logbook'!R66="","",'2.Logbook'!R66) ->  | S56: =IF('2.Logbook'!S66="","",'2.Logbook'!S66) ->  | T56: =IF('2.Logbook'!T66="","",'2.Logbook'!T66) ->  | U56: =IF('2.Logbook'!U66="","",'2.Logbook'!U66) ->  | V56: =IF('2.Logbook'!V66="","",'2.Logbook'!V66) ->  | W56: =IF('2.Logbook'!W66="","",'2.Logbook'!W66) ->  | X56: =IF('2.Logbook'!X66="","",'2.Logbook'!X66) ->  | Y56: =IF('2.Logbook'!Y66="","",'2.Logbook'!Y66) ->  | Z56: =IF('2.Logbook'!Z66="","",'2.Logbook'!Z66) ->  | AA56: =IF('2.Logbook'!AA66="","",'2.Logbook'!AA66) ->  | AB56: =IF('2.Logbook'!AB66="","",'2.Logbook'!AB66) ->  | AC56: =IF('2.Logbook'!AC66="","",'2.Logbook'!AC66) ->  | AD56: =IF('2.Logbook'!AD66="","",'2.Logbook'!AD66) ->  | AE56: =IF('2.Logbook'!AE66="","",'2.Logbook'!AE66) ->  | AF56: =IF('2.Logbook'!AF66="","",'2.Logbook'!AF66) ->  | AG56: =IF('2.Logbook'!AG66="","",'2.Logbook'!AG66) -> 
A57: =IF('2.Logbook'!A67="","",'2.Logbook'!A67) -> 1°3/06/2020 | B57: =IF('2.Logbook'!B67="","",'2.Logbook'!B67) -> 07:20:00 | C57: =IF('2.Logbook'!C67="","",'2.Logbook'!C67) -> 1°06 N | D57: =IF('2.Logbook'!D67="","",'2.Logbook'!D67) -> 3°16 E | E57: =IF('2.Logbook'!E67="","",'2.Logbook'!E67) -> Eaux internationales | F57: =IF('2.Logbook'!F67="","",'2.Logbook'!F67) -> 28 | G57: =IF('2.Logbook'!G67="","",'2.Logbook'!G67) -> 1900-05-29 | H57: =IF('2.Logbook'!H67="","",'2.Logbook'!H67) -> 25 | I57: =IF('2.Logbook'!I67="","",'2.Logbook'!I67) -> 1900-01-01 | J57: =IF('2.Logbook'!J67="","",'2.Logbook'!J67) ->  | K57: =IF('2.Logbook'!K67="","",'2.Logbook'!K67) -> Banc Objet | L57: =IF('2.Logbook'!L67="","",'2.Logbook'!L67) ->  | M57: =IF('2.Logbook'!M67="","",'2.Logbook'!M67) ->  | N57: =IF('2.Logbook'!N67="","",'2.Logbook'!N67) ->  | O57: =IF('2.Logbook'!O67="","",'2.Logbook'!O67) ->  | P57: =IF('2.Logbook'!P67="","",'2.Logbook'!P67) -> 1,8 - 3,4 kg | Q57: =IF('2.Logbook'!Q67="","",'2.Logbook'!Q67) -> 1900-01-26 | R57: =IF('2.Logbook'!R67="","",'2.Logbook'!R67) ->  | S57: =IF('2.Logbook'!S67="","",'2.Logbook'!S67) ->  | T57: =IF('2.Logbook'!T67="","",'2.Logbook'!T67) -> 3,4 - 10 kg | U57: =IF('2.Logbook'!U67="","",'2.Logbook'!U67) -> 1900-01-04 | V57: =IF('2.Logbook'!V67="","",'2.Logbook'!V67) ->  | W57: =IF('2.Logbook'!W67="","",'2.Logbook'!W67) ->  | X57: =IF('2.Logbook'!X67="","",'2.Logbook'!X67) ->  | Y57: =IF('2.Logbook'!Y67="","",'2.Logbook'!Y67) ->  | Z57: =IF('2.Logbook'!Z67="","",'2.Logbook'!Z67) ->  | AA57: =IF('2.Logbook'!AA67="","",'2.Logbook'!AA67) ->  | AB57: =IF('2.Logbook'!AB67="","",'2.Logbook'!AB67) ->  | AC57: =IF('2.Logbook'!AC67="","",'2.Logbook'!AC67) ->  | AD57: =IF('2.Logbook'!AD67="","",'2.Logbook'!AD67) ->  | AE57: =IF('2.Logbook'!AE67="","",'2.Logbook'!AE67) ->  | AF57: =IF('2.Logbook'!AF67="","",'2.Logbook'!AF67) ->  | AG57: =IF('2.Logbook'!AG67="","",'2.Logbook'!AG67) -> 
A58: =IF('2.Logbook'!A68="","",'2.Logbook'!A68) -> 2020-06-14 | B58: =IF('2.Logbook'!B68="","",'2.Logbook'!B68) -> 10:35:00 | C58: =IF('2.Logbook'!C68="","",'2.Logbook'!C68) -> 0°52 N | D58: =IF('2.Logbook'!D68="","",'2.Logbook'!D68) -> 4°35 E | E58: =IF('2.Logbook'!E68="","",'2.Logbook'!E68) -> Sao Tome e Principe | F58: =IF('2.Logbook'!F68="","",'2.Logbook'!F68) -> 28 | G58: =IF('2.Logbook'!G68="","",'2.Logbook'!G68) -> 1900-06-18 | H58: =IF('2.Logbook'!H68="","",'2.Logbook'!H68) -> 20 | I58: =IF('2.Logbook'!I68="","",'2.Logbook'!I68) -> 1900-01-01 | J58: =IF('2.Logbook'!J68="","",'2.Logbook'!J68) ->  | K58: =IF('2.Logbook'!K68="","",'2.Logbook'!K68) -> Banc Objet | L58: =IF('2.Logbook'!L68="","",'2.Logbook'!L68) ->  | M58: =IF('2.Logbook'!M68="","",'2.Logbook'!M68) ->  | N58: =IF('2.Logbook'!N68="","",'2.Logbook'!N68) ->  | O58: =IF('2.Logbook'!O68="","",'2.Logbook'!O68) ->  | P58: =IF('2.Logbook'!P68="","",'2.Logbook'!P68) -> < 1,8 kg | Q58: =IF('2.Logbook'!Q68="","",'2.Logbook'!Q68) -> 1900-02-19 | R58: =IF('2.Logbook'!R68="","",'2.Logbook'!R68) ->  | S58: =IF('2.Logbook'!S68="","",'2.Logbook'!S68) ->  | T58: =IF('2.Logbook'!T68="","",'2.Logbook'!T68) ->  | U58: =IF('2.Logbook'!U68="","",'2.Logbook'!U68) ->  | V58: =IF('2.Logbook'!V68="","",'2.Logbook'!V68) ->  | W58: =IF('2.Logbook'!W68="","",'2.Logbook'!W68) ->  | X58: =IF('2.Logbook'!X68="","",'2.Logbook'!X68) -> banane | Y58: =IF('2.Logbook'!Y68="","",'2.Logbook'!Y68) -> 1900-01-05 | Z58: =IF('2.Logbook'!Z68="","",'2.Logbook'!Z68) -> 1 | AA58: =IF('2.Logbook'!AA68="","",'2.Logbook'!AA68) ->  | AB58: =IF('2.Logbook'!AB68="","",'2.Logbook'!AB68) ->  | AC58: =IF('2.Logbook'!AC68="","",'2.Logbook'!AC68) ->  | AD58: =IF('2.Logbook'!AD68="","",'2.Logbook'!AD68) ->  | AE58: =IF('2.Logbook'!AE68="","",'2.Logbook'!AE68) ->  | AF58: =IF('2.Logbook'!AF68="","",'2.Logbook'!AF68) ->  | AG58: =IF('2.Logbook'!AG68="","",'2.Logbook'!AG68) -> 
A59: =IF('2.Logbook'!A69="","",'2.Logbook'!A69) ->  | B59: =IF('2.Logbook'!B69="","",'2.Logbook'!B69) ->  | C59: =IF('2.Logbook'!C69="","",'2.Logbook'!C69) ->  | D59: =IF('2.Logbook'!D69="","",'2.Logbook'!D69) ->  | E59: =IF('2.Logbook'!E69="","",'2.Logbook'!E69) ->  | F59: =IF('2.Logbook'!F69="","",'2.Logbook'!F69) ->  | G59: =IF('2.Logbook'!G69="","",'2.Logbook'!G69) ->  | H59: =IF('2.Logbook'!H69="","",'2.Logbook'!H69) ->  | I59: =IF('2.Logbook'!I69="","",'2.Logbook'!I69) ->  | J59: =IF('2.Logbook'!J69="","",'2.Logbook'!J69) ->  | K59: =IF('2.Logbook'!K69="","",'2.Logbook'!K69) ->  | L59: =IF('2.Logbook'!L69="","",'2.Logbook'!L69) ->  | M59: =IF('2.Logbook'!M69="","",'2.Logbook'!M69) ->  | N59: =IF('2.Logbook'!N69="","",'2.Logbook'!N69) ->  | O59: =IF('2.Logbook'!O69="","",'2.Logbook'!O69) ->  | P59: =IF('2.Logbook'!P69="","",'2.Logbook'!P69) ->  | Q59: =IF('2.Logbook'!Q69="","",'2.Logbook'!Q69) ->  | R59: =IF('2.Logbook'!R69="","",'2.Logbook'!R69) ->  | S59: =IF('2.Logbook'!S69="","",'2.Logbook'!S69) ->  | T59: =IF('2.Logbook'!T69="","",'2.Logbook'!T69) ->  | U59: =IF('2.Logbook'!U69="","",'2.Logbook'!U69) ->  | V59: =IF('2.Logbook'!V69="","",'2.Logbook'!V69) ->  | W59: =IF('2.Logbook'!W69="","",'2.Logbook'!W69) ->  | X59: =IF('2.Logbook'!X69="","",'2.Logbook'!X69) -> ravil | Y59: =IF('2.Logbook'!Y69="","",'2.Logbook'!Y69) -> 1900-01-01 | Z59: =IF('2.Logbook'!Z69="","",'2.Logbook'!Z69) -> 1 | AA59: =IF('2.Logbook'!AA69="","",'2.Logbook'!AA69) ->  | AB59: =IF('2.Logbook'!AB69="","",'2.Logbook'!AB69) ->  | AC59: =IF('2.Logbook'!AC69="","",'2.Logbook'!AC69) ->  | AD59: =IF('2.Logbook'!AD69="","",'2.Logbook'!AD69) ->  | AE59: =IF('2.Logbook'!AE69="","",'2.Logbook'!AE69) ->  | AF59: =IF('2.Logbook'!AF69="","",'2.Logbook'!AF69) ->  | AG59: =IF('2.Logbook'!AG69="","",'2.Logbook'!AG69) -> 
A60: =IF('2.Logbook'!A70="","",'2.Logbook'!A70) -> 2020-06-14 | B60: =IF('2.Logbook'!B70="","",'2.Logbook'!B70) -> 17;30 | C60: =IF('2.Logbook'!C70="","",'2.Logbook'!C70) -> 0°42N | D60: =IF('2.Logbook'!D70="","",'2.Logbook'!D70) -> 4°32E | E60: =IF('2.Logbook'!E70="","",'2.Logbook'!E70) -> Sao Tome e Principe | F60: =IF('2.Logbook'!F70="","",'2.Logbook'!F70) -> 27 | G60: =IF('2.Logbook'!G70="","",'2.Logbook'!G70) -> 1900-06-18 | H60: =IF('2.Logbook'!H70="","",'2.Logbook'!H70) -> 10 | I60: =IF('2.Logbook'!I70="","",'2.Logbook'!I70) ->  | J60: =IF('2.Logbook'!J70="","",'2.Logbook'!J70) ->  | K60: =IF('2.Logbook'!K70="","",'2.Logbook'!K70) ->  | L60: =IF('2.Logbook'!L70="","",'2.Logbook'!L70) ->  | M60: =IF('2.Logbook'!M70="","",'2.Logbook'!M70) ->  | N60: =IF('2.Logbook'!N70="","",'2.Logbook'!N70) ->  | O60: =IF('2.Logbook'!O70="","",'2.Logbook'!O70) ->  | P60: =IF('2.Logbook'!P70="","",'2.Logbook'!P70) ->  | Q60: =IF('2.Logbook'!Q70="","",'2.Logbook'!Q70) ->  | R60: =IF('2.Logbook'!R70="","",'2.Logbook'!R70) ->  | S60: =IF('2.Logbook'!S70="","",'2.Logbook'!S70) ->  | T60: =IF('2.Logbook'!T70="","",'2.Logbook'!T70) ->  | U60: =IF('2.Logbook'!U70="","",'2.Logbook'!U70) ->  | V60: =IF('2.Logbook'!V70="","",'2.Logbook'!V70) ->  | W60: =IF('2.Logbook'!W70="","",'2.Logbook'!W70) ->  | X60: =IF('2.Logbook'!X70="","",'2.Logbook'!X70) ->  | Y60: =IF('2.Logbook'!Y70="","",'2.Logbook'!Y70) ->  | Z60: =IF('2.Logbook'!Z70="","",'2.Logbook'!Z70) ->  | AA60: =IF('2.Logbook'!AA70="","",'2.Logbook'!AA70) ->  | AB60: =IF('2.Logbook'!AB70="","",'2.Logbook'!AB70) ->  | AC60: =IF('2.Logbook'!AC70="","",'2.Logbook'!AC70) ->  | AD60: =IF('2.Logbook'!AD70="","",'2.Logbook'!AD70) ->  | AE60: =IF('2.Logbook'!AE70="","",'2.Logbook'!AE70) ->  | AF60: =IF('2.Logbook'!AF70="","",'2.Logbook'!AF70) ->  | AG60: =IF('2.Logbook'!AG70="","",'2.Logbook'!AG70) -> 
A61: =IF('2.Logbook'!A71="","",'2.Logbook'!A71) -> 2020-06-15 | B61: =IF('2.Logbook'!B71="","",'2.Logbook'!B71) -> 05:30:00 | C61: =IF('2.Logbook'!C71="","",'2.Logbook'!C71) -> 0°23N | D61: =IF('2.Logbook'!D71="","",'2.Logbook'!D71) -> 4°36E | E61: =IF('2.Logbook'!E71="","",'2.Logbook'!E71) -> Sao Tome e Principe | F61: =IF('2.Logbook'!F71="","",'2.Logbook'!F71) -> 26 | G61: =IF('2.Logbook'!G71="","",'2.Logbook'!G71) -> 1900-07-03 | H61: =IF('2.Logbook'!H71="","",'2.Logbook'!H71) -> 5 | I61: =IF('2.Logbook'!I71="","",'2.Logbook'!I71) ->  | J61: =IF('2.Logbook'!J71="","",'2.Logbook'!J71) ->  | K61: =IF('2.Logbook'!K71="","",'2.Logbook'!K71) ->  | L61: =IF('2.Logbook'!L71="","",'2.Logbook'!L71) ->  | M61: =IF('2.Logbook'!M71="","",'2.Logbook'!M71) ->  | N61: =IF('2.Logbook'!N71="","",'2.Logbook'!N71) ->  | O61: =IF('2.Logbook'!O71="","",'2.Logbook'!O71) ->  | P61: =IF('2.Logbook'!P71="","",'2.Logbook'!P71) ->  | Q61: =IF('2.Logbook'!Q71="","",'2.Logbook'!Q71) ->  | R61: =IF('2.Logbook'!R71="","",'2.Logbook'!R71) ->  | S61: =IF('2.Logbook'!S71="","",'2.Logbook'!S71) ->  | T61: =IF('2.Logbook'!T71="","",'2.Logbook'!T71) ->  | U61: =IF('2.Logbook'!U71="","",'2.Logbook'!U71) ->  | V61: =IF('2.Logbook'!V71="","",'2.Logbook'!V71) ->  | W61: =IF('2.Logbook'!W71="","",'2.Logbook'!W71) ->  | X61: =IF('2.Logbook'!X71="","",'2.Logbook'!X71) ->  | Y61: =IF('2.Logbook'!Y71="","",'2.Logbook'!Y71) ->  | Z61: =IF('2.Logbook'!Z71="","",'2.Logbook'!Z71) ->  | AA61: =IF('2.Logbook'!AA71="","",'2.Logbook'!AA71) ->  | AB61: =IF('2.Logbook'!AB71="","",'2.Logbook'!AB71) ->  | AC61: =IF('2.Logbook'!AC71="","",'2.Logbook'!AC71) ->  | AD61: =IF('2.Logbook'!AD71="","",'2.Logbook'!AD71) ->  | AE61: =IF('2.Logbook'!AE71="","",'2.Logbook'!AE71) ->  | AF61: =IF('2.Logbook'!AF71="","",'2.Logbook'!AF71) ->  | AG61: =IF('2.Logbook'!AG71="","",'2.Logbook'!AG71) -> 
A62: =IF('2.Logbook'!A72="","",'2.Logbook'!A72) -> 2020-06-15 | B62: =IF('2.Logbook'!B72="","",'2.Logbook'!B72) -> 16.32 | C62: =IF('2.Logbook'!C72="","",'2.Logbook'!C72) -> 0°44 S | D62: =IF('2.Logbook'!D72="","",'2.Logbook'!D72) -> 6°10 E | E62: =IF('2.Logbook'!E72="","",'2.Logbook'!E72) -> Sao Tome e Principe | F62: =IF('2.Logbook'!F72="","",'2.Logbook'!F72) -> 26 | G62: =IF('2.Logbook'!G72="","",'2.Logbook'!G72) -> 1900-06-28 | H62: =IF('2.Logbook'!H72="","",'2.Logbook'!H72) -> 5 | I62: =IF('2.Logbook'!I72="","",'2.Logbook'!I72) ->  | J62: =IF('2.Logbook'!J72="","",'2.Logbook'!J72) ->  | K62: =IF('2.Logbook'!K72="","",'2.Logbook'!K72) ->  | L62: =IF('2.Logbook'!L72="","",'2.Logbook'!L72) ->  | M62: =IF('2.Logbook'!M72="","",'2.Logbook'!M72) ->  | N62: =IF('2.Logbook'!N72="","",'2.Logbook'!N72) ->  | O62: =IF('2.Logbook'!O72="","",'2.Logbook'!O72) ->  | P62: =IF('2.Logbook'!P72="","",'2.Logbook'!P72) ->  | Q62: =IF('2.Logbook'!Q72="","",'2.Logbook'!Q72) ->  | R62: =IF('2.Logbook'!R72="","",'2.Logbook'!R72) ->  | S62: =IF('2.Logbook'!S72="","",'2.Logbook'!S72) ->  | T62: =IF('2.Logbook'!T72="","",'2.Logbook'!T72) ->  | U62: =IF('2.Logbook'!U72="","",'2.Logbook'!U72) ->  | V62: =IF('2.Logbook'!V72="","",'2.Logbook'!V72) ->  | W62: =IF('2.Logbook'!W72="","",'2.Logbook'!W72) ->  | X62: =IF('2.Logbook'!X72="","",'2.Logbook'!X72) ->  | Y62: =IF('2.Logbook'!Y72="","",'2.Logbook'!Y72) ->  | Z62: =IF('2.Logbook'!Z72="","",'2.Logbook'!Z72) ->  | AA62: =IF('2.Logbook'!AA72="","",'2.Logbook'!AA72) ->  | AB62: =IF('2.Logbook'!AB72="","",'2.Logbook'!AB72) ->  | AC62: =IF('2.Logbook'!AC72="","",'2.Logbook'!AC72) ->  | AD62: =IF('2.Logbook'!AD72="","",'2.Logbook'!AD72) ->  | AE62: =IF('2.Logbook'!AE72="","",'2.Logbook'!AE72) ->  | AF62: =IF('2.Logbook'!AF72="","",'2.Logbook'!AF72) ->  | AG62: =IF('2.Logbook'!AG72="","",'2.Logbook'!AG72) -> 
A63: =IF('2.Logbook'!A73="","",'2.Logbook'!A73) -> 2020-06-16 | B63: =IF('2.Logbook'!B73="","",'2.Logbook'!B73) -> 09:00:00 | C63: =IF('2.Logbook'!C73="","",'2.Logbook'!C73) -> 4°33 S | D63: =IF('2.Logbook'!D73="","",'2.Logbook'!D73) -> 6°58 E | E63: =IF('2.Logbook'!E73="","",'2.Logbook'!E73) -> Eaux internationales | F63: =IF('2.Logbook'!F73="","",'2.Logbook'!F73) -> 24 | G63: =IF('2.Logbook'!G73="","",'2.Logbook'!G73) -> 1900-07-16 | H63: =IF('2.Logbook'!H73="","",'2.Logbook'!H73) -> 5 | I63: =IF('2.Logbook'!I73="","",'2.Logbook'!I73) ->  | J63: =IF('2.Logbook'!J73="","",'2.Logbook'!J73) ->  | K63: =IF('2.Logbook'!K73="","",'2.Logbook'!K73) ->  | L63: =IF('2.Logbook'!L73="","",'2.Logbook'!L73) ->  | M63: =IF('2.Logbook'!M73="","",'2.Logbook'!M73) ->  | N63: =IF('2.Logbook'!N73="","",'2.Logbook'!N73) ->  | O63: =IF('2.Logbook'!O73="","",'2.Logbook'!O73) ->  | P63: =IF('2.Logbook'!P73="","",'2.Logbook'!P73) ->  | Q63: =IF('2.Logbook'!Q73="","",'2.Logbook'!Q73) ->  | R63: =IF('2.Logbook'!R73="","",'2.Logbook'!R73) ->  | S63: =IF('2.Logbook'!S73="","",'2.Logbook'!S73) ->  | T63: =IF('2.Logbook'!T73="","",'2.Logbook'!T73) ->  | U63: =IF('2.Logbook'!U73="","",'2.Logbook'!U73) ->  | V63: =IF('2.Logbook'!V73="","",'2.Logbook'!V73) ->  | W63: =IF('2.Logbook'!W73="","",'2.Logbook'!W73) ->  | X63: =IF('2.Logbook'!X73="","",'2.Logbook'!X73) ->  | Y63: =IF('2.Logbook'!Y73="","",'2.Logbook'!Y73) ->  | Z63: =IF('2.Logbook'!Z73="","",'2.Logbook'!Z73) ->  | AA63: =IF('2.Logbook'!AA73="","",'2.Logbook'!AA73) ->  | AB63: =IF('2.Logbook'!AB73="","",'2.Logbook'!AB73) ->  | AC63: =IF('2.Logbook'!AC73="","",'2.Logbook'!AC73) ->  | AD63: =IF('2.Logbook'!AD73="","",'2.Logbook'!AD73) ->  | AE63: =IF('2.Logbook'!AE73="","",'2.Logbook'!AE73) ->  | AF63: =IF('2.Logbook'!AF73="","",'2.Logbook'!AF73) ->  | AG63: =IF('2.Logbook'!AG73="","",'2.Logbook'!AG73) -> 
A64: =IF('2.Logbook'!A74="","",'2.Logbook'!A74) -> 2020-06-17 | B64: =IF('2.Logbook'!B74="","",'2.Logbook'!B74) -> 05:30:00 | C64: =IF('2.Logbook'!C74="","",'2.Logbook'!C74) -> 5°51 S | D64: =IF('2.Logbook'!D74="","",'2.Logbook'!D74) -> 6°56 E | E64: =IF('2.Logbook'!E74="","",'2.Logbook'!E74) -> Eaux internationales | F64: =IF('2.Logbook'!F74="","",'2.Logbook'!F74) -> 24 | G64: =IF('2.Logbook'!G74="","",'2.Logbook'!G74) -> 1900-07-13 | H64: =IF('2.Logbook'!H74="","",'2.Logbook'!H74) -> 5 | I64: =IF('2.Logbook'!I74="","",'2.Logbook'!I74) ->  | J64: =IF('2.Logbook'!J74="","",'2.Logbook'!J74) ->  | K64: =IF('2.Logbook'!K74="","",'2.Logbook'!K74) ->  | L64: =IF('2.Logbook'!L74="","",'2.Logbook'!L74) ->  | M64: =IF('2.Logbook'!M74="","",'2.Logbook'!M74) ->  | N64: =IF('2.Logbook'!N74="","",'2.Logbook'!N74) ->  | O64: =IF('2.Logbook'!O74="","",'2.Logbook'!O74) ->  | P64: =IF('2.Logbook'!P74="","",'2.Logbook'!P74) ->  | Q64: =IF('2.Logbook'!Q74="","",'2.Logbook'!Q74) ->  | R64: =IF('2.Logbook'!R74="","",'2.Logbook'!R74) ->  | S64: =IF('2.Logbook'!S74="","",'2.Logbook'!S74) ->  | T64: =IF('2.Logbook'!T74="","",'2.Logbook'!T74) ->  | U64: =IF('2.Logbook'!U74="","",'2.Logbook'!U74) ->  | V64: =IF('2.Logbook'!V74="","",'2.Logbook'!V74) ->  | W64: =IF('2.Logbook'!W74="","",'2.Logbook'!W74) ->  | X64: =IF('2.Logbook'!X74="","",'2.Logbook'!X74) ->  | Y64: =IF('2.Logbook'!Y74="","",'2.Logbook'!Y74) ->  | Z64: =IF('2.Logbook'!Z74="","",'2.Logbook'!Z74) ->  | AA64: =IF('2.Logbook'!AA74="","",'2.Logbook'!AA74) ->  | AB64: =IF('2.Logbook'!AB74="","",'2.Logbook'!AB74) ->  | AC64: =IF('2.Logbook'!AC74="","",'2.Logbook'!AC74) ->  | AD64: =IF('2.Logbook'!AD74="","",'2.Logbook'!AD74) ->  | AE64: =IF('2.Logbook'!AE74="","",'2.Logbook'!AE74) ->  | AF64: =IF('2.Logbook'!AF74="","",'2.Logbook'!AF74) ->  | AG64: =IF('2.Logbook'!AG74="","",'2.Logbook'!AG74) -> 
A65: =IF('2.Logbook'!A75="","",'2.Logbook'!A75) -> 2020-06-18 | B65: =IF('2.Logbook'!B75="","",'2.Logbook'!B75) -> 12:00:00 | C65: =IF('2.Logbook'!C75="","",'2.Logbook'!C75) -> 5°18 S | D65: =IF('2.Logbook'!D75="","",'2.Logbook'!D75) -> 1°45 E | E65: =IF('2.Logbook'!E75="","",'2.Logbook'!E75) -> Eaux internationales | F65: =IF('2.Logbook'!F75="","",'2.Logbook'!F75) -> 25 | G65: =IF('2.Logbook'!G75="","",'2.Logbook'!G75) -> 1900-06-20 | H65: =IF('2.Logbook'!H75="","",'2.Logbook'!H75) -> 15 | I65: =IF('2.Logbook'!I75="","",'2.Logbook'!I75) ->  | J65: =IF('2.Logbook'!J75="","",'2.Logbook'!J75) ->  | K65: =IF('2.Logbook'!K75="","",'2.Logbook'!K75) ->  | L65: =IF('2.Logbook'!L75="","",'2.Logbook'!L75) ->  | M65: =IF('2.Logbook'!M75="","",'2.Logbook'!M75) ->  | N65: =IF('2.Logbook'!N75="","",'2.Logbook'!N75) ->  | O65: =IF('2.Logbook'!O75="","",'2.Logbook'!O75) ->  | P65: =IF('2.Logbook'!P75="","",'2.Logbook'!P75) ->  | Q65: =IF('2.Logbook'!Q75="","",'2.Logbook'!Q75) ->  | R65: =IF('2.Logbook'!R75="","",'2.Logbook'!R75) ->  | S65: =IF('2.Logbook'!S75="","",'2.Logbook'!S75) ->  | T65: =IF('2.Logbook'!T75="","",'2.Logbook'!T75) ->  | U65: =IF('2.Logbook'!U75="","",'2.Logbook'!U75) ->  | V65: =IF('2.Logbook'!V75="","",'2.Logbook'!V75) ->  | W65: =IF('2.Logbook'!W75="","",'2.Logbook'!W75) ->  | X65: =IF('2.Logbook'!X75="","",'2.Logbook'!X75) ->  | Y65: =IF('2.Logbook'!Y75="","",'2.Logbook'!Y75) ->  | Z65: =IF('2.Logbook'!Z75="","",'2.Logbook'!Z75) ->  | AA65: =IF('2.Logbook'!AA75="","",'2.Logbook'!AA75) ->  | AB65: =IF('2.Logbook'!AB75="","",'2.Logbook'!AB75) ->  | AC65: =IF('2.Logbook'!AC75="","",'2.Logbook'!AC75) ->  | AD65: =IF('2.Logbook'!AD75="","",'2.Logbook'!AD75) ->  | AE65: =IF('2.Logbook'!AE75="","",'2.Logbook'!AE75) ->  | AF65: =IF('2.Logbook'!AF75="","",'2.Logbook'!AF75) ->  | AG65: =IF('2.Logbook'!AG75="","",'2.Logbook'!AG75) -> 
A66: =IF('2.Logbook'!A76="","",'2.Logbook'!A76) -> 2020-06-19 | B66: =IF('2.Logbook'!B76="","",'2.Logbook'!B76) -> 12:00:00 | C66: =IF('2.Logbook'!C76="","",'2.Logbook'!C76) -> 5°24 S | D66: =IF('2.Logbook'!D76="","",'2.Logbook'!D76) -> 0°32 W | E66: =IF('2.Logbook'!E76="","",'2.Logbook'!E76) -> Eaux internationales | F66: =IF('2.Logbook'!F76="","",'2.Logbook'!F76) -> 26 | G66: =IF('2.Logbook'!G76="","",'2.Logbook'!G76) -> 1900-06-13 | H66: =IF('2.Logbook'!H76="","",'2.Logbook'!H76) -> 10 | I66: =IF('2.Logbook'!I76="","",'2.Logbook'!I76) ->  | J66: =IF('2.Logbook'!J76="","",'2.Logbook'!J76) ->  | K66: =IF('2.Logbook'!K76="","",'2.Logbook'!K76) ->  | L66: =IF('2.Logbook'!L76="","",'2.Logbook'!L76) ->  | M66: =IF('2.Logbook'!M76="","",'2.Logbook'!M76) ->  | N66: =IF('2.Logbook'!N76="","",'2.Logbook'!N76) ->  | O66: =IF('2.Logbook'!O76="","",'2.Logbook'!O76) ->  | P66: =IF('2.Logbook'!P76="","",'2.Logbook'!P76) ->  | Q66: =IF('2.Logbook'!Q76="","",'2.Logbook'!Q76) ->  | R66: =IF('2.Logbook'!R76="","",'2.Logbook'!R76) ->  | S66: =IF('2.Logbook'!S76="","",'2.Logbook'!S76) ->  | T66: =IF('2.Logbook'!T76="","",'2.Logbook'!T76) ->  | U66: =IF('2.Logbook'!U76="","",'2.Logbook'!U76) ->  | V66: =IF('2.Logbook'!V76="","",'2.Logbook'!V76) ->  | W66: =IF('2.Logbook'!W76="","",'2.Logbook'!W76) ->  | X66: =IF('2.Logbook'!X76="","",'2.Logbook'!X76) ->  | Y66: =IF('2.Logbook'!Y76="","",'2.Logbook'!Y76) ->  | Z66: =IF('2.Logbook'!Z76="","",'2.Logbook'!Z76) ->  | AA66: =IF('2.Logbook'!AA76="","",'2.Logbook'!AA76) ->  | AB66: =IF('2.Logbook'!AB76="","",'2.Logbook'!AB76) ->  | AC66: =IF('2.Logbook'!AC76="","",'2.Logbook'!AC76) ->  | AD66: =IF('2.Logbook'!AD76="","",'2.Logbook'!AD76) ->  | AE66: =IF('2.Logbook'!AE76="","",'2.Logbook'!AE76) ->  | AF66: =IF('2.Logbook'!AF76="","",'2.Logbook'!AF76) ->  | AG66: =IF('2.Logbook'!AG76="","",'2.Logbook'!AG76) -> 
A67: =IF('2.Logbook'!A77="","",'2.Logbook'!A77) -> 2020-06-20 | B67: =IF('2.Logbook'!B77="","",'2.Logbook'!B77) -> 17:00:00 | C67: =IF('2.Logbook'!C77="","",'2.Logbook'!C77) -> 2°05 S | D67: =IF('2.Logbook'!D77="","",'2.Logbook'!D77) -> 1°24 E | E67: =IF('2.Logbook'!E77="","",'2.Logbook'!E77) -> Eaux internationales | F67: =IF('2.Logbook'!F77="","",'2.Logbook'!F77) -> 24 | G67: =IF('2.Logbook'!G77="","",'2.Logbook'!G77) -> 1900-07-06 | H67: =IF('2.Logbook'!H77="","",'2.Logbook'!H77) -> 5 | I67: =IF('2.Logbook'!I77="","",'2.Logbook'!I77) ->  | J67: =IF('2.Logbook'!J77="","",'2.Logbook'!J77) ->  | K67: =IF('2.Logbook'!K77="","",'2.Logbook'!K77) ->  | L67: =IF('2.Logbook'!L77="","",'2.Logbook'!L77) ->  | M67: =IF('2.Logbook'!M77="","",'2.Logbook'!M77) ->  | N67: =IF('2.Logbook'!N77="","",'2.Logbook'!N77) ->  | O67: =IF('2.Logbook'!O77="","",'2.Logbook'!O77) ->  | P67: =IF('2.Logbook'!P77="","",'2.Logbook'!P77) ->  | Q67: =IF('2.Logbook'!Q77="","",'2.Logbook'!Q77) ->  | R67: =IF('2.Logbook'!R77="","",'2.Logbook'!R77) ->  | S67: =IF('2.Logbook'!S77="","",'2.Logbook'!S77) ->  | T67: =IF('2.Logbook'!T77="","",'2.Logbook'!T77) ->  | U67: =IF('2.Logbook'!U77="","",'2.Logbook'!U77) ->  | V67: =IF('2.Logbook'!V77="","",'2.Logbook'!V77) ->  | W67: =IF('2.Logbook'!W77="","",'2.Logbook'!W77) ->  | X67: =IF('2.Logbook'!X77="","",'2.Logbook'!X77) ->  | Y67: =IF('2.Logbook'!Y77="","",'2.Logbook'!Y77) ->  | Z67: =IF('2.Logbook'!Z77="","",'2.Logbook'!Z77) ->  | AA67: =IF('2.Logbook'!AA77="","",'2.Logbook'!AA77) ->  | AB67: =IF('2.Logbook'!AB77="","",'2.Logbook'!AB77) ->  | AC67: =IF('2.Logbook'!AC77="","",'2.Logbook'!AC77) ->  | AD67: =IF('2.Logbook'!AD77="","",'2.Logbook'!AD77) ->  | AE67: =IF('2.Logbook'!AE77="","",'2.Logbook'!AE77) ->  | AF67: =IF('2.Logbook'!AF77="","",'2.Logbook'!AF77) ->  | AG67: =IF('2.Logbook'!AG77="","",'2.Logbook'!AG77) -> 
A68: =IF('2.Logbook'!A78="","",'2.Logbook'!A78) -> 2020-06-21 | B68: =IF('2.Logbook'!B78="","",'2.Logbook'!B78) -> 10:00:00 | C68: =IF('2.Logbook'!C78="","",'2.Logbook'!C78) -> 00°54N | D68: =IF('2.Logbook'!D78="","",'2.Logbook'!D78) -> 3°53 E | E68: =IF('2.Logbook'!E78="","",'2.Logbook'!E78) -> Sao Tome e Principe | F68: =IF('2.Logbook'!F78="","",'2.Logbook'!F78) -> 27 | G68: =IF('2.Logbook'!G78="","",'2.Logbook'!G78) -> 1900-07-11 | H68: =IF('2.Logbook'!H78="","",'2.Logbook'!H78) -> 15 | I68: =IF('2.Logbook'!I78="","",'2.Logbook'!I78) ->  | J68: =IF('2.Logbook'!J78="","",'2.Logbook'!J78) ->  | K68: =IF('2.Logbook'!K78="","",'2.Logbook'!K78) ->  | L68: =IF('2.Logbook'!L78="","",'2.Logbook'!L78) ->  | M68: =IF('2.Logbook'!M78="","",'2.Logbook'!M78) ->  | N68: =IF('2.Logbook'!N78="","",'2.Logbook'!N78) ->  | O68: =IF('2.Logbook'!O78="","",'2.Logbook'!O78) ->  | P68: =IF('2.Logbook'!P78="","",'2.Logbook'!P78) ->  | Q68: =IF('2.Logbook'!Q78="","",'2.Logbook'!Q78) ->  | R68: =IF('2.Logbook'!R78="","",'2.Logbook'!R78) ->  | S68: =IF('2.Logbook'!S78="","",'2.Logbook'!S78) ->  | T68: =IF('2.Logbook'!T78="","",'2.Logbook'!T78) ->  | U68: =IF('2.Logbook'!U78="","",'2.Logbook'!U78) ->  | V68: =IF('2.Logbook'!V78="","",'2.Logbook'!V78) ->  | W68: =IF('2.Logbook'!W78="","",'2.Logbook'!W78) ->  | X68: =IF('2.Logbook'!X78="","",'2.Logbook'!X78) ->  | Y68: =IF('2.Logbook'!Y78="","",'2.Logbook'!Y78) ->  | Z68: =IF('2.Logbook'!Z78="","",'2.Logbook'!Z78) ->  | AA68: =IF('2.Logbook'!AA78="","",'2.Logbook'!AA78) ->  | AB68: =IF('2.Logbook'!AB78="","",'2.Logbook'!AB78) ->  | AC68: =IF('2.Logbook'!AC78="","",'2.Logbook'!AC78) ->  | AD68: =IF('2.Logbook'!AD78="","",'2.Logbook'!AD78) ->  | AE68: =IF('2.Logbook'!AE78="","",'2.Logbook'!AE78) ->  | AF68: =IF('2.Logbook'!AF78="","",'2.Logbook'!AF78) ->  | AG68: =IF('2.Logbook'!AG78="","",'2.Logbook'!AG78) -> 
A69: =IF('2.Logbook'!A79="","",'2.Logbook'!A79) -> 2020-06-22 | B69: =IF('2.Logbook'!B79="","",'2.Logbook'!B79) -> 06:40:00 | C69: =IF('2.Logbook'!C79="","",'2.Logbook'!C79) -> 0°49 N | D69: =IF('2.Logbook'!D79="","",'2.Logbook'!D79) -> 003°36 E | E69: =IF('2.Logbook'!E79="","",'2.Logbook'!E79) -> Sao Tome e Principe | F69: =IF('2.Logbook'!F79="","",'2.Logbook'!F79) -> 27 | G69: =IF('2.Logbook'!G79="","",'2.Logbook'!G79) -> 1900-07-03 | H69: =IF('2.Logbook'!H79="","",'2.Logbook'!H79) -> 10 | I69: =IF('2.Logbook'!I79="","",'2.Logbook'!I79) -> 1900-01-01 | J69: =IF('2.Logbook'!J79="","",'2.Logbook'!J79) ->  | K69: =IF('2.Logbook'!K79="","",'2.Logbook'!K79) -> Banc Objet | L69: =IF('2.Logbook'!L79="","",'2.Logbook'!L79) ->  | M69: =IF('2.Logbook'!M79="","",'2.Logbook'!M79) ->  | N69: =IF('2.Logbook'!N79="","",'2.Logbook'!N79) -> 3,4 - 10 kg | O69: =IF('2.Logbook'!O79="","",'2.Logbook'!O79) -> 1900-01-01 | P69: =IF('2.Logbook'!P79="","",'2.Logbook'!P79) -> 1,8 - 3,4 kg | Q69: =IF('2.Logbook'!Q79="","",'2.Logbook'!Q79) -> 1900-02-19 | R69: =IF('2.Logbook'!R79="","",'2.Logbook'!R79) ->  | S69: =IF('2.Logbook'!S79="","",'2.Logbook'!S79) ->  | T69: =IF('2.Logbook'!T79="","",'2.Logbook'!T79) -> 3,4 - 10 kg | U69: =IF('2.Logbook'!U79="","",'2.Logbook'!U79) -> 1900-01-05 | V69: =IF('2.Logbook'!V79="","",'2.Logbook'!V79) ->  | W69: =IF('2.Logbook'!W79="","",'2.Logbook'!W79) ->  | X69: =IF('2.Logbook'!X79="","",'2.Logbook'!X79) -> Marlin | Y69: =IF('2.Logbook'!Y79="","",'2.Logbook'!Y79) -> 1900-04-09 | Z69: =IF('2.Logbook'!Z79="","",'2.Logbook'!Z79) -> 12:00:00 | AA69: =IF('2.Logbook'!AA79="","",'2.Logbook'!AA79) ->  | AB69: =IF('2.Logbook'!AB79="","",'2.Logbook'!AB79) ->  | AC69: =IF('2.Logbook'!AC79="","",'2.Logbook'!AC79) ->  | AD69: =IF('2.Logbook'!AD79="","",'2.Logbook'!AD79) ->  | AE69: =IF('2.Logbook'!AE79="","",'2.Logbook'!AE79) -> 1900-01-01 | AF69: =IF('2.Logbook'!AF79="","",'2.Logbook'!AF79) ->  | AG69: =IF('2.Logbook'!AG79="","",'2.Logbook'!AG79) -> 
A70: =IF('2.Logbook'!A80="","",'2.Logbook'!A80) -> 2020-06-22 | B70: =IF('2.Logbook'!B80="","",'2.Logbook'!B80) -> 06:40:00 | C70: =IF('2.Logbook'!C80="","",'2.Logbook'!C80) -> 0°49 N | D70: =IF('2.Logbook'!D80="","",'2.Logbook'!D80) -> 003°36 E | E70: =IF('2.Logbook'!E80="","",'2.Logbook'!E80) -> Sao Tome e Principe | F70: =IF('2.Logbook'!F80="","",'2.Logbook'!F80) ->  | G70: =IF('2.Logbook'!G80="","",'2.Logbook'!G80) ->  | H70: =IF('2.Logbook'!H80="","",'2.Logbook'!H80) ->  | I70: =IF('2.Logbook'!I80="","",'2.Logbook'!I80) ->  | J70: =IF('2.Logbook'!J80="","",'2.Logbook'!J80) ->  | K70: =IF('2.Logbook'!K80="","",'2.Logbook'!K80) ->  | L70: =IF('2.Logbook'!L80="","",'2.Logbook'!L80) ->  | M70: =IF('2.Logbook'!M80="","",'2.Logbook'!M80) ->  | N70: =IF('2.Logbook'!N80="","",'2.Logbook'!N80) ->  | O70: =IF('2.Logbook'!O80="","",'2.Logbook'!O80) ->  | P70: =IF('2.Logbook'!P80="","",'2.Logbook'!P80) -> < 1,8 kg | Q70: =IF('2.Logbook'!Q80="","",'2.Logbook'!Q80) -> 1900-01-14 | R70: =IF('2.Logbook'!R80="","",'2.Logbook'!R80) ->  | S70: =IF('2.Logbook'!S80="","",'2.Logbook'!S80) ->  | T70: =IF('2.Logbook'!T80="","",'2.Logbook'!T80) ->  | U70: =IF('2.Logbook'!U80="","",'2.Logbook'!U80) ->  | V70: =IF('2.Logbook'!V80="","",'2.Logbook'!V80) ->  | W70: =IF('2.Logbook'!W80="","",'2.Logbook'!W80) ->  | X70: =IF('2.Logbook'!X80="","",'2.Logbook'!X80) -> ravil | Y70: =IF('2.Logbook'!Y80="","",'2.Logbook'!Y80) -> 1900-01-01 | Z70: =IF('2.Logbook'!Z80="","",'2.Logbook'!Z80) -> 1 | AA70: =IF('2.Logbook'!AA80="","",'2.Logbook'!AA80) ->  | AB70: =IF('2.Logbook'!AB80="","",'2.Logbook'!AB80) ->  | AC70: =IF('2.Logbook'!AC80="","",'2.Logbook'!AC80) ->  | AD70: =IF('2.Logbook'!AD80="","",'2.Logbook'!AD80) ->  | AE70: =IF('2.Logbook'!AE80="","",'2.Logbook'!AE80) ->  | AF70: =IF('2.Logbook'!AF80="","",'2.Logbook'!AF80) ->  | AG70: =IF('2.Logbook'!AG80="","",'2.Logbook'!AG80) -> 
A71: =IF('2.Logbook'!A81="","",'2.Logbook'!A81) -> 2020-06-22 | B71: =IF('2.Logbook'!B81="","",'2.Logbook'!B81) -> 12:30:00 | C71: =IF('2.Logbook'!C81="","",'2.Logbook'!C81) -> 1°11 N | D71: =IF('2.Logbook'!D81="","",'2.Logbook'!D81) -> 3°24 E | E71: =IF('2.Logbook'!E81="","",'2.Logbook'!E81) -> Sao Tome e Principe | F71: =IF('2.Logbook'!F81="","",'2.Logbook'!F81) -> 27 | G71: =IF('2.Logbook'!G81="","",'2.Logbook'!G81) -> 1900-07-03 | H71: =IF('2.Logbook'!H81="","",'2.Logbook'!H81) -> 5 | I71: =IF('2.Logbook'!I81="","",'2.Logbook'!I81) ->  | J71: =IF('2.Logbook'!J81="","",'2.Logbook'!J81) ->  | K71: =IF('2.Logbook'!K81="","",'2.Logbook'!K81) ->  | L71: =IF('2.Logbook'!L81="","",'2.Logbook'!L81) ->  | M71: =IF('2.Logbook'!M81="","",'2.Logbook'!M81) ->  | N71: =IF('2.Logbook'!N81="","",'2.Logbook'!N81) ->  | O71: =IF('2.Logbook'!O81="","",'2.Logbook'!O81) ->  | P71: =IF('2.Logbook'!P81="","",'2.Logbook'!P81) ->  | Q71: =IF('2.Logbook'!Q81="","",'2.Logbook'!Q81) ->  | R71: =IF('2.Logbook'!R81="","",'2.Logbook'!R81) ->  | S71: =IF('2.Logbook'!S81="","",'2.Logbook'!S81) ->  | T71: =IF('2.Logbook'!T81="","",'2.Logbook'!T81) ->  | U71: =IF('2.Logbook'!U81="","",'2.Logbook'!U81) ->  | V71: =IF('2.Logbook'!V81="","",'2.Logbook'!V81) ->  | W71: =IF('2.Logbook'!W81="","",'2.Logbook'!W81) ->  | X71: =IF('2.Logbook'!X81="","",'2.Logbook'!X81) ->  | Y71: =IF('2.Logbook'!Y81="","",'2.Logbook'!Y81) ->  | Z71: =IF('2.Logbook'!Z81="","",'2.Logbook'!Z81) ->  | AA71: =IF('2.Logbook'!AA81="","",'2.Logbook'!AA81) ->  | AB71: =IF('2.Logbook'!AB81="","",'2.Logbook'!AB81) ->  | AC71: =IF('2.Logbook'!AC81="","",'2.Logbook'!AC81) ->  | AD71: =IF('2.Logbook'!AD81="","",'2.Logbook'!AD81) ->  | AE71: =IF('2.Logbook'!AE81="","",'2.Logbook'!AE81) ->  | AF71: =IF('2.Logbook'!AF81="","",'2.Logbook'!AF81) ->  | AG71: =IF('2.Logbook'!AG81="","",'2.Logbook'!AG81) -> 
A72: =IF('2.Logbook'!A82="","",'2.Logbook'!A82) -> 2020-06-22 | B72: =IF('2.Logbook'!B82="","",'2.Logbook'!B82) -> 14:12:00 | C72: =IF('2.Logbook'!C82="","",'2.Logbook'!C82) -> 1°17 N | D72: =IF('2.Logbook'!D82="","",'2.Logbook'!D82) -> 3°37 E | E72: =IF('2.Logbook'!E82="","",'2.Logbook'!E82) -> Sao Tome e Principe | F72: =IF('2.Logbook'!F82="","",'2.Logbook'!F82) -> 27 | G72: =IF('2.Logbook'!G82="","",'2.Logbook'!G82) -> 1900-07-03 | H72: =IF('2.Logbook'!H82="","",'2.Logbook'!H82) -> 5 | I72: =IF('2.Logbook'!I82="","",'2.Logbook'!I82) ->  | J72: =IF('2.Logbook'!J82="","",'2.Logbook'!J82) ->  | K72: =IF('2.Logbook'!K82="","",'2.Logbook'!K82) ->  | L72: =IF('2.Logbook'!L82="","",'2.Logbook'!L82) ->  | M72: =IF('2.Logbook'!M82="","",'2.Logbook'!M82) ->  | N72: =IF('2.Logbook'!N82="","",'2.Logbook'!N82) ->  | O72: =IF('2.Logbook'!O82="","",'2.Logbook'!O82) ->  | P72: =IF('2.Logbook'!P82="","",'2.Logbook'!P82) ->  | Q72: =IF('2.Logbook'!Q82="","",'2.Logbook'!Q82) ->  | R72: =IF('2.Logbook'!R82="","",'2.Logbook'!R82) ->  | S72: =IF('2.Logbook'!S82="","",'2.Logbook'!S82) ->  | T72: =IF('2.Logbook'!T82="","",'2.Logbook'!T82) ->  | U72: =IF('2.Logbook'!U82="","",'2.Logbook'!U82) ->  | V72: =IF('2.Logbook'!V82="","",'2.Logbook'!V82) ->  | W72: =IF('2.Logbook'!W82="","",'2.Logbook'!W82) ->  | X72: =IF('2.Logbook'!X82="","",'2.Logbook'!X82) ->  | Y72: =IF('2.Logbook'!Y82="","",'2.Logbook'!Y82) ->  | Z72: =IF('2.Logbook'!Z82="","",'2.Logbook'!Z82) ->  | AA72: =IF('2.Logbook'!AA82="","",'2.Logbook'!AA82) ->  | AB72: =IF('2.Logbook'!AB82="","",'2.Logbook'!AB82) ->  | AC72: =IF('2.Logbook'!AC82="","",'2.Logbook'!AC82) ->  | AD72: =IF('2.Logbook'!AD82="","",'2.Logbook'!AD82) ->  | AE72: =IF('2.Logbook'!AE82="","",'2.Logbook'!AE82) ->  | AF72: =IF('2.Logbook'!AF82="","",'2.Logbook'!AF82) ->  | AG72: =IF('2.Logbook'!AG82="","",'2.Logbook'!AG82) -> 
A73: =IF('2.Logbook'!A83="","",'2.Logbook'!A83) -> 2020-06-23 | B73: =IF('2.Logbook'!B83="","",'2.Logbook'!B83) -> 07:35:00 | C73: =IF('2.Logbook'!C83="","",'2.Logbook'!C83) -> 1°04 N | D73: =IF('2.Logbook'!D83="","",'2.Logbook'!D83) -> 3°45 E | E73: =IF('2.Logbook'!E83="","",'2.Logbook'!E83) -> Sao Tome e Principe | F73: =IF('2.Logbook'!F83="","",'2.Logbook'!F83) -> 27 | G73: =IF('2.Logbook'!G83="","",'2.Logbook'!G83) -> 1900-07-03 | H73: =IF('2.Logbook'!H83="","",'2.Logbook'!H83) -> 10 | I73: =IF('2.Logbook'!I83="","",'2.Logbook'!I83) -> 1900-01-01 | J73: =IF('2.Logbook'!J83="","",'2.Logbook'!J83) ->  | K73: =IF('2.Logbook'!K83="","",'2.Logbook'!K83) -> Banc Objet | L73: =IF('2.Logbook'!L83="","",'2.Logbook'!L83) ->  | M73: =IF('2.Logbook'!M83="","",'2.Logbook'!M83) ->  | N73: =IF('2.Logbook'!N83="","",'2.Logbook'!N83) -> 1,8 - 3,4 kg | O73: =IF('2.Logbook'!O83="","",'2.Logbook'!O83) -> 1900-01-01 | P73: =IF('2.Logbook'!P83="","",'2.Logbook'!P83) -> 1,8 - 3,4 kg | Q73: =IF('2.Logbook'!Q83="","",'2.Logbook'!Q83) -> 1900-01-12 | R73: =IF('2.Logbook'!R83="","",'2.Logbook'!R83) ->  | S73: =IF('2.Logbook'!S83="","",'2.Logbook'!S83) ->  | T73: =IF('2.Logbook'!T83="","",'2.Logbook'!T83) ->  | U73: =IF('2.Logbook'!U83="","",'2.Logbook'!U83) ->  | V73: =IF('2.Logbook'!V83="","",'2.Logbook'!V83) ->  | W73: =IF('2.Logbook'!W83="","",'2.Logbook'!W83) ->  | X73: =IF('2.Logbook'!X83="","",'2.Logbook'!X83) -> banane | Y73: =IF('2.Logbook'!Y83="","",'2.Logbook'!Y83) -> 1900-01-03 | Z73: =IF('2.Logbook'!Z83="","",'2.Logbook'!Z83) -> 1 | AA73: =IF('2.Logbook'!AA83="","",'2.Logbook'!AA83) ->  | AB73: =IF('2.Logbook'!AB83="","",'2.Logbook'!AB83) ->  | AC73: =IF('2.Logbook'!AC83="","",'2.Logbook'!AC83) ->  | AD73: =IF('2.Logbook'!AD83="","",'2.Logbook'!AD83) ->  | AE73: =IF('2.Logbook'!AE83="","",'2.Logbook'!AE83) -> 1900-01-01 | AF73: =IF('2.Logbook'!AF83="","",'2.Logbook'!AF83) ->  | AG73: =IF('2.Logbook'!AG83="","",'2.Logbook'!AG83) -> 
A74: =IF('2.Logbook'!A84="","",'2.Logbook'!A84) -> 2020-06-23 | B74: =IF('2.Logbook'!B84="","",'2.Logbook'!B84) -> 07:35:00 | C74: =IF('2.Logbook'!C84="","",'2.Logbook'!C84) -> 1°04 N | D74: =IF('2.Logbook'!D84="","",'2.Logbook'!D84) -> 3°45 E | E74: =IF('2.Logbook'!E84="","",'2.Logbook'!E84) -> Sao Tome e Principe | F74: =IF('2.Logbook'!F84="","",'2.Logbook'!F84) ->  | G74: =IF('2.Logbook'!G84="","",'2.Logbook'!G84) ->  | H74: =IF('2.Logbook'!H84="","",'2.Logbook'!H84) ->  | I74: =IF('2.Logbook'!I84="","",'2.Logbook'!I84) ->  | J74: =IF('2.Logbook'!J84="","",'2.Logbook'!J84) ->  | K74: =IF('2.Logbook'!K84="","",'2.Logbook'!K84) ->  | L74: =IF('2.Logbook'!L84="","",'2.Logbook'!L84) ->  | M74: =IF('2.Logbook'!M84="","",'2.Logbook'!M84) ->  | N74: =IF('2.Logbook'!N84="","",'2.Logbook'!N84) ->  | O74: =IF('2.Logbook'!O84="","",'2.Logbook'!O84) ->  | P74: =IF('2.Logbook'!P84="","",'2.Logbook'!P84) -> < 1,8 kg | Q74: =IF('2.Logbook'!Q84="","",'2.Logbook'!Q84) -> 1900-01-05 | R74: =IF('2.Logbook'!R84="","",'2.Logbook'!R84) ->  | S74: =IF('2.Logbook'!S84="","",'2.Logbook'!S84) ->  | T74: =IF('2.Logbook'!T84="","",'2.Logbook'!T84) ->  | U74: =IF('2.Logbook'!U84="","",'2.Logbook'!U84) ->  | V74: =IF('2.Logbook'!V84="","",'2.Logbook'!V84) ->  | W74: =IF('2.Logbook'!W84="","",'2.Logbook'!W84) ->  | X74: =IF('2.Logbook'!X84="","",'2.Logbook'!X84) ->  | Y74: =IF('2.Logbook'!Y84="","",'2.Logbook'!Y84) ->  | Z74: =IF('2.Logbook'!Z84="","",'2.Logbook'!Z84) ->  | AA74: =IF('2.Logbook'!AA84="","",'2.Logbook'!AA84) ->  | AB74: =IF('2.Logbook'!AB84="","",'2.Logbook'!AB84) ->  | AC74: =IF('2.Logbook'!AC84="","",'2.Logbook'!AC84) ->  | AD74: =IF('2.Logbook'!AD84="","",'2.Logbook'!AD84) ->  | AE74: =IF('2.Logbook'!AE84="","",'2.Logbook'!AE84) ->  | AF74: =IF('2.Logbook'!AF84="","",'2.Logbook'!AF84) ->  | AG74: =IF('2.Logbook'!AG84="","",'2.Logbook'!AG84) -> 
A75: =IF('2.Logbook'!A85="","",'2.Logbook'!A85) -> 2020-06-24 | B75: =IF('2.Logbook'!B85="","",'2.Logbook'!B85) -> 07:30:00 | C75: =IF('2.Logbook'!C85="","",'2.Logbook'!C85) -> 1°05 N | D75: =IF('2.Logbook'!D85="","",'2.Logbook'!D85) -> 4°16 E | E75: =IF('2.Logbook'!E85="","",'2.Logbook'!E85) -> Sao Tome e Principe | F75: =IF('2.Logbook'!F85="","",'2.Logbook'!F85) -> 27 | G75: =IF('2.Logbook'!G85="","",'2.Logbook'!G85) -> 1900-07-03 | H75: =IF('2.Logbook'!H85="","",'2.Logbook'!H85) -> 5 | I75: =IF('2.Logbook'!I85="","",'2.Logbook'!I85) ->  | J75: =IF('2.Logbook'!J85="","",'2.Logbook'!J85) ->  | K75: =IF('2.Logbook'!K85="","",'2.Logbook'!K85) ->  | L75: =IF('2.Logbook'!L85="","",'2.Logbook'!L85) ->  | M75: =IF('2.Logbook'!M85="","",'2.Logbook'!M85) ->  | N75: =IF('2.Logbook'!N85="","",'2.Logbook'!N85) ->  | O75: =IF('2.Logbook'!O85="","",'2.Logbook'!O85) ->  | P75: =IF('2.Logbook'!P85="","",'2.Logbook'!P85) ->  | Q75: =IF('2.Logbook'!Q85="","",'2.Logbook'!Q85) ->  | R75: =IF('2.Logbook'!R85="","",'2.Logbook'!R85) ->  | S75: =IF('2.Logbook'!S85="","",'2.Logbook'!S85) ->  | T75: =IF('2.Logbook'!T85="","",'2.Logbook'!T85) ->  | U75: =IF('2.Logbook'!U85="","",'2.Logbook'!U85) ->  | V75: =IF('2.Logbook'!V85="","",'2.Logbook'!V85) ->  | W75: =IF('2.Logbook'!W85="","",'2.Logbook'!W85) ->  | X75: =IF('2.Logbook'!X85="","",'2.Logbook'!X85) ->  | Y75: =IF('2.Logbook'!Y85="","",'2.Logbook'!Y85) ->  | Z75: =IF('2.Logbook'!Z85="","",'2.Logbook'!Z85) ->  | AA75: =IF('2.Logbook'!AA85="","",'2.Logbook'!AA85) ->  | AB75: =IF('2.Logbook'!AB85="","",'2.Logbook'!AB85) ->  | AC75: =IF('2.Logbook'!AC85="","",'2.Logbook'!AC85) ->  | AD75: =IF('2.Logbook'!AD85="","",'2.Logbook'!AD85) ->  | AE75: =IF('2.Logbook'!AE85="","",'2.Logbook'!AE85) ->  | AF75: =IF('2.Logbook'!AF85="","",'2.Logbook'!AF85) ->  | AG75: =IF('2.Logbook'!AG85="","",'2.Logbook'!AG85) -> 
A76: =IF('2.Logbook'!A86="","",'2.Logbook'!A86) -> 2020-06-25 | B76: =IF('2.Logbook'!B86="","",'2.Logbook'!B86) -> 07:22:00 | C76: =IF('2.Logbook'!C86="","",'2.Logbook'!C86) -> 1°04 N | D76: =IF('2.Logbook'!D86="","",'2.Logbook'!D86) -> 4°39 E | E76: =IF('2.Logbook'!E86="","",'2.Logbook'!E86) -> Sao Tome e Principe | F76: =IF('2.Logbook'!F86="","",'2.Logbook'!F86) -> 27 | G76: =IF('2.Logbook'!G86="","",'2.Logbook'!G86) -> 1900-07-08 | H76: =IF('2.Logbook'!H86="","",'2.Logbook'!H86) -> 10 | I76: =IF('2.Logbook'!I86="","",'2.Logbook'!I86) -> 1900-01-01 | J76: =IF('2.Logbook'!J86="","",'2.Logbook'!J86) ->  | K76: =IF('2.Logbook'!K86="","",'2.Logbook'!K86) -> Banc Libre | L76: =IF('2.Logbook'!L86="","",'2.Logbook'!L86) -> 40 - 60 kg | M76: =IF('2.Logbook'!M86="","",'2.Logbook'!M86) -> 1900-01-15 | N76: =IF('2.Logbook'!N86="","",'2.Logbook'!N86) ->  | O76: =IF('2.Logbook'!O86="","",'2.Logbook'!O86) ->  | P76: =IF('2.Logbook'!P86="","",'2.Logbook'!P86) ->  | Q76: =IF('2.Logbook'!Q86="","",'2.Logbook'!Q86) ->  | R76: =IF('2.Logbook'!R86="","",'2.Logbook'!R86) ->  | S76: =IF('2.Logbook'!S86="","",'2.Logbook'!S86) ->  | T76: =IF('2.Logbook'!T86="","",'2.Logbook'!T86) ->  | U76: =IF('2.Logbook'!U86="","",'2.Logbook'!U86) ->  | V76: =IF('2.Logbook'!V86="","",'2.Logbook'!V86) ->  | W76: =IF('2.Logbook'!W86="","",'2.Logbook'!W86) ->  | X76: =IF('2.Logbook'!X86="","",'2.Logbook'!X86) ->  | Y76: =IF('2.Logbook'!Y86="","",'2.Logbook'!Y86) ->  | Z76: =IF('2.Logbook'!Z86="","",'2.Logbook'!Z86) ->  | AA76: =IF('2.Logbook'!AA86="","",'2.Logbook'!AA86) ->  | AB76: =IF('2.Logbook'!AB86="","",'2.Logbook'!AB86) ->  | AC76: =IF('2.Logbook'!AC86="","",'2.Logbook'!AC86) ->  | AD76: =IF('2.Logbook'!AD86="","",'2.Logbook'!AD86) -> 1 | AE76: =IF('2.Logbook'!AE86="","",'2.Logbook'!AE86) ->  | AF76: =IF('2.Logbook'!AF86="","",'2.Logbook'!AF86) ->  | AG76: =IF('2.Logbook'!AG86="","",'2.Logbook'!AG86) -> 
A77: =IF('2.Logbook'!A87="","",'2.Logbook'!A87) -> 2020-06-25 | B77: =IF('2.Logbook'!B87="","",'2.Logbook'!B87) -> 10;14 | C77: =IF('2.Logbook'!C87="","",'2.Logbook'!C87) -> 1°08 N | D77: =IF('2.Logbook'!D87="","",'2.Logbook'!D87) -> 4°36 E | E77: =IF('2.Logbook'!E87="","",'2.Logbook'!E87) -> Sao Tome e Principe | F77: =IF('2.Logbook'!F87="","",'2.Logbook'!F87) -> 27 | G77: =IF('2.Logbook'!G87="","",'2.Logbook'!G87) -> 1900-07-08 | H77: =IF('2.Logbook'!H87="","",'2.Logbook'!H87) -> 10 | I77: =IF('2.Logbook'!I87="","",'2.Logbook'!I87) -> 1900-01-01 | J77: =IF('2.Logbook'!J87="","",'2.Logbook'!J87) ->  | K77: =IF('2.Logbook'!K87="","",'2.Logbook'!K87) ->  | L77: =IF('2.Logbook'!L87="","",'2.Logbook'!L87) ->  | M77: =IF('2.Logbook'!M87="","",'2.Logbook'!M87) ->  | N77: =IF('2.Logbook'!N87="","",'2.Logbook'!N87) ->  | O77: =IF('2.Logbook'!O87="","",'2.Logbook'!O87) ->  | P77: =IF('2.Logbook'!P87="","",'2.Logbook'!P87) -> 1,8 - 3,4 kg | Q77: =IF('2.Logbook'!Q87="","",'2.Logbook'!Q87) -> 1900-01-20 | R77: =IF('2.Logbook'!R87="","",'2.Logbook'!R87) ->  | S77: =IF('2.Logbook'!S87="","",'2.Logbook'!S87) ->  | T77: =IF('2.Logbook'!T87="","",'2.Logbook'!T87) -> 1,8 - 3,4 kg | U77: =IF('2.Logbook'!U87="","",'2.Logbook'!U87) -> 1900-01-03 | V77: =IF('2.Logbook'!V87="","",'2.Logbook'!V87) ->  | W77: =IF('2.Logbook'!W87="","",'2.Logbook'!W87) ->  | X77: =IF('2.Logbook'!X87="","",'2.Logbook'!X87) -> banane | Y77: =IF('2.Logbook'!Y87="","",'2.Logbook'!Y87) -> 1900-01-03 | Z77: =IF('2.Logbook'!Z87="","",'2.Logbook'!Z87) -> 1 | AA77: =IF('2.Logbook'!AA87="","",'2.Logbook'!AA87) ->  | AB77: =IF('2.Logbook'!AB87="","",'2.Logbook'!AB87) ->  | AC77: =IF('2.Logbook'!AC87="","",'2.Logbook'!AC87) ->  | AD77: =IF('2.Logbook'!AD87="","",'2.Logbook'!AD87) ->  | AE77: =IF('2.Logbook'!AE87="","",'2.Logbook'!AE87) -> 1900-01-01 | AF77: =IF('2.Logbook'!AF87="","",'2.Logbook'!AF87) ->  | AG77: =IF('2.Logbook'!AG87="","",'2.Logbook'!AG87) -> 
A78: =IF('2.Logbook'!A88="","",'2.Logbook'!A88) -> 2020-06-25 | B78: =IF('2.Logbook'!B88="","",'2.Logbook'!B88) -> 10;14 | C78: =IF('2.Logbook'!C88="","",'2.Logbook'!C88) -> 1°08 N | D78: =IF('2.Logbook'!D88="","",'2.Logbook'!D88) -> 4°36 E | E78: =IF('2.Logbook'!E88="","",'2.Logbook'!E88) -> Sao Tome e Principe | F78: =IF('2.Logbook'!F88="","",'2.Logbook'!F88) ->  | G78: =IF('2.Logbook'!G88="","",'2.Logbook'!G88) ->  | H78: =IF('2.Logbook'!H88="","",'2.Logbook'!H88) ->  | I78: =IF('2.Logbook'!I88="","",'2.Logbook'!I88) ->  | J78: =IF('2.Logbook'!J88="","",'2.Logbook'!J88) ->  | K78: =IF('2.Logbook'!K88="","",'2.Logbook'!K88) ->  | L78: =IF('2.Logbook'!L88="","",'2.Logbook'!L88) ->  | M78: =IF('2.Logbook'!M88="","",'2.Logbook'!M88) ->  | N78: =IF('2.Logbook'!N88="","",'2.Logbook'!N88) ->  | O78: =IF('2.Logbook'!O88="","",'2.Logbook'!O88) ->  | P78: =IF('2.Logbook'!P88="","",'2.Logbook'!P88) -> < 1,8 kg | Q78: =IF('2.Logbook'!Q88="","",'2.Logbook'!Q88) -> 1900-01-10 | R78: =IF('2.Logbook'!R88="","",'2.Logbook'!R88) ->  | S78: =IF('2.Logbook'!S88="","",'2.Logbook'!S88) ->  | T78: =IF('2.Logbook'!T88="","",'2.Logbook'!T88) -> 3,4 - 10 kg | U78: =IF('2.Logbook'!U88="","",'2.Logbook'!U88) -> 1900-01-07 | V78: =IF('2.Logbook'!V88="","",'2.Logbook'!V88) ->  | W78: =IF('2.Logbook'!W88="","",'2.Logbook'!W88) ->  | X78: =IF('2.Logbook'!X88="","",'2.Logbook'!X88) -> ravil | Y78: =IF('2.Logbook'!Y88="","",'2.Logbook'!Y88) -> 1900-01-01 | Z78: =IF('2.Logbook'!Z88="","",'2.Logbook'!Z88) -> 1 | AA78: =IF('2.Logbook'!AA88="","",'2.Logbook'!AA88) ->  | AB78: =IF('2.Logbook'!AB88="","",'2.Logbook'!AB88) ->  | AC78: =IF('2.Logbook'!AC88="","",'2.Logbook'!AC88) ->  | AD78: =IF('2.Logbook'!AD88="","",'2.Logbook'!AD88) ->  | AE78: =IF('2.Logbook'!AE88="","",'2.Logbook'!AE88) ->  | AF78: =IF('2.Logbook'!AF88="","",'2.Logbook'!AF88) ->  | AG78: =IF('2.Logbook'!AG88="","",'2.Logbook'!AG88) -> 
A79: =IF('2.Logbook'!A89="","",'2.Logbook'!A89) -> 2020-06-26 | B79: =IF('2.Logbook'!B89="","",'2.Logbook'!B89) -> 07:50:00 | C79: =IF('2.Logbook'!C89="","",'2.Logbook'!C89) -> 1°07 N | D79: =IF('2.Logbook'!D89="","",'2.Logbook'!D89) -> 4°25 E | E79: =IF('2.Logbook'!E89="","",'2.Logbook'!E89) -> Sao Tome e Principe | F79: =IF('2.Logbook'!F89="","",'2.Logbook'!F89) -> 27 | G79: =IF('2.Logbook'!G89="","",'2.Logbook'!G89) -> 1900-06-28 | H79: =IF('2.Logbook'!H89="","",'2.Logbook'!H89) -> 20 | I79: =IF('2.Logbook'!I89="","",'2.Logbook'!I89) -> 1900-01-01 | J79: =IF('2.Logbook'!J89="","",'2.Logbook'!J89) ->  | K79: =IF('2.Logbook'!K89="","",'2.Logbook'!K89) -> Banc Libre | L79: =IF('2.Logbook'!L89="","",'2.Logbook'!L89) -> > 60 kg | M79: =IF('2.Logbook'!M89="","",'2.Logbook'!M89) -> 1900-01-15 | N79: =IF('2.Logbook'!N89="","",'2.Logbook'!N89) ->  | O79: =IF('2.Logbook'!O89="","",'2.Logbook'!O89) ->  | P79: =IF('2.Logbook'!P89="","",'2.Logbook'!P89) ->  | Q79: =IF('2.Logbook'!Q89="","",'2.Logbook'!Q89) ->  | R79: =IF('2.Logbook'!R89="","",'2.Logbook'!R89) ->  | S79: =IF('2.Logbook'!S89="","",'2.Logbook'!S89) ->  | T79: =IF('2.Logbook'!T89="","",'2.Logbook'!T89) ->  | U79: =IF('2.Logbook'!U89="","",'2.Logbook'!U89) ->  | V79: =IF('2.Logbook'!V89="","",'2.Logbook'!V89) ->  | W79: =IF('2.Logbook'!W89="","",'2.Logbook'!W89) ->  | X79: =IF('2.Logbook'!X89="","",'2.Logbook'!X89) ->  | Y79: =IF('2.Logbook'!Y89="","",'2.Logbook'!Y89) ->  | Z79: =IF('2.Logbook'!Z89="","",'2.Logbook'!Z89) ->  | AA79: =IF('2.Logbook'!AA89="","",'2.Logbook'!AA89) ->  | AB79: =IF('2.Logbook'!AB89="","",'2.Logbook'!AB89) ->  | AC79: =IF('2.Logbook'!AC89="","",'2.Logbook'!AC89) ->  | AD79: =IF('2.Logbook'!AD89="","",'2.Logbook'!AD89) -> 1 | AE79: =IF('2.Logbook'!AE89="","",'2.Logbook'!AE89) ->  | AF79: =IF('2.Logbook'!AF89="","",'2.Logbook'!AF89) ->  | AG79: =IF('2.Logbook'!AG89="","",'2.Logbook'!AG89) -> 
A80: =IF('2.Logbook'!A90="","",'2.Logbook'!A90) -> 2020-06-26 | B80: =IF('2.Logbook'!B90="","",'2.Logbook'!B90) -> 11;40 | C80: =IF('2.Logbook'!C90="","",'2.Logbook'!C90) -> 1°10 N | D80: =IF('2.Logbook'!D90="","",'2.Logbook'!D90) -> 4°16 E | E80: =IF('2.Logbook'!E90="","",'2.Logbook'!E90) -> Sao Tome e Principe | F80: =IF('2.Logbook'!F90="","",'2.Logbook'!F90) -> 27 | G80: =IF('2.Logbook'!G90="","",'2.Logbook'!G90) -> 1900-06-28 | H80: =IF('2.Logbook'!H90="","",'2.Logbook'!H90) -> 20 | I80: =IF('2.Logbook'!I90="","",'2.Logbook'!I90) -> 1900-01-01 | J80: =IF('2.Logbook'!J90="","",'2.Logbook'!J90) ->  | K80: =IF('2.Logbook'!K90="","",'2.Logbook'!K90) -> Banc Libre | L80: =IF('2.Logbook'!L90="","",'2.Logbook'!L90) -> 40 - 60 kg | M80: =IF('2.Logbook'!M90="","",'2.Logbook'!M90) -> 1900-01-30 | N80: =IF('2.Logbook'!N90="","",'2.Logbook'!N90) ->  | O80: =IF('2.Logbook'!O90="","",'2.Logbook'!O90) ->  | P80: =IF('2.Logbook'!P90="","",'2.Logbook'!P90) ->  | Q80: =IF('2.Logbook'!Q90="","",'2.Logbook'!Q90) ->  | R80: =IF('2.Logbook'!R90="","",'2.Logbook'!R90) ->  | S80: =IF('2.Logbook'!S90="","",'2.Logbook'!S90) ->  | T80: =IF('2.Logbook'!T90="","",'2.Logbook'!T90) ->  | U80: =IF('2.Logbook'!U90="","",'2.Logbook'!U90) ->  | V80: =IF('2.Logbook'!V90="","",'2.Logbook'!V90) ->  | W80: =IF('2.Logbook'!W90="","",'2.Logbook'!W90) ->  | X80: =IF('2.Logbook'!X90="","",'2.Logbook'!X90) ->  | Y80: =IF('2.Logbook'!Y90="","",'2.Logbook'!Y90) ->  | Z80: =IF('2.Logbook'!Z90="","",'2.Logbook'!Z90) ->  | AA80: =IF('2.Logbook'!AA90="","",'2.Logbook'!AA90) ->  | AB80: =IF('2.Logbook'!AB90="","",'2.Logbook'!AB90) ->  | AC80: =IF('2.Logbook'!AC90="","",'2.Logbook'!AC90) ->  | AD80: =IF('2.Logbook'!AD90="","",'2.Logbook'!AD90) -> 1 | AE80: =IF('2.Logbook'!AE90="","",'2.Logbook'!AE90) ->  | AF80: =IF('2.Logbook'!AF90="","",'2.Logbook'!AF90) ->  | AG80: =IF('2.Logbook'!AG90="","",'2.Logbook'!AG90) -> 
A81: =IF('2.Logbook'!A91="","",'2.Logbook'!A91) -> 2020-06-27 | B81: =IF('2.Logbook'!B91="","",'2.Logbook'!B91) -> 08:25:00 | C81: =IF('2.Logbook'!C91="","",'2.Logbook'!C91) -> 1°18 N | D81: =IF('2.Logbook'!D91="","",'2.Logbook'!D91) -> 4°20 E | E81: =IF('2.Logbook'!E91="","",'2.Logbook'!E91) -> Sao Tome e Principe | F81: =IF('2.Logbook'!F91="","",'2.Logbook'!F91) -> 27 | G81: =IF('2.Logbook'!G91="","",'2.Logbook'!G91) -> 1900-06-28 | H81: =IF('2.Logbook'!H91="","",'2.Logbook'!H91) -> 15 | I81: =IF('2.Logbook'!I91="","",'2.Logbook'!I91) -> 1900-01-01 | J81: =IF('2.Logbook'!J91="","",'2.Logbook'!J91) ->  | K81: =IF('2.Logbook'!K91="","",'2.Logbook'!K91) -> Banc Libre | L81: =IF('2.Logbook'!L91="","",'2.Logbook'!L91) -> > 60 kg | M81: =IF('2.Logbook'!M91="","",'2.Logbook'!M91) -> 1900-01-17 | N81: =IF('2.Logbook'!N91="","",'2.Logbook'!N91) ->  | O81: =IF('2.Logbook'!O91="","",'2.Logbook'!O91) ->  | P81: =IF('2.Logbook'!P91="","",'2.Logbook'!P91) ->  | Q81: =IF('2.Logbook'!Q91="","",'2.Logbook'!Q91) ->  | R81: =IF('2.Logbook'!R91="","",'2.Logbook'!R91) ->  | S81: =IF('2.Logbook'!S91="","",'2.Logbook'!S91) ->  | T81: =IF('2.Logbook'!T91="","",'2.Logbook'!T91) ->  | U81: =IF('2.Logbook'!U91="","",'2.Logbook'!U91) ->  | V81: =IF('2.Logbook'!V91="","",'2.Logbook'!V91) ->  | W81: =IF('2.Logbook'!W91="","",'2.Logbook'!W91) ->  | X81: =IF('2.Logbook'!X91="","",'2.Logbook'!X91) ->  | Y81: =IF('2.Logbook'!Y91="","",'2.Logbook'!Y91) ->  | Z81: =IF('2.Logbook'!Z91="","",'2.Logbook'!Z91) ->  | AA81: =IF('2.Logbook'!AA91="","",'2.Logbook'!AA91) ->  | AB81: =IF('2.Logbook'!AB91="","",'2.Logbook'!AB91) ->  | AC81: =IF('2.Logbook'!AC91="","",'2.Logbook'!AC91) ->  | AD81: =IF('2.Logbook'!AD91="","",'2.Logbook'!AD91) -> 1 | AE81: =IF('2.Logbook'!AE91="","",'2.Logbook'!AE91) ->  | AF81: =IF('2.Logbook'!AF91="","",'2.Logbook'!AF91) ->  | AG81: =IF('2.Logbook'!AG91="","",'2.Logbook'!AG91) -> 
A82: =IF('2.Logbook'!A92="","",'2.Logbook'!A92) -> 2020-06-27 | B82: =IF('2.Logbook'!B92="","",'2.Logbook'!B92) -> 12:00:00 | C82: =IF('2.Logbook'!C92="","",'2.Logbook'!C92) -> 1°24 N | D82: =IF('2.Logbook'!D92="","",'2.Logbook'!D92) -> 4°17 E | E82: =IF('2.Logbook'!E92="","",'2.Logbook'!E92) -> Sao Tome e Principe | F82: =IF('2.Logbook'!F92="","",'2.Logbook'!F92) -> 27 | G82: =IF('2.Logbook'!G92="","",'2.Logbook'!G92) -> 1900-06-28 | H82: =IF('2.Logbook'!H92="","",'2.Logbook'!H92) -> 15 | I82: =IF('2.Logbook'!I92="","",'2.Logbook'!I92) -> 1900-01-01 | J82: =IF('2.Logbook'!J92="","",'2.Logbook'!J92) ->  | K82: =IF('2.Logbook'!K92="","",'2.Logbook'!K92) -> Banc Libre | L82: =IF('2.Logbook'!L92="","",'2.Logbook'!L92) -> > 60 kg | M82: =IF('2.Logbook'!M92="","",'2.Logbook'!M92) -> 1900-01-03 | N82: =IF('2.Logbook'!N92="","",'2.Logbook'!N92) ->  | O82: =IF('2.Logbook'!O92="","",'2.Logbook'!O92) ->  | P82: =IF('2.Logbook'!P92="","",'2.Logbook'!P92) ->  | Q82: =IF('2.Logbook'!Q92="","",'2.Logbook'!Q92) ->  | R82: =IF('2.Logbook'!R92="","",'2.Logbook'!R92) ->  | S82: =IF('2.Logbook'!S92="","",'2.Logbook'!S92) ->  | T82: =IF('2.Logbook'!T92="","",'2.Logbook'!T92) ->  | U82: =IF('2.Logbook'!U92="","",'2.Logbook'!U92) ->  | V82: =IF('2.Logbook'!V92="","",'2.Logbook'!V92) ->  | W82: =IF('2.Logbook'!W92="","",'2.Logbook'!W92) ->  | X82: =IF('2.Logbook'!X92="","",'2.Logbook'!X92) ->  | Y82: =IF('2.Logbook'!Y92="","",'2.Logbook'!Y92) ->  | Z82: =IF('2.Logbook'!Z92="","",'2.Logbook'!Z92) ->  | AA82: =IF('2.Logbook'!AA92="","",'2.Logbook'!AA92) ->  | AB82: =IF('2.Logbook'!AB92="","",'2.Logbook'!AB92) ->  | AC82: =IF('2.Logbook'!AC92="","",'2.Logbook'!AC92) ->  | AD82: =IF('2.Logbook'!AD92="","",'2.Logbook'!AD92) -> 1 | AE82: =IF('2.Logbook'!AE92="","",'2.Logbook'!AE92) ->  | AF82: =IF('2.Logbook'!AF92="","",'2.Logbook'!AF92) ->  | AG82: =IF('2.Logbook'!AG92="","",'2.Logbook'!AG92) -> 
A83: =IF('2.Logbook'!A93="","",'2.Logbook'!A93) -> 2020-06-27 | B83: =IF('2.Logbook'!B93="","",'2.Logbook'!B93) -> 14:50:00 | C83: =IF('2.Logbook'!C93="","",'2.Logbook'!C93) -> 1°12 N | D83: =IF('2.Logbook'!D93="","",'2.Logbook'!D93) -> 6°17 E | E83: =IF('2.Logbook'!E93="","",'2.Logbook'!E93) -> Sao Tome e Principe | F83: =IF('2.Logbook'!F93="","",'2.Logbook'!F93) -> 27 | G83: =IF('2.Logbook'!G93="","",'2.Logbook'!G93) -> 1900-06-28 | H83: =IF('2.Logbook'!H93="","",'2.Logbook'!H93) -> 10 | I83: =IF('2.Logbook'!I93="","",'2.Logbook'!I93) ->  | J83: =IF('2.Logbook'!J93="","",'2.Logbook'!J93) -> 00:00:00 | K83: =IF('2.Logbook'!K93="","",'2.Logbook'!K93) -> Banc Libre | L83: =IF('2.Logbook'!L93="","",'2.Logbook'!L93) ->  | M83: =IF('2.Logbook'!M93="","",'2.Logbook'!M93) ->  | N83: =IF('2.Logbook'!N93="","",'2.Logbook'!N93) ->  | O83: =IF('2.Logbook'!O93="","",'2.Logbook'!O93) ->  | P83: =IF('2.Logbook'!P93="","",'2.Logbook'!P93) ->  | Q83: =IF('2.Logbook'!Q93="","",'2.Logbook'!Q93) ->  | R83: =IF('2.Logbook'!R93="","",'2.Logbook'!R93) ->  | S83: =IF('2.Logbook'!S93="","",'2.Logbook'!S93) ->  | T83: =IF('2.Logbook'!T93="","",'2.Logbook'!T93) ->  | U83: =IF('2.Logbook'!U93="","",'2.Logbook'!U93) ->  | V83: =IF('2.Logbook'!V93="","",'2.Logbook'!V93) ->  | W83: =IF('2.Logbook'!W93="","",'2.Logbook'!W93) ->  | X83: =IF('2.Logbook'!X93="","",'2.Logbook'!X93) ->  | Y83: =IF('2.Logbook'!Y93="","",'2.Logbook'!Y93) ->  | Z83: =IF('2.Logbook'!Z93="","",'2.Logbook'!Z93) ->  | AA83: =IF('2.Logbook'!AA93="","",'2.Logbook'!AA93) ->  | AB83: =IF('2.Logbook'!AB93="","",'2.Logbook'!AB93) ->  | AC83: =IF('2.Logbook'!AC93="","",'2.Logbook'!AC93) ->  | AD83: =IF('2.Logbook'!AD93="","",'2.Logbook'!AD93) -> 1 | AE83: =IF('2.Logbook'!AE93="","",'2.Logbook'!AE93) ->  | AF83: =IF('2.Logbook'!AF93="","",'2.Logbook'!AF93) ->  | AG83: =IF('2.Logbook'!AG93="","",'2.Logbook'!AG93) -> 
A84: =IF('2.Logbook'!A94="","",'2.Logbook'!A94) -> 2020-06-27 | B84: =IF('2.Logbook'!B94="","",'2.Logbook'!B94) -> 17:13:00 | C84: =IF('2.Logbook'!C94="","",'2.Logbook'!C94) -> 1°22 N | D84: =IF('2.Logbook'!D94="","",'2.Logbook'!D94) -> 4°17 E | E84: =IF('2.Logbook'!E94="","",'2.Logbook'!E94) -> Sao Tome e Principe | F84: =IF('2.Logbook'!F94="","",'2.Logbook'!F94) -> 27 | G84: =IF('2.Logbook'!G94="","",'2.Logbook'!G94) -> 1900-06-28 | H84: =IF('2.Logbook'!H94="","",'2.Logbook'!H94) -> 10 | I84: =IF('2.Logbook'!I94="","",'2.Logbook'!I94) ->  | J84: =IF('2.Logbook'!J94="","",'2.Logbook'!J94) -> 00:00:00 | K84: =IF('2.Logbook'!K94="","",'2.Logbook'!K94) -> Banc Libre | L84: =IF('2.Logbook'!L94="","",'2.Logbook'!L94) ->  | M84: =IF('2.Logbook'!M94="","",'2.Logbook'!M94) ->  | N84: =IF('2.Logbook'!N94="","",'2.Logbook'!N94) ->  | O84: =IF('2.Logbook'!O94="","",'2.Logbook'!O94) ->  | P84: =IF('2.Logbook'!P94="","",'2.Logbook'!P94) ->  | Q84: =IF('2.Logbook'!Q94="","",'2.Logbook'!Q94) ->  | R84: =IF('2.Logbook'!R94="","",'2.Logbook'!R94) ->  | S84: =IF('2.Logbook'!S94="","",'2.Logbook'!S94) ->  | T84: =IF('2.Logbook'!T94="","",'2.Logbook'!T94) ->  | U84: =IF('2.Logbook'!U94="","",'2.Logbook'!U94) ->  | V84: =IF('2.Logbook'!V94="","",'2.Logbook'!V94) ->  | W84: =IF('2.Logbook'!W94="","",'2.Logbook'!W94) ->  | X84: =IF('2.Logbook'!X94="","",'2.Logbook'!X94) ->  | Y84: =IF('2.Logbook'!Y94="","",'2.Logbook'!Y94) ->  | Z84: =IF('2.Logbook'!Z94="","",'2.Logbook'!Z94) ->  | AA84: =IF('2.Logbook'!AA94="","",'2.Logbook'!AA94) ->  | AB84: =IF('2.Logbook'!AB94="","",'2.Logbook'!AB94) ->  | AC84: =IF('2.Logbook'!AC94="","",'2.Logbook'!AC94) ->  | AD84: =IF('2.Logbook'!AD94="","",'2.Logbook'!AD94) -> 1 | AE84: =IF('2.Logbook'!AE94="","",'2.Logbook'!AE94) ->  | AF84: =IF('2.Logbook'!AF94="","",'2.Logbook'!AF94) ->  | AG84: =IF('2.Logbook'!AG94="","",'2.Logbook'!AG94) -> 
A85: =IF('2.Logbook'!A95="","",'2.Logbook'!A95) -> 2020-06-28 | B85: =IF('2.Logbook'!B95="","",'2.Logbook'!B95) -> 07:45:00 | C85: =IF('2.Logbook'!C95="","",'2.Logbook'!C95) -> 1°04 N | D85: =IF('2.Logbook'!D95="","",'2.Logbook'!D95) -> 05°03 E | E85: =IF('2.Logbook'!E95="","",'2.Logbook'!E95) -> Sao Tome e Principe | F85: =IF('2.Logbook'!F95="","",'2.Logbook'!F95) -> 27 | G85: =IF('2.Logbook'!G95="","",'2.Logbook'!G95) -> 1900-08-17 | H85: =IF('2.Logbook'!H95="","",'2.Logbook'!H95) -> 5 | I85: =IF('2.Logbook'!I95="","",'2.Logbook'!I95) ->  | J85: =IF('2.Logbook'!J95="","",'2.Logbook'!J95) ->  | K85: =IF('2.Logbook'!K95="","",'2.Logbook'!K95) ->  | L85: =IF('2.Logbook'!L95="","",'2.Logbook'!L95) ->  | M85: =IF('2.Logbook'!M95="","",'2.Logbook'!M95) ->  | N85: =IF('2.Logbook'!N95="","",'2.Logbook'!N95) ->  | O85: =IF('2.Logbook'!O95="","",'2.Logbook'!O95) ->  | P85: =IF('2.Logbook'!P95="","",'2.Logbook'!P95) ->  | Q85: =IF('2.Logbook'!Q95="","",'2.Logbook'!Q95) ->  | R85: =IF('2.Logbook'!R95="","",'2.Logbook'!R95) ->  | S85: =IF('2.Logbook'!S95="","",'2.Logbook'!S95) ->  | T85: =IF('2.Logbook'!T95="","",'2.Logbook'!T95) ->  | U85: =IF('2.Logbook'!U95="","",'2.Logbook'!U95) ->  | V85: =IF('2.Logbook'!V95="","",'2.Logbook'!V95) ->  | W85: =IF('2.Logbook'!W95="","",'2.Logbook'!W95) ->  | X85: =IF('2.Logbook'!X95="","",'2.Logbook'!X95) ->  | Y85: =IF('2.Logbook'!Y95="","",'2.Logbook'!Y95) ->  | Z85: =IF('2.Logbook'!Z95="","",'2.Logbook'!Z95) ->  | AA85: =IF('2.Logbook'!AA95="","",'2.Logbook'!AA95) ->  | AB85: =IF('2.Logbook'!AB95="","",'2.Logbook'!AB95) ->  | AC85: =IF('2.Logbook'!AC95="","",'2.Logbook'!AC95) ->  | AD85: =IF('2.Logbook'!AD95="","",'2.Logbook'!AD95) ->  | AE85: =IF('2.Logbook'!AE95="","",'2.Logbook'!AE95) ->  | AF85: =IF('2.Logbook'!AF95="","",'2.Logbook'!AF95) ->  | AG85: =IF('2.Logbook'!AG95="","",'2.Logbook'!AG95) -> 
A86: =IF('2.Logbook'!A96="","",'2.Logbook'!A96) -> 2020-06-28 | B86: =IF('2.Logbook'!B96="","",'2.Logbook'!B96) -> 08:40:00 | C86: =IF('2.Logbook'!C96="","",'2.Logbook'!C96) -> 0°54 N | D86: =IF('2.Logbook'!D96="","",'2.Logbook'!D96) -> 5°05 E | E86: =IF('2.Logbook'!E96="","",'2.Logbook'!E96) -> Sao Tome e Principe | F86: =IF('2.Logbook'!F96="","",'2.Logbook'!F96) -> 27 | G86: =IF('2.Logbook'!G96="","",'2.Logbook'!G96) -> 1900-07-18 | H86: =IF('2.Logbook'!H96="","",'2.Logbook'!H96) -> 5 | I86: =IF('2.Logbook'!I96="","",'2.Logbook'!I96) ->  | J86: =IF('2.Logbook'!J96="","",'2.Logbook'!J96) ->  | K86: =IF('2.Logbook'!K96="","",'2.Logbook'!K96) ->  | L86: =IF('2.Logbook'!L96="","",'2.Logbook'!L96) ->  | M86: =IF('2.Logbook'!M96="","",'2.Logbook'!M96) ->  | N86: =IF('2.Logbook'!N96="","",'2.Logbook'!N96) ->  | O86: =IF('2.Logbook'!O96="","",'2.Logbook'!O96) ->  | P86: =IF('2.Logbook'!P96="","",'2.Logbook'!P96) ->  | Q86: =IF('2.Logbook'!Q96="","",'2.Logbook'!Q96) ->  | R86: =IF('2.Logbook'!R96="","",'2.Logbook'!R96) ->  | S86: =IF('2.Logbook'!S96="","",'2.Logbook'!S96) ->  | T86: =IF('2.Logbook'!T96="","",'2.Logbook'!T96) ->  | U86: =IF('2.Logbook'!U96="","",'2.Logbook'!U96) ->  | V86: =IF('2.Logbook'!V96="","",'2.Logbook'!V96) ->  | W86: =IF('2.Logbook'!W96="","",'2.Logbook'!W96) ->  | X86: =IF('2.Logbook'!X96="","",'2.Logbook'!X96) ->  | Y86: =IF('2.Logbook'!Y96="","",'2.Logbook'!Y96) ->  | Z86: =IF('2.Logbook'!Z96="","",'2.Logbook'!Z96) ->  | AA86: =IF('2.Logbook'!AA96="","",'2.Logbook'!AA96) ->  | AB86: =IF('2.Logbook'!AB96="","",'2.Logbook'!AB96) ->  | AC86: =IF('2.Logbook'!AC96="","",'2.Logbook'!AC96) ->  | AD86: =IF('2.Logbook'!AD96="","",'2.Logbook'!AD96) ->  | AE86: =IF('2.Logbook'!AE96="","",'2.Logbook'!AE96) ->  | AF86: =IF('2.Logbook'!AF96="","",'2.Logbook'!AF96) ->  | AG86: =IF('2.Logbook'!AG96="","",'2.Logbook'!AG96) -> 
A87: =IF('2.Logbook'!A97="","",'2.Logbook'!A97) -> 2020-06-29 | B87: =IF('2.Logbook'!B97="","",'2.Logbook'!B97) -> 9;40 | C87: =IF('2.Logbook'!C97="","",'2.Logbook'!C97) -> 1°23 N | D87: =IF('2.Logbook'!D97="","",'2.Logbook'!D97) -> 3°44 E | E87: =IF('2.Logbook'!E97="","",'2.Logbook'!E97) -> Sao Tome e Principe | F87: =IF('2.Logbook'!F97="","",'2.Logbook'!F97) -> 27 | G87: =IF('2.Logbook'!G97="","",'2.Logbook'!G97) -> 1900-07-08 | H87: =IF('2.Logbook'!H97="","",'2.Logbook'!H97) -> 10 | I87: =IF('2.Logbook'!I97="","",'2.Logbook'!I97) -> 1900-01-01 | J87: =IF('2.Logbook'!J97="","",'2.Logbook'!J97) ->  | K87: =IF('2.Logbook'!K97="","",'2.Logbook'!K97) -> Banc Libre | L87: =IF('2.Logbook'!L97="","",'2.Logbook'!L97) -> > 60 kg | M87: =IF('2.Logbook'!M97="","",'2.Logbook'!M97) -> 1900-01-19 | N87: =IF('2.Logbook'!N97="","",'2.Logbook'!N97) ->  | O87: =IF('2.Logbook'!O97="","",'2.Logbook'!O97) ->  | P87: =IF('2.Logbook'!P97="","",'2.Logbook'!P97) ->  | Q87: =IF('2.Logbook'!Q97="","",'2.Logbook'!Q97) ->  | R87: =IF('2.Logbook'!R97="","",'2.Logbook'!R97) ->  | S87: =IF('2.Logbook'!S97="","",'2.Logbook'!S97) ->  | T87: =IF('2.Logbook'!T97="","",'2.Logbook'!T97) ->  | U87: =IF('2.Logbook'!U97="","",'2.Logbook'!U97) ->  | V87: =IF('2.Logbook'!V97="","",'2.Logbook'!V97) ->  | W87: =IF('2.Logbook'!W97="","",'2.Logbook'!W97) ->  | X87: =IF('2.Logbook'!X97="","",'2.Logbook'!X97) ->  | Y87: =IF('2.Logbook'!Y97="","",'2.Logbook'!Y97) ->  | Z87: =IF('2.Logbook'!Z97="","",'2.Logbook'!Z97) ->  | AA87: =IF('2.Logbook'!AA97="","",'2.Logbook'!AA97) ->  | AB87: =IF('2.Logbook'!AB97="","",'2.Logbook'!AB97) ->  | AC87: =IF('2.Logbook'!AC97="","",'2.Logbook'!AC97) ->  | AD87: =IF('2.Logbook'!AD97="","",'2.Logbook'!AD97) -> 1 | AE87: =IF('2.Logbook'!AE97="","",'2.Logbook'!AE97) ->  | AF87: =IF('2.Logbook'!AF97="","",'2.Logbook'!AF97) ->  | AG87: =IF('2.Logbook'!AG97="","",'2.Logbook'!AG97) -> 
A88: =IF('2.Logbook'!A98="","",'2.Logbook'!A98) -> 2020-06-29 | B88: =IF('2.Logbook'!B98="","",'2.Logbook'!B98) -> 13:15:00 | C88: =IF('2.Logbook'!C98="","",'2.Logbook'!C98) -> 1°27 N | D88: =IF('2.Logbook'!D98="","",'2.Logbook'!D98) -> 3°46 E | E88: =IF('2.Logbook'!E98="","",'2.Logbook'!E98) -> Sao Tome e Principe | F88: =IF('2.Logbook'!F98="","",'2.Logbook'!F98) -> 27 | G88: =IF('2.Logbook'!G98="","",'2.Logbook'!G98) -> 1900-07-08 | H88: =IF('2.Logbook'!H98="","",'2.Logbook'!H98) -> 10 | I88: =IF('2.Logbook'!I98="","",'2.Logbook'!I98) -> 1900-01-01 | J88: =IF('2.Logbook'!J98="","",'2.Logbook'!J98) ->  | K88: =IF('2.Logbook'!K98="","",'2.Logbook'!K98) -> Banc Libre | L88: =IF('2.Logbook'!L98="","",'2.Logbook'!L98) -> > 60 kg | M88: =IF('2.Logbook'!M98="","",'2.Logbook'!M98) -> 1900-01-05 | N88: =IF('2.Logbook'!N98="","",'2.Logbook'!N98) ->  | O88: =IF('2.Logbook'!O98="","",'2.Logbook'!O98) ->  | P88: =IF('2.Logbook'!P98="","",'2.Logbook'!P98) ->  | Q88: =IF('2.Logbook'!Q98="","",'2.Logbook'!Q98) ->  | R88: =IF('2.Logbook'!R98="","",'2.Logbook'!R98) ->  | S88: =IF('2.Logbook'!S98="","",'2.Logbook'!S98) ->  | T88: =IF('2.Logbook'!T98="","",'2.Logbook'!T98) ->  | U88: =IF('2.Logbook'!U98="","",'2.Logbook'!U98) ->  | V88: =IF('2.Logbook'!V98="","",'2.Logbook'!V98) ->  | W88: =IF('2.Logbook'!W98="","",'2.Logbook'!W98) ->  | X88: =IF('2.Logbook'!X98="","",'2.Logbook'!X98) ->  | Y88: =IF('2.Logbook'!Y98="","",'2.Logbook'!Y98) ->  | Z88: =IF('2.Logbook'!Z98="","",'2.Logbook'!Z98) ->  | AA88: =IF('2.Logbook'!AA98="","",'2.Logbook'!AA98) ->  | AB88: =IF('2.Logbook'!AB98="","",'2.Logbook'!AB98) ->  | AC88: =IF('2.Logbook'!AC98="","",'2.Logbook'!AC98) ->  | AD88: =IF('2.Logbook'!AD98="","",'2.Logbook'!AD98) -> 1 | AE88: =IF('2.Logbook'!AE98="","",'2.Logbook'!AE98) ->  | AF88: =IF('2.Logbook'!AF98="","",'2.Logbook'!AF98) ->  | AG88: =IF('2.Logbook'!AG98="","",'2.Logbook'!AG98) -> 
A89: =IF('2.Logbook'!A99="","",'2.Logbook'!A99) -> 2020-06-30 | B89: =IF('2.Logbook'!B99="","",'2.Logbook'!B99) -> 07:40:00 | C89: =IF('2.Logbook'!C99="","",'2.Logbook'!C99) -> 1°02 N | D89: =IF('2.Logbook'!D99="","",'2.Logbook'!D99) -> 3°46 E | E89: =IF('2.Logbook'!E99="","",'2.Logbook'!E99) -> Sao Tome e Principe | F89: =IF('2.Logbook'!F99="","",'2.Logbook'!F99) -> 27 | G89: =IF('2.Logbook'!G99="","",'2.Logbook'!G99) -> 1900-07-03 | H89: =IF('2.Logbook'!H99="","",'2.Logbook'!H99) -> 5 | I89: =IF('2.Logbook'!I99="","",'2.Logbook'!I99) -> 1900-01-01 | J89: =IF('2.Logbook'!J99="","",'2.Logbook'!J99) ->  | K89: =IF('2.Logbook'!K99="","",'2.Logbook'!K99) -> Banc Libre | L89: =IF('2.Logbook'!L99="","",'2.Logbook'!L99) -> > 60 kg | M89: =IF('2.Logbook'!M99="","",'2.Logbook'!M99) -> 1900-01-02 | N89: =IF('2.Logbook'!N99="","",'2.Logbook'!N99) ->  | O89: =IF('2.Logbook'!O99="","",'2.Logbook'!O99) ->  | P89: =IF('2.Logbook'!P99="","",'2.Logbook'!P99) ->  | Q89: =IF('2.Logbook'!Q99="","",'2.Logbook'!Q99) ->  | R89: =IF('2.Logbook'!R99="","",'2.Logbook'!R99) ->  | S89: =IF('2.Logbook'!S99="","",'2.Logbook'!S99) ->  | T89: =IF('2.Logbook'!T99="","",'2.Logbook'!T99) ->  | U89: =IF('2.Logbook'!U99="","",'2.Logbook'!U99) ->  | V89: =IF('2.Logbook'!V99="","",'2.Logbook'!V99) ->  | W89: =IF('2.Logbook'!W99="","",'2.Logbook'!W99) ->  | X89: =IF('2.Logbook'!X99="","",'2.Logbook'!X99) ->  | Y89: =IF('2.Logbook'!Y99="","",'2.Logbook'!Y99) ->  | Z89: =IF('2.Logbook'!Z99="","",'2.Logbook'!Z99) ->  | AA89: =IF('2.Logbook'!AA99="","",'2.Logbook'!AA99) ->  | AB89: =IF('2.Logbook'!AB99="","",'2.Logbook'!AB99) ->  | AC89: =IF('2.Logbook'!AC99="","",'2.Logbook'!AC99) ->  | AD89: =IF('2.Logbook'!AD99="","",'2.Logbook'!AD99) -> 1 | AE89: =IF('2.Logbook'!AE99="","",'2.Logbook'!AE99) ->  | AF89: =IF('2.Logbook'!AF99="","",'2.Logbook'!AF99) ->  | AG89: =IF('2.Logbook'!AG99="","",'2.Logbook'!AG99) -> 
A90: =IF('2.Logbook'!A100="","",'2.Logbook'!A100) -> 2020-06-30 | B90: =IF('2.Logbook'!B100="","",'2.Logbook'!B100) -> 10;30 | C90: =IF('2.Logbook'!C100="","",'2.Logbook'!C100) -> 1°04 N | D90: =IF('2.Logbook'!D100="","",'2.Logbook'!D100) -> 3°47 E | E90: =IF('2.Logbook'!E100="","",'2.Logbook'!E100) -> Sao Tome e Principe | F90: =IF('2.Logbook'!F100="","",'2.Logbook'!F100) -> 27 | G90: =IF('2.Logbook'!G100="","",'2.Logbook'!G100) -> 1900-07-03 | H90: =IF('2.Logbook'!H100="","",'2.Logbook'!H100) -> 5 | I90: =IF('2.Logbook'!I100="","",'2.Logbook'!I100) -> 1900-01-01 | J90: =IF('2.Logbook'!J100="","",'2.Logbook'!J100) ->  | K90: =IF('2.Logbook'!K100="","",'2.Logbook'!K100) -> Banc Libre | L90: =IF('2.Logbook'!L100="","",'2.Logbook'!L100) -> > 60 kg | M90: =IF('2.Logbook'!M100="","",'2.Logbook'!M100) -> 1900-03-08 | N90: =IF('2.Logbook'!N100="","",'2.Logbook'!N100) ->  | O90: =IF('2.Logbook'!O100="","",'2.Logbook'!O100) ->  | P90: =IF('2.Logbook'!P100="","",'2.Logbook'!P100) ->  | Q90: =IF('2.Logbook'!Q100="","",'2.Logbook'!Q100) ->  | R90: =IF('2.Logbook'!R100="","",'2.Logbook'!R100) ->  | S90: =IF('2.Logbook'!S100="","",'2.Logbook'!S100) ->  | T90: =IF('2.Logbook'!T100="","",'2.Logbook'!T100) ->  | U90: =IF('2.Logbook'!U100="","",'2.Logbook'!U100) ->  | V90: =IF('2.Logbook'!V100="","",'2.Logbook'!V100) ->  | W90: =IF('2.Logbook'!W100="","",'2.Logbook'!W100) ->  | X90: =IF('2.Logbook'!X100="","",'2.Logbook'!X100) ->  | Y90: =IF('2.Logbook'!Y100="","",'2.Logbook'!Y100) ->  | Z90: =IF('2.Logbook'!Z100="","",'2.Logbook'!Z100) ->  | AA90: =IF('2.Logbook'!AA100="","",'2.Logbook'!AA100) ->  | AB90: =IF('2.Logbook'!AB100="","",'2.Logbook'!AB100) ->  | AC90: =IF('2.Logbook'!AC100="","",'2.Logbook'!AC100) ->  | AD90: =IF('2.Logbook'!AD100="","",'2.Logbook'!AD100) -> 1 | AE90: =IF('2.Logbook'!AE100="","",'2.Logbook'!AE100) ->  | AF90: =IF('2.Logbook'!AF100="","",'2.Logbook'!AF100) ->  | AG90: =IF('2.Logbook'!AG100="","",'2.Logbook'!AG100) -> 
A91: =IF('2.Logbook'!A101="","",'2.Logbook'!A101) -> 2020-07-01 | B91: =IF('2.Logbook'!B101="","",'2.Logbook'!B101) -> 13:25:00 | C91: =IF('2.Logbook'!C101="","",'2.Logbook'!C101) -> 0°56 N | D91: =IF('2.Logbook'!D101="","",'2.Logbook'!D101) -> 4°37 E | E91: =IF('2.Logbook'!E101="","",'2.Logbook'!E101) -> Sao Tome e Principe | F91: =IF('2.Logbook'!F101="","",'2.Logbook'!F101) -> 27 | G91: =IF('2.Logbook'!G101="","",'2.Logbook'!G101) -> 1900-07-03 | H91: =IF('2.Logbook'!H101="","",'2.Logbook'!H101) -> 10 | I91: =IF('2.Logbook'!I101="","",'2.Logbook'!I101) -> 1900-01-01 | J91: =IF('2.Logbook'!J101="","",'2.Logbook'!J101) ->  | K91: =IF('2.Logbook'!K101="","",'2.Logbook'!K101) -> Banc Objet | L91: =IF('2.Logbook'!L101="","",'2.Logbook'!L101) ->  | M91: =IF('2.Logbook'!M101="","",'2.Logbook'!M101) ->  | N91: =IF('2.Logbook'!N101="","",'2.Logbook'!N101) -> 1,8 - 3,4 kg | O91: =IF('2.Logbook'!O101="","",'2.Logbook'!O101) -> 1900-01-05 | P91: =IF('2.Logbook'!P101="","",'2.Logbook'!P101) -> 1,8 - 3,4 kg | Q91: =IF('2.Logbook'!Q101="","",'2.Logbook'!Q101) -> 1900-01-20 | R91: =IF('2.Logbook'!R101="","",'2.Logbook'!R101) ->  | S91: =IF('2.Logbook'!S101="","",'2.Logbook'!S101) ->  | T91: =IF('2.Logbook'!T101="","",'2.Logbook'!T101) ->  | U91: =IF('2.Logbook'!U101="","",'2.Logbook'!U101) ->  | V91: =IF('2.Logbook'!V101="","",'2.Logbook'!V101) ->  | W91: =IF('2.Logbook'!W101="","",'2.Logbook'!W101) ->  | X91: =IF('2.Logbook'!X101="","",'2.Logbook'!X101) ->  | Y91: =IF('2.Logbook'!Y101="","",'2.Logbook'!Y101) ->  | Z91: =IF('2.Logbook'!Z101="","",'2.Logbook'!Z101) ->  | AA91: =IF('2.Logbook'!AA101="","",'2.Logbook'!AA101) ->  | AB91: =IF('2.Logbook'!AB101="","",'2.Logbook'!AB101) ->  | AC91: =IF('2.Logbook'!AC101="","",'2.Logbook'!AC101) ->  | AD91: =IF('2.Logbook'!AD101="","",'2.Logbook'!AD101) ->  | AE91: =IF('2.Logbook'!AE101="","",'2.Logbook'!AE101) -> 1900-01-01 | AF91: =IF('2.Logbook'!AF101="","",'2.Logbook'!AF101) ->  | AG91: =IF('2.Logbook'!AG101="","",'2.Logbook'!AG101) -> 
A92: =IF('2.Logbook'!A102="","",'2.Logbook'!A102) -> 2020-07-01 | B92: =IF('2.Logbook'!B102="","",'2.Logbook'!B102) -> 13:25:00 | C92: =IF('2.Logbook'!C102="","",'2.Logbook'!C102) -> 0°56 N | D92: =IF('2.Logbook'!D102="","",'2.Logbook'!D102) -> 4°37 E | E92: =IF('2.Logbook'!E102="","",'2.Logbook'!E102) -> Sao Tome e Principe | F92: =IF('2.Logbook'!F102="","",'2.Logbook'!F102) -> 27 | G92: =IF('2.Logbook'!G102="","",'2.Logbook'!G102) ->  | H92: =IF('2.Logbook'!H102="","",'2.Logbook'!H102) ->  | I92: =IF('2.Logbook'!I102="","",'2.Logbook'!I102) ->  | J92: =IF('2.Logbook'!J102="","",'2.Logbook'!J102) ->  | K92: =IF('2.Logbook'!K102="","",'2.Logbook'!K102) ->  | L92: =IF('2.Logbook'!L102="","",'2.Logbook'!L102) ->  | M92: =IF('2.Logbook'!M102="","",'2.Logbook'!M102) ->  | N92: =IF('2.Logbook'!N102="","",'2.Logbook'!N102) ->  | O92: =IF('2.Logbook'!O102="","",'2.Logbook'!O102) ->  | P92: =IF('2.Logbook'!P102="","",'2.Logbook'!P102) -> < 1,8 kg | Q92: =IF('2.Logbook'!Q102="","",'2.Logbook'!Q102) -> 1900-01-10 | R92: =IF('2.Logbook'!R102="","",'2.Logbook'!R102) ->  | S92: =IF('2.Logbook'!S102="","",'2.Logbook'!S102) ->  | T92: =IF('2.Logbook'!T102="","",'2.Logbook'!T102) ->  | U92: =IF('2.Logbook'!U102="","",'2.Logbook'!U102) ->  | V92: =IF('2.Logbook'!V102="","",'2.Logbook'!V102) ->  | W92: =IF('2.Logbook'!W102="","",'2.Logbook'!W102) ->  | X92: =IF('2.Logbook'!X102="","",'2.Logbook'!X102) ->  | Y92: =IF('2.Logbook'!Y102="","",'2.Logbook'!Y102) ->  | Z92: =IF('2.Logbook'!Z102="","",'2.Logbook'!Z102) ->  | AA92: =IF('2.Logbook'!AA102="","",'2.Logbook'!AA102) ->  | AB92: =IF('2.Logbook'!AB102="","",'2.Logbook'!AB102) ->  | AC92: =IF('2.Logbook'!AC102="","",'2.Logbook'!AC102) ->  | AD92: =IF('2.Logbook'!AD102="","",'2.Logbook'!AD102) ->  | AE92: =IF('2.Logbook'!AE102="","",'2.Logbook'!AE102) ->  | AF92: =IF('2.Logbook'!AF102="","",'2.Logbook'!AF102) ->  | AG92: =IF('2.Logbook'!AG102="","",'2.Logbook'!AG102) -> 
A93: =IF('2.Logbook'!A103="","",'2.Logbook'!A103) -> 2020-07-02 | B93: =IF('2.Logbook'!B103="","",'2.Logbook'!B103) -> 07:40:00 | C93: =IF('2.Logbook'!C103="","",'2.Logbook'!C103) -> 0°55 N | D93: =IF('2.Logbook'!D103="","",'2.Logbook'!D103) -> 05°00 E | E93: =IF('2.Logbook'!E103="","",'2.Logbook'!E103) -> Sao Tome e Principe | F93: =IF('2.Logbook'!F103="","",'2.Logbook'!F103) -> 26 | G93: =IF('2.Logbook'!G103="","",'2.Logbook'!G103) -> 1900-07-03 | H93: =IF('2.Logbook'!H103="","",'2.Logbook'!H103) -> 15 | I93: =IF('2.Logbook'!I103="","",'2.Logbook'!I103) -> 1900-01-01 | J93: =IF('2.Logbook'!J103="","",'2.Logbook'!J103) ->  | K93: =IF('2.Logbook'!K103="","",'2.Logbook'!K103) -> Banc Objet | L93: =IF('2.Logbook'!L103="","",'2.Logbook'!L103) ->  | M93: =IF('2.Logbook'!M103="","",'2.Logbook'!M103) ->  | N93: =IF('2.Logbook'!N103="","",'2.Logbook'!N103) ->  | O93: =IF('2.Logbook'!O103="","",'2.Logbook'!O103) ->  | P93: =IF('2.Logbook'!P103="","",'2.Logbook'!P103) -> 1,8 - 3,4 kg | Q93: =IF('2.Logbook'!Q103="","",'2.Logbook'!Q103) -> 1900-01-05 | R93: =IF('2.Logbook'!R103="","",'2.Logbook'!R103) ->  | S93: =IF('2.Logbook'!S103="","",'2.Logbook'!S103) ->  | T93: =IF('2.Logbook'!T103="","",'2.Logbook'!T103) ->  | U93: =IF('2.Logbook'!U103="","",'2.Logbook'!U103) ->  | V93: =IF('2.Logbook'!V103="","",'2.Logbook'!V103) ->  | W93: =IF('2.Logbook'!W103="","",'2.Logbook'!W103) ->  | X93: =IF('2.Logbook'!X103="","",'2.Logbook'!X103) ->  | Y93: =IF('2.Logbook'!Y103="","",'2.Logbook'!Y103) ->  | Z93: =IF('2.Logbook'!Z103="","",'2.Logbook'!Z103) ->  | AA93: =IF('2.Logbook'!AA103="","",'2.Logbook'!AA103) ->  | AB93: =IF('2.Logbook'!AB103="","",'2.Logbook'!AB103) ->  | AC93: =IF('2.Logbook'!AC103="","",'2.Logbook'!AC103) ->  | AD93: =IF('2.Logbook'!AD103="","",'2.Logbook'!AD103) ->  | AE93: =IF('2.Logbook'!AE103="","",'2.Logbook'!AE103) -> 1900-01-01 | AF93: =IF('2.Logbook'!AF103="","",'2.Logbook'!AF103) ->  | AG93: =IF('2.Logbook'!AG103="","",'2.Logbook'!AG103) -> 
A94: =IF('2.Logbook'!A104="","",'2.Logbook'!A104) -> 2020-07-02 | B94: =IF('2.Logbook'!B104="","",'2.Logbook'!B104) -> 13:30:00 | C94: =IF('2.Logbook'!C104="","",'2.Logbook'!C104) -> 1°10 N | D94: =IF('2.Logbook'!D104="","",'2.Logbook'!D104) -> 4°54 E | E94: =IF('2.Logbook'!E104="","",'2.Logbook'!E104) -> Sao Tome e Principe | F94: =IF('2.Logbook'!F104="","",'2.Logbook'!F104) -> 26 | G94: =IF('2.Logbook'!G104="","",'2.Logbook'!G104) -> 1900-07-04 | H94: =IF('2.Logbook'!H104="","",'2.Logbook'!H104) -> 15 | I94: =IF('2.Logbook'!I104="","",'2.Logbook'!I104) ->  | J94: =IF('2.Logbook'!J104="","",'2.Logbook'!J104) ->  | K94: =IF('2.Logbook'!K104="","",'2.Logbook'!K104) ->  | L94: =IF('2.Logbook'!L104="","",'2.Logbook'!L104) ->  | M94: =IF('2.Logbook'!M104="","",'2.Logbook'!M104) ->  | N94: =IF('2.Logbook'!N104="","",'2.Logbook'!N104) ->  | O94: =IF('2.Logbook'!O104="","",'2.Logbook'!O104) ->  | P94: =IF('2.Logbook'!P104="","",'2.Logbook'!P104) ->  | Q94: =IF('2.Logbook'!Q104="","",'2.Logbook'!Q104) ->  | R94: =IF('2.Logbook'!R104="","",'2.Logbook'!R104) ->  | S94: =IF('2.Logbook'!S104="","",'2.Logbook'!S104) ->  | T94: =IF('2.Logbook'!T104="","",'2.Logbook'!T104) ->  | U94: =IF('2.Logbook'!U104="","",'2.Logbook'!U104) ->  | V94: =IF('2.Logbook'!V104="","",'2.Logbook'!V104) ->  | W94: =IF('2.Logbook'!W104="","",'2.Logbook'!W104) ->  | X94: =IF('2.Logbook'!X104="","",'2.Logbook'!X104) ->  | Y94: =IF('2.Logbook'!Y104="","",'2.Logbook'!Y104) ->  | Z94: =IF('2.Logbook'!Z104="","",'2.Logbook'!Z104) ->  | AA94: =IF('2.Logbook'!AA104="","",'2.Logbook'!AA104) ->  | AB94: =IF('2.Logbook'!AB104="","",'2.Logbook'!AB104) ->  | AC94: =IF('2.Logbook'!AC104="","",'2.Logbook'!AC104) ->  | AD94: =IF('2.Logbook'!AD104="","",'2.Logbook'!AD104) ->  | AE94: =IF('2.Logbook'!AE104="","",'2.Logbook'!AE104) ->  | AF94: =IF('2.Logbook'!AF104="","",'2.Logbook'!AF104) ->  | AG94: =IF('2.Logbook'!AG104="","",'2.Logbook'!AG104) -> 
A95: =IF('2.Logbook'!A105="","",'2.Logbook'!A105) -> 2020-07-03 | B95: =IF('2.Logbook'!B105="","",'2.Logbook'!B105) -> 06:30:00 | C95: =IF('2.Logbook'!C105="","",'2.Logbook'!C105) -> 1°06 N | D95: =IF('2.Logbook'!D105="","",'2.Logbook'!D105) -> 04°52 E | E95: =IF('2.Logbook'!E105="","",'2.Logbook'!E105) -> Sao Tome e Principe | F95: =IF('2.Logbook'!F105="","",'2.Logbook'!F105) -> 27 | G95: =IF('2.Logbook'!G105="","",'2.Logbook'!G105) -> 1900-07-08 | H95: =IF('2.Logbook'!H105="","",'2.Logbook'!H105) -> 20 | I95: =IF('2.Logbook'!I105="","",'2.Logbook'!I105) -> 1900-01-01 | J95: =IF('2.Logbook'!J105="","",'2.Logbook'!J105) ->  | K95: =IF('2.Logbook'!K105="","",'2.Logbook'!K105) ->  | L95: =IF('2.Logbook'!L105="","",'2.Logbook'!L105) ->  | M95: =IF('2.Logbook'!M105="","",'2.Logbook'!M105) ->  | N95: =IF('2.Logbook'!N105="","",'2.Logbook'!N105) -> 1,8 - 3,4 kg | O95: =IF('2.Logbook'!O105="","",'2.Logbook'!O105) -> 1900-01-03 | P95: =IF('2.Logbook'!P105="","",'2.Logbook'!P105) -> 1,8 - 3,4 kg | Q95: =IF('2.Logbook'!Q105="","",'2.Logbook'!Q105) -> 1900-02-04 | R95: =IF('2.Logbook'!R105="","",'2.Logbook'!R105) ->  | S95: =IF('2.Logbook'!S105="","",'2.Logbook'!S105) ->  | T95: =IF('2.Logbook'!T105="","",'2.Logbook'!T105) ->  | U95: =IF('2.Logbook'!U105="","",'2.Logbook'!U105) ->  | V95: =IF('2.Logbook'!V105="","",'2.Logbook'!V105) ->  | W95: =IF('2.Logbook'!W105="","",'2.Logbook'!W105) ->  | X95: =IF('2.Logbook'!X105="","",'2.Logbook'!X105) ->  | Y95: =IF('2.Logbook'!Y105="","",'2.Logbook'!Y105) ->  | Z95: =IF('2.Logbook'!Z105="","",'2.Logbook'!Z105) ->  | AA95: =IF('2.Logbook'!AA105="","",'2.Logbook'!AA105) ->  | AB95: =IF('2.Logbook'!AB105="","",'2.Logbook'!AB105) ->  | AC95: =IF('2.Logbook'!AC105="","",'2.Logbook'!AC105) ->  | AD95: =IF('2.Logbook'!AD105="","",'2.Logbook'!AD105) ->  | AE95: =IF('2.Logbook'!AE105="","",'2.Logbook'!AE105) -> 1900-01-01 | AF95: =IF('2.Logbook'!AF105="","",'2.Logbook'!AF105) ->  | AG95: =IF('2.Logbook'!AG105="","",'2.Logbook'!AG105) -> 
A96: =IF('2.Logbook'!A106="","",'2.Logbook'!A106) -> 2020-07-03 | B96: =IF('2.Logbook'!B106="","",'2.Logbook'!B106) -> 06:30:00 | C96: =IF('2.Logbook'!C106="","",'2.Logbook'!C106) -> 1°06 N | D96: =IF('2.Logbook'!D106="","",'2.Logbook'!D106) -> 04°52 E | E96: =IF('2.Logbook'!E106="","",'2.Logbook'!E106) -> Sao Tome e Principe | F96: =IF('2.Logbook'!F106="","",'2.Logbook'!F106) ->  | G96: =IF('2.Logbook'!G106="","",'2.Logbook'!G106) ->  | H96: =IF('2.Logbook'!H106="","",'2.Logbook'!H106) ->  | I96: =IF('2.Logbook'!I106="","",'2.Logbook'!I106) ->  | J96: =IF('2.Logbook'!J106="","",'2.Logbook'!J106) ->  | K96: =IF('2.Logbook'!K106="","",'2.Logbook'!K106) ->  | L96: =IF('2.Logbook'!L106="","",'2.Logbook'!L106) ->  | M96: =IF('2.Logbook'!M106="","",'2.Logbook'!M106) ->  | N96: =IF('2.Logbook'!N106="","",'2.Logbook'!N106) ->  | O96: =IF('2.Logbook'!O106="","",'2.Logbook'!O106) ->  | P96: =IF('2.Logbook'!P106="","",'2.Logbook'!P106) -> < 1,8 kg | Q96: =IF('2.Logbook'!Q106="","",'2.Logbook'!Q106) -> 1900-01-10 | R96: =IF('2.Logbook'!R106="","",'2.Logbook'!R106) ->  | S96: =IF('2.Logbook'!S106="","",'2.Logbook'!S106) ->  | T96: =IF('2.Logbook'!T106="","",'2.Logbook'!T106) ->  | U96: =IF('2.Logbook'!U106="","",'2.Logbook'!U106) ->  | V96: =IF('2.Logbook'!V106="","",'2.Logbook'!V106) ->  | W96: =IF('2.Logbook'!W106="","",'2.Logbook'!W106) ->  | X96: =IF('2.Logbook'!X106="","",'2.Logbook'!X106) ->  | Y96: =IF('2.Logbook'!Y106="","",'2.Logbook'!Y106) ->  | Z96: =IF('2.Logbook'!Z106="","",'2.Logbook'!Z106) ->  | AA96: =IF('2.Logbook'!AA106="","",'2.Logbook'!AA106) ->  | AB96: =IF('2.Logbook'!AB106="","",'2.Logbook'!AB106) ->  | AC96: =IF('2.Logbook'!AC106="","",'2.Logbook'!AC106) ->  | AD96: =IF('2.Logbook'!AD106="","",'2.Logbook'!AD106) ->  | AE96: =IF('2.Logbook'!AE106="","",'2.Logbook'!AE106) ->  | AF96: =IF('2.Logbook'!AF106="","",'2.Logbook'!AF106) ->  | AG96: =IF('2.Logbook'!AG106="","",'2.Logbook'!AG106) -> 
A97: =IF('2.Logbook'!A107="","",'2.Logbook'!A107) -> 2020-07-03 | B97: =IF('2.Logbook'!B107="","",'2.Logbook'!B107) -> 13:20:00 | C97: =IF('2.Logbook'!C107="","",'2.Logbook'!C107) -> 0°40 N | D97: =IF('2.Logbook'!D107="","",'2.Logbook'!D107) -> 4°21 E | E97: =IF('2.Logbook'!E107="","",'2.Logbook'!E107) -> Sao Tome e Principe | F97: =IF('2.Logbook'!F107="","",'2.Logbook'!F107) -> 27 | G97: =IF('2.Logbook'!G107="","",'2.Logbook'!G107) -> 1900-07-08 | H97: =IF('2.Logbook'!H107="","",'2.Logbook'!H107) -> 20 | I97: =IF('2.Logbook'!I107="","",'2.Logbook'!I107) -> 1900-01-01 | J97: =IF('2.Logbook'!J107="","",'2.Logbook'!J107) ->  | K97: =IF('2.Logbook'!K107="","",'2.Logbook'!K107) ->  | L97: =IF('2.Logbook'!L107="","",'2.Logbook'!L107) -> 10 - 20 kg | M97: =IF('2.Logbook'!M107="","",'2.Logbook'!M107) -> 1900-01-01 | N97: =IF('2.Logbook'!N107="","",'2.Logbook'!N107) ->  | O97: =IF('2.Logbook'!O107="","",'2.Logbook'!O107) ->  | P97: =IF('2.Logbook'!P107="","",'2.Logbook'!P107) -> 1,8 - 3,4 kg | Q97: =IF('2.Logbook'!Q107="","",'2.Logbook'!Q107) -> 1900-01-15 | R97: =IF('2.Logbook'!R107="","",'2.Logbook'!R107) ->  | S97: =IF('2.Logbook'!S107="","",'2.Logbook'!S107) ->  | T97: =IF('2.Logbook'!T107="","",'2.Logbook'!T107) ->  | U97: =IF('2.Logbook'!U107="","",'2.Logbook'!U107) ->  | V97: =IF('2.Logbook'!V107="","",'2.Logbook'!V107) ->  | W97: =IF('2.Logbook'!W107="","",'2.Logbook'!W107) ->  | X97: =IF('2.Logbook'!X107="","",'2.Logbook'!X107) -> RAVIL | Y97: =IF('2.Logbook'!Y107="","",'2.Logbook'!Y107) -> 1900-01-01 | Z97: =IF('2.Logbook'!Z107="","",'2.Logbook'!Z107) -> 2 | AA97: =IF('2.Logbook'!AA107="","",'2.Logbook'!AA107) ->  | AB97: =IF('2.Logbook'!AB107="","",'2.Logbook'!AB107) ->  | AC97: =IF('2.Logbook'!AC107="","",'2.Logbook'!AC107) ->  | AD97: =IF('2.Logbook'!AD107="","",'2.Logbook'!AD107) ->  | AE97: =IF('2.Logbook'!AE107="","",'2.Logbook'!AE107) -> 1900-01-01 | AF97: =IF('2.Logbook'!AF107="","",'2.Logbook'!AF107) ->  | AG97: =IF('2.Logbook'!AG107="","",'2.Logbook'!AG107) -> 
A98: =IF('2.Logbook'!A108="","",'2.Logbook'!A108) -> 2020-07-03 | B98: =IF('2.Logbook'!B108="","",'2.Logbook'!B108) -> 13:20:00 | C98: =IF('2.Logbook'!C108="","",'2.Logbook'!C108) -> 0°40 N | D98: =IF('2.Logbook'!D108="","",'2.Logbook'!D108) -> 4°21 E | E98: =IF('2.Logbook'!E108="","",'2.Logbook'!E108) -> Sao Tome e Principe | F98: =IF('2.Logbook'!F108="","",'2.Logbook'!F108) ->  | G98: =IF('2.Logbook'!G108="","",'2.Logbook'!G108) ->  | H98: =IF('2.Logbook'!H108="","",'2.Logbook'!H108) ->  | I98: =IF('2.Logbook'!I108="","",'2.Logbook'!I108) ->  | J98: =IF('2.Logbook'!J108="","",'2.Logbook'!J108) ->  | K98: =IF('2.Logbook'!K108="","",'2.Logbook'!K108) ->  | L98: =IF('2.Logbook'!L108="","",'2.Logbook'!L108) ->  | M98: =IF('2.Logbook'!M108="","",'2.Logbook'!M108) ->  | N98: =IF('2.Logbook'!N108="","",'2.Logbook'!N108) ->  | O98: =IF('2.Logbook'!O108="","",'2.Logbook'!O108) ->  | P98: =IF('2.Logbook'!P108="","",'2.Logbook'!P108) -> < 1,8 kg | Q98: =IF('2.Logbook'!Q108="","",'2.Logbook'!Q108) -> 1900-01-02 | R98: =IF('2.Logbook'!R108="","",'2.Logbook'!R108) ->  | S98: =IF('2.Logbook'!S108="","",'2.Logbook'!S108) ->  | T98: =IF('2.Logbook'!T108="","",'2.Logbook'!T108) ->  | U98: =IF('2.Logbook'!U108="","",'2.Logbook'!U108) ->  | V98: =IF('2.Logbook'!V108="","",'2.Logbook'!V108) ->  | W98: =IF('2.Logbook'!W108="","",'2.Logbook'!W108) ->  | X98: =IF('2.Logbook'!X108="","",'2.Logbook'!X108) ->  | Y98: =IF('2.Logbook'!Y108="","",'2.Logbook'!Y108) ->  | Z98: =IF('2.Logbook'!Z108="","",'2.Logbook'!Z108) ->  | AA98: =IF('2.Logbook'!AA108="","",'2.Logbook'!AA108) ->  | AB98: =IF('2.Logbook'!AB108="","",'2.Logbook'!AB108) ->  | AC98: =IF('2.Logbook'!AC108="","",'2.Logbook'!AC108) ->  | AD98: =IF('2.Logbook'!AD108="","",'2.Logbook'!AD108) ->  | AE98: =IF('2.Logbook'!AE108="","",'2.Logbook'!AE108) ->  | AF98: =IF('2.Logbook'!AF108="","",'2.Logbook'!AF108) ->  | AG98: =IF('2.Logbook'!AG108="","",'2.Logbook'!AG108) -> 
A99: =IF('2.Logbook'!A109="","",'2.Logbook'!A109) -> 2020-07-04 | B99: =IF('2.Logbook'!B109="","",'2.Logbook'!B109) -> 07:45:00 | C99: =IF('2.Logbook'!C109="","",'2.Logbook'!C109) -> 0°59 N | D99: =IF('2.Logbook'!D109="","",'2.Logbook'!D109) -> 4°45 E | E99: =IF('2.Logbook'!E109="","",'2.Logbook'!E109) -> Sao Tome e Principe | F99: =IF('2.Logbook'!F109="","",'2.Logbook'!F109) -> 27 | G99: =IF('2.Logbook'!G109="","",'2.Logbook'!G109) -> 1900-07-08 | H99: =IF('2.Logbook'!H109="","",'2.Logbook'!H109) -> 20 | I99: =IF('2.Logbook'!I109="","",'2.Logbook'!I109) ->  | J99: =IF('2.Logbook'!J109="","",'2.Logbook'!J109) -> 1 | K99: =IF('2.Logbook'!K109="","",'2.Logbook'!K109) -> Banc Libre | L99: =IF('2.Logbook'!L109="","",'2.Logbook'!L109) ->  | M99: =IF('2.Logbook'!M109="","",'2.Logbook'!M109) ->  | N99: =IF('2.Logbook'!N109="","",'2.Logbook'!N109) ->  | O99: =IF('2.Logbook'!O109="","",'2.Logbook'!O109) ->  | P99: =IF('2.Logbook'!P109="","",'2.Logbook'!P109) ->  | Q99: =IF('2.Logbook'!Q109="","",'2.Logbook'!Q109) ->  | R99: =IF('2.Logbook'!R109="","",'2.Logbook'!R109) ->  | S99: =IF('2.Logbook'!S109="","",'2.Logbook'!S109) ->  | T99: =IF('2.Logbook'!T109="","",'2.Logbook'!T109) ->  | U99: =IF('2.Logbook'!U109="","",'2.Logbook'!U109) ->  | V99: =IF('2.Logbook'!V109="","",'2.Logbook'!V109) ->  | W99: =IF('2.Logbook'!W109="","",'2.Logbook'!W109) ->  | X99: =IF('2.Logbook'!X109="","",'2.Logbook'!X109) ->  | Y99: =IF('2.Logbook'!Y109="","",'2.Logbook'!Y109) ->  | Z99: =IF('2.Logbook'!Z109="","",'2.Logbook'!Z109) ->  | AA99: =IF('2.Logbook'!AA109="","",'2.Logbook'!AA109) ->  | AB99: =IF('2.Logbook'!AB109="","",'2.Logbook'!AB109) ->  | AC99: =IF('2.Logbook'!AC109="","",'2.Logbook'!AC109) ->  | AD99: =IF('2.Logbook'!AD109="","",'2.Logbook'!AD109) ->  | AE99: =IF('2.Logbook'!AE109="","",'2.Logbook'!AE109) ->  | AF99: =IF('2.Logbook'!AF109="","",'2.Logbook'!AF109) ->  | AG99: =IF('2.Logbook'!AG109="","",'2.Logbook'!AG109) -> 
A100: =IF('2.Logbook'!A110="","",'2.Logbook'!A110) -> 2020-07-05 | B100: =IF('2.Logbook'!B110="","",'2.Logbook'!B110) -> 16.35 | C100: =IF('2.Logbook'!C110="","",'2.Logbook'!C110) -> 1°11 N | D100: =IF('2.Logbook'!D110="","",'2.Logbook'!D110) -> 4° 22 E | E100: =IF('2.Logbook'!E110="","",'2.Logbook'!E110) -> Sao Tome e Principe | F100: =IF('2.Logbook'!F110="","",'2.Logbook'!F110) -> 27 | G100: =IF('2.Logbook'!G110="","",'2.Logbook'!G110) -> 1900-06-13 | H100: =IF('2.Logbook'!H110="","",'2.Logbook'!H110) -> 10 | I100: =IF('2.Logbook'!I110="","",'2.Logbook'!I110) ->  | J100: =IF('2.Logbook'!J110="","",'2.Logbook'!J110) ->  | K100: =IF('2.Logbook'!K110="","",'2.Logbook'!K110) ->  | L100: =IF('2.Logbook'!L110="","",'2.Logbook'!L110) ->  | M100: =IF('2.Logbook'!M110="","",'2.Logbook'!M110) ->  | N100: =IF('2.Logbook'!N110="","",'2.Logbook'!N110) ->  | O100: =IF('2.Logbook'!O110="","",'2.Logbook'!O110) ->  | P100: =IF('2.Logbook'!P110="","",'2.Logbook'!P110) ->  | Q100: =IF('2.Logbook'!Q110="","",'2.Logbook'!Q110) ->  | R100: =IF('2.Logbook'!R110="","",'2.Logbook'!R110) ->  | S100: =IF('2.Logbook'!S110="","",'2.Logbook'!S110) ->  | T100: =IF('2.Logbook'!T110="","",'2.Logbook'!T110) ->  | U100: =IF('2.Logbook'!U110="","",'2.Logbook'!U110) ->  | V100: =IF('2.Logbook'!V110="","",'2.Logbook'!V110) ->  | W100: =IF('2.Logbook'!W110="","",'2.Logbook'!W110) ->  | X100: =IF('2.Logbook'!X110="","",'2.Logbook'!X110) ->  | Y100: =IF('2.Logbook'!Y110="","",'2.Logbook'!Y110) ->  | Z100: =IF('2.Logbook'!Z110="","",'2.Logbook'!Z110) ->  | AA100: =IF('2.Logbook'!AA110="","",'2.Logbook'!AA110) ->  | AB100: =IF('2.Logbook'!AB110="","",'2.Logbook'!AB110) ->  | AC100: =IF('2.Logbook'!AC110="","",'2.Logbook'!AC110) ->  | AD100: =IF('2.Logbook'!AD110="","",'2.Logbook'!AD110) ->  | AE100: =IF('2.Logbook'!AE110="","",'2.Logbook'!AE110) ->  | AF100: =IF('2.Logbook'!AF110="","",'2.Logbook'!AF110) ->  | AG100: =IF('2.Logbook'!AG110="","",'2.Logbook'!AG110) -> 
A101: =IF('2.Logbook'!A111="","",'2.Logbook'!A111) -> 2020-07-06 | B101: =IF('2.Logbook'!B111="","",'2.Logbook'!B111) -> 07:30:00 | C101: =IF('2.Logbook'!C111="","",'2.Logbook'!C111) -> 1°44 N | D101: =IF('2.Logbook'!D111="","",'2.Logbook'!D111) -> 0°52 E | E101: =IF('2.Logbook'!E111="","",'2.Logbook'!E111) -> Eaux internationales | F101: =IF('2.Logbook'!F111="","",'2.Logbook'!F111) -> 27 | G101: =IF('2.Logbook'!G111="","",'2.Logbook'!G111) -> 1900-07-03 | H101: =IF('2.Logbook'!H111="","",'2.Logbook'!H111) -> 5 | I101: =IF('2.Logbook'!I111="","",'2.Logbook'!I111) ->  | J101: =IF('2.Logbook'!J111="","",'2.Logbook'!J111) ->  | K101: =IF('2.Logbook'!K111="","",'2.Logbook'!K111) ->  | L101: =IF('2.Logbook'!L111="","",'2.Logbook'!L111) ->  | M101: =IF('2.Logbook'!M111="","",'2.Logbook'!M111) ->  | N101: =IF('2.Logbook'!N111="","",'2.Logbook'!N111) ->  | O101: =IF('2.Logbook'!O111="","",'2.Logbook'!O111) ->  | P101: =IF('2.Logbook'!P111="","",'2.Logbook'!P111) ->  | Q101: =IF('2.Logbook'!Q111="","",'2.Logbook'!Q111) ->  | R101: =IF('2.Logbook'!R111="","",'2.Logbook'!R111) ->  | S101: =IF('2.Logbook'!S111="","",'2.Logbook'!S111) ->  | T101: =IF('2.Logbook'!T111="","",'2.Logbook'!T111) ->  | U101: =IF('2.Logbook'!U111="","",'2.Logbook'!U111) ->  | V101: =IF('2.Logbook'!V111="","",'2.Logbook'!V111) ->  | W101: =IF('2.Logbook'!W111="","",'2.Logbook'!W111) ->  | X101: =IF('2.Logbook'!X111="","",'2.Logbook'!X111) ->  | Y101: =IF('2.Logbook'!Y111="","",'2.Logbook'!Y111) ->  | Z101: =IF('2.Logbook'!Z111="","",'2.Logbook'!Z111) ->  | AA101: =IF('2.Logbook'!AA111="","",'2.Logbook'!AA111) ->  | AB101: =IF('2.Logbook'!AB111="","",'2.Logbook'!AB111) ->  | AC101: =IF('2.Logbook'!AC111="","",'2.Logbook'!AC111) ->  | AD101: =IF('2.Logbook'!AD111="","",'2.Logbook'!AD111) ->  | AE101: =IF('2.Logbook'!AE111="","",'2.Logbook'!AE111) ->  | AF101: =IF('2.Logbook'!AF111="","",'2.Logbook'!AF111) ->  | AG101: =IF('2.Logbook'!AG111="","",'2.Logbook'!AG111) -> 
A102: =IF('2.Logbook'!A112="","",'2.Logbook'!A112) -> 2020-07-06 | B102: =IF('2.Logbook'!B112="","",'2.Logbook'!B112) -> 14:20:00 | C102: =IF('2.Logbook'!C112="","",'2.Logbook'!C112) -> 1°48 N | D102: =IF('2.Logbook'!D112="","",'2.Logbook'!D112) -> 0°26 W | E102: =IF('2.Logbook'!E112="","",'2.Logbook'!E112) -> Eaux internationales | F102: =IF('2.Logbook'!F112="","",'2.Logbook'!F112) -> 27 | G102: =IF('2.Logbook'!G112="","",'2.Logbook'!G112) -> 1900-07-03 | H102: =IF('2.Logbook'!H112="","",'2.Logbook'!H112) -> 5 | I102: =IF('2.Logbook'!I112="","",'2.Logbook'!I112) -> 1900-01-01 | J102: =IF('2.Logbook'!J112="","",'2.Logbook'!J112) ->  | K102: =IF('2.Logbook'!K112="","",'2.Logbook'!K112) ->  | L102: =IF('2.Logbook'!L112="","",'2.Logbook'!L112) -> > 60 kg | M102: =IF('2.Logbook'!M112="","",'2.Logbook'!M112) -> 1900-02-02 | N102: =IF('2.Logbook'!N112="","",'2.Logbook'!N112) ->  | O102: =IF('2.Logbook'!O112="","",'2.Logbook'!O112) ->  | P102: =IF('2.Logbook'!P112="","",'2.Logbook'!P112) ->  | Q102: =IF('2.Logbook'!Q112="","",'2.Logbook'!Q112) ->  | R102: =IF('2.Logbook'!R112="","",'2.Logbook'!R112) -> > 60 kg | S102: =IF('2.Logbook'!S112="","",'2.Logbook'!S112) -> 1900-01-02 | T102: =IF('2.Logbook'!T112="","",'2.Logbook'!T112) ->  | U102: =IF('2.Logbook'!U112="","",'2.Logbook'!U112) ->  | V102: =IF('2.Logbook'!V112="","",'2.Logbook'!V112) ->  | W102: =IF('2.Logbook'!W112="","",'2.Logbook'!W112) ->  | X102: =IF('2.Logbook'!X112="","",'2.Logbook'!X112) ->  | Y102: =IF('2.Logbook'!Y112="","",'2.Logbook'!Y112) ->  | Z102: =IF('2.Logbook'!Z112="","",'2.Logbook'!Z112) ->  | AA102: =IF('2.Logbook'!AA112="","",'2.Logbook'!AA112) ->  | AB102: =IF('2.Logbook'!AB112="","",'2.Logbook'!AB112) ->  | AC102: =IF('2.Logbook'!AC112="","",'2.Logbook'!AC112) ->  | AD102: =IF('2.Logbook'!AD112="","",'2.Logbook'!AD112) ->  | AE102: =IF('2.Logbook'!AE112="","",'2.Logbook'!AE112) ->  | AF102: =IF('2.Logbook'!AF112="","",'2.Logbook'!AF112) ->  | AG102: =IF('2.Logbook'!AG112="","",'2.Logbook'!AG112) -> 
A103: =IF('2.Logbook'!A113="","",'2.Logbook'!A113) -> 2020-07-07 | B103: =IF('2.Logbook'!B113="","",'2.Logbook'!B113) -> 12:00:00 | C103: =IF('2.Logbook'!C113="","",'2.Logbook'!C113) -> 4°09 N | D103: =IF('2.Logbook'!D113="","",'2.Logbook'!D113) -> 3°34 W | E103: =IF('2.Logbook'!E113="","",'2.Logbook'!E113) -> Côte d'Ivoire | F103: =IF('2.Logbook'!F113="","",'2.Logbook'!F113) -> 24 | G103: =IF('2.Logbook'!G113="","",'2.Logbook'!G113) -> 1900-07-03 | H103: =IF('2.Logbook'!H113="","",'2.Logbook'!H113) -> 8 | I103: =IF('2.Logbook'!I113="","",'2.Logbook'!I113) ->  | J103: =IF('2.Logbook'!J113="","",'2.Logbook'!J113) ->  | K103: =IF('2.Logbook'!K113="","",'2.Logbook'!K113) ->  | L103: =IF('2.Logbook'!L113="","",'2.Logbook'!L113) ->  | M103: =IF('2.Logbook'!M113="","",'2.Logbook'!M113) ->  | N103: =IF('2.Logbook'!N113="","",'2.Logbook'!N113) ->  | O103: =IF('2.Logbook'!O113="","",'2.Logbook'!O113) ->  | P103: =IF('2.Logbook'!P113="","",'2.Logbook'!P113) ->  | Q103: =IF('2.Logbook'!Q113="","",'2.Logbook'!Q113) ->  | R103: =IF('2.Logbook'!R113="","",'2.Logbook'!R113) ->  | S103: =IF('2.Logbook'!S113="","",'2.Logbook'!S113) ->  | T103: =IF('2.Logbook'!T113="","",'2.Logbook'!T113) ->  | U103: =IF('2.Logbook'!U113="","",'2.Logbook'!U113) ->  | V103: =IF('2.Logbook'!V113="","",'2.Logbook'!V113) ->  | W103: =IF('2.Logbook'!W113="","",'2.Logbook'!W113) ->  | X103: =IF('2.Logbook'!X113="","",'2.Logbook'!X113) ->  | Y103: =IF('2.Logbook'!Y113="","",'2.Logbook'!Y113) ->  | Z103: =IF('2.Logbook'!Z113="","",'2.Logbook'!Z113) ->  | AA103: =IF('2.Logbook'!AA113="","",'2.Logbook'!AA113) ->  | AB103: =IF('2.Logbook'!AB113="","",'2.Logbook'!AB113) ->  | AC103: =IF('2.Logbook'!AC113="","",'2.Logbook'!AC113) ->  | AD103: =IF('2.Logbook'!AD113="","",'2.Logbook'!AD113) ->  | AE103: =IF('2.Logbook'!AE113="","",'2.Logbook'!AE113) ->  | AF103: =IF('2.Logbook'!AF113="","",'2.Logbook'!AF113) ->  | AG103: =IF('2.Logbook'!AG113="","",'2.Logbook'!AG113) -> 
A104: =IF('2.Logbook'!A114="","",'2.Logbook'!A114) -> 2020-07-07 | B104: =IF('2.Logbook'!B114="","",'2.Logbook'!B114) -> 15:00:00 | C104: =IF('2.Logbook'!C114="","",'2.Logbook'!C114) ->  | D104: =IF('2.Logbook'!D114="","",'2.Logbook'!D114) ->  | E104: =IF('2.Logbook'!E114="","",'2.Logbook'!E114) ->  | F104: =IF('2.Logbook'!F114="","",'2.Logbook'!F114) ->  | G104: =IF('2.Logbook'!G114="","",'2.Logbook'!G114) ->  | H104: =IF('2.Logbook'!H114="","",'2.Logbook'!H114) ->  | I104: =IF('2.Logbook'!I114="","",'2.Logbook'!I114) ->  | J104: =IF('2.Logbook'!J114="","",'2.Logbook'!J114) ->  | K104: =IF('2.Logbook'!K114="","",'2.Logbook'!K114) ->  | L104: =IF('2.Logbook'!L114="","",'2.Logbook'!L114) ->  | M104: =IF('2.Logbook'!M114="","",'2.Logbook'!M114) ->  | N104: =IF('2.Logbook'!N114="","",'2.Logbook'!N114) ->  | O104: =IF('2.Logbook'!O114="","",'2.Logbook'!O114) ->  | P104: =IF('2.Logbook'!P114="","",'2.Logbook'!P114) ->  | Q104: =IF('2.Logbook'!Q114="","",'2.Logbook'!Q114) ->  | R104: =IF('2.Logbook'!R114="","",'2.Logbook'!R114) ->  | S104: =IF('2.Logbook'!S114="","",'2.Logbook'!S114) ->  | T104: =IF('2.Logbook'!T114="","",'2.Logbook'!T114) ->  | U104: =IF('2.Logbook'!U114="","",'2.Logbook'!U114) ->  | V104: =IF('2.Logbook'!V114="","",'2.Logbook'!V114) ->  | W104: =IF('2.Logbook'!W114="","",'2.Logbook'!W114) ->  | X104: =IF('2.Logbook'!X114="","",'2.Logbook'!X114) ->  | Y104: =IF('2.Logbook'!Y114="","",'2.Logbook'!Y114) ->  | Z104: =IF('2.Logbook'!Z114="","",'2.Logbook'!Z114) ->  | AA104: =IF('2.Logbook'!AA114="","",'2.Logbook'!AA114) ->  | AB104: =IF('2.Logbook'!AB114="","",'2.Logbook'!AB114) ->  | AC104: =IF('2.Logbook'!AC114="","",'2.Logbook'!AC114) ->  | AD104: =IF('2.Logbook'!AD114="","",'2.Logbook'!AD114) ->  | AE104: =IF('2.Logbook'!AE114="","",'2.Logbook'!AE114) ->  | AF104: =IF('2.Logbook'!AF114="","",'2.Logbook'!AF114) ->  | AG104: =IF('2.Logbook'!AG114="","",'2.Logbook'!AG114) -> 
A105: =IF('2.Logbook'!A115="","",'2.Logbook'!A115) ->  | B105: =IF('2.Logbook'!B115="","",'2.Logbook'!B115) ->  | C105: =IF('2.Logbook'!C115="","",'2.Logbook'!C115) ->  | D105: =IF('2.Logbook'!D115="","",'2.Logbook'!D115) ->  | E105: =IF('2.Logbook'!E115="","",'2.Logbook'!E115) ->  | F105: =IF('2.Logbook'!F115="","",'2.Logbook'!F115) ->  | G105: =IF('2.Logbook'!G115="","",'2.Logbook'!G115) ->  | H105: =IF('2.Logbook'!H115="","",'2.Logbook'!H115) ->  | I105: =IF('2.Logbook'!I115="","",'2.Logbook'!I115) ->  | J105: =IF('2.Logbook'!J115="","",'2.Logbook'!J115) ->  | K105: =IF('2.Logbook'!K115="","",'2.Logbook'!K115) ->  | L105: =IF('2.Logbook'!L115="","",'2.Logbook'!L115) ->  | M105: =IF('2.Logbook'!M115="","",'2.Logbook'!M115) ->  | N105: =IF('2.Logbook'!N115="","",'2.Logbook'!N115) ->  | O105: =IF('2.Logbook'!O115="","",'2.Logbook'!O115) ->  | P105: =IF('2.Logbook'!P115="","",'2.Logbook'!P115) ->  | Q105: =IF('2.Logbook'!Q115="","",'2.Logbook'!Q115) ->  | R105: =IF('2.Logbook'!R115="","",'2.Logbook'!R115) ->  | S105: =IF('2.Logbook'!S115="","",'2.Logbook'!S115) ->  | T105: =IF('2.Logbook'!T115="","",'2.Logbook'!T115) ->  | U105: =IF('2.Logbook'!U115="","",'2.Logbook'!U115) ->  | V105: =IF('2.Logbook'!V115="","",'2.Logbook'!V115) ->  | W105: =IF('2.Logbook'!W115="","",'2.Logbook'!W115) ->  | X105: =IF('2.Logbook'!X115="","",'2.Logbook'!X115) ->  | Y105: =IF('2.Logbook'!Y115="","",'2.Logbook'!Y115) ->  | Z105: =IF('2.Logbook'!Z115="","",'2.Logbook'!Z115) ->  | AA105: =IF('2.Logbook'!AA115="","",'2.Logbook'!AA115) ->  | AB105: =IF('2.Logbook'!AB115="","",'2.Logbook'!AB115) ->  | AC105: =IF('2.Logbook'!AC115="","",'2.Logbook'!AC115) ->  | AD105: =IF('2.Logbook'!AD115="","",'2.Logbook'!AD115) ->  | AE105: =IF('2.Logbook'!AE115="","",'2.Logbook'!AE115) ->  | AF105: =IF('2.Logbook'!AF115="","",'2.Logbook'!AF115) ->  | AG105: =IF('2.Logbook'!AG115="","",'2.Logbook'!AG115) -> 
A106: =IF('2.Logbook'!A116="","",'2.Logbook'!A116) ->  | B106: =IF('2.Logbook'!B116="","",'2.Logbook'!B116) ->  | C106: =IF('2.Logbook'!C116="","",'2.Logbook'!C116) ->  | D106: =IF('2.Logbook'!D116="","",'2.Logbook'!D116) ->  | E106: =IF('2.Logbook'!E116="","",'2.Logbook'!E116) ->  | F106: =IF('2.Logbook'!F116="","",'2.Logbook'!F116) ->  | G106: =IF('2.Logbook'!G116="","",'2.Logbook'!G116) ->  | H106: =IF('2.Logbook'!H116="","",'2.Logbook'!H116) ->  | I106: =IF('2.Logbook'!I116="","",'2.Logbook'!I116) ->  | J106: =IF('2.Logbook'!J116="","",'2.Logbook'!J116) ->  | K106: =IF('2.Logbook'!K116="","",'2.Logbook'!K116) ->  | L106: =IF('2.Logbook'!L116="","",'2.Logbook'!L116) ->  | M106: =IF('2.Logbook'!M116="","",'2.Logbook'!M116) ->  | N106: =IF('2.Logbook'!N116="","",'2.Logbook'!N116) ->  | O106: =IF('2.Logbook'!O116="","",'2.Logbook'!O116) ->  | P106: =IF('2.Logbook'!P116="","",'2.Logbook'!P116) ->  | Q106: =IF('2.Logbook'!Q116="","",'2.Logbook'!Q116) ->  | R106: =IF('2.Logbook'!R116="","",'2.Logbook'!R116) ->  | S106: =IF('2.Logbook'!S116="","",'2.Logbook'!S116) ->  | T106: =IF('2.Logbook'!T116="","",'2.Logbook'!T116) ->  | U106: =IF('2.Logbook'!U116="","",'2.Logbook'!U116) ->  | V106: =IF('2.Logbook'!V116="","",'2.Logbook'!V116) ->  | W106: =IF('2.Logbook'!W116="","",'2.Logbook'!W116) ->  | X106: =IF('2.Logbook'!X116="","",'2.Logbook'!X116) ->  | Y106: =IF('2.Logbook'!Y116="","",'2.Logbook'!Y116) ->  | Z106: =IF('2.Logbook'!Z116="","",'2.Logbook'!Z116) ->  | AA106: =IF('2.Logbook'!AA116="","",'2.Logbook'!AA116) ->  | AB106: =IF('2.Logbook'!AB116="","",'2.Logbook'!AB116) ->  | AC106: =IF('2.Logbook'!AC116="","",'2.Logbook'!AC116) ->  | AD106: =IF('2.Logbook'!AD116="","",'2.Logbook'!AD116) ->  | AE106: =IF('2.Logbook'!AE116="","",'2.Logbook'!AE116) ->  | AF106: =IF('2.Logbook'!AF116="","",'2.Logbook'!AF116) ->  | AG106: =IF('2.Logbook'!AG116="","",'2.Logbook'!AG116) -> 
A107: =IF('2.Logbook'!A117="","",'2.Logbook'!A117) ->  | B107: =IF('2.Logbook'!B117="","",'2.Logbook'!B117) ->  | C107: =IF('2.Logbook'!C117="","",'2.Logbook'!C117) ->  | D107: =IF('2.Logbook'!D117="","",'2.Logbook'!D117) ->  | E107: =IF('2.Logbook'!E117="","",'2.Logbook'!E117) ->  | F107: =IF('2.Logbook'!F117="","",'2.Logbook'!F117) ->  | G107: =IF('2.Logbook'!G117="","",'2.Logbook'!G117) ->  | H107: =IF('2.Logbook'!H117="","",'2.Logbook'!H117) ->  | I107: =IF('2.Logbook'!I117="","",'2.Logbook'!I117) ->  | J107: =IF('2.Logbook'!J117="","",'2.Logbook'!J117) ->  | K107: =IF('2.Logbook'!K117="","",'2.Logbook'!K117) ->  | L107: =IF('2.Logbook'!L117="","",'2.Logbook'!L117) ->  | M107: =IF('2.Logbook'!M117="","",'2.Logbook'!M117) ->  | N107: =IF('2.Logbook'!N117="","",'2.Logbook'!N117) ->  | O107: =IF('2.Logbook'!O117="","",'2.Logbook'!O117) ->  | P107: =IF('2.Logbook'!P117="","",'2.Logbook'!P117) ->  | Q107: =IF('2.Logbook'!Q117="","",'2.Logbook'!Q117) ->  | R107: =IF('2.Logbook'!R117="","",'2.Logbook'!R117) ->  | S107: =IF('2.Logbook'!S117="","",'2.Logbook'!S117) ->  | T107: =IF('2.Logbook'!T117="","",'2.Logbook'!T117) ->  | U107: =IF('2.Logbook'!U117="","",'2.Logbook'!U117) ->  | V107: =IF('2.Logbook'!V117="","",'2.Logbook'!V117) ->  | W107: =IF('2.Logbook'!W117="","",'2.Logbook'!W117) ->  | X107: =IF('2.Logbook'!X117="","",'2.Logbook'!X117) ->  | Y107: =IF('2.Logbook'!Y117="","",'2.Logbook'!Y117) ->  | Z107: =IF('2.Logbook'!Z117="","",'2.Logbook'!Z117) ->  | AA107: =IF('2.Logbook'!AA117="","",'2.Logbook'!AA117) ->  | AB107: =IF('2.Logbook'!AB117="","",'2.Logbook'!AB117) ->  | AC107: =IF('2.Logbook'!AC117="","",'2.Logbook'!AC117) ->  | AD107: =IF('2.Logbook'!AD117="","",'2.Logbook'!AD117) ->  | AE107: =IF('2.Logbook'!AE117="","",'2.Logbook'!AE117) ->  | AF107: =IF('2.Logbook'!AF117="","",'2.Logbook'!AF117) ->  | AG107: =IF('2.Logbook'!AG117="","",'2.Logbook'!AG117) -> 
A108: =IF('2.Logbook'!A118="","",'2.Logbook'!A118) ->  | B108: =IF('2.Logbook'!B118="","",'2.Logbook'!B118) ->  | C108: =IF('2.Logbook'!C118="","",'2.Logbook'!C118) ->  | D108: =IF('2.Logbook'!D118="","",'2.Logbook'!D118) ->  | E108: =IF('2.Logbook'!E118="","",'2.Logbook'!E118) ->  | F108: =IF('2.Logbook'!F118="","",'2.Logbook'!F118) ->  | G108: =IF('2.Logbook'!G118="","",'2.Logbook'!G118) ->  | H108: =IF('2.Logbook'!H118="","",'2.Logbook'!H118) ->  | I108: =IF('2.Logbook'!I118="","",'2.Logbook'!I118) ->  | J108: =IF('2.Logbook'!J118="","",'2.Logbook'!J118) ->  | K108: =IF('2.Logbook'!K118="","",'2.Logbook'!K118) ->  | L108: =IF('2.Logbook'!L118="","",'2.Logbook'!L118) ->  | M108: =IF('2.Logbook'!M118="","",'2.Logbook'!M118) ->  | N108: =IF('2.Logbook'!N118="","",'2.Logbook'!N118) ->  | O108: =IF('2.Logbook'!O118="","",'2.Logbook'!O118) ->  | P108: =IF('2.Logbook'!P118="","",'2.Logbook'!P118) ->  | Q108: =IF('2.Logbook'!Q118="","",'2.Logbook'!Q118) ->  | R108: =IF('2.Logbook'!R118="","",'2.Logbook'!R118) ->  | S108: =IF('2.Logbook'!S118="","",'2.Logbook'!S118) ->  | T108: =IF('2.Logbook'!T118="","",'2.Logbook'!T118) ->  | U108: =IF('2.Logbook'!U118="","",'2.Logbook'!U118) ->  | V108: =IF('2.Logbook'!V118="","",'2.Logbook'!V118) ->  | W108: =IF('2.Logbook'!W118="","",'2.Logbook'!W118) ->  | X108: =IF('2.Logbook'!X118="","",'2.Logbook'!X118) ->  | Y108: =IF('2.Logbook'!Y118="","",'2.Logbook'!Y118) ->  | Z108: =IF('2.Logbook'!Z118="","",'2.Logbook'!Z118) ->  | AA108: =IF('2.Logbook'!AA118="","",'2.Logbook'!AA118) ->  | AB108: =IF('2.Logbook'!AB118="","",'2.Logbook'!AB118) ->  | AC108: =IF('2.Logbook'!AC118="","",'2.Logbook'!AC118) ->  | AD108: =IF('2.Logbook'!AD118="","",'2.Logbook'!AD118) ->  | AE108: =IF('2.Logbook'!AE118="","",'2.Logbook'!AE118) ->  | AF108: =IF('2.Logbook'!AF118="","",'2.Logbook'!AF118) ->  | AG108: =IF('2.Logbook'!AG118="","",'2.Logbook'!AG118) -> 
A109: =IF('2.Logbook'!A119="","",'2.Logbook'!A119) ->  | B109: =IF('2.Logbook'!B119="","",'2.Logbook'!B119) ->  | C109: =IF('2.Logbook'!C119="","",'2.Logbook'!C119) ->  | D109: =IF('2.Logbook'!D119="","",'2.Logbook'!D119) ->  | E109: =IF('2.Logbook'!E119="","",'2.Logbook'!E119) ->  | F109: =IF('2.Logbook'!F119="","",'2.Logbook'!F119) ->  | G109: =IF('2.Logbook'!G119="","",'2.Logbook'!G119) ->  | H109: =IF('2.Logbook'!H119="","",'2.Logbook'!H119) ->  | I109: =IF('2.Logbook'!I119="","",'2.Logbook'!I119) ->  | J109: =IF('2.Logbook'!J119="","",'2.Logbook'!J119) ->  | K109: =IF('2.Logbook'!K119="","",'2.Logbook'!K119) ->  | L109: =IF('2.Logbook'!L119="","",'2.Logbook'!L119) ->  | M109: =IF('2.Logbook'!M119="","",'2.Logbook'!M119) ->  | N109: =IF('2.Logbook'!N119="","",'2.Logbook'!N119) ->  | O109: =IF('2.Logbook'!O119="","",'2.Logbook'!O119) ->  | P109: =IF('2.Logbook'!P119="","",'2.Logbook'!P119) ->  | Q109: =IF('2.Logbook'!Q119="","",'2.Logbook'!Q119) ->  | R109: =IF('2.Logbook'!R119="","",'2.Logbook'!R119) ->  | S109: =IF('2.Logbook'!S119="","",'2.Logbook'!S119) ->  | T109: =IF('2.Logbook'!T119="","",'2.Logbook'!T119) ->  | U109: =IF('2.Logbook'!U119="","",'2.Logbook'!U119) ->  | V109: =IF('2.Logbook'!V119="","",'2.Logbook'!V119) ->  | W109: =IF('2.Logbook'!W119="","",'2.Logbook'!W119) ->  | X109: =IF('2.Logbook'!X119="","",'2.Logbook'!X119) ->  | Y109: =IF('2.Logbook'!Y119="","",'2.Logbook'!Y119) ->  | Z109: =IF('2.Logbook'!Z119="","",'2.Logbook'!Z119) ->  | AA109: =IF('2.Logbook'!AA119="","",'2.Logbook'!AA119) ->  | AB109: =IF('2.Logbook'!AB119="","",'2.Logbook'!AB119) ->  | AC109: =IF('2.Logbook'!AC119="","",'2.Logbook'!AC119) ->  | AD109: =IF('2.Logbook'!AD119="","",'2.Logbook'!AD119) ->  | AE109: =IF('2.Logbook'!AE119="","",'2.Logbook'!AE119) ->  | AF109: =IF('2.Logbook'!AF119="","",'2.Logbook'!AF119) ->  | AG109: =IF('2.Logbook'!AG119="","",'2.Logbook'!AG119) -> 
A110: =IF('2.Logbook'!A120="","",'2.Logbook'!A120) ->  | B110: =IF('2.Logbook'!B120="","",'2.Logbook'!B120) ->  | C110: =IF('2.Logbook'!C120="","",'2.Logbook'!C120) ->  | D110: =IF('2.Logbook'!D120="","",'2.Logbook'!D120) ->  | E110: =IF('2.Logbook'!E120="","",'2.Logbook'!E120) ->  | F110: =IF('2.Logbook'!F120="","",'2.Logbook'!F120) ->  | G110: =IF('2.Logbook'!G120="","",'2.Logbook'!G120) ->  | H110: =IF('2.Logbook'!H120="","",'2.Logbook'!H120) ->  | I110: =IF('2.Logbook'!I120="","",'2.Logbook'!I120) ->  | J110: =IF('2.Logbook'!J120="","",'2.Logbook'!J120) ->  | K110: =IF('2.Logbook'!K120="","",'2.Logbook'!K120) ->  | L110: =IF('2.Logbook'!L120="","",'2.Logbook'!L120) ->  | M110: =IF('2.Logbook'!M120="","",'2.Logbook'!M120) ->  | N110: =IF('2.Logbook'!N120="","",'2.Logbook'!N120) ->  | O110: =IF('2.Logbook'!O120="","",'2.Logbook'!O120) ->  | P110: =IF('2.Logbook'!P120="","",'2.Logbook'!P120) ->  | Q110: =IF('2.Logbook'!Q120="","",'2.Logbook'!Q120) ->  | R110: =IF('2.Logbook'!R120="","",'2.Logbook'!R120) ->  | S110: =IF('2.Logbook'!S120="","",'2.Logbook'!S120) ->  | T110: =IF('2.Logbook'!T120="","",'2.Logbook'!T120) ->  | U110: =IF('2.Logbook'!U120="","",'2.Logbook'!U120) ->  | V110: =IF('2.Logbook'!V120="","",'2.Logbook'!V120) ->  | W110: =IF('2.Logbook'!W120="","",'2.Logbook'!W120) ->  | X110: =IF('2.Logbook'!X120="","",'2.Logbook'!X120) ->  | Y110: =IF('2.Logbook'!Y120="","",'2.Logbook'!Y120) ->  | Z110: =IF('2.Logbook'!Z120="","",'2.Logbook'!Z120) ->  | AA110: =IF('2.Logbook'!AA120="","",'2.Logbook'!AA120) ->  | AB110: =IF('2.Logbook'!AB120="","",'2.Logbook'!AB120) ->  | AC110: =IF('2.Logbook'!AC120="","",'2.Logbook'!AC120) ->  | AD110: =IF('2.Logbook'!AD120="","",'2.Logbook'!AD120) ->  | AE110: =IF('2.Logbook'!AE120="","",'2.Logbook'!AE120) ->  | AF110: =IF('2.Logbook'!AF120="","",'2.Logbook'!AF120) ->  | AG110: =IF('2.Logbook'!AG120="","",'2.Logbook'!AG120) -> 
A111: =IF('2.Logbook'!A121="","",'2.Logbook'!A121) ->  | B111: =IF('2.Logbook'!B121="","",'2.Logbook'!B121) ->  | C111: =IF('2.Logbook'!C121="","",'2.Logbook'!C121) ->  | D111: =IF('2.Logbook'!D121="","",'2.Logbook'!D121) ->  | E111: =IF('2.Logbook'!E121="","",'2.Logbook'!E121) ->  | F111: =IF('2.Logbook'!F121="","",'2.Logbook'!F121) ->  | G111: =IF('2.Logbook'!G121="","",'2.Logbook'!G121) ->  | H111: =IF('2.Logbook'!H121="","",'2.Logbook'!H121) ->  | I111: =IF('2.Logbook'!I121="","",'2.Logbook'!I121) ->  | J111: =IF('2.Logbook'!J121="","",'2.Logbook'!J121) ->  | K111: =IF('2.Logbook'!K121="","",'2.Logbook'!K121) ->  | L111: =IF('2.Logbook'!L121="","",'2.Logbook'!L121) ->  | M111: =IF('2.Logbook'!M121="","",'2.Logbook'!M121) ->  | N111: =IF('2.Logbook'!N121="","",'2.Logbook'!N121) ->  | O111: =IF('2.Logbook'!O121="","",'2.Logbook'!O121) ->  | P111: =IF('2.Logbook'!P121="","",'2.Logbook'!P121) ->  | Q111: =IF('2.Logbook'!Q121="","",'2.Logbook'!Q121) ->  | R111: =IF('2.Logbook'!R121="","",'2.Logbook'!R121) ->  | S111: =IF('2.Logbook'!S121="","",'2.Logbook'!S121) ->  | T111: =IF('2.Logbook'!T121="","",'2.Logbook'!T121) ->  | U111: =IF('2.Logbook'!U121="","",'2.Logbook'!U121) ->  | V111: =IF('2.Logbook'!V121="","",'2.Logbook'!V121) ->  | W111: =IF('2.Logbook'!W121="","",'2.Logbook'!W121) ->  | X111: =IF('2.Logbook'!X121="","",'2.Logbook'!X121) ->  | Y111: =IF('2.Logbook'!Y121="","",'2.Logbook'!Y121) ->  | Z111: =IF('2.Logbook'!Z121="","",'2.Logbook'!Z121) ->  | AA111: =IF('2.Logbook'!AA121="","",'2.Logbook'!AA121) ->  | AB111: =IF('2.Logbook'!AB121="","",'2.Logbook'!AB121) ->  | AC111: =IF('2.Logbook'!AC121="","",'2.Logbook'!AC121) ->  | AD111: =IF('2.Logbook'!AD121="","",'2.Logbook'!AD121) ->  | AE111: =IF('2.Logbook'!AE121="","",'2.Logbook'!AE121) ->  | AF111: =IF('2.Logbook'!AF121="","",'2.Logbook'!AF121) ->  | AG111: =IF('2.Logbook'!AG121="","",'2.Logbook'!AG121) -> 
A112: =IF('2.Logbook'!A122="","",'2.Logbook'!A122) ->  | B112: =IF('2.Logbook'!B122="","",'2.Logbook'!B122) ->  | C112: =IF('2.Logbook'!C122="","",'2.Logbook'!C122) ->  | D112: =IF('2.Logbook'!D122="","",'2.Logbook'!D122) ->  | E112: =IF('2.Logbook'!E122="","",'2.Logbook'!E122) ->  | F112: =IF('2.Logbook'!F122="","",'2.Logbook'!F122) ->  | G112: =IF('2.Logbook'!G122="","",'2.Logbook'!G122) ->  | H112: =IF('2.Logbook'!H122="","",'2.Logbook'!H122) ->  | I112: =IF('2.Logbook'!I122="","",'2.Logbook'!I122) ->  | J112: =IF('2.Logbook'!J122="","",'2.Logbook'!J122) ->  | K112: =IF('2.Logbook'!K122="","",'2.Logbook'!K122) ->  | L112: =IF('2.Logbook'!L122="","",'2.Logbook'!L122) ->  | M112: =IF('2.Logbook'!M122="","",'2.Logbook'!M122) ->  | N112: =IF('2.Logbook'!N122="","",'2.Logbook'!N122) ->  | O112: =IF('2.Logbook'!O122="","",'2.Logbook'!O122) ->  | P112: =IF('2.Logbook'!P122="","",'2.Logbook'!P122) ->  | Q112: =IF('2.Logbook'!Q122="","",'2.Logbook'!Q122) ->  | R112: =IF('2.Logbook'!R122="","",'2.Logbook'!R122) ->  | S112: =IF('2.Logbook'!S122="","",'2.Logbook'!S122) ->  | T112: =IF('2.Logbook'!T122="","",'2.Logbook'!T122) ->  | U112: =IF('2.Logbook'!U122="","",'2.Logbook'!U122) ->  | V112: =IF('2.Logbook'!V122="","",'2.Logbook'!V122) ->  | W112: =IF('2.Logbook'!W122="","",'2.Logbook'!W122) ->  | X112: =IF('2.Logbook'!X122="","",'2.Logbook'!X122) ->  | Y112: =IF('2.Logbook'!Y122="","",'2.Logbook'!Y122) ->  | Z112: =IF('2.Logbook'!Z122="","",'2.Logbook'!Z122) ->  | AA112: =IF('2.Logbook'!AA122="","",'2.Logbook'!AA122) ->  | AB112: =IF('2.Logbook'!AB122="","",'2.Logbook'!AB122) ->  | AC112: =IF('2.Logbook'!AC122="","",'2.Logbook'!AC122) ->  | AD112: =IF('2.Logbook'!AD122="","",'2.Logbook'!AD122) ->  | AE112: =IF('2.Logbook'!AE122="","",'2.Logbook'!AE122) ->  | AF112: =IF('2.Logbook'!AF122="","",'2.Logbook'!AF122) ->  | AG112: =IF('2.Logbook'!AG122="","",'2.Logbook'!AG122) -> 
A113: =IF('2.Logbook'!A123="","",'2.Logbook'!A123) ->  | B113: =IF('2.Logbook'!B123="","",'2.Logbook'!B123) ->  | C113: =IF('2.Logbook'!C123="","",'2.Logbook'!C123) ->  | D113: =IF('2.Logbook'!D123="","",'2.Logbook'!D123) ->  | E113: =IF('2.Logbook'!E123="","",'2.Logbook'!E123) ->  | F113: =IF('2.Logbook'!F123="","",'2.Logbook'!F123) ->  | G113: =IF('2.Logbook'!G123="","",'2.Logbook'!G123) ->  | H113: =IF('2.Logbook'!H123="","",'2.Logbook'!H123) ->  | I113: =IF('2.Logbook'!I123="","",'2.Logbook'!I123) ->  | J113: =IF('2.Logbook'!J123="","",'2.Logbook'!J123) ->  | K113: =IF('2.Logbook'!K123="","",'2.Logbook'!K123) ->  | L113: =IF('2.Logbook'!L123="","",'2.Logbook'!L123) ->  | M113: =IF('2.Logbook'!M123="","",'2.Logbook'!M123) ->  | N113: =IF('2.Logbook'!N123="","",'2.Logbook'!N123) ->  | O113: =IF('2.Logbook'!O123="","",'2.Logbook'!O123) ->  | P113: =IF('2.Logbook'!P123="","",'2.Logbook'!P123) ->  | Q113: =IF('2.Logbook'!Q123="","",'2.Logbook'!Q123) ->  | R113: =IF('2.Logbook'!R123="","",'2.Logbook'!R123) ->  | S113: =IF('2.Logbook'!S123="","",'2.Logbook'!S123) ->  | T113: =IF('2.Logbook'!T123="","",'2.Logbook'!T123) ->  | U113: =IF('2.Logbook'!U123="","",'2.Logbook'!U123) ->  | V113: =IF('2.Logbook'!V123="","",'2.Logbook'!V123) ->  | W113: =IF('2.Logbook'!W123="","",'2.Logbook'!W123) ->  | X113: =IF('2.Logbook'!X123="","",'2.Logbook'!X123) ->  | Y113: =IF('2.Logbook'!Y123="","",'2.Logbook'!Y123) ->  | Z113: =IF('2.Logbook'!Z123="","",'2.Logbook'!Z123) ->  | AA113: =IF('2.Logbook'!AA123="","",'2.Logbook'!AA123) ->  | AB113: =IF('2.Logbook'!AB123="","",'2.Logbook'!AB123) ->  | AC113: =IF('2.Logbook'!AC123="","",'2.Logbook'!AC123) ->  | AD113: =IF('2.Logbook'!AD123="","",'2.Logbook'!AD123) ->  | AE113: =IF('2.Logbook'!AE123="","",'2.Logbook'!AE123) ->  | AF113: =IF('2.Logbook'!AF123="","",'2.Logbook'!AF123) ->  | AG113: =IF('2.Logbook'!AG123="","",'2.Logbook'!AG123) -> 
A114: =IF('2.Logbook'!A124="","",'2.Logbook'!A124) ->  | B114: =IF('2.Logbook'!B124="","",'2.Logbook'!B124) ->  | C114: =IF('2.Logbook'!C124="","",'2.Logbook'!C124) ->  | D114: =IF('2.Logbook'!D124="","",'2.Logbook'!D124) ->  | E114: =IF('2.Logbook'!E124="","",'2.Logbook'!E124) ->  | F114: =IF('2.Logbook'!F124="","",'2.Logbook'!F124) ->  | G114: =IF('2.Logbook'!G124="","",'2.Logbook'!G124) ->  | H114: =IF('2.Logbook'!H124="","",'2.Logbook'!H124) ->  | I114: =IF('2.Logbook'!I124="","",'2.Logbook'!I124) ->  | J114: =IF('2.Logbook'!J124="","",'2.Logbook'!J124) ->  | K114: =IF('2.Logbook'!K124="","",'2.Logbook'!K124) ->  | L114: =IF('2.Logbook'!L124="","",'2.Logbook'!L124) ->  | M114: =IF('2.Logbook'!M124="","",'2.Logbook'!M124) ->  | N114: =IF('2.Logbook'!N124="","",'2.Logbook'!N124) ->  | O114: =IF('2.Logbook'!O124="","",'2.Logbook'!O124) ->  | P114: =IF('2.Logbook'!P124="","",'2.Logbook'!P124) ->  | Q114: =IF('2.Logbook'!Q124="","",'2.Logbook'!Q124) ->  | R114: =IF('2.Logbook'!R124="","",'2.Logbook'!R124) ->  | S114: =IF('2.Logbook'!S124="","",'2.Logbook'!S124) ->  | T114: =IF('2.Logbook'!T124="","",'2.Logbook'!T124) ->  | U114: =IF('2.Logbook'!U124="","",'2.Logbook'!U124) ->  | V114: =IF('2.Logbook'!V124="","",'2.Logbook'!V124) ->  | W114: =IF('2.Logbook'!W124="","",'2.Logbook'!W124) ->  | X114: =IF('2.Logbook'!X124="","",'2.Logbook'!X124) ->  | Y114: =IF('2.Logbook'!Y124="","",'2.Logbook'!Y124) ->  | Z114: =IF('2.Logbook'!Z124="","",'2.Logbook'!Z124) ->  | AA114: =IF('2.Logbook'!AA124="","",'2.Logbook'!AA124) ->  | AB114: =IF('2.Logbook'!AB124="","",'2.Logbook'!AB124) ->  | AC114: =IF('2.Logbook'!AC124="","",'2.Logbook'!AC124) ->  | AD114: =IF('2.Logbook'!AD124="","",'2.Logbook'!AD124) ->  | AE114: =IF('2.Logbook'!AE124="","",'2.Logbook'!AE124) ->  | AF114: =IF('2.Logbook'!AF124="","",'2.Logbook'!AF124) ->  | AG114: =IF('2.Logbook'!AG124="","",'2.Logbook'!AG124) -> 
A115: =IF('2.Logbook'!A125="","",'2.Logbook'!A125) ->  | B115: =IF('2.Logbook'!B125="","",'2.Logbook'!B125) ->  | C115: =IF('2.Logbook'!C125="","",'2.Logbook'!C125) ->  | D115: =IF('2.Logbook'!D125="","",'2.Logbook'!D125) ->  | E115: =IF('2.Logbook'!E125="","",'2.Logbook'!E125) ->  | F115: =IF('2.Logbook'!F125="","",'2.Logbook'!F125) ->  | G115: =IF('2.Logbook'!G125="","",'2.Logbook'!G125) ->  | H115: =IF('2.Logbook'!H125="","",'2.Logbook'!H125) ->  | I115: =IF('2.Logbook'!I125="","",'2.Logbook'!I125) ->  | J115: =IF('2.Logbook'!J125="","",'2.Logbook'!J125) ->  | K115: =IF('2.Logbook'!K125="","",'2.Logbook'!K125) ->  | L115: =IF('2.Logbook'!L125="","",'2.Logbook'!L125) ->  | M115: =IF('2.Logbook'!M125="","",'2.Logbook'!M125) ->  | N115: =IF('2.Logbook'!N125="","",'2.Logbook'!N125) ->  | O115: =IF('2.Logbook'!O125="","",'2.Logbook'!O125) ->  | P115: =IF('2.Logbook'!P125="","",'2.Logbook'!P125) ->  | Q115: =IF('2.Logbook'!Q125="","",'2.Logbook'!Q125) ->  | R115: =IF('2.Logbook'!R125="","",'2.Logbook'!R125) ->  | S115: =IF('2.Logbook'!S125="","",'2.Logbook'!S125) ->  | T115: =IF('2.Logbook'!T125="","",'2.Logbook'!T125) ->  | U115: =IF('2.Logbook'!U125="","",'2.Logbook'!U125) ->  | V115: =IF('2.Logbook'!V125="","",'2.Logbook'!V125) ->  | W115: =IF('2.Logbook'!W125="","",'2.Logbook'!W125) ->  | X115: =IF('2.Logbook'!X125="","",'2.Logbook'!X125) ->  | Y115: =IF('2.Logbook'!Y125="","",'2.Logbook'!Y125) ->  | Z115: =IF('2.Logbook'!Z125="","",'2.Logbook'!Z125) ->  | AA115: =IF('2.Logbook'!AA125="","",'2.Logbook'!AA125) ->  | AB115: =IF('2.Logbook'!AB125="","",'2.Logbook'!AB125) ->  | AC115: =IF('2.Logbook'!AC125="","",'2.Logbook'!AC125) ->  | AD115: =IF('2.Logbook'!AD125="","",'2.Logbook'!AD125) ->  | AE115: =IF('2.Logbook'!AE125="","",'2.Logbook'!AE125) ->  | AF115: =IF('2.Logbook'!AF125="","",'2.Logbook'!AF125) ->  | AG115: =IF('2.Logbook'!AG125="","",'2.Logbook'!AG125) -> 
A116: =IF('2.Logbook'!A126="","",'2.Logbook'!A126) ->  | B116: =IF('2.Logbook'!B126="","",'2.Logbook'!B126) ->  | C116: =IF('2.Logbook'!C126="","",'2.Logbook'!C126) ->  | D116: =IF('2.Logbook'!D126="","",'2.Logbook'!D126) ->  | E116: =IF('2.Logbook'!E126="","",'2.Logbook'!E126) ->  | F116: =IF('2.Logbook'!F126="","",'2.Logbook'!F126) ->  | G116: =IF('2.Logbook'!G126="","",'2.Logbook'!G126) ->  | H116: =IF('2.Logbook'!H126="","",'2.Logbook'!H126) ->  | I116: =IF('2.Logbook'!I126="","",'2.Logbook'!I126) ->  | J116: =IF('2.Logbook'!J126="","",'2.Logbook'!J126) ->  | K116: =IF('2.Logbook'!K126="","",'2.Logbook'!K126) ->  | L116: =IF('2.Logbook'!L126="","",'2.Logbook'!L126) ->  | M116: =IF('2.Logbook'!M126="","",'2.Logbook'!M126) ->  | N116: =IF('2.Logbook'!N126="","",'2.Logbook'!N126) ->  | O116: =IF('2.Logbook'!O126="","",'2.Logbook'!O126) ->  | P116: =IF('2.Logbook'!P126="","",'2.Logbook'!P126) ->  | Q116: =IF('2.Logbook'!Q126="","",'2.Logbook'!Q126) ->  | R116: =IF('2.Logbook'!R126="","",'2.Logbook'!R126) ->  | S116: =IF('2.Logbook'!S126="","",'2.Logbook'!S126) ->  | T116: =IF('2.Logbook'!T126="","",'2.Logbook'!T126) ->  | U116: =IF('2.Logbook'!U126="","",'2.Logbook'!U126) ->  | V116: =IF('2.Logbook'!V126="","",'2.Logbook'!V126) ->  | W116: =IF('2.Logbook'!W126="","",'2.Logbook'!W126) ->  | X116: =IF('2.Logbook'!X126="","",'2.Logbook'!X126) ->  | Y116: =IF('2.Logbook'!Y126="","",'2.Logbook'!Y126) ->  | Z116: =IF('2.Logbook'!Z126="","",'2.Logbook'!Z126) ->  | AA116: =IF('2.Logbook'!AA126="","",'2.Logbook'!AA126) ->  | AB116: =IF('2.Logbook'!AB126="","",'2.Logbook'!AB126) ->  | AC116: =IF('2.Logbook'!AC126="","",'2.Logbook'!AC126) ->  | AD116: =IF('2.Logbook'!AD126="","",'2.Logbook'!AD126) ->  | AE116: =IF('2.Logbook'!AE126="","",'2.Logbook'!AE126) ->  | AF116: =IF('2.Logbook'!AF126="","",'2.Logbook'!AF126) ->  | AG116: =IF('2.Logbook'!AG126="","",'2.Logbook'!AG126) -> 
A117: =IF('2.Logbook'!A127="","",'2.Logbook'!A127) ->  | B117: =IF('2.Logbook'!B127="","",'2.Logbook'!B127) ->  | C117: =IF('2.Logbook'!C127="","",'2.Logbook'!C127) ->  | D117: =IF('2.Logbook'!D127="","",'2.Logbook'!D127) ->  | E117: =IF('2.Logbook'!E127="","",'2.Logbook'!E127) ->  | F117: =IF('2.Logbook'!F127="","",'2.Logbook'!F127) ->  | G117: =IF('2.Logbook'!G127="","",'2.Logbook'!G127) ->  | H117: =IF('2.Logbook'!H127="","",'2.Logbook'!H127) ->  | I117: =IF('2.Logbook'!I127="","",'2.Logbook'!I127) ->  | J117: =IF('2.Logbook'!J127="","",'2.Logbook'!J127) ->  | K117: =IF('2.Logbook'!K127="","",'2.Logbook'!K127) ->  | L117: =IF('2.Logbook'!L127="","",'2.Logbook'!L127) ->  | M117: =IF('2.Logbook'!M127="","",'2.Logbook'!M127) ->  | N117: =IF('2.Logbook'!N127="","",'2.Logbook'!N127) ->  | O117: =IF('2.Logbook'!O127="","",'2.Logbook'!O127) ->  | P117: =IF('2.Logbook'!P127="","",'2.Logbook'!P127) ->  | Q117: =IF('2.Logbook'!Q127="","",'2.Logbook'!Q127) ->  | R117: =IF('2.Logbook'!R127="","",'2.Logbook'!R127) ->  | S117: =IF('2.Logbook'!S127="","",'2.Logbook'!S127) ->  | T117: =IF('2.Logbook'!T127="","",'2.Logbook'!T127) ->  | U117: =IF('2.Logbook'!U127="","",'2.Logbook'!U127) ->  | V117: =IF('2.Logbook'!V127="","",'2.Logbook'!V127) ->  | W117: =IF('2.Logbook'!W127="","",'2.Logbook'!W127) ->  | X117: =IF('2.Logbook'!X127="","",'2.Logbook'!X127) ->  | Y117: =IF('2.Logbook'!Y127="","",'2.Logbook'!Y127) ->  | Z117: =IF('2.Logbook'!Z127="","",'2.Logbook'!Z127) ->  | AA117: =IF('2.Logbook'!AA127="","",'2.Logbook'!AA127) ->  | AB117: =IF('2.Logbook'!AB127="","",'2.Logbook'!AB127) ->  | AC117: =IF('2.Logbook'!AC127="","",'2.Logbook'!AC127) ->  | AD117: =IF('2.Logbook'!AD127="","",'2.Logbook'!AD127) ->  | AE117: =IF('2.Logbook'!AE127="","",'2.Logbook'!AE127) ->  | AF117: =IF('2.Logbook'!AF127="","",'2.Logbook'!AF127) ->  | AG117: =IF('2.Logbook'!AG127="","",'2.Logbook'!AG127) -> 
A118: =IF('2.Logbook'!A128="","",'2.Logbook'!A128) ->  | B118: =IF('2.Logbook'!B128="","",'2.Logbook'!B128) ->  | C118: =IF('2.Logbook'!C128="","",'2.Logbook'!C128) ->  | D118: =IF('2.Logbook'!D128="","",'2.Logbook'!D128) ->  | E118: =IF('2.Logbook'!E128="","",'2.Logbook'!E128) ->  | F118: =IF('2.Logbook'!F128="","",'2.Logbook'!F128) ->  | G118: =IF('2.Logbook'!G128="","",'2.Logbook'!G128) ->  | H118: =IF('2.Logbook'!H128="","",'2.Logbook'!H128) ->  | I118: =IF('2.Logbook'!I128="","",'2.Logbook'!I128) ->  | J118: =IF('2.Logbook'!J128="","",'2.Logbook'!J128) ->  | K118: =IF('2.Logbook'!K128="","",'2.Logbook'!K128) ->  | L118: =IF('2.Logbook'!L128="","",'2.Logbook'!L128) ->  | M118: =IF('2.Logbook'!M128="","",'2.Logbook'!M128) ->  | N118: =IF('2.Logbook'!N128="","",'2.Logbook'!N128) ->  | O118: =IF('2.Logbook'!O128="","",'2.Logbook'!O128) ->  | P118: =IF('2.Logbook'!P128="","",'2.Logbook'!P128) ->  | Q118: =IF('2.Logbook'!Q128="","",'2.Logbook'!Q128) ->  | R118: =IF('2.Logbook'!R128="","",'2.Logbook'!R128) ->  | S118: =IF('2.Logbook'!S128="","",'2.Logbook'!S128) ->  | T118: =IF('2.Logbook'!T128="","",'2.Logbook'!T128) ->  | U118: =IF('2.Logbook'!U128="","",'2.Logbook'!U128) ->  | V118: =IF('2.Logbook'!V128="","",'2.Logbook'!V128) ->  | W118: =IF('2.Logbook'!W128="","",'2.Logbook'!W128) ->  | X118: =IF('2.Logbook'!X128="","",'2.Logbook'!X128) ->  | Y118: =IF('2.Logbook'!Y128="","",'2.Logbook'!Y128) ->  | Z118: =IF('2.Logbook'!Z128="","",'2.Logbook'!Z128) ->  | AA118: =IF('2.Logbook'!AA128="","",'2.Logbook'!AA128) ->  | AB118: =IF('2.Logbook'!AB128="","",'2.Logbook'!AB128) ->  | AC118: =IF('2.Logbook'!AC128="","",'2.Logbook'!AC128) ->  | AD118: =IF('2.Logbook'!AD128="","",'2.Logbook'!AD128) ->  | AE118: =IF('2.Logbook'!AE128="","",'2.Logbook'!AE128) ->  | AF118: =IF('2.Logbook'!AF128="","",'2.Logbook'!AF128) ->  | AG118: =IF('2.Logbook'!AG128="","",'2.Logbook'!AG128) -> 
A119: =IF('2.Logbook'!A129="","",'2.Logbook'!A129) ->  | B119: =IF('2.Logbook'!B129="","",'2.Logbook'!B129) ->  | C119: =IF('2.Logbook'!C129="","",'2.Logbook'!C129) ->  | D119: =IF('2.Logbook'!D129="","",'2.Logbook'!D129) ->  | E119: =IF('2.Logbook'!E129="","",'2.Logbook'!E129) ->  | F119: =IF('2.Logbook'!F129="","",'2.Logbook'!F129) ->  | G119: =IF('2.Logbook'!G129="","",'2.Logbook'!G129) ->  | H119: =IF('2.Logbook'!H129="","",'2.Logbook'!H129) ->  | I119: =IF('2.Logbook'!I129="","",'2.Logbook'!I129) ->  | J119: =IF('2.Logbook'!J129="","",'2.Logbook'!J129) ->  | K119: =IF('2.Logbook'!K129="","",'2.Logbook'!K129) ->  | L119: =IF('2.Logbook'!L129="","",'2.Logbook'!L129) ->  | M119: =IF('2.Logbook'!M129="","",'2.Logbook'!M129) ->  | N119: =IF('2.Logbook'!N129="","",'2.Logbook'!N129) ->  | O119: =IF('2.Logbook'!O129="","",'2.Logbook'!O129) ->  | P119: =IF('2.Logbook'!P129="","",'2.Logbook'!P129) ->  | Q119: =IF('2.Logbook'!Q129="","",'2.Logbook'!Q129) ->  | R119: =IF('2.Logbook'!R129="","",'2.Logbook'!R129) ->  | S119: =IF('2.Logbook'!S129="","",'2.Logbook'!S129) ->  | T119: =IF('2.Logbook'!T129="","",'2.Logbook'!T129) ->  | U119: =IF('2.Logbook'!U129="","",'2.Logbook'!U129) ->  | V119: =IF('2.Logbook'!V129="","",'2.Logbook'!V129) ->  | W119: =IF('2.Logbook'!W129="","",'2.Logbook'!W129) ->  | X119: =IF('2.Logbook'!X129="","",'2.Logbook'!X129) ->  | Y119: =IF('2.Logbook'!Y129="","",'2.Logbook'!Y129) ->  | Z119: =IF('2.Logbook'!Z129="","",'2.Logbook'!Z129) ->  | AA119: =IF('2.Logbook'!AA129="","",'2.Logbook'!AA129) ->  | AB119: =IF('2.Logbook'!AB129="","",'2.Logbook'!AB129) ->  | AC119: =IF('2.Logbook'!AC129="","",'2.Logbook'!AC129) ->  | AD119: =IF('2.Logbook'!AD129="","",'2.Logbook'!AD129) ->  | AE119: =IF('2.Logbook'!AE129="","",'2.Logbook'!AE129) ->  | AF119: =IF('2.Logbook'!AF129="","",'2.Logbook'!AF129) ->  | AG119: =IF('2.Logbook'!AG129="","",'2.Logbook'!AG129) -> 
A120: =IF('2.Logbook'!A130="","",'2.Logbook'!A130) ->  | B120: =IF('2.Logbook'!B130="","",'2.Logbook'!B130) ->  | C120: =IF('2.Logbook'!C130="","",'2.Logbook'!C130) ->  | D120: =IF('2.Logbook'!D130="","",'2.Logbook'!D130) ->  | E120: =IF('2.Logbook'!E130="","",'2.Logbook'!E130) ->  | F120: =IF('2.Logbook'!F130="","",'2.Logbook'!F130) ->  | G120: =IF('2.Logbook'!G130="","",'2.Logbook'!G130) ->  | H120: =IF('2.Logbook'!H130="","",'2.Logbook'!H130) ->  | I120: =IF('2.Logbook'!I130="","",'2.Logbook'!I130) ->  | J120: =IF('2.Logbook'!J130="","",'2.Logbook'!J130) ->  | K120: =IF('2.Logbook'!K130="","",'2.Logbook'!K130) ->  | L120: =IF('2.Logbook'!L130="","",'2.Logbook'!L130) ->  | M120: =IF('2.Logbook'!M130="","",'2.Logbook'!M130) ->  | N120: =IF('2.Logbook'!N130="","",'2.Logbook'!N130) ->  | O120: =IF('2.Logbook'!O130="","",'2.Logbook'!O130) ->  | P120: =IF('2.Logbook'!P130="","",'2.Logbook'!P130) ->  | Q120: =IF('2.Logbook'!Q130="","",'2.Logbook'!Q130) ->  | R120: =IF('2.Logbook'!R130="","",'2.Logbook'!R130) ->  | S120: =IF('2.Logbook'!S130="","",'2.Logbook'!S130) ->  | T120: =IF('2.Logbook'!T130="","",'2.Logbook'!T130) ->  | U120: =IF('2.Logbook'!U130="","",'2.Logbook'!U130) ->  | V120: =IF('2.Logbook'!V130="","",'2.Logbook'!V130) ->  | W120: =IF('2.Logbook'!W130="","",'2.Logbook'!W130) ->  | X120: =IF('2.Logbook'!X130="","",'2.Logbook'!X130) ->  | Y120: =IF('2.Logbook'!Y130="","",'2.Logbook'!Y130) ->  | Z120: =IF('2.Logbook'!Z130="","",'2.Logbook'!Z130) ->  | AA120: =IF('2.Logbook'!AA130="","",'2.Logbook'!AA130) ->  | AB120: =IF('2.Logbook'!AB130="","",'2.Logbook'!AB130) ->  | AC120: =IF('2.Logbook'!AC130="","",'2.Logbook'!AC130) ->  | AD120: =IF('2.Logbook'!AD130="","",'2.Logbook'!AD130) ->  | AE120: =IF('2.Logbook'!AE130="","",'2.Logbook'!AE130) ->  | AF120: =IF('2.Logbook'!AF130="","",'2.Logbook'!AF130) ->  | AG120: =IF('2.Logbook'!AG130="","",'2.Logbook'!AG130) -> 
A121: =IF('2.Logbook'!A131="","",'2.Logbook'!A131) ->  | B121: =IF('2.Logbook'!B131="","",'2.Logbook'!B131) ->  | C121: =IF('2.Logbook'!C131="","",'2.Logbook'!C131) ->  | D121: =IF('2.Logbook'!D131="","",'2.Logbook'!D131) ->  | E121: =IF('2.Logbook'!E131="","",'2.Logbook'!E131) ->  | F121: =IF('2.Logbook'!F131="","",'2.Logbook'!F131) ->  | G121: =IF('2.Logbook'!G131="","",'2.Logbook'!G131) ->  | H121: =IF('2.Logbook'!H131="","",'2.Logbook'!H131) ->  | I121: =IF('2.Logbook'!I131="","",'2.Logbook'!I131) ->  | J121: =IF('2.Logbook'!J131="","",'2.Logbook'!J131) ->  | K121: =IF('2.Logbook'!K131="","",'2.Logbook'!K131) ->  | L121: =IF('2.Logbook'!L131="","",'2.Logbook'!L131) ->  | M121: =IF('2.Logbook'!M131="","",'2.Logbook'!M131) ->  | N121: =IF('2.Logbook'!N131="","",'2.Logbook'!N131) ->  | O121: =IF('2.Logbook'!O131="","",'2.Logbook'!O131) ->  | P121: =IF('2.Logbook'!P131="","",'2.Logbook'!P131) ->  | Q121: =IF('2.Logbook'!Q131="","",'2.Logbook'!Q131) ->  | R121: =IF('2.Logbook'!R131="","",'2.Logbook'!R131) ->  | S121: =IF('2.Logbook'!S131="","",'2.Logbook'!S131) ->  | T121: =IF('2.Logbook'!T131="","",'2.Logbook'!T131) ->  | U121: =IF('2.Logbook'!U131="","",'2.Logbook'!U131) ->  | V121: =IF('2.Logbook'!V131="","",'2.Logbook'!V131) ->  | W121: =IF('2.Logbook'!W131="","",'2.Logbook'!W131) ->  | X121: =IF('2.Logbook'!X131="","",'2.Logbook'!X131) ->  | Y121: =IF('2.Logbook'!Y131="","",'2.Logbook'!Y131) ->  | Z121: =IF('2.Logbook'!Z131="","",'2.Logbook'!Z131) ->  | AA121: =IF('2.Logbook'!AA131="","",'2.Logbook'!AA131) ->  | AB121: =IF('2.Logbook'!AB131="","",'2.Logbook'!AB131) ->  | AC121: =IF('2.Logbook'!AC131="","",'2.Logbook'!AC131) ->  | AD121: =IF('2.Logbook'!AD131="","",'2.Logbook'!AD131) ->  | AE121: =IF('2.Logbook'!AE131="","",'2.Logbook'!AE131) ->  | AF121: =IF('2.Logbook'!AF131="","",'2.Logbook'!AF131) ->  | AG121: =IF('2.Logbook'!AG131="","",'2.Logbook'!AG131) -> 
A122: =IF('2.Logbook'!A132="","",'2.Logbook'!A132) ->  | B122: =IF('2.Logbook'!B132="","",'2.Logbook'!B132) ->  | C122: =IF('2.Logbook'!C132="","",'2.Logbook'!C132) ->  | D122: =IF('2.Logbook'!D132="","",'2.Logbook'!D132) ->  | E122: =IF('2.Logbook'!E132="","",'2.Logbook'!E132) ->  | F122: =IF('2.Logbook'!F132="","",'2.Logbook'!F132) ->  | G122: =IF('2.Logbook'!G132="","",'2.Logbook'!G132) ->  | H122: =IF('2.Logbook'!H132="","",'2.Logbook'!H132) ->  | I122: =IF('2.Logbook'!I132="","",'2.Logbook'!I132) ->  | J122: =IF('2.Logbook'!J132="","",'2.Logbook'!J132) ->  | K122: =IF('2.Logbook'!K132="","",'2.Logbook'!K132) ->  | L122: =IF('2.Logbook'!L132="","",'2.Logbook'!L132) ->  | M122: =IF('2.Logbook'!M132="","",'2.Logbook'!M132) ->  | N122: =IF('2.Logbook'!N132="","",'2.Logbook'!N132) ->  | O122: =IF('2.Logbook'!O132="","",'2.Logbook'!O132) ->  | P122: =IF('2.Logbook'!P132="","",'2.Logbook'!P132) ->  | Q122: =IF('2.Logbook'!Q132="","",'2.Logbook'!Q132) ->  | R122: =IF('2.Logbook'!R132="","",'2.Logbook'!R132) ->  | S122: =IF('2.Logbook'!S132="","",'2.Logbook'!S132) ->  | T122: =IF('2.Logbook'!T132="","",'2.Logbook'!T132) ->  | U122: =IF('2.Logbook'!U132="","",'2.Logbook'!U132) ->  | V122: =IF('2.Logbook'!V132="","",'2.Logbook'!V132) ->  | W122: =IF('2.Logbook'!W132="","",'2.Logbook'!W132) ->  | X122: =IF('2.Logbook'!X132="","",'2.Logbook'!X132) ->  | Y122: =IF('2.Logbook'!Y132="","",'2.Logbook'!Y132) ->  | Z122: =IF('2.Logbook'!Z132="","",'2.Logbook'!Z132) ->  | AA122: =IF('2.Logbook'!AA132="","",'2.Logbook'!AA132) ->  | AB122: =IF('2.Logbook'!AB132="","",'2.Logbook'!AB132) ->  | AC122: =IF('2.Logbook'!AC132="","",'2.Logbook'!AC132) ->  | AD122: =IF('2.Logbook'!AD132="","",'2.Logbook'!AD132) ->  | AE122: =IF('2.Logbook'!AE132="","",'2.Logbook'!AE132) ->  | AF122: =IF('2.Logbook'!AF132="","",'2.Logbook'!AF132) ->  | AG122: =IF('2.Logbook'!AG132="","",'2.Logbook'!AG132) -> 
A123: =IF('2.Logbook'!A133="","",'2.Logbook'!A133) ->  | B123: =IF('2.Logbook'!B133="","",'2.Logbook'!B133) ->  | C123: =IF('2.Logbook'!C133="","",'2.Logbook'!C133) ->  | D123: =IF('2.Logbook'!D133="","",'2.Logbook'!D133) ->  | E123: =IF('2.Logbook'!E133="","",'2.Logbook'!E133) ->  | F123: =IF('2.Logbook'!F133="","",'2.Logbook'!F133) ->  | G123: =IF('2.Logbook'!G133="","",'2.Logbook'!G133) ->  | H123: =IF('2.Logbook'!H133="","",'2.Logbook'!H133) ->  | I123: =IF('2.Logbook'!I133="","",'2.Logbook'!I133) ->  | J123: =IF('2.Logbook'!J133="","",'2.Logbook'!J133) ->  | K123: =IF('2.Logbook'!K133="","",'2.Logbook'!K133) ->  | L123: =IF('2.Logbook'!L133="","",'2.Logbook'!L133) ->  | M123: =IF('2.Logbook'!M133="","",'2.Logbook'!M133) ->  | N123: =IF('2.Logbook'!N133="","",'2.Logbook'!N133) ->  | O123: =IF('2.Logbook'!O133="","",'2.Logbook'!O133) ->  | P123: =IF('2.Logbook'!P133="","",'2.Logbook'!P133) ->  | Q123: =IF('2.Logbook'!Q133="","",'2.Logbook'!Q133) ->  | R123: =IF('2.Logbook'!R133="","",'2.Logbook'!R133) ->  | S123: =IF('2.Logbook'!S133="","",'2.Logbook'!S133) ->  | T123: =IF('2.Logbook'!T133="","",'2.Logbook'!T133) ->  | U123: =IF('2.Logbook'!U133="","",'2.Logbook'!U133) ->  | V123: =IF('2.Logbook'!V133="","",'2.Logbook'!V133) ->  | W123: =IF('2.Logbook'!W133="","",'2.Logbook'!W133) ->  | X123: =IF('2.Logbook'!X133="","",'2.Logbook'!X133) ->  | Y123: =IF('2.Logbook'!Y133="","",'2.Logbook'!Y133) ->  | Z123: =IF('2.Logbook'!Z133="","",'2.Logbook'!Z133) ->  | AA123: =IF('2.Logbook'!AA133="","",'2.Logbook'!AA133) ->  | AB123: =IF('2.Logbook'!AB133="","",'2.Logbook'!AB133) ->  | AC123: =IF('2.Logbook'!AC133="","",'2.Logbook'!AC133) ->  | AD123: =IF('2.Logbook'!AD133="","",'2.Logbook'!AD133) ->  | AE123: =IF('2.Logbook'!AE133="","",'2.Logbook'!AE133) ->  | AF123: =IF('2.Logbook'!AF133="","",'2.Logbook'!AF133) ->  | AG123: =IF('2.Logbook'!AG133="","",'2.Logbook'!AG133) -> 
A124: =IF('2.Logbook'!A134="","",'2.Logbook'!A134) ->  | B124: =IF('2.Logbook'!B134="","",'2.Logbook'!B134) ->  | C124: =IF('2.Logbook'!C134="","",'2.Logbook'!C134) ->  | D124: =IF('2.Logbook'!D134="","",'2.Logbook'!D134) ->  | E124: =IF('2.Logbook'!E134="","",'2.Logbook'!E134) ->  | F124: =IF('2.Logbook'!F134="","",'2.Logbook'!F134) ->  | G124: =IF('2.Logbook'!G134="","",'2.Logbook'!G134) ->  | H124: =IF('2.Logbook'!H134="","",'2.Logbook'!H134) ->  | I124: =IF('2.Logbook'!I134="","",'2.Logbook'!I134) ->  | J124: =IF('2.Logbook'!J134="","",'2.Logbook'!J134) ->  | K124: =IF('2.Logbook'!K134="","",'2.Logbook'!K134) ->  | L124: =IF('2.Logbook'!L134="","",'2.Logbook'!L134) ->  | M124: =IF('2.Logbook'!M134="","",'2.Logbook'!M134) ->  | N124: =IF('2.Logbook'!N134="","",'2.Logbook'!N134) ->  | O124: =IF('2.Logbook'!O134="","",'2.Logbook'!O134) ->  | P124: =IF('2.Logbook'!P134="","",'2.Logbook'!P134) ->  | Q124: =IF('2.Logbook'!Q134="","",'2.Logbook'!Q134) ->  | R124: =IF('2.Logbook'!R134="","",'2.Logbook'!R134) ->  | S124: =IF('2.Logbook'!S134="","",'2.Logbook'!S134) ->  | T124: =IF('2.Logbook'!T134="","",'2.Logbook'!T134) ->  | U124: =IF('2.Logbook'!U134="","",'2.Logbook'!U134) ->  | V124: =IF('2.Logbook'!V134="","",'2.Logbook'!V134) ->  | W124: =IF('2.Logbook'!W134="","",'2.Logbook'!W134) ->  | X124: =IF('2.Logbook'!X134="","",'2.Logbook'!X134) ->  | Y124: =IF('2.Logbook'!Y134="","",'2.Logbook'!Y134) ->  | Z124: =IF('2.Logbook'!Z134="","",'2.Logbook'!Z134) ->  | AA124: =IF('2.Logbook'!AA134="","",'2.Logbook'!AA134) ->  | AB124: =IF('2.Logbook'!AB134="","",'2.Logbook'!AB134) ->  | AC124: =IF('2.Logbook'!AC134="","",'2.Logbook'!AC134) ->  | AD124: =IF('2.Logbook'!AD134="","",'2.Logbook'!AD134) ->  | AE124: =IF('2.Logbook'!AE134="","",'2.Logbook'!AE134) ->  | AF124: =IF('2.Logbook'!AF134="","",'2.Logbook'!AF134) ->  | AG124: =IF('2.Logbook'!AG134="","",'2.Logbook'!AG134) -> 
A125: =IF('2.Logbook'!A135="","",'2.Logbook'!A135) ->  | B125: =IF('2.Logbook'!B135="","",'2.Logbook'!B135) ->  | C125: =IF('2.Logbook'!C135="","",'2.Logbook'!C135) ->  | D125: =IF('2.Logbook'!D135="","",'2.Logbook'!D135) ->  | E125: =IF('2.Logbook'!E135="","",'2.Logbook'!E135) ->  | F125: =IF('2.Logbook'!F135="","",'2.Logbook'!F135) ->  | G125: =IF('2.Logbook'!G135="","",'2.Logbook'!G135) ->  | H125: =IF('2.Logbook'!H135="","",'2.Logbook'!H135) ->  | I125: =IF('2.Logbook'!I135="","",'2.Logbook'!I135) ->  | J125: =IF('2.Logbook'!J135="","",'2.Logbook'!J135) ->  | K125: =IF('2.Logbook'!K135="","",'2.Logbook'!K135) ->  | L125: =IF('2.Logbook'!L135="","",'2.Logbook'!L135) ->  | M125: =IF('2.Logbook'!M135="","",'2.Logbook'!M135) ->  | N125: =IF('2.Logbook'!N135="","",'2.Logbook'!N135) ->  | O125: =IF('2.Logbook'!O135="","",'2.Logbook'!O135) ->  | P125: =IF('2.Logbook'!P135="","",'2.Logbook'!P135) ->  | Q125: =IF('2.Logbook'!Q135="","",'2.Logbook'!Q135) ->  | R125: =IF('2.Logbook'!R135="","",'2.Logbook'!R135) ->  | S125: =IF('2.Logbook'!S135="","",'2.Logbook'!S135) ->  | T125: =IF('2.Logbook'!T135="","",'2.Logbook'!T135) ->  | U125: =IF('2.Logbook'!U135="","",'2.Logbook'!U135) ->  | V125: =IF('2.Logbook'!V135="","",'2.Logbook'!V135) ->  | W125: =IF('2.Logbook'!W135="","",'2.Logbook'!W135) ->  | X125: =IF('2.Logbook'!X135="","",'2.Logbook'!X135) ->  | Y125: =IF('2.Logbook'!Y135="","",'2.Logbook'!Y135) ->  | Z125: =IF('2.Logbook'!Z135="","",'2.Logbook'!Z135) ->  | AA125: =IF('2.Logbook'!AA135="","",'2.Logbook'!AA135) ->  | AB125: =IF('2.Logbook'!AB135="","",'2.Logbook'!AB135) ->  | AC125: =IF('2.Logbook'!AC135="","",'2.Logbook'!AC135) ->  | AD125: =IF('2.Logbook'!AD135="","",'2.Logbook'!AD135) ->  | AE125: =IF('2.Logbook'!AE135="","",'2.Logbook'!AE135) ->  | AF125: =IF('2.Logbook'!AF135="","",'2.Logbook'!AF135) ->  | AG125: =IF('2.Logbook'!AG135="","",'2.Logbook'!AG135) -> 
A126: =IF('2.Logbook'!A136="","",'2.Logbook'!A136) ->  | B126: =IF('2.Logbook'!B136="","",'2.Logbook'!B136) ->  | C126: =IF('2.Logbook'!C136="","",'2.Logbook'!C136) ->  | D126: =IF('2.Logbook'!D136="","",'2.Logbook'!D136) ->  | E126: =IF('2.Logbook'!E136="","",'2.Logbook'!E136) ->  | F126: =IF('2.Logbook'!F136="","",'2.Logbook'!F136) ->  | G126: =IF('2.Logbook'!G136="","",'2.Logbook'!G136) ->  | H126: =IF('2.Logbook'!H136="","",'2.Logbook'!H136) ->  | I126: =IF('2.Logbook'!I136="","",'2.Logbook'!I136) ->  | J126: =IF('2.Logbook'!J136="","",'2.Logbook'!J136) ->  | K126: =IF('2.Logbook'!K136="","",'2.Logbook'!K136) ->  | L126: =IF('2.Logbook'!L136="","",'2.Logbook'!L136) ->  | M126: =IF('2.Logbook'!M136="","",'2.Logbook'!M136) ->  | N126: =IF('2.Logbook'!N136="","",'2.Logbook'!N136) ->  | O126: =IF('2.Logbook'!O136="","",'2.Logbook'!O136) ->  | P126: =IF('2.Logbook'!P136="","",'2.Logbook'!P136) ->  | Q126: =IF('2.Logbook'!Q136="","",'2.Logbook'!Q136) ->  | R126: =IF('2.Logbook'!R136="","",'2.Logbook'!R136) ->  | S126: =IF('2.Logbook'!S136="","",'2.Logbook'!S136) ->  | T126: =IF('2.Logbook'!T136="","",'2.Logbook'!T136) ->  | U126: =IF('2.Logbook'!U136="","",'2.Logbook'!U136) ->  | V126: =IF('2.Logbook'!V136="","",'2.Logbook'!V136) ->  | W126: =IF('2.Logbook'!W136="","",'2.Logbook'!W136) ->  | X126: =IF('2.Logbook'!X136="","",'2.Logbook'!X136) ->  | Y126: =IF('2.Logbook'!Y136="","",'2.Logbook'!Y136) ->  | Z126: =IF('2.Logbook'!Z136="","",'2.Logbook'!Z136) ->  | AA126: =IF('2.Logbook'!AA136="","",'2.Logbook'!AA136) ->  | AB126: =IF('2.Logbook'!AB136="","",'2.Logbook'!AB136) ->  | AC126: =IF('2.Logbook'!AC136="","",'2.Logbook'!AC136) ->  | AD126: =IF('2.Logbook'!AD136="","",'2.Logbook'!AD136) ->  | AE126: =IF('2.Logbook'!AE136="","",'2.Logbook'!AE136) ->  | AF126: =IF('2.Logbook'!AF136="","",'2.Logbook'!AF136) ->  | AG126: =IF('2.Logbook'!AG136="","",'2.Logbook'!AG136) -> 
A127: =IF('2.Logbook'!A137="","",'2.Logbook'!A137) ->  | B127: =IF('2.Logbook'!B137="","",'2.Logbook'!B137) ->  | C127: =IF('2.Logbook'!C137="","",'2.Logbook'!C137) ->  | D127: =IF('2.Logbook'!D137="","",'2.Logbook'!D137) ->  | E127: =IF('2.Logbook'!E137="","",'2.Logbook'!E137) ->  | F127: =IF('2.Logbook'!F137="","",'2.Logbook'!F137) ->  | G127: =IF('2.Logbook'!G137="","",'2.Logbook'!G137) ->  | H127: =IF('2.Logbook'!H137="","",'2.Logbook'!H137) ->  | I127: =IF('2.Logbook'!I137="","",'2.Logbook'!I137) ->  | J127: =IF('2.Logbook'!J137="","",'2.Logbook'!J137) ->  | K127: =IF('2.Logbook'!K137="","",'2.Logbook'!K137) ->  | L127: =IF('2.Logbook'!L137="","",'2.Logbook'!L137) ->  | M127: =IF('2.Logbook'!M137="","",'2.Logbook'!M137) ->  | N127: =IF('2.Logbook'!N137="","",'2.Logbook'!N137) ->  | O127: =IF('2.Logbook'!O137="","",'2.Logbook'!O137) ->  | P127: =IF('2.Logbook'!P137="","",'2.Logbook'!P137) ->  | Q127: =IF('2.Logbook'!Q137="","",'2.Logbook'!Q137) ->  | R127: =IF('2.Logbook'!R137="","",'2.Logbook'!R137) ->  | S127: =IF('2.Logbook'!S137="","",'2.Logbook'!S137) ->  | T127: =IF('2.Logbook'!T137="","",'2.Logbook'!T137) ->  | U127: =IF('2.Logbook'!U137="","",'2.Logbook'!U137) ->  | V127: =IF('2.Logbook'!V137="","",'2.Logbook'!V137) ->  | W127: =IF('2.Logbook'!W137="","",'2.Logbook'!W137) ->  | X127: =IF('2.Logbook'!X137="","",'2.Logbook'!X137) ->  | Y127: =IF('2.Logbook'!Y137="","",'2.Logbook'!Y137) ->  | Z127: =IF('2.Logbook'!Z137="","",'2.Logbook'!Z137) ->  | AA127: =IF('2.Logbook'!AA137="","",'2.Logbook'!AA137) ->  | AB127: =IF('2.Logbook'!AB137="","",'2.Logbook'!AB137) ->  | AC127: =IF('2.Logbook'!AC137="","",'2.Logbook'!AC137) ->  | AD127: =IF('2.Logbook'!AD137="","",'2.Logbook'!AD137) ->  | AE127: =IF('2.Logbook'!AE137="","",'2.Logbook'!AE137) ->  | AF127: =IF('2.Logbook'!AF137="","",'2.Logbook'!AF137) ->  | AG127: =IF('2.Logbook'!AG137="","",'2.Logbook'!AG137) -> 
A128: =IF('2.Logbook'!A138="","",'2.Logbook'!A138) ->  | B128: =IF('2.Logbook'!B138="","",'2.Logbook'!B138) ->  | C128: =IF('2.Logbook'!C138="","",'2.Logbook'!C138) ->  | D128: =IF('2.Logbook'!D138="","",'2.Logbook'!D138) ->  | E128: =IF('2.Logbook'!E138="","",'2.Logbook'!E138) ->  | F128: =IF('2.Logbook'!F138="","",'2.Logbook'!F138) ->  | G128: =IF('2.Logbook'!G138="","",'2.Logbook'!G138) ->  | H128: =IF('2.Logbook'!H138="","",'2.Logbook'!H138) ->  | I128: =IF('2.Logbook'!I138="","",'2.Logbook'!I138) ->  | J128: =IF('2.Logbook'!J138="","",'2.Logbook'!J138) ->  | K128: =IF('2.Logbook'!K138="","",'2.Logbook'!K138) ->  | L128: =IF('2.Logbook'!L138="","",'2.Logbook'!L138) ->  | M128: =IF('2.Logbook'!M138="","",'2.Logbook'!M138) ->  | N128: =IF('2.Logbook'!N138="","",'2.Logbook'!N138) ->  | O128: =IF('2.Logbook'!O138="","",'2.Logbook'!O138) ->  | P128: =IF('2.Logbook'!P138="","",'2.Logbook'!P138) ->  | Q128: =IF('2.Logbook'!Q138="","",'2.Logbook'!Q138) ->  | R128: =IF('2.Logbook'!R138="","",'2.Logbook'!R138) ->  | S128: =IF('2.Logbook'!S138="","",'2.Logbook'!S138) ->  | T128: =IF('2.Logbook'!T138="","",'2.Logbook'!T138) ->  | U128: =IF('2.Logbook'!U138="","",'2.Logbook'!U138) ->  | V128: =IF('2.Logbook'!V138="","",'2.Logbook'!V138) ->  | W128: =IF('2.Logbook'!W138="","",'2.Logbook'!W138) ->  | X128: =IF('2.Logbook'!X138="","",'2.Logbook'!X138) ->  | Y128: =IF('2.Logbook'!Y138="","",'2.Logbook'!Y138) ->  | Z128: =IF('2.Logbook'!Z138="","",'2.Logbook'!Z138) ->  | AA128: =IF('2.Logbook'!AA138="","",'2.Logbook'!AA138) ->  | AB128: =IF('2.Logbook'!AB138="","",'2.Logbook'!AB138) ->  | AC128: =IF('2.Logbook'!AC138="","",'2.Logbook'!AC138) ->  | AD128: =IF('2.Logbook'!AD138="","",'2.Logbook'!AD138) ->  | AE128: =IF('2.Logbook'!AE138="","",'2.Logbook'!AE138) ->  | AF128: =IF('2.Logbook'!AF138="","",'2.Logbook'!AF138) ->  | AG128: =IF('2.Logbook'!AG138="","",'2.Logbook'!AG138) -> 
A129: =IF('2.Logbook'!A139="","",'2.Logbook'!A139) ->  | B129: =IF('2.Logbook'!B139="","",'2.Logbook'!B139) ->  | C129: =IF('2.Logbook'!C139="","",'2.Logbook'!C139) ->  | D129: =IF('2.Logbook'!D139="","",'2.Logbook'!D139) ->  | E129: =IF('2.Logbook'!E139="","",'2.Logbook'!E139) ->  | F129: =IF('2.Logbook'!F139="","",'2.Logbook'!F139) ->  | G129: =IF('2.Logbook'!G139="","",'2.Logbook'!G139) ->  | H129: =IF('2.Logbook'!H139="","",'2.Logbook'!H139) ->  | I129: =IF('2.Logbook'!I139="","",'2.Logbook'!I139) ->  | J129: =IF('2.Logbook'!J139="","",'2.Logbook'!J139) ->  | K129: =IF('2.Logbook'!K139="","",'2.Logbook'!K139) ->  | L129: =IF('2.Logbook'!L139="","",'2.Logbook'!L139) ->  | M129: =IF('2.Logbook'!M139="","",'2.Logbook'!M139) ->  | N129: =IF('2.Logbook'!N139="","",'2.Logbook'!N139) ->  | O129: =IF('2.Logbook'!O139="","",'2.Logbook'!O139) ->  | P129: =IF('2.Logbook'!P139="","",'2.Logbook'!P139) ->  | Q129: =IF('2.Logbook'!Q139="","",'2.Logbook'!Q139) ->  | R129: =IF('2.Logbook'!R139="","",'2.Logbook'!R139) ->  | S129: =IF('2.Logbook'!S139="","",'2.Logbook'!S139) ->  | T129: =IF('2.Logbook'!T139="","",'2.Logbook'!T139) ->  | U129: =IF('2.Logbook'!U139="","",'2.Logbook'!U139) ->  | V129: =IF('2.Logbook'!V139="","",'2.Logbook'!V139) ->  | W129: =IF('2.Logbook'!W139="","",'2.Logbook'!W139) ->  | X129: =IF('2.Logbook'!X139="","",'2.Logbook'!X139) ->  | Y129: =IF('2.Logbook'!Y139="","",'2.Logbook'!Y139) ->  | Z129: =IF('2.Logbook'!Z139="","",'2.Logbook'!Z139) ->  | AA129: =IF('2.Logbook'!AA139="","",'2.Logbook'!AA139) ->  | AB129: =IF('2.Logbook'!AB139="","",'2.Logbook'!AB139) ->  | AC129: =IF('2.Logbook'!AC139="","",'2.Logbook'!AC139) ->  | AD129: =IF('2.Logbook'!AD139="","",'2.Logbook'!AD139) ->  | AE129: =IF('2.Logbook'!AE139="","",'2.Logbook'!AE139) ->  | AF129: =IF('2.Logbook'!AF139="","",'2.Logbook'!AF139) ->  | AG129: =IF('2.Logbook'!AG139="","",'2.Logbook'!AG139) -> 
A130: =IF('2.Logbook'!A140="","",'2.Logbook'!A140) ->  | B130: =IF('2.Logbook'!B140="","",'2.Logbook'!B140) ->  | C130: =IF('2.Logbook'!C140="","",'2.Logbook'!C140) ->  | D130: =IF('2.Logbook'!D140="","",'2.Logbook'!D140) ->  | E130: =IF('2.Logbook'!E140="","",'2.Logbook'!E140) ->  | F130: =IF('2.Logbook'!F140="","",'2.Logbook'!F140) ->  | G130: =IF('2.Logbook'!G140="","",'2.Logbook'!G140) ->  | H130: =IF('2.Logbook'!H140="","",'2.Logbook'!H140) ->  | I130: =IF('2.Logbook'!I140="","",'2.Logbook'!I140) ->  | J130: =IF('2.Logbook'!J140="","",'2.Logbook'!J140) ->  | K130: =IF('2.Logbook'!K140="","",'2.Logbook'!K140) ->  | L130: =IF('2.Logbook'!L140="","",'2.Logbook'!L140) ->  | M130: =IF('2.Logbook'!M140="","",'2.Logbook'!M140) ->  | N130: =IF('2.Logbook'!N140="","",'2.Logbook'!N140) ->  | O130: =IF('2.Logbook'!O140="","",'2.Logbook'!O140) ->  | P130: =IF('2.Logbook'!P140="","",'2.Logbook'!P140) ->  | Q130: =IF('2.Logbook'!Q140="","",'2.Logbook'!Q140) ->  | R130: =IF('2.Logbook'!R140="","",'2.Logbook'!R140) ->  | S130: =IF('2.Logbook'!S140="","",'2.Logbook'!S140) ->  | T130: =IF('2.Logbook'!T140="","",'2.Logbook'!T140) ->  | U130: =IF('2.Logbook'!U140="","",'2.Logbook'!U140) ->  | V130: =IF('2.Logbook'!V140="","",'2.Logbook'!V140) ->  | W130: =IF('2.Logbook'!W140="","",'2.Logbook'!W140) ->  | X130: =IF('2.Logbook'!X140="","",'2.Logbook'!X140) ->  | Y130: =IF('2.Logbook'!Y140="","",'2.Logbook'!Y140) ->  | Z130: =IF('2.Logbook'!Z140="","",'2.Logbook'!Z140) ->  | AA130: =IF('2.Logbook'!AA140="","",'2.Logbook'!AA140) ->  | AB130: =IF('2.Logbook'!AB140="","",'2.Logbook'!AB140) ->  | AC130: =IF('2.Logbook'!AC140="","",'2.Logbook'!AC140) ->  | AD130: =IF('2.Logbook'!AD140="","",'2.Logbook'!AD140) ->  | AE130: =IF('2.Logbook'!AE140="","",'2.Logbook'!AE140) ->  | AF130: =IF('2.Logbook'!AF140="","",'2.Logbook'!AF140) ->  | AG130: =IF('2.Logbook'!AG140="","",'2.Logbook'!AG140) -> 
A131: =IF('2.Logbook'!A141="","",'2.Logbook'!A141) ->  | B131: =IF('2.Logbook'!B141="","",'2.Logbook'!B141) ->  | C131: =IF('2.Logbook'!C141="","",'2.Logbook'!C141) ->  | D131: =IF('2.Logbook'!D141="","",'2.Logbook'!D141) ->  | E131: =IF('2.Logbook'!E141="","",'2.Logbook'!E141) ->  | F131: =IF('2.Logbook'!F141="","",'2.Logbook'!F141) ->  | G131: =IF('2.Logbook'!G141="","",'2.Logbook'!G141) ->  | H131: =IF('2.Logbook'!H141="","",'2.Logbook'!H141) ->  | I131: =IF('2.Logbook'!I141="","",'2.Logbook'!I141) ->  | J131: =IF('2.Logbook'!J141="","",'2.Logbook'!J141) ->  | K131: =IF('2.Logbook'!K141="","",'2.Logbook'!K141) ->  | L131: =IF('2.Logbook'!L141="","",'2.Logbook'!L141) ->  | M131: =IF('2.Logbook'!M141="","",'2.Logbook'!M141) ->  | N131: =IF('2.Logbook'!N141="","",'2.Logbook'!N141) ->  | O131: =IF('2.Logbook'!O141="","",'2.Logbook'!O141) ->  | P131: =IF('2.Logbook'!P141="","",'2.Logbook'!P141) ->  | Q131: =IF('2.Logbook'!Q141="","",'2.Logbook'!Q141) ->  | R131: =IF('2.Logbook'!R141="","",'2.Logbook'!R141) ->  | S131: =IF('2.Logbook'!S141="","",'2.Logbook'!S141) ->  | T131: =IF('2.Logbook'!T141="","",'2.Logbook'!T141) ->  | U131: =IF('2.Logbook'!U141="","",'2.Logbook'!U141) ->  | V131: =IF('2.Logbook'!V141="","",'2.Logbook'!V141) ->  | W131: =IF('2.Logbook'!W141="","",'2.Logbook'!W141) ->  | X131: =IF('2.Logbook'!X141="","",'2.Logbook'!X141) ->  | Y131: =IF('2.Logbook'!Y141="","",'2.Logbook'!Y141) ->  | Z131: =IF('2.Logbook'!Z141="","",'2.Logbook'!Z141) ->  | AA131: =IF('2.Logbook'!AA141="","",'2.Logbook'!AA141) ->  | AB131: =IF('2.Logbook'!AB141="","",'2.Logbook'!AB141) ->  | AC131: =IF('2.Logbook'!AC141="","",'2.Logbook'!AC141) ->  | AD131: =IF('2.Logbook'!AD141="","",'2.Logbook'!AD141) ->  | AE131: =IF('2.Logbook'!AE141="","",'2.Logbook'!AE141) ->  | AF131: =IF('2.Logbook'!AF141="","",'2.Logbook'!AF141) ->  | AG131: =IF('2.Logbook'!AG141="","",'2.Logbook'!AG141) -> 
A132: =IF('2.Logbook'!A142="","",'2.Logbook'!A142) ->  | B132: =IF('2.Logbook'!B142="","",'2.Logbook'!B142) ->  | C132: =IF('2.Logbook'!C142="","",'2.Logbook'!C142) ->  | D132: =IF('2.Logbook'!D142="","",'2.Logbook'!D142) ->  | E132: =IF('2.Logbook'!E142="","",'2.Logbook'!E142) ->  | F132: =IF('2.Logbook'!F142="","",'2.Logbook'!F142) ->  | G132: =IF('2.Logbook'!G142="","",'2.Logbook'!G142) ->  | H132: =IF('2.Logbook'!H142="","",'2.Logbook'!H142) ->  | I132: =IF('2.Logbook'!I142="","",'2.Logbook'!I142) ->  | J132: =IF('2.Logbook'!J142="","",'2.Logbook'!J142) ->  | K132: =IF('2.Logbook'!K142="","",'2.Logbook'!K142) ->  | L132: =IF('2.Logbook'!L142="","",'2.Logbook'!L142) ->  | M132: =IF('2.Logbook'!M142="","",'2.Logbook'!M142) ->  | N132: =IF('2.Logbook'!N142="","",'2.Logbook'!N142) ->  | O132: =IF('2.Logbook'!O142="","",'2.Logbook'!O142) ->  | P132: =IF('2.Logbook'!P142="","",'2.Logbook'!P142) ->  | Q132: =IF('2.Logbook'!Q142="","",'2.Logbook'!Q142) ->  | R132: =IF('2.Logbook'!R142="","",'2.Logbook'!R142) ->  | S132: =IF('2.Logbook'!S142="","",'2.Logbook'!S142) ->  | T132: =IF('2.Logbook'!T142="","",'2.Logbook'!T142) ->  | U132: =IF('2.Logbook'!U142="","",'2.Logbook'!U142) ->  | V132: =IF('2.Logbook'!V142="","",'2.Logbook'!V142) ->  | W132: =IF('2.Logbook'!W142="","",'2.Logbook'!W142) ->  | X132: =IF('2.Logbook'!X142="","",'2.Logbook'!X142) ->  | Y132: =IF('2.Logbook'!Y142="","",'2.Logbook'!Y142) ->  | Z132: =IF('2.Logbook'!Z142="","",'2.Logbook'!Z142) ->  | AA132: =IF('2.Logbook'!AA142="","",'2.Logbook'!AA142) ->  | AB132: =IF('2.Logbook'!AB142="","",'2.Logbook'!AB142) ->  | AC132: =IF('2.Logbook'!AC142="","",'2.Logbook'!AC142) ->  | AD132: =IF('2.Logbook'!AD142="","",'2.Logbook'!AD142) ->  | AE132: =IF('2.Logbook'!AE142="","",'2.Logbook'!AE142) ->  | AF132: =IF('2.Logbook'!AF142="","",'2.Logbook'!AF142) ->  | AG132: =IF('2.Logbook'!AG142="","",'2.Logbook'!AG142) -> 
A133: =IF('2.Logbook'!A143="","",'2.Logbook'!A143) ->  | B133: =IF('2.Logbook'!B143="","",'2.Logbook'!B143) ->  | C133: =IF('2.Logbook'!C143="","",'2.Logbook'!C143) ->  | D133: =IF('2.Logbook'!D143="","",'2.Logbook'!D143) ->  | E133: =IF('2.Logbook'!E143="","",'2.Logbook'!E143) ->  | F133: =IF('2.Logbook'!F143="","",'2.Logbook'!F143) ->  | G133: =IF('2.Logbook'!G143="","",'2.Logbook'!G143) ->  | H133: =IF('2.Logbook'!H143="","",'2.Logbook'!H143) ->  | I133: =IF('2.Logbook'!I143="","",'2.Logbook'!I143) ->  | J133: =IF('2.Logbook'!J143="","",'2.Logbook'!J143) ->  | K133: =IF('2.Logbook'!K143="","",'2.Logbook'!K143) ->  | L133: =IF('2.Logbook'!L143="","",'2.Logbook'!L143) ->  | M133: =IF('2.Logbook'!M143="","",'2.Logbook'!M143) ->  | N133: =IF('2.Logbook'!N143="","",'2.Logbook'!N143) ->  | O133: =IF('2.Logbook'!O143="","",'2.Logbook'!O143) ->  | P133: =IF('2.Logbook'!P143="","",'2.Logbook'!P143) ->  | Q133: =IF('2.Logbook'!Q143="","",'2.Logbook'!Q143) ->  | R133: =IF('2.Logbook'!R143="","",'2.Logbook'!R143) ->  | S133: =IF('2.Logbook'!S143="","",'2.Logbook'!S143) ->  | T133: =IF('2.Logbook'!T143="","",'2.Logbook'!T143) ->  | U133: =IF('2.Logbook'!U143="","",'2.Logbook'!U143) ->  | V133: =IF('2.Logbook'!V143="","",'2.Logbook'!V143) ->  | W133: =IF('2.Logbook'!W143="","",'2.Logbook'!W143) ->  | X133: =IF('2.Logbook'!X143="","",'2.Logbook'!X143) ->  | Y133: =IF('2.Logbook'!Y143="","",'2.Logbook'!Y143) ->  | Z133: =IF('2.Logbook'!Z143="","",'2.Logbook'!Z143) ->  | AA133: =IF('2.Logbook'!AA143="","",'2.Logbook'!AA143) ->  | AB133: =IF('2.Logbook'!AB143="","",'2.Logbook'!AB143) ->  | AC133: =IF('2.Logbook'!AC143="","",'2.Logbook'!AC143) ->  | AD133: =IF('2.Logbook'!AD143="","",'2.Logbook'!AD143) ->  | AE133: =IF('2.Logbook'!AE143="","",'2.Logbook'!AE143) ->  | AF133: =IF('2.Logbook'!AF143="","",'2.Logbook'!AF143) ->  | AG133: =IF('2.Logbook'!AG143="","",'2.Logbook'!AG143) -> 
A134: =IF('2.Logbook'!A144="","",'2.Logbook'!A144) ->  | B134: =IF('2.Logbook'!B144="","",'2.Logbook'!B144) ->  | C134: =IF('2.Logbook'!C144="","",'2.Logbook'!C144) ->  | D134: =IF('2.Logbook'!D144="","",'2.Logbook'!D144) ->  | E134: =IF('2.Logbook'!E144="","",'2.Logbook'!E144) ->  | F134: =IF('2.Logbook'!F144="","",'2.Logbook'!F144) ->  | G134: =IF('2.Logbook'!G144="","",'2.Logbook'!G144) ->  | H134: =IF('2.Logbook'!H144="","",'2.Logbook'!H144) ->  | I134: =IF('2.Logbook'!I144="","",'2.Logbook'!I144) ->  | J134: =IF('2.Logbook'!J144="","",'2.Logbook'!J144) ->  | K134: =IF('2.Logbook'!K144="","",'2.Logbook'!K144) ->  | L134: =IF('2.Logbook'!L144="","",'2.Logbook'!L144) ->  | M134: =IF('2.Logbook'!M144="","",'2.Logbook'!M144) ->  | N134: =IF('2.Logbook'!N144="","",'2.Logbook'!N144) ->  | O134: =IF('2.Logbook'!O144="","",'2.Logbook'!O144) ->  | P134: =IF('2.Logbook'!P144="","",'2.Logbook'!P144) ->  | Q134: =IF('2.Logbook'!Q144="","",'2.Logbook'!Q144) ->  | R134: =IF('2.Logbook'!R144="","",'2.Logbook'!R144) ->  | S134: =IF('2.Logbook'!S144="","",'2.Logbook'!S144) ->  | T134: =IF('2.Logbook'!T144="","",'2.Logbook'!T144) ->  | U134: =IF('2.Logbook'!U144="","",'2.Logbook'!U144) ->  | V134: =IF('2.Logbook'!V144="","",'2.Logbook'!V144) ->  | W134: =IF('2.Logbook'!W144="","",'2.Logbook'!W144) ->  | X134: =IF('2.Logbook'!X144="","",'2.Logbook'!X144) ->  | Y134: =IF('2.Logbook'!Y144="","",'2.Logbook'!Y144) ->  | Z134: =IF('2.Logbook'!Z144="","",'2.Logbook'!Z144) ->  | AA134: =IF('2.Logbook'!AA144="","",'2.Logbook'!AA144) ->  | AB134: =IF('2.Logbook'!AB144="","",'2.Logbook'!AB144) ->  | AC134: =IF('2.Logbook'!AC144="","",'2.Logbook'!AC144) ->  | AD134: =IF('2.Logbook'!AD144="","",'2.Logbook'!AD144) ->  | AE134: =IF('2.Logbook'!AE144="","",'2.Logbook'!AE144) ->  | AF134: =IF('2.Logbook'!AF144="","",'2.Logbook'!AF144) ->  | AG134: =IF('2.Logbook'!AG144="","",'2.Logbook'!AG144) -> 
A135: =IF('2.Logbook'!A145="","",'2.Logbook'!A145) ->  | B135: =IF('2.Logbook'!B145="","",'2.Logbook'!B145) ->  | C135: =IF('2.Logbook'!C145="","",'2.Logbook'!C145) ->  | D135: =IF('2.Logbook'!D145="","",'2.Logbook'!D145) ->  | E135: =IF('2.Logbook'!E145="","",'2.Logbook'!E145) ->  | F135: =IF('2.Logbook'!F145="","",'2.Logbook'!F145) ->  | G135: =IF('2.Logbook'!G145="","",'2.Logbook'!G145) ->  | H135: =IF('2.Logbook'!H145="","",'2.Logbook'!H145) ->  | I135: =IF('2.Logbook'!I145="","",'2.Logbook'!I145) ->  | J135: =IF('2.Logbook'!J145="","",'2.Logbook'!J145) ->  | K135: =IF('2.Logbook'!K145="","",'2.Logbook'!K145) ->  | L135: =IF('2.Logbook'!L145="","",'2.Logbook'!L145) ->  | M135: =IF('2.Logbook'!M145="","",'2.Logbook'!M145) ->  | N135: =IF('2.Logbook'!N145="","",'2.Logbook'!N145) ->  | O135: =IF('2.Logbook'!O145="","",'2.Logbook'!O145) ->  | P135: =IF('2.Logbook'!P145="","",'2.Logbook'!P145) ->  | Q135: =IF('2.Logbook'!Q145="","",'2.Logbook'!Q145) ->  | R135: =IF('2.Logbook'!R145="","",'2.Logbook'!R145) ->  | S135: =IF('2.Logbook'!S145="","",'2.Logbook'!S145) ->  | T135: =IF('2.Logbook'!T145="","",'2.Logbook'!T145) ->  | U135: =IF('2.Logbook'!U145="","",'2.Logbook'!U145) ->  | V135: =IF('2.Logbook'!V145="","",'2.Logbook'!V145) ->  | W135: =IF('2.Logbook'!W145="","",'2.Logbook'!W145) ->  | X135: =IF('2.Logbook'!X145="","",'2.Logbook'!X145) ->  | Y135: =IF('2.Logbook'!Y145="","",'2.Logbook'!Y145) ->  | Z135: =IF('2.Logbook'!Z145="","",'2.Logbook'!Z145) ->  | AA135: =IF('2.Logbook'!AA145="","",'2.Logbook'!AA145) ->  | AB135: =IF('2.Logbook'!AB145="","",'2.Logbook'!AB145) ->  | AC135: =IF('2.Logbook'!AC145="","",'2.Logbook'!AC145) ->  | AD135: =IF('2.Logbook'!AD145="","",'2.Logbook'!AD145) ->  | AE135: =IF('2.Logbook'!AE145="","",'2.Logbook'!AE145) ->  | AF135: =IF('2.Logbook'!AF145="","",'2.Logbook'!AF145) ->  | AG135: =IF('2.Logbook'!AG145="","",'2.Logbook'!AG145) -> 
A136: =IF('2.Logbook'!A146="","",'2.Logbook'!A146) ->  | B136: =IF('2.Logbook'!B146="","",'2.Logbook'!B146) ->  | C136: =IF('2.Logbook'!C146="","",'2.Logbook'!C146) ->  | D136: =IF('2.Logbook'!D146="","",'2.Logbook'!D146) ->  | E136: =IF('2.Logbook'!E146="","",'2.Logbook'!E146) ->  | F136: =IF('2.Logbook'!F146="","",'2.Logbook'!F146) ->  | G136: =IF('2.Logbook'!G146="","",'2.Logbook'!G146) ->  | H136: =IF('2.Logbook'!H146="","",'2.Logbook'!H146) ->  | I136: =IF('2.Logbook'!I146="","",'2.Logbook'!I146) ->  | J136: =IF('2.Logbook'!J146="","",'2.Logbook'!J146) ->  | K136: =IF('2.Logbook'!K146="","",'2.Logbook'!K146) ->  | L136: =IF('2.Logbook'!L146="","",'2.Logbook'!L146) ->  | M136: =IF('2.Logbook'!M146="","",'2.Logbook'!M146) ->  | N136: =IF('2.Logbook'!N146="","",'2.Logbook'!N146) ->  | O136: =IF('2.Logbook'!O146="","",'2.Logbook'!O146) ->  | P136: =IF('2.Logbook'!P146="","",'2.Logbook'!P146) ->  | Q136: =IF('2.Logbook'!Q146="","",'2.Logbook'!Q146) ->  | R136: =IF('2.Logbook'!R146="","",'2.Logbook'!R146) ->  | S136: =IF('2.Logbook'!S146="","",'2.Logbook'!S146) ->  | T136: =IF('2.Logbook'!T146="","",'2.Logbook'!T146) ->  | U136: =IF('2.Logbook'!U146="","",'2.Logbook'!U146) ->  | V136: =IF('2.Logbook'!V146="","",'2.Logbook'!V146) ->  | W136: =IF('2.Logbook'!W146="","",'2.Logbook'!W146) ->  | X136: =IF('2.Logbook'!X146="","",'2.Logbook'!X146) ->  | Y136: =IF('2.Logbook'!Y146="","",'2.Logbook'!Y146) ->  | Z136: =IF('2.Logbook'!Z146="","",'2.Logbook'!Z146) ->  | AA136: =IF('2.Logbook'!AA146="","",'2.Logbook'!AA146) ->  | AB136: =IF('2.Logbook'!AB146="","",'2.Logbook'!AB146) ->  | AC136: =IF('2.Logbook'!AC146="","",'2.Logbook'!AC146) ->  | AD136: =IF('2.Logbook'!AD146="","",'2.Logbook'!AD146) ->  | AE136: =IF('2.Logbook'!AE146="","",'2.Logbook'!AE146) ->  | AF136: =IF('2.Logbook'!AF146="","",'2.Logbook'!AF146) ->  | AG136: =IF('2.Logbook'!AG146="","",'2.Logbook'!AG146) -> 
A137: =IF('2.Logbook'!A147="","",'2.Logbook'!A147) ->  | B137: =IF('2.Logbook'!B147="","",'2.Logbook'!B147) ->  | C137: =IF('2.Logbook'!C147="","",'2.Logbook'!C147) ->  | D137: =IF('2.Logbook'!D147="","",'2.Logbook'!D147) ->  | E137: =IF('2.Logbook'!E147="","",'2.Logbook'!E147) ->  | F137: =IF('2.Logbook'!F147="","",'2.Logbook'!F147) ->  | G137: =IF('2.Logbook'!G147="","",'2.Logbook'!G147) ->  | H137: =IF('2.Logbook'!H147="","",'2.Logbook'!H147) ->  | I137: =IF('2.Logbook'!I147="","",'2.Logbook'!I147) ->  | J137: =IF('2.Logbook'!J147="","",'2.Logbook'!J147) ->  | K137: =IF('2.Logbook'!K147="","",'2.Logbook'!K147) ->  | L137: =IF('2.Logbook'!L147="","",'2.Logbook'!L147) ->  | M137: =IF('2.Logbook'!M147="","",'2.Logbook'!M147) ->  | N137: =IF('2.Logbook'!N147="","",'2.Logbook'!N147) ->  | O137: =IF('2.Logbook'!O147="","",'2.Logbook'!O147) ->  | P137: =IF('2.Logbook'!P147="","",'2.Logbook'!P147) ->  | Q137: =IF('2.Logbook'!Q147="","",'2.Logbook'!Q147) ->  | R137: =IF('2.Logbook'!R147="","",'2.Logbook'!R147) ->  | S137: =IF('2.Logbook'!S147="","",'2.Logbook'!S147) ->  | T137: =IF('2.Logbook'!T147="","",'2.Logbook'!T147) ->  | U137: =IF('2.Logbook'!U147="","",'2.Logbook'!U147) ->  | V137: =IF('2.Logbook'!V147="","",'2.Logbook'!V147) ->  | W137: =IF('2.Logbook'!W147="","",'2.Logbook'!W147) ->  | X137: =IF('2.Logbook'!X147="","",'2.Logbook'!X147) ->  | Y137: =IF('2.Logbook'!Y147="","",'2.Logbook'!Y147) ->  | Z137: =IF('2.Logbook'!Z147="","",'2.Logbook'!Z147) ->  | AA137: =IF('2.Logbook'!AA147="","",'2.Logbook'!AA147) ->  | AB137: =IF('2.Logbook'!AB147="","",'2.Logbook'!AB147) ->  | AC137: =IF('2.Logbook'!AC147="","",'2.Logbook'!AC147) ->  | AD137: =IF('2.Logbook'!AD147="","",'2.Logbook'!AD147) ->  | AE137: =IF('2.Logbook'!AE147="","",'2.Logbook'!AE147) ->  | AF137: =IF('2.Logbook'!AF147="","",'2.Logbook'!AF147) ->  | AG137: =IF('2.Logbook'!AG147="","",'2.Logbook'!AG147) -> 
A138: =IF('2.Logbook'!A148="","",'2.Logbook'!A148) ->  | B138: =IF('2.Logbook'!B148="","",'2.Logbook'!B148) ->  | C138: =IF('2.Logbook'!C148="","",'2.Logbook'!C148) ->  | D138: =IF('2.Logbook'!D148="","",'2.Logbook'!D148) ->  | E138: =IF('2.Logbook'!E148="","",'2.Logbook'!E148) ->  | F138: =IF('2.Logbook'!F148="","",'2.Logbook'!F148) ->  | G138: =IF('2.Logbook'!G148="","",'2.Logbook'!G148) ->  | H138: =IF('2.Logbook'!H148="","",'2.Logbook'!H148) ->  | I138: =IF('2.Logbook'!I148="","",'2.Logbook'!I148) ->  | J138: =IF('2.Logbook'!J148="","",'2.Logbook'!J148) ->  | K138: =IF('2.Logbook'!K148="","",'2.Logbook'!K148) ->  | L138: =IF('2.Logbook'!L148="","",'2.Logbook'!L148) ->  | M138: =IF('2.Logbook'!M148="","",'2.Logbook'!M148) ->  | N138: =IF('2.Logbook'!N148="","",'2.Logbook'!N148) ->  | O138: =IF('2.Logbook'!O148="","",'2.Logbook'!O148) ->  | P138: =IF('2.Logbook'!P148="","",'2.Logbook'!P148) ->  | Q138: =IF('2.Logbook'!Q148="","",'2.Logbook'!Q148) ->  | R138: =IF('2.Logbook'!R148="","",'2.Logbook'!R148) ->  | S138: =IF('2.Logbook'!S148="","",'2.Logbook'!S148) ->  | T138: =IF('2.Logbook'!T148="","",'2.Logbook'!T148) ->  | U138: =IF('2.Logbook'!U148="","",'2.Logbook'!U148) ->  | V138: =IF('2.Logbook'!V148="","",'2.Logbook'!V148) ->  | W138: =IF('2.Logbook'!W148="","",'2.Logbook'!W148) ->  | X138: =IF('2.Logbook'!X148="","",'2.Logbook'!X148) ->  | Y138: =IF('2.Logbook'!Y148="","",'2.Logbook'!Y148) ->  | Z138: =IF('2.Logbook'!Z148="","",'2.Logbook'!Z148) ->  | AA138: =IF('2.Logbook'!AA148="","",'2.Logbook'!AA148) ->  | AB138: =IF('2.Logbook'!AB148="","",'2.Logbook'!AB148) ->  | AC138: =IF('2.Logbook'!AC148="","",'2.Logbook'!AC148) ->  | AD138: =IF('2.Logbook'!AD148="","",'2.Logbook'!AD148) ->  | AE138: =IF('2.Logbook'!AE148="","",'2.Logbook'!AE148) ->  | AF138: =IF('2.Logbook'!AF148="","",'2.Logbook'!AF148) ->  | AG138: =IF('2.Logbook'!AG148="","",'2.Logbook'!AG148) -> 
A139: =IF('2.Logbook'!A149="","",'2.Logbook'!A149) ->  | B139: =IF('2.Logbook'!B149="","",'2.Logbook'!B149) ->  | C139: =IF('2.Logbook'!C149="","",'2.Logbook'!C149) ->  | D139: =IF('2.Logbook'!D149="","",'2.Logbook'!D149) ->  | E139: =IF('2.Logbook'!E149="","",'2.Logbook'!E149) ->  | F139: =IF('2.Logbook'!F149="","",'2.Logbook'!F149) ->  | G139: =IF('2.Logbook'!G149="","",'2.Logbook'!G149) ->  | H139: =IF('2.Logbook'!H149="","",'2.Logbook'!H149) ->  | I139: =IF('2.Logbook'!I149="","",'2.Logbook'!I149) ->  | J139: =IF('2.Logbook'!J149="","",'2.Logbook'!J149) ->  | K139: =IF('2.Logbook'!K149="","",'2.Logbook'!K149) ->  | L139: =IF('2.Logbook'!L149="","",'2.Logbook'!L149) ->  | M139: =IF('2.Logbook'!M149="","",'2.Logbook'!M149) ->  | N139: =IF('2.Logbook'!N149="","",'2.Logbook'!N149) ->  | O139: =IF('2.Logbook'!O149="","",'2.Logbook'!O149) ->  | P139: =IF('2.Logbook'!P149="","",'2.Logbook'!P149) ->  | Q139: =IF('2.Logbook'!Q149="","",'2.Logbook'!Q149) ->  | R139: =IF('2.Logbook'!R149="","",'2.Logbook'!R149) ->  | S139: =IF('2.Logbook'!S149="","",'2.Logbook'!S149) ->  | T139: =IF('2.Logbook'!T149="","",'2.Logbook'!T149) ->  | U139: =IF('2.Logbook'!U149="","",'2.Logbook'!U149) ->  | V139: =IF('2.Logbook'!V149="","",'2.Logbook'!V149) ->  | W139: =IF('2.Logbook'!W149="","",'2.Logbook'!W149) ->  | X139: =IF('2.Logbook'!X149="","",'2.Logbook'!X149) ->  | Y139: =IF('2.Logbook'!Y149="","",'2.Logbook'!Y149) ->  | Z139: =IF('2.Logbook'!Z149="","",'2.Logbook'!Z149) ->  | AA139: =IF('2.Logbook'!AA149="","",'2.Logbook'!AA149) ->  | AB139: =IF('2.Logbook'!AB149="","",'2.Logbook'!AB149) ->  | AC139: =IF('2.Logbook'!AC149="","",'2.Logbook'!AC149) ->  | AD139: =IF('2.Logbook'!AD149="","",'2.Logbook'!AD149) ->  | AE139: =IF('2.Logbook'!AE149="","",'2.Logbook'!AE149) ->  | AF139: =IF('2.Logbook'!AF149="","",'2.Logbook'!AF149) ->  | AG139: =IF('2.Logbook'!AG149="","",'2.Logbook'!AG149) -> 
A140: =IF('2.Logbook'!A150="","",'2.Logbook'!A150) ->  | B140: =IF('2.Logbook'!B150="","",'2.Logbook'!B150) ->  | C140: =IF('2.Logbook'!C150="","",'2.Logbook'!C150) ->  | D140: =IF('2.Logbook'!D150="","",'2.Logbook'!D150) ->  | E140: =IF('2.Logbook'!E150="","",'2.Logbook'!E150) ->  | F140: =IF('2.Logbook'!F150="","",'2.Logbook'!F150) ->  | G140: =IF('2.Logbook'!G150="","",'2.Logbook'!G150) ->  | H140: =IF('2.Logbook'!H150="","",'2.Logbook'!H150) ->  | I140: =IF('2.Logbook'!I150="","",'2.Logbook'!I150) ->  | J140: =IF('2.Logbook'!J150="","",'2.Logbook'!J150) ->  | K140: =IF('2.Logbook'!K150="","",'2.Logbook'!K150) ->  | L140: =IF('2.Logbook'!L150="","",'2.Logbook'!L150) ->  | M140: =IF('2.Logbook'!M150="","",'2.Logbook'!M150) ->  | N140: =IF('2.Logbook'!N150="","",'2.Logbook'!N150) ->  | O140: =IF('2.Logbook'!O150="","",'2.Logbook'!O150) ->  | P140: =IF('2.Logbook'!P150="","",'2.Logbook'!P150) ->  | Q140: =IF('2.Logbook'!Q150="","",'2.Logbook'!Q150) ->  | R140: =IF('2.Logbook'!R150="","",'2.Logbook'!R150) ->  | S140: =IF('2.Logbook'!S150="","",'2.Logbook'!S150) ->  | T140: =IF('2.Logbook'!T150="","",'2.Logbook'!T150) ->  | U140: =IF('2.Logbook'!U150="","",'2.Logbook'!U150) ->  | V140: =IF('2.Logbook'!V150="","",'2.Logbook'!V150) ->  | W140: =IF('2.Logbook'!W150="","",'2.Logbook'!W150) ->  | X140: =IF('2.Logbook'!X150="","",'2.Logbook'!X150) ->  | Y140: =IF('2.Logbook'!Y150="","",'2.Logbook'!Y150) ->  | Z140: =IF('2.Logbook'!Z150="","",'2.Logbook'!Z150) ->  | AA140: =IF('2.Logbook'!AA150="","",'2.Logbook'!AA150) ->  | AB140: =IF('2.Logbook'!AB150="","",'2.Logbook'!AB150) ->  | AC140: =IF('2.Logbook'!AC150="","",'2.Logbook'!AC150) ->  | AD140: =IF('2.Logbook'!AD150="","",'2.Logbook'!AD150) ->  | AE140: =IF('2.Logbook'!AE150="","",'2.Logbook'!AE150) ->  | AF140: =IF('2.Logbook'!AF150="","",'2.Logbook'!AF150) ->  | AG140: =IF('2.Logbook'!AG150="","",'2.Logbook'!AG150) -> 
A141: =IF('2.Logbook'!A151="","",'2.Logbook'!A151) ->  | B141: =IF('2.Logbook'!B151="","",'2.Logbook'!B151) ->  | C141: =IF('2.Logbook'!C151="","",'2.Logbook'!C151) ->  | D141: =IF('2.Logbook'!D151="","",'2.Logbook'!D151) ->  | E141: =IF('2.Logbook'!E151="","",'2.Logbook'!E151) ->  | F141: =IF('2.Logbook'!F151="","",'2.Logbook'!F151) ->  | G141: =IF('2.Logbook'!G151="","",'2.Logbook'!G151) ->  | H141: =IF('2.Logbook'!H151="","",'2.Logbook'!H151) ->  | I141: =IF('2.Logbook'!I151="","",'2.Logbook'!I151) ->  | J141: =IF('2.Logbook'!J151="","",'2.Logbook'!J151) ->  | K141: =IF('2.Logbook'!K151="","",'2.Logbook'!K151) ->  | L141: =IF('2.Logbook'!L151="","",'2.Logbook'!L151) ->  | M141: =IF('2.Logbook'!M151="","",'2.Logbook'!M151) ->  | N141: =IF('2.Logbook'!N151="","",'2.Logbook'!N151) ->  | O141: =IF('2.Logbook'!O151="","",'2.Logbook'!O151) ->  | P141: =IF('2.Logbook'!P151="","",'2.Logbook'!P151) ->  | Q141: =IF('2.Logbook'!Q151="","",'2.Logbook'!Q151) ->  | R141: =IF('2.Logbook'!R151="","",'2.Logbook'!R151) ->  | S141: =IF('2.Logbook'!S151="","",'2.Logbook'!S151) ->  | T141: =IF('2.Logbook'!T151="","",'2.Logbook'!T151) ->  | U141: =IF('2.Logbook'!U151="","",'2.Logbook'!U151) ->  | V141: =IF('2.Logbook'!V151="","",'2.Logbook'!V151) ->  | W141: =IF('2.Logbook'!W151="","",'2.Logbook'!W151) ->  | X141: =IF('2.Logbook'!X151="","",'2.Logbook'!X151) ->  | Y141: =IF('2.Logbook'!Y151="","",'2.Logbook'!Y151) ->  | Z141: =IF('2.Logbook'!Z151="","",'2.Logbook'!Z151) ->  | AA141: =IF('2.Logbook'!AA151="","",'2.Logbook'!AA151) ->  | AB141: =IF('2.Logbook'!AB151="","",'2.Logbook'!AB151) ->  | AC141: =IF('2.Logbook'!AC151="","",'2.Logbook'!AC151) ->  | AD141: =IF('2.Logbook'!AD151="","",'2.Logbook'!AD151) ->  | AE141: =IF('2.Logbook'!AE151="","",'2.Logbook'!AE151) ->  | AF141: =IF('2.Logbook'!AF151="","",'2.Logbook'!AF151) ->  | AG141: =IF('2.Logbook'!AG151="","",'2.Logbook'!AG151) -> 
A142: =IF('2.Logbook'!A152="","",'2.Logbook'!A152) ->  | B142: =IF('2.Logbook'!B152="","",'2.Logbook'!B152) ->  | C142: =IF('2.Logbook'!C152="","",'2.Logbook'!C152) ->  | D142: =IF('2.Logbook'!D152="","",'2.Logbook'!D152) ->  | E142: =IF('2.Logbook'!E152="","",'2.Logbook'!E152) ->  | F142: =IF('2.Logbook'!F152="","",'2.Logbook'!F152) ->  | G142: =IF('2.Logbook'!G152="","",'2.Logbook'!G152) ->  | H142: =IF('2.Logbook'!H152="","",'2.Logbook'!H152) ->  | I142: =IF('2.Logbook'!I152="","",'2.Logbook'!I152) ->  | J142: =IF('2.Logbook'!J152="","",'2.Logbook'!J152) ->  | K142: =IF('2.Logbook'!K152="","",'2.Logbook'!K152) ->  | L142: =IF('2.Logbook'!L152="","",'2.Logbook'!L152) ->  | M142: =IF('2.Logbook'!M152="","",'2.Logbook'!M152) ->  | N142: =IF('2.Logbook'!N152="","",'2.Logbook'!N152) ->  | O142: =IF('2.Logbook'!O152="","",'2.Logbook'!O152) ->  | P142: =IF('2.Logbook'!P152="","",'2.Logbook'!P152) ->  | Q142: =IF('2.Logbook'!Q152="","",'2.Logbook'!Q152) ->  | R142: =IF('2.Logbook'!R152="","",'2.Logbook'!R152) ->  | S142: =IF('2.Logbook'!S152="","",'2.Logbook'!S152) ->  | T142: =IF('2.Logbook'!T152="","",'2.Logbook'!T152) ->  | U142: =IF('2.Logbook'!U152="","",'2.Logbook'!U152) ->  | V142: =IF('2.Logbook'!V152="","",'2.Logbook'!V152) ->  | W142: =IF('2.Logbook'!W152="","",'2.Logbook'!W152) ->  | X142: =IF('2.Logbook'!X152="","",'2.Logbook'!X152) ->  | Y142: =IF('2.Logbook'!Y152="","",'2.Logbook'!Y152) ->  | Z142: =IF('2.Logbook'!Z152="","",'2.Logbook'!Z152) ->  | AA142: =IF('2.Logbook'!AA152="","",'2.Logbook'!AA152) ->  | AB142: =IF('2.Logbook'!AB152="","",'2.Logbook'!AB152) ->  | AC142: =IF('2.Logbook'!AC152="","",'2.Logbook'!AC152) ->  | AD142: =IF('2.Logbook'!AD152="","",'2.Logbook'!AD152) ->  | AE142: =IF('2.Logbook'!AE152="","",'2.Logbook'!AE152) ->  | AF142: =IF('2.Logbook'!AF152="","",'2.Logbook'!AF152) ->  | AG142: =IF('2.Logbook'!AG152="","",'2.Logbook'!AG152) -> 
A143: =IF('2.Logbook'!A153="","",'2.Logbook'!A153) ->  | B143: =IF('2.Logbook'!B153="","",'2.Logbook'!B153) ->  | C143: =IF('2.Logbook'!C153="","",'2.Logbook'!C153) ->  | D143: =IF('2.Logbook'!D153="","",'2.Logbook'!D153) ->  | E143: =IF('2.Logbook'!E153="","",'2.Logbook'!E153) ->  | F143: =IF('2.Logbook'!F153="","",'2.Logbook'!F153) ->  | G143: =IF('2.Logbook'!G153="","",'2.Logbook'!G153) ->  | H143: =IF('2.Logbook'!H153="","",'2.Logbook'!H153) ->  | I143: =IF('2.Logbook'!I153="","",'2.Logbook'!I153) ->  | J143: =IF('2.Logbook'!J153="","",'2.Logbook'!J153) ->  | K143: =IF('2.Logbook'!K153="","",'2.Logbook'!K153) ->  | L143: =IF('2.Logbook'!L153="","",'2.Logbook'!L153) ->  | M143: =IF('2.Logbook'!M153="","",'2.Logbook'!M153) ->  | N143: =IF('2.Logbook'!N153="","",'2.Logbook'!N153) ->  | O143: =IF('2.Logbook'!O153="","",'2.Logbook'!O153) ->  | P143: =IF('2.Logbook'!P153="","",'2.Logbook'!P153) ->  | Q143: =IF('2.Logbook'!Q153="","",'2.Logbook'!Q153) ->  | R143: =IF('2.Logbook'!R153="","",'2.Logbook'!R153) ->  | S143: =IF('2.Logbook'!S153="","",'2.Logbook'!S153) ->  | T143: =IF('2.Logbook'!T153="","",'2.Logbook'!T153) ->  | U143: =IF('2.Logbook'!U153="","",'2.Logbook'!U153) ->  | V143: =IF('2.Logbook'!V153="","",'2.Logbook'!V153) ->  | W143: =IF('2.Logbook'!W153="","",'2.Logbook'!W153) ->  | X143: =IF('2.Logbook'!X153="","",'2.Logbook'!X153) ->  | Y143: =IF('2.Logbook'!Y153="","",'2.Logbook'!Y153) ->  | Z143: =IF('2.Logbook'!Z153="","",'2.Logbook'!Z153) ->  | AA143: =IF('2.Logbook'!AA153="","",'2.Logbook'!AA153) ->  | AB143: =IF('2.Logbook'!AB153="","",'2.Logbook'!AB153) ->  | AC143: =IF('2.Logbook'!AC153="","",'2.Logbook'!AC153) ->  | AD143: =IF('2.Logbook'!AD153="","",'2.Logbook'!AD153) ->  | AE143: =IF('2.Logbook'!AE153="","",'2.Logbook'!AE153) ->  | AF143: =IF('2.Logbook'!AF153="","",'2.Logbook'!AF153) ->  | AG143: =IF('2.Logbook'!AG153="","",'2.Logbook'!AG153) -> 
A144: =IF('2.Logbook'!A154="","",'2.Logbook'!A154) ->  | B144: =IF('2.Logbook'!B154="","",'2.Logbook'!B154) ->  | C144: =IF('2.Logbook'!C154="","",'2.Logbook'!C154) ->  | D144: =IF('2.Logbook'!D154="","",'2.Logbook'!D154) ->  | E144: =IF('2.Logbook'!E154="","",'2.Logbook'!E154) ->  | F144: =IF('2.Logbook'!F154="","",'2.Logbook'!F154) ->  | G144: =IF('2.Logbook'!G154="","",'2.Logbook'!G154) ->  | H144: =IF('2.Logbook'!H154="","",'2.Logbook'!H154) ->  | I144: =IF('2.Logbook'!I154="","",'2.Logbook'!I154) ->  | J144: =IF('2.Logbook'!J154="","",'2.Logbook'!J154) ->  | K144: =IF('2.Logbook'!K154="","",'2.Logbook'!K154) ->  | L144: =IF('2.Logbook'!L154="","",'2.Logbook'!L154) ->  | M144: =IF('2.Logbook'!M154="","",'2.Logbook'!M154) ->  | N144: =IF('2.Logbook'!N154="","",'2.Logbook'!N154) ->  | O144: =IF('2.Logbook'!O154="","",'2.Logbook'!O154) ->  | P144: =IF('2.Logbook'!P154="","",'2.Logbook'!P154) ->  | Q144: =IF('2.Logbook'!Q154="","",'2.Logbook'!Q154) ->  | R144: =IF('2.Logbook'!R154="","",'2.Logbook'!R154) ->  | S144: =IF('2.Logbook'!S154="","",'2.Logbook'!S154) ->  | T144: =IF('2.Logbook'!T154="","",'2.Logbook'!T154) ->  | U144: =IF('2.Logbook'!U154="","",'2.Logbook'!U154) ->  | V144: =IF('2.Logbook'!V154="","",'2.Logbook'!V154) ->  | W144: =IF('2.Logbook'!W154="","",'2.Logbook'!W154) ->  | X144: =IF('2.Logbook'!X154="","",'2.Logbook'!X154) ->  | Y144: =IF('2.Logbook'!Y154="","",'2.Logbook'!Y154) ->  | Z144: =IF('2.Logbook'!Z154="","",'2.Logbook'!Z154) ->  | AA144: =IF('2.Logbook'!AA154="","",'2.Logbook'!AA154) ->  | AB144: =IF('2.Logbook'!AB154="","",'2.Logbook'!AB154) ->  | AC144: =IF('2.Logbook'!AC154="","",'2.Logbook'!AC154) ->  | AD144: =IF('2.Logbook'!AD154="","",'2.Logbook'!AD154) ->  | AE144: =IF('2.Logbook'!AE154="","",'2.Logbook'!AE154) ->  | AF144: =IF('2.Logbook'!AF154="","",'2.Logbook'!AF154) ->  | AG144: =IF('2.Logbook'!AG154="","",'2.Logbook'!AG154) -> 
A145: =IF('2.Logbook'!A155="","",'2.Logbook'!A155) ->  | B145: =IF('2.Logbook'!B155="","",'2.Logbook'!B155) ->  | C145: =IF('2.Logbook'!C155="","",'2.Logbook'!C155) ->  | D145: =IF('2.Logbook'!D155="","",'2.Logbook'!D155) ->  | E145: =IF('2.Logbook'!E155="","",'2.Logbook'!E155) ->  | F145: =IF('2.Logbook'!F155="","",'2.Logbook'!F155) ->  | G145: =IF('2.Logbook'!G155="","",'2.Logbook'!G155) ->  | H145: =IF('2.Logbook'!H155="","",'2.Logbook'!H155) ->  | I145: =IF('2.Logbook'!I155="","",'2.Logbook'!I155) ->  | J145: =IF('2.Logbook'!J155="","",'2.Logbook'!J155) ->  | K145: =IF('2.Logbook'!K155="","",'2.Logbook'!K155) ->  | L145: =IF('2.Logbook'!L155="","",'2.Logbook'!L155) ->  | M145: =IF('2.Logbook'!M155="","",'2.Logbook'!M155) ->  | N145: =IF('2.Logbook'!N155="","",'2.Logbook'!N155) ->  | O145: =IF('2.Logbook'!O155="","",'2.Logbook'!O155) ->  | P145: =IF('2.Logbook'!P155="","",'2.Logbook'!P155) ->  | Q145: =IF('2.Logbook'!Q155="","",'2.Logbook'!Q155) ->  | R145: =IF('2.Logbook'!R155="","",'2.Logbook'!R155) ->  | S145: =IF('2.Logbook'!S155="","",'2.Logbook'!S155) ->  | T145: =IF('2.Logbook'!T155="","",'2.Logbook'!T155) ->  | U145: =IF('2.Logbook'!U155="","",'2.Logbook'!U155) ->  | V145: =IF('2.Logbook'!V155="","",'2.Logbook'!V155) ->  | W145: =IF('2.Logbook'!W155="","",'2.Logbook'!W155) ->  | X145: =IF('2.Logbook'!X155="","",'2.Logbook'!X155) ->  | Y145: =IF('2.Logbook'!Y155="","",'2.Logbook'!Y155) ->  | Z145: =IF('2.Logbook'!Z155="","",'2.Logbook'!Z155) ->  | AA145: =IF('2.Logbook'!AA155="","",'2.Logbook'!AA155) ->  | AB145: =IF('2.Logbook'!AB155="","",'2.Logbook'!AB155) ->  | AC145: =IF('2.Logbook'!AC155="","",'2.Logbook'!AC155) ->  | AD145: =IF('2.Logbook'!AD155="","",'2.Logbook'!AD155) ->  | AE145: =IF('2.Logbook'!AE155="","",'2.Logbook'!AE155) ->  | AF145: =IF('2.Logbook'!AF155="","",'2.Logbook'!AF155) ->  | AG145: =IF('2.Logbook'!AG155="","",'2.Logbook'!AG155) -> 
A146: =IF('2.Logbook'!A156="","",'2.Logbook'!A156) ->  | B146: =IF('2.Logbook'!B156="","",'2.Logbook'!B156) ->  | C146: =IF('2.Logbook'!C156="","",'2.Logbook'!C156) ->  | D146: =IF('2.Logbook'!D156="","",'2.Logbook'!D156) ->  | E146: =IF('2.Logbook'!E156="","",'2.Logbook'!E156) ->  | F146: =IF('2.Logbook'!F156="","",'2.Logbook'!F156) ->  | G146: =IF('2.Logbook'!G156="","",'2.Logbook'!G156) ->  | H146: =IF('2.Logbook'!H156="","",'2.Logbook'!H156) ->  | I146: =IF('2.Logbook'!I156="","",'2.Logbook'!I156) ->  | J146: =IF('2.Logbook'!J156="","",'2.Logbook'!J156) ->  | K146: =IF('2.Logbook'!K156="","",'2.Logbook'!K156) ->  | L146: =IF('2.Logbook'!L156="","",'2.Logbook'!L156) ->  | M146: =IF('2.Logbook'!M156="","",'2.Logbook'!M156) ->  | N146: =IF('2.Logbook'!N156="","",'2.Logbook'!N156) ->  | O146: =IF('2.Logbook'!O156="","",'2.Logbook'!O156) ->  | P146: =IF('2.Logbook'!P156="","",'2.Logbook'!P156) ->  | Q146: =IF('2.Logbook'!Q156="","",'2.Logbook'!Q156) ->  | R146: =IF('2.Logbook'!R156="","",'2.Logbook'!R156) ->  | S146: =IF('2.Logbook'!S156="","",'2.Logbook'!S156) ->  | T146: =IF('2.Logbook'!T156="","",'2.Logbook'!T156) ->  | U146: =IF('2.Logbook'!U156="","",'2.Logbook'!U156) ->  | V146: =IF('2.Logbook'!V156="","",'2.Logbook'!V156) ->  | W146: =IF('2.Logbook'!W156="","",'2.Logbook'!W156) ->  | X146: =IF('2.Logbook'!X156="","",'2.Logbook'!X156) ->  | Y146: =IF('2.Logbook'!Y156="","",'2.Logbook'!Y156) ->  | Z146: =IF('2.Logbook'!Z156="","",'2.Logbook'!Z156) ->  | AA146: =IF('2.Logbook'!AA156="","",'2.Logbook'!AA156) ->  | AB146: =IF('2.Logbook'!AB156="","",'2.Logbook'!AB156) ->  | AC146: =IF('2.Logbook'!AC156="","",'2.Logbook'!AC156) ->  | AD146: =IF('2.Logbook'!AD156="","",'2.Logbook'!AD156) ->  | AE146: =IF('2.Logbook'!AE156="","",'2.Logbook'!AE156) ->  | AF146: =IF('2.Logbook'!AF156="","",'2.Logbook'!AF156) ->  | AG146: =IF('2.Logbook'!AG156="","",'2.Logbook'!AG156) -> 
A147: =IF('2.Logbook'!A157="","",'2.Logbook'!A157) ->  | B147: =IF('2.Logbook'!B157="","",'2.Logbook'!B157) ->  | C147: =IF('2.Logbook'!C157="","",'2.Logbook'!C157) ->  | D147: =IF('2.Logbook'!D157="","",'2.Logbook'!D157) ->  | E147: =IF('2.Logbook'!E157="","",'2.Logbook'!E157) ->  | F147: =IF('2.Logbook'!F157="","",'2.Logbook'!F157) ->  | G147: =IF('2.Logbook'!G157="","",'2.Logbook'!G157) ->  | H147: =IF('2.Logbook'!H157="","",'2.Logbook'!H157) ->  | I147: =IF('2.Logbook'!I157="","",'2.Logbook'!I157) ->  | J147: =IF('2.Logbook'!J157="","",'2.Logbook'!J157) ->  | K147: =IF('2.Logbook'!K157="","",'2.Logbook'!K157) ->  | L147: =IF('2.Logbook'!L157="","",'2.Logbook'!L157) ->  | M147: =IF('2.Logbook'!M157="","",'2.Logbook'!M157) ->  | N147: =IF('2.Logbook'!N157="","",'2.Logbook'!N157) ->  | O147: =IF('2.Logbook'!O157="","",'2.Logbook'!O157) ->  | P147: =IF('2.Logbook'!P157="","",'2.Logbook'!P157) ->  | Q147: =IF('2.Logbook'!Q157="","",'2.Logbook'!Q157) ->  | R147: =IF('2.Logbook'!R157="","",'2.Logbook'!R157) ->  | S147: =IF('2.Logbook'!S157="","",'2.Logbook'!S157) ->  | T147: =IF('2.Logbook'!T157="","",'2.Logbook'!T157) ->  | U147: =IF('2.Logbook'!U157="","",'2.Logbook'!U157) ->  | V147: =IF('2.Logbook'!V157="","",'2.Logbook'!V157) ->  | W147: =IF('2.Logbook'!W157="","",'2.Logbook'!W157) ->  | X147: =IF('2.Logbook'!X157="","",'2.Logbook'!X157) ->  | Y147: =IF('2.Logbook'!Y157="","",'2.Logbook'!Y157) ->  | Z147: =IF('2.Logbook'!Z157="","",'2.Logbook'!Z157) ->  | AA147: =IF('2.Logbook'!AA157="","",'2.Logbook'!AA157) ->  | AB147: =IF('2.Logbook'!AB157="","",'2.Logbook'!AB157) ->  | AC147: =IF('2.Logbook'!AC157="","",'2.Logbook'!AC157) ->  | AD147: =IF('2.Logbook'!AD157="","",'2.Logbook'!AD157) ->  | AE147: =IF('2.Logbook'!AE157="","",'2.Logbook'!AE157) ->  | AF147: =IF('2.Logbook'!AF157="","",'2.Logbook'!AF157) ->  | AG147: =IF('2.Logbook'!AG157="","",'2.Logbook'!AG157) -> 
A148: =IF('2.Logbook'!A158="","",'2.Logbook'!A158) ->  | B148: =IF('2.Logbook'!B158="","",'2.Logbook'!B158) ->  | C148: =IF('2.Logbook'!C158="","",'2.Logbook'!C158) ->  | D148: =IF('2.Logbook'!D158="","",'2.Logbook'!D158) ->  | E148: =IF('2.Logbook'!E158="","",'2.Logbook'!E158) ->  | F148: =IF('2.Logbook'!F158="","",'2.Logbook'!F158) ->  | G148: =IF('2.Logbook'!G158="","",'2.Logbook'!G158) ->  | H148: =IF('2.Logbook'!H158="","",'2.Logbook'!H158) ->  | I148: =IF('2.Logbook'!I158="","",'2.Logbook'!I158) ->  | J148: =IF('2.Logbook'!J158="","",'2.Logbook'!J158) ->  | K148: =IF('2.Logbook'!K158="","",'2.Logbook'!K158) ->  | L148: =IF('2.Logbook'!L158="","",'2.Logbook'!L158) ->  | M148: =IF('2.Logbook'!M158="","",'2.Logbook'!M158) ->  | N148: =IF('2.Logbook'!N158="","",'2.Logbook'!N158) ->  | O148: =IF('2.Logbook'!O158="","",'2.Logbook'!O158) ->  | P148: =IF('2.Logbook'!P158="","",'2.Logbook'!P158) ->  | Q148: =IF('2.Logbook'!Q158="","",'2.Logbook'!Q158) ->  | R148: =IF('2.Logbook'!R158="","",'2.Logbook'!R158) ->  | S148: =IF('2.Logbook'!S158="","",'2.Logbook'!S158) ->  | T148: =IF('2.Logbook'!T158="","",'2.Logbook'!T158) ->  | U148: =IF('2.Logbook'!U158="","",'2.Logbook'!U158) ->  | V148: =IF('2.Logbook'!V158="","",'2.Logbook'!V158) ->  | W148: =IF('2.Logbook'!W158="","",'2.Logbook'!W158) ->  | X148: =IF('2.Logbook'!X158="","",'2.Logbook'!X158) ->  | Y148: =IF('2.Logbook'!Y158="","",'2.Logbook'!Y158) ->  | Z148: =IF('2.Logbook'!Z158="","",'2.Logbook'!Z158) ->  | AA148: =IF('2.Logbook'!AA158="","",'2.Logbook'!AA158) ->  | AB148: =IF('2.Logbook'!AB158="","",'2.Logbook'!AB158) ->  | AC148: =IF('2.Logbook'!AC158="","",'2.Logbook'!AC158) ->  | AD148: =IF('2.Logbook'!AD158="","",'2.Logbook'!AD158) ->  | AE148: =IF('2.Logbook'!AE158="","",'2.Logbook'!AE158) ->  | AF148: =IF('2.Logbook'!AF158="","",'2.Logbook'!AF158) ->  | AG148: =IF('2.Logbook'!AG158="","",'2.Logbook'!AG158) -> 
A149: =IF('2.Logbook'!A159="","",'2.Logbook'!A159) ->  | B149: =IF('2.Logbook'!B159="","",'2.Logbook'!B159) ->  | C149: =IF('2.Logbook'!C159="","",'2.Logbook'!C159) ->  | D149: =IF('2.Logbook'!D159="","",'2.Logbook'!D159) ->  | E149: =IF('2.Logbook'!E159="","",'2.Logbook'!E159) ->  | F149: =IF('2.Logbook'!F159="","",'2.Logbook'!F159) ->  | G149: =IF('2.Logbook'!G159="","",'2.Logbook'!G159) ->  | H149: =IF('2.Logbook'!H159="","",'2.Logbook'!H159) ->  | I149: =IF('2.Logbook'!I159="","",'2.Logbook'!I159) ->  | J149: =IF('2.Logbook'!J159="","",'2.Logbook'!J159) ->  | K149: =IF('2.Logbook'!K159="","",'2.Logbook'!K159) ->  | L149: =IF('2.Logbook'!L159="","",'2.Logbook'!L159) ->  | M149: =IF('2.Logbook'!M159="","",'2.Logbook'!M159) ->  | N149: =IF('2.Logbook'!N159="","",'2.Logbook'!N159) ->  | O149: =IF('2.Logbook'!O159="","",'2.Logbook'!O159) ->  | P149: =IF('2.Logbook'!P159="","",'2.Logbook'!P159) ->  | Q149: =IF('2.Logbook'!Q159="","",'2.Logbook'!Q159) ->  | R149: =IF('2.Logbook'!R159="","",'2.Logbook'!R159) ->  | S149: =IF('2.Logbook'!S159="","",'2.Logbook'!S159) ->  | T149: =IF('2.Logbook'!T159="","",'2.Logbook'!T159) ->  | U149: =IF('2.Logbook'!U159="","",'2.Logbook'!U159) ->  | V149: =IF('2.Logbook'!V159="","",'2.Logbook'!V159) ->  | W149: =IF('2.Logbook'!W159="","",'2.Logbook'!W159) ->  | X149: =IF('2.Logbook'!X159="","",'2.Logbook'!X159) ->  | Y149: =IF('2.Logbook'!Y159="","",'2.Logbook'!Y159) ->  | Z149: =IF('2.Logbook'!Z159="","",'2.Logbook'!Z159) ->  | AA149: =IF('2.Logbook'!AA159="","",'2.Logbook'!AA159) ->  | AB149: =IF('2.Logbook'!AB159="","",'2.Logbook'!AB159) ->  | AC149: =IF('2.Logbook'!AC159="","",'2.Logbook'!AC159) ->  | AD149: =IF('2.Logbook'!AD159="","",'2.Logbook'!AD159) ->  | AE149: =IF('2.Logbook'!AE159="","",'2.Logbook'!AE159) ->  | AF149: =IF('2.Logbook'!AF159="","",'2.Logbook'!AF159) ->  | AG149: =IF('2.Logbook'!AG159="","",'2.Logbook'!AG159) -> 
A150: =IF('2.Logbook'!A160="","",'2.Logbook'!A160) ->  | B150: =IF('2.Logbook'!B160="","",'2.Logbook'!B160) ->  | C150: =IF('2.Logbook'!C160="","",'2.Logbook'!C160) ->  | D150: =IF('2.Logbook'!D160="","",'2.Logbook'!D160) ->  | E150: =IF('2.Logbook'!E160="","",'2.Logbook'!E160) ->  | F150: =IF('2.Logbook'!F160="","",'2.Logbook'!F160) ->  | G150: =IF('2.Logbook'!G160="","",'2.Logbook'!G160) ->  | H150: =IF('2.Logbook'!H160="","",'2.Logbook'!H160) ->  | I150: =IF('2.Logbook'!I160="","",'2.Logbook'!I160) ->  | J150: =IF('2.Logbook'!J160="","",'2.Logbook'!J160) ->  | K150: =IF('2.Logbook'!K160="","",'2.Logbook'!K160) ->  | L150: =IF('2.Logbook'!L160="","",'2.Logbook'!L160) ->  | M150: =IF('2.Logbook'!M160="","",'2.Logbook'!M160) ->  | N150: =IF('2.Logbook'!N160="","",'2.Logbook'!N160) ->  | O150: =IF('2.Logbook'!O160="","",'2.Logbook'!O160) ->  | P150: =IF('2.Logbook'!P160="","",'2.Logbook'!P160) ->  | Q150: =IF('2.Logbook'!Q160="","",'2.Logbook'!Q160) ->  | R150: =IF('2.Logbook'!R160="","",'2.Logbook'!R160) ->  | S150: =IF('2.Logbook'!S160="","",'2.Logbook'!S160) ->  | T150: =IF('2.Logbook'!T160="","",'2.Logbook'!T160) ->  | U150: =IF('2.Logbook'!U160="","",'2.Logbook'!U160) ->  | V150: =IF('2.Logbook'!V160="","",'2.Logbook'!V160) ->  | W150: =IF('2.Logbook'!W160="","",'2.Logbook'!W160) ->  | X150: =IF('2.Logbook'!X160="","",'2.Logbook'!X160) ->  | Y150: =IF('2.Logbook'!Y160="","",'2.Logbook'!Y160) ->  | Z150: =IF('2.Logbook'!Z160="","",'2.Logbook'!Z160) ->  | AA150: =IF('2.Logbook'!AA160="","",'2.Logbook'!AA160) ->  | AB150: =IF('2.Logbook'!AB160="","",'2.Logbook'!AB160) ->  | AC150: =IF('2.Logbook'!AC160="","",'2.Logbook'!AC160) ->  | AD150: =IF('2.Logbook'!AD160="","",'2.Logbook'!AD160) ->  | AE150: =IF('2.Logbook'!AE160="","",'2.Logbook'!AE160) ->  | AF150: =IF('2.Logbook'!AF160="","",'2.Logbook'!AF160) ->  | AG150: =IF('2.Logbook'!AG160="","",'2.Logbook'!AG160) -> 
A151: =IF('2.Logbook'!A161="","",'2.Logbook'!A161) ->  | B151: =IF('2.Logbook'!B161="","",'2.Logbook'!B161) ->  | C151: =IF('2.Logbook'!C161="","",'2.Logbook'!C161) ->  | D151: =IF('2.Logbook'!D161="","",'2.Logbook'!D161) ->  | E151: =IF('2.Logbook'!E161="","",'2.Logbook'!E161) ->  | F151: =IF('2.Logbook'!F161="","",'2.Logbook'!F161) ->  | G151: =IF('2.Logbook'!G161="","",'2.Logbook'!G161) ->  | H151: =IF('2.Logbook'!H161="","",'2.Logbook'!H161) ->  | I151: =IF('2.Logbook'!I161="","",'2.Logbook'!I161) ->  | J151: =IF('2.Logbook'!J161="","",'2.Logbook'!J161) ->  | K151: =IF('2.Logbook'!K161="","",'2.Logbook'!K161) ->  | L151: =IF('2.Logbook'!L161="","",'2.Logbook'!L161) ->  | M151: =IF('2.Logbook'!M161="","",'2.Logbook'!M161) ->  | N151: =IF('2.Logbook'!N161="","",'2.Logbook'!N161) ->  | O151: =IF('2.Logbook'!O161="","",'2.Logbook'!O161) ->  | P151: =IF('2.Logbook'!P161="","",'2.Logbook'!P161) ->  | Q151: =IF('2.Logbook'!Q161="","",'2.Logbook'!Q161) ->  | R151: =IF('2.Logbook'!R161="","",'2.Logbook'!R161) ->  | S151: =IF('2.Logbook'!S161="","",'2.Logbook'!S161) ->  | T151: =IF('2.Logbook'!T161="","",'2.Logbook'!T161) ->  | U151: =IF('2.Logbook'!U161="","",'2.Logbook'!U161) ->  | V151: =IF('2.Logbook'!V161="","",'2.Logbook'!V161) ->  | W151: =IF('2.Logbook'!W161="","",'2.Logbook'!W161) ->  | X151: =IF('2.Logbook'!X161="","",'2.Logbook'!X161) ->  | Y151: =IF('2.Logbook'!Y161="","",'2.Logbook'!Y161) ->  | Z151: =IF('2.Logbook'!Z161="","",'2.Logbook'!Z161) ->  | AA151: =IF('2.Logbook'!AA161="","",'2.Logbook'!AA161) ->  | AB151: =IF('2.Logbook'!AB161="","",'2.Logbook'!AB161) ->  | AC151: =IF('2.Logbook'!AC161="","",'2.Logbook'!AC161) ->  | AD151: =IF('2.Logbook'!AD161="","",'2.Logbook'!AD161) ->  | AE151: =IF('2.Logbook'!AE161="","",'2.Logbook'!AE161) ->  | AF151: =IF('2.Logbook'!AF161="","",'2.Logbook'!AF161) ->  | AG151: =IF('2.Logbook'!AG161="","",'2.Logbook'!AG161) -> 
A152: =IF('2.Logbook'!A162="","",'2.Logbook'!A162) ->  | B152: =IF('2.Logbook'!B162="","",'2.Logbook'!B162) ->  | C152: =IF('2.Logbook'!C162="","",'2.Logbook'!C162) ->  | D152: =IF('2.Logbook'!D162="","",'2.Logbook'!D162) ->  | E152: =IF('2.Logbook'!E162="","",'2.Logbook'!E162) ->  | F152: =IF('2.Logbook'!F162="","",'2.Logbook'!F162) ->  | G152: =IF('2.Logbook'!G162="","",'2.Logbook'!G162) ->  | H152: =IF('2.Logbook'!H162="","",'2.Logbook'!H162) ->  | I152: =IF('2.Logbook'!I162="","",'2.Logbook'!I162) ->  | J152: =IF('2.Logbook'!J162="","",'2.Logbook'!J162) ->  | K152: =IF('2.Logbook'!K162="","",'2.Logbook'!K162) ->  | L152: =IF('2.Logbook'!L162="","",'2.Logbook'!L162) ->  | M152: =IF('2.Logbook'!M162="","",'2.Logbook'!M162) ->  | N152: =IF('2.Logbook'!N162="","",'2.Logbook'!N162) ->  | O152: =IF('2.Logbook'!O162="","",'2.Logbook'!O162) ->  | P152: =IF('2.Logbook'!P162="","",'2.Logbook'!P162) ->  | Q152: =IF('2.Logbook'!Q162="","",'2.Logbook'!Q162) ->  | R152: =IF('2.Logbook'!R162="","",'2.Logbook'!R162) ->  | S152: =IF('2.Logbook'!S162="","",'2.Logbook'!S162) ->  | T152: =IF('2.Logbook'!T162="","",'2.Logbook'!T162) ->  | U152: =IF('2.Logbook'!U162="","",'2.Logbook'!U162) ->  | V152: =IF('2.Logbook'!V162="","",'2.Logbook'!V162) ->  | W152: =IF('2.Logbook'!W162="","",'2.Logbook'!W162) ->  | X152: =IF('2.Logbook'!X162="","",'2.Logbook'!X162) ->  | Y152: =IF('2.Logbook'!Y162="","",'2.Logbook'!Y162) ->  | Z152: =IF('2.Logbook'!Z162="","",'2.Logbook'!Z162) ->  | AA152: =IF('2.Logbook'!AA162="","",'2.Logbook'!AA162) ->  | AB152: =IF('2.Logbook'!AB162="","",'2.Logbook'!AB162) ->  | AC152: =IF('2.Logbook'!AC162="","",'2.Logbook'!AC162) ->  | AD152: =IF('2.Logbook'!AD162="","",'2.Logbook'!AD162) ->  | AE152: =IF('2.Logbook'!AE162="","",'2.Logbook'!AE162) ->  | AF152: =IF('2.Logbook'!AF162="","",'2.Logbook'!AF162) ->  | AG152: =IF('2.Logbook'!AG162="","",'2.Logbook'!AG162) -> 
A153: =IF('2.Logbook'!A163="","",'2.Logbook'!A163) ->  | B153: =IF('2.Logbook'!B163="","",'2.Logbook'!B163) ->  | C153: =IF('2.Logbook'!C163="","",'2.Logbook'!C163) ->  | D153: =IF('2.Logbook'!D163="","",'2.Logbook'!D163) ->  | E153: =IF('2.Logbook'!E163="","",'2.Logbook'!E163) ->  | F153: =IF('2.Logbook'!F163="","",'2.Logbook'!F163) ->  | G153: =IF('2.Logbook'!G163="","",'2.Logbook'!G163) ->  | H153: =IF('2.Logbook'!H163="","",'2.Logbook'!H163) ->  | I153: =IF('2.Logbook'!I163="","",'2.Logbook'!I163) ->  | J153: =IF('2.Logbook'!J163="","",'2.Logbook'!J163) ->  | K153: =IF('2.Logbook'!K163="","",'2.Logbook'!K163) ->  | L153: =IF('2.Logbook'!L163="","",'2.Logbook'!L163) ->  | M153: =IF('2.Logbook'!M163="","",'2.Logbook'!M163) ->  | N153: =IF('2.Logbook'!N163="","",'2.Logbook'!N163) ->  | O153: =IF('2.Logbook'!O163="","",'2.Logbook'!O163) ->  | P153: =IF('2.Logbook'!P163="","",'2.Logbook'!P163) ->  | Q153: =IF('2.Logbook'!Q163="","",'2.Logbook'!Q163) ->  | R153: =IF('2.Logbook'!R163="","",'2.Logbook'!R163) ->  | S153: =IF('2.Logbook'!S163="","",'2.Logbook'!S163) ->  | T153: =IF('2.Logbook'!T163="","",'2.Logbook'!T163) ->  | U153: =IF('2.Logbook'!U163="","",'2.Logbook'!U163) ->  | V153: =IF('2.Logbook'!V163="","",'2.Logbook'!V163) ->  | W153: =IF('2.Logbook'!W163="","",'2.Logbook'!W163) ->  | X153: =IF('2.Logbook'!X163="","",'2.Logbook'!X163) ->  | Y153: =IF('2.Logbook'!Y163="","",'2.Logbook'!Y163) ->  | Z153: =IF('2.Logbook'!Z163="","",'2.Logbook'!Z163) ->  | AA153: =IF('2.Logbook'!AA163="","",'2.Logbook'!AA163) ->  | AB153: =IF('2.Logbook'!AB163="","",'2.Logbook'!AB163) ->  | AC153: =IF('2.Logbook'!AC163="","",'2.Logbook'!AC163) ->  | AD153: =IF('2.Logbook'!AD163="","",'2.Logbook'!AD163) ->  | AE153: =IF('2.Logbook'!AE163="","",'2.Logbook'!AE163) ->  | AF153: =IF('2.Logbook'!AF163="","",'2.Logbook'!AF163) ->  | AG153: =IF('2.Logbook'!AG163="","",'2.Logbook'!AG163) -> 
A154: =IF('2.Logbook'!A164="","",'2.Logbook'!A164) ->  | B154: =IF('2.Logbook'!B164="","",'2.Logbook'!B164) ->  | C154: =IF('2.Logbook'!C164="","",'2.Logbook'!C164) ->  | D154: =IF('2.Logbook'!D164="","",'2.Logbook'!D164) ->  | E154: =IF('2.Logbook'!E164="","",'2.Logbook'!E164) ->  | F154: =IF('2.Logbook'!F164="","",'2.Logbook'!F164) ->  | G154: =IF('2.Logbook'!G164="","",'2.Logbook'!G164) ->  | H154: =IF('2.Logbook'!H164="","",'2.Logbook'!H164) ->  | I154: =IF('2.Logbook'!I164="","",'2.Logbook'!I164) ->  | J154: =IF('2.Logbook'!J164="","",'2.Logbook'!J164) ->  | K154: =IF('2.Logbook'!K164="","",'2.Logbook'!K164) ->  | L154: =IF('2.Logbook'!L164="","",'2.Logbook'!L164) ->  | M154: =IF('2.Logbook'!M164="","",'2.Logbook'!M164) ->  | N154: =IF('2.Logbook'!N164="","",'2.Logbook'!N164) ->  | O154: =IF('2.Logbook'!O164="","",'2.Logbook'!O164) ->  | P154: =IF('2.Logbook'!P164="","",'2.Logbook'!P164) ->  | Q154: =IF('2.Logbook'!Q164="","",'2.Logbook'!Q164) ->  | R154: =IF('2.Logbook'!R164="","",'2.Logbook'!R164) ->  | S154: =IF('2.Logbook'!S164="","",'2.Logbook'!S164) ->  | T154: =IF('2.Logbook'!T164="","",'2.Logbook'!T164) ->  | U154: =IF('2.Logbook'!U164="","",'2.Logbook'!U164) ->  | V154: =IF('2.Logbook'!V164="","",'2.Logbook'!V164) ->  | W154: =IF('2.Logbook'!W164="","",'2.Logbook'!W164) ->  | X154: =IF('2.Logbook'!X164="","",'2.Logbook'!X164) ->  | Y154: =IF('2.Logbook'!Y164="","",'2.Logbook'!Y164) ->  | Z154: =IF('2.Logbook'!Z164="","",'2.Logbook'!Z164) ->  | AA154: =IF('2.Logbook'!AA164="","",'2.Logbook'!AA164) ->  | AB154: =IF('2.Logbook'!AB164="","",'2.Logbook'!AB164) ->  | AC154: =IF('2.Logbook'!AC164="","",'2.Logbook'!AC164) ->  | AD154: =IF('2.Logbook'!AD164="","",'2.Logbook'!AD164) ->  | AE154: =IF('2.Logbook'!AE164="","",'2.Logbook'!AE164) ->  | AF154: =IF('2.Logbook'!AF164="","",'2.Logbook'!AF164) ->  | AG154: =IF('2.Logbook'!AG164="","",'2.Logbook'!AG164) -> 
A155: =IF('2.Logbook'!A165="","",'2.Logbook'!A165) ->  | B155: =IF('2.Logbook'!B165="","",'2.Logbook'!B165) ->  | C155: =IF('2.Logbook'!C165="","",'2.Logbook'!C165) ->  | D155: =IF('2.Logbook'!D165="","",'2.Logbook'!D165) ->  | E155: =IF('2.Logbook'!E165="","",'2.Logbook'!E165) ->  | F155: =IF('2.Logbook'!F165="","",'2.Logbook'!F165) ->  | G155: =IF('2.Logbook'!G165="","",'2.Logbook'!G165) ->  | H155: =IF('2.Logbook'!H165="","",'2.Logbook'!H165) ->  | I155: =IF('2.Logbook'!I165="","",'2.Logbook'!I165) ->  | J155: =IF('2.Logbook'!J165="","",'2.Logbook'!J165) ->  | K155: =IF('2.Logbook'!K165="","",'2.Logbook'!K165) ->  | L155: =IF('2.Logbook'!L165="","",'2.Logbook'!L165) ->  | M155: =IF('2.Logbook'!M165="","",'2.Logbook'!M165) ->  | N155: =IF('2.Logbook'!N165="","",'2.Logbook'!N165) ->  | O155: =IF('2.Logbook'!O165="","",'2.Logbook'!O165) ->  | P155: =IF('2.Logbook'!P165="","",'2.Logbook'!P165) ->  | Q155: =IF('2.Logbook'!Q165="","",'2.Logbook'!Q165) ->  | R155: =IF('2.Logbook'!R165="","",'2.Logbook'!R165) ->  | S155: =IF('2.Logbook'!S165="","",'2.Logbook'!S165) ->  | T155: =IF('2.Logbook'!T165="","",'2.Logbook'!T165) ->  | U155: =IF('2.Logbook'!U165="","",'2.Logbook'!U165) ->  | V155: =IF('2.Logbook'!V165="","",'2.Logbook'!V165) ->  | W155: =IF('2.Logbook'!W165="","",'2.Logbook'!W165) ->  | X155: =IF('2.Logbook'!X165="","",'2.Logbook'!X165) ->  | Y155: =IF('2.Logbook'!Y165="","",'2.Logbook'!Y165) ->  | Z155: =IF('2.Logbook'!Z165="","",'2.Logbook'!Z165) ->  | AA155: =IF('2.Logbook'!AA165="","",'2.Logbook'!AA165) ->  | AB155: =IF('2.Logbook'!AB165="","",'2.Logbook'!AB165) ->  | AC155: =IF('2.Logbook'!AC165="","",'2.Logbook'!AC165) ->  | AD155: =IF('2.Logbook'!AD165="","",'2.Logbook'!AD165) ->  | AE155: =IF('2.Logbook'!AE165="","",'2.Logbook'!AE165) ->  | AF155: =IF('2.Logbook'!AF165="","",'2.Logbook'!AF165) ->  | AG155: =IF('2.Logbook'!AG165="","",'2.Logbook'!AG165) -> 
A156: =IF('2.Logbook'!A166="","",'2.Logbook'!A166) ->  | B156: =IF('2.Logbook'!B166="","",'2.Logbook'!B166) ->  | C156: =IF('2.Logbook'!C166="","",'2.Logbook'!C166) ->  | D156: =IF('2.Logbook'!D166="","",'2.Logbook'!D166) ->  | E156: =IF('2.Logbook'!E166="","",'2.Logbook'!E166) ->  | F156: =IF('2.Logbook'!F166="","",'2.Logbook'!F166) ->  | G156: =IF('2.Logbook'!G166="","",'2.Logbook'!G166) ->  | H156: =IF('2.Logbook'!H166="","",'2.Logbook'!H166) ->  | I156: =IF('2.Logbook'!I166="","",'2.Logbook'!I166) ->  | J156: =IF('2.Logbook'!J166="","",'2.Logbook'!J166) ->  | K156: =IF('2.Logbook'!K166="","",'2.Logbook'!K166) ->  | L156: =IF('2.Logbook'!L166="","",'2.Logbook'!L166) ->  | M156: =IF('2.Logbook'!M166="","",'2.Logbook'!M166) ->  | N156: =IF('2.Logbook'!N166="","",'2.Logbook'!N166) ->  | O156: =IF('2.Logbook'!O166="","",'2.Logbook'!O166) ->  | P156: =IF('2.Logbook'!P166="","",'2.Logbook'!P166) ->  | Q156: =IF('2.Logbook'!Q166="","",'2.Logbook'!Q166) ->  | R156: =IF('2.Logbook'!R166="","",'2.Logbook'!R166) ->  | S156: =IF('2.Logbook'!S166="","",'2.Logbook'!S166) ->  | T156: =IF('2.Logbook'!T166="","",'2.Logbook'!T166) ->  | U156: =IF('2.Logbook'!U166="","",'2.Logbook'!U166) ->  | V156: =IF('2.Logbook'!V166="","",'2.Logbook'!V166) ->  | W156: =IF('2.Logbook'!W166="","",'2.Logbook'!W166) ->  | X156: =IF('2.Logbook'!X166="","",'2.Logbook'!X166) ->  | Y156: =IF('2.Logbook'!Y166="","",'2.Logbook'!Y166) ->  | Z156: =IF('2.Logbook'!Z166="","",'2.Logbook'!Z166) ->  | AA156: =IF('2.Logbook'!AA166="","",'2.Logbook'!AA166) ->  | AB156: =IF('2.Logbook'!AB166="","",'2.Logbook'!AB166) ->  | AC156: =IF('2.Logbook'!AC166="","",'2.Logbook'!AC166) ->  | AD156: =IF('2.Logbook'!AD166="","",'2.Logbook'!AD166) ->  | AE156: =IF('2.Logbook'!AE166="","",'2.Logbook'!AE166) ->  | AF156: =IF('2.Logbook'!AF166="","",'2.Logbook'!AF166) ->  | AG156: =IF('2.Logbook'!AG166="","",'2.Logbook'!AG166) -> 
A157: =IF('2.Logbook'!A167="","",'2.Logbook'!A167) ->  | B157: =IF('2.Logbook'!B167="","",'2.Logbook'!B167) ->  | C157: =IF('2.Logbook'!C167="","",'2.Logbook'!C167) ->  | D157: =IF('2.Logbook'!D167="","",'2.Logbook'!D167) ->  | E157: =IF('2.Logbook'!E167="","",'2.Logbook'!E167) ->  | F157: =IF('2.Logbook'!F167="","",'2.Logbook'!F167) ->  | G157: =IF('2.Logbook'!G167="","",'2.Logbook'!G167) ->  | H157: =IF('2.Logbook'!H167="","",'2.Logbook'!H167) ->  | I157: =IF('2.Logbook'!I167="","",'2.Logbook'!I167) ->  | J157: =IF('2.Logbook'!J167="","",'2.Logbook'!J167) ->  | K157: =IF('2.Logbook'!K167="","",'2.Logbook'!K167) ->  | L157: =IF('2.Logbook'!L167="","",'2.Logbook'!L167) ->  | M157: =IF('2.Logbook'!M167="","",'2.Logbook'!M167) ->  | N157: =IF('2.Logbook'!N167="","",'2.Logbook'!N167) ->  | O157: =IF('2.Logbook'!O167="","",'2.Logbook'!O167) ->  | P157: =IF('2.Logbook'!P167="","",'2.Logbook'!P167) ->  | Q157: =IF('2.Logbook'!Q167="","",'2.Logbook'!Q167) ->  | R157: =IF('2.Logbook'!R167="","",'2.Logbook'!R167) ->  | S157: =IF('2.Logbook'!S167="","",'2.Logbook'!S167) ->  | T157: =IF('2.Logbook'!T167="","",'2.Logbook'!T167) ->  | U157: =IF('2.Logbook'!U167="","",'2.Logbook'!U167) ->  | V157: =IF('2.Logbook'!V167="","",'2.Logbook'!V167) ->  | W157: =IF('2.Logbook'!W167="","",'2.Logbook'!W167) ->  | X157: =IF('2.Logbook'!X167="","",'2.Logbook'!X167) ->  | Y157: =IF('2.Logbook'!Y167="","",'2.Logbook'!Y167) ->  | Z157: =IF('2.Logbook'!Z167="","",'2.Logbook'!Z167) ->  | AA157: =IF('2.Logbook'!AA167="","",'2.Logbook'!AA167) ->  | AB157: =IF('2.Logbook'!AB167="","",'2.Logbook'!AB167) ->  | AC157: =IF('2.Logbook'!AC167="","",'2.Logbook'!AC167) ->  | AD157: =IF('2.Logbook'!AD167="","",'2.Logbook'!AD167) ->  | AE157: =IF('2.Logbook'!AE167="","",'2.Logbook'!AE167) ->  | AF157: =IF('2.Logbook'!AF167="","",'2.Logbook'!AF167) ->  | AG157: =IF('2.Logbook'!AG167="","",'2.Logbook'!AG167) -> 
A158: =IF('2.Logbook'!A168="","",'2.Logbook'!A168) ->  | B158: =IF('2.Logbook'!B168="","",'2.Logbook'!B168) ->  | C158: =IF('2.Logbook'!C168="","",'2.Logbook'!C168) ->  | D158: =IF('2.Logbook'!D168="","",'2.Logbook'!D168) ->  | E158: =IF('2.Logbook'!E168="","",'2.Logbook'!E168) ->  | F158: =IF('2.Logbook'!F168="","",'2.Logbook'!F168) ->  | G158: =IF('2.Logbook'!G168="","",'2.Logbook'!G168) ->  | H158: =IF('2.Logbook'!H168="","",'2.Logbook'!H168) ->  | I158: =IF('2.Logbook'!I168="","",'2.Logbook'!I168) ->  | J158: =IF('2.Logbook'!J168="","",'2.Logbook'!J168) ->  | K158: =IF('2.Logbook'!K168="","",'2.Logbook'!K168) ->  | L158: =IF('2.Logbook'!L168="","",'2.Logbook'!L168) ->  | M158: =IF('2.Logbook'!M168="","",'2.Logbook'!M168) ->  | N158: =IF('2.Logbook'!N168="","",'2.Logbook'!N168) ->  | O158: =IF('2.Logbook'!O168="","",'2.Logbook'!O168) ->  | P158: =IF('2.Logbook'!P168="","",'2.Logbook'!P168) ->  | Q158: =IF('2.Logbook'!Q168="","",'2.Logbook'!Q168) ->  | R158: =IF('2.Logbook'!R168="","",'2.Logbook'!R168) ->  | S158: =IF('2.Logbook'!S168="","",'2.Logbook'!S168) ->  | T158: =IF('2.Logbook'!T168="","",'2.Logbook'!T168) ->  | U158: =IF('2.Logbook'!U168="","",'2.Logbook'!U168) ->  | V158: =IF('2.Logbook'!V168="","",'2.Logbook'!V168) ->  | W158: =IF('2.Logbook'!W168="","",'2.Logbook'!W168) ->  | X158: =IF('2.Logbook'!X168="","",'2.Logbook'!X168) ->  | Y158: =IF('2.Logbook'!Y168="","",'2.Logbook'!Y168) ->  | Z158: =IF('2.Logbook'!Z168="","",'2.Logbook'!Z168) ->  | AA158: =IF('2.Logbook'!AA168="","",'2.Logbook'!AA168) ->  | AB158: =IF('2.Logbook'!AB168="","",'2.Logbook'!AB168) ->  | AC158: =IF('2.Logbook'!AC168="","",'2.Logbook'!AC168) ->  | AD158: =IF('2.Logbook'!AD168="","",'2.Logbook'!AD168) ->  | AE158: =IF('2.Logbook'!AE168="","",'2.Logbook'!AE168) ->  | AF158: =IF('2.Logbook'!AF168="","",'2.Logbook'!AF168) ->  | AG158: =IF('2.Logbook'!AG168="","",'2.Logbook'!AG168) -> 
A159: =IF('2.Logbook'!A169="","",'2.Logbook'!A169) ->  | B159: =IF('2.Logbook'!B169="","",'2.Logbook'!B169) ->  | C159: =IF('2.Logbook'!C169="","",'2.Logbook'!C169) ->  | D159: =IF('2.Logbook'!D169="","",'2.Logbook'!D169) ->  | E159: =IF('2.Logbook'!E169="","",'2.Logbook'!E169) ->  | F159: =IF('2.Logbook'!F169="","",'2.Logbook'!F169) ->  | G159: =IF('2.Logbook'!G169="","",'2.Logbook'!G169) ->  | H159: =IF('2.Logbook'!H169="","",'2.Logbook'!H169) ->  | I159: =IF('2.Logbook'!I169="","",'2.Logbook'!I169) ->  | J159: =IF('2.Logbook'!J169="","",'2.Logbook'!J169) ->  | K159: =IF('2.Logbook'!K169="","",'2.Logbook'!K169) ->  | L159: =IF('2.Logbook'!L169="","",'2.Logbook'!L169) ->  | M159: =IF('2.Logbook'!M169="","",'2.Logbook'!M169) ->  | N159: =IF('2.Logbook'!N169="","",'2.Logbook'!N169) ->  | O159: =IF('2.Logbook'!O169="","",'2.Logbook'!O169) ->  | P159: =IF('2.Logbook'!P169="","",'2.Logbook'!P169) ->  | Q159: =IF('2.Logbook'!Q169="","",'2.Logbook'!Q169) ->  | R159: =IF('2.Logbook'!R169="","",'2.Logbook'!R169) ->  | S159: =IF('2.Logbook'!S169="","",'2.Logbook'!S169) ->  | T159: =IF('2.Logbook'!T169="","",'2.Logbook'!T169) ->  | U159: =IF('2.Logbook'!U169="","",'2.Logbook'!U169) ->  | V159: =IF('2.Logbook'!V169="","",'2.Logbook'!V169) ->  | W159: =IF('2.Logbook'!W169="","",'2.Logbook'!W169) ->  | X159: =IF('2.Logbook'!X169="","",'2.Logbook'!X169) ->  | Y159: =IF('2.Logbook'!Y169="","",'2.Logbook'!Y169) ->  | Z159: =IF('2.Logbook'!Z169="","",'2.Logbook'!Z169) ->  | AA159: =IF('2.Logbook'!AA169="","",'2.Logbook'!AA169) ->  | AB159: =IF('2.Logbook'!AB169="","",'2.Logbook'!AB169) ->  | AC159: =IF('2.Logbook'!AC169="","",'2.Logbook'!AC169) ->  | AD159: =IF('2.Logbook'!AD169="","",'2.Logbook'!AD169) ->  | AE159: =IF('2.Logbook'!AE169="","",'2.Logbook'!AE169) ->  | AF159: =IF('2.Logbook'!AF169="","",'2.Logbook'!AF169) ->  | AG159: =IF('2.Logbook'!AG169="","",'2.Logbook'!AG169) -> 
A160: =IF('2.Logbook'!A170="","",'2.Logbook'!A170) ->  | B160: =IF('2.Logbook'!B170="","",'2.Logbook'!B170) ->  | C160: =IF('2.Logbook'!C170="","",'2.Logbook'!C170) ->  | D160: =IF('2.Logbook'!D170="","",'2.Logbook'!D170) ->  | E160: =IF('2.Logbook'!E170="","",'2.Logbook'!E170) ->  | F160: =IF('2.Logbook'!F170="","",'2.Logbook'!F170) ->  | G160: =IF('2.Logbook'!G170="","",'2.Logbook'!G170) ->  | H160: =IF('2.Logbook'!H170="","",'2.Logbook'!H170) ->  | I160: =IF('2.Logbook'!I170="","",'2.Logbook'!I170) ->  | J160: =IF('2.Logbook'!J170="","",'2.Logbook'!J170) ->  | K160: =IF('2.Logbook'!K170="","",'2.Logbook'!K170) ->  | L160: =IF('2.Logbook'!L170="","",'2.Logbook'!L170) ->  | M160: =IF('2.Logbook'!M170="","",'2.Logbook'!M170) ->  | N160: =IF('2.Logbook'!N170="","",'2.Logbook'!N170) ->  | O160: =IF('2.Logbook'!O170="","",'2.Logbook'!O170) ->  | P160: =IF('2.Logbook'!P170="","",'2.Logbook'!P170) ->  | Q160: =IF('2.Logbook'!Q170="","",'2.Logbook'!Q170) ->  | R160: =IF('2.Logbook'!R170="","",'2.Logbook'!R170) ->  | S160: =IF('2.Logbook'!S170="","",'2.Logbook'!S170) ->  | T160: =IF('2.Logbook'!T170="","",'2.Logbook'!T170) ->  | U160: =IF('2.Logbook'!U170="","",'2.Logbook'!U170) ->  | V160: =IF('2.Logbook'!V170="","",'2.Logbook'!V170) ->  | W160: =IF('2.Logbook'!W170="","",'2.Logbook'!W170) ->  | X160: =IF('2.Logbook'!X170="","",'2.Logbook'!X170) ->  | Y160: =IF('2.Logbook'!Y170="","",'2.Logbook'!Y170) ->  | Z160: =IF('2.Logbook'!Z170="","",'2.Logbook'!Z170) ->  | AA160: =IF('2.Logbook'!AA170="","",'2.Logbook'!AA170) ->  | AB160: =IF('2.Logbook'!AB170="","",'2.Logbook'!AB170) ->  | AC160: =IF('2.Logbook'!AC170="","",'2.Logbook'!AC170) ->  | AD160: =IF('2.Logbook'!AD170="","",'2.Logbook'!AD170) ->  | AE160: =IF('2.Logbook'!AE170="","",'2.Logbook'!AE170) ->  | AF160: =IF('2.Logbook'!AF170="","",'2.Logbook'!AF170) ->  | AG160: =IF('2.Logbook'!AG170="","",'2.Logbook'!AG170) -> 
